Workbook

Sheet INPUT
A1: BASE PERIOD WITH ALL RIDERS
A4: Input Areas in Grey
B5: 6 Months Actual Ending May 31, 2017
B6: 6 Months Actual and 6 Months Projected
B8: DUKE ENERGY KENTUCKY, INC.
B9: AUTOMATED RATE CASE FILING SYSTEM
B10: FOR THE TWELVE MONTHS ENDED November 30, 2017
B11: CASE NO. 2017-00321
B12: SERVICE: | D12: (ELECTRIC SERVICE)
B13: DATA: __X__ BASE PERIOD ____FORECASTED PERIOD
B14: TYPE OF FILING: _X_ ORIGINAL ___UPDATED ___ REVISED
B15: ANNUALIZED BASE YEAR REVENUES AT PROPOSED VS. MOST CURRENT RATES
C17: CURRENT | D17: PROPOSED
B18: FUEL COSTS: (BFC EFFECTIVE DEC 2006)
B19: FUEL ADJUSTMENT CLAUSE (FAC): | C19: 0.001028 | D19: 0.001028 | E19: $ PER KWH | J19: not used
B20: BASE FUEL COST: | C20: 0.023837 | D20: 0.023837 | E20: $ PER KWH
B22: RIDER MSR-E: (EFFECTIVE MAY 2010)
B23: RESIDENTIAL | C23: 0 | D23: 0 | E23: $ PER KWH | F23: CANCELLED & WITHDRAWN
B24: DISTRIBUTION | C24: 0 | D24: 0 | E24: $ PER KWH
B25: TRANSMISSION | C25: 0 | D25: 0 | E25: $ PER KWH
B26: LIGHTING | C26: 0 | D26: 0 | E26: $ PER KWH
B28: RIDER DSMR: (EFFECTIVE JUNE 26, 2017)
B29: RESIDENTIAL | C29: 0.007967 | D29: 0.007967 | E29: $ PER KWH | J29: 0.1 | K29: HEA $ / MONTH
B30: DISTRIBUTION | C30: 0.002576 | D30: 0.002576 | E30: $ PER KWH
B31: TRANSMISSION | C31: 0.000183 | D31: 0.000183 | E31: $ PER KWH
B33: RIDER PSM : (EFFECTIVE NOV 30, 2016)
B34: All Rates | C34: -0.000456 | D34: -0.000456 | E34: $ PER KWH
B38: WITNESS: | D38: B. L. SAILERS
C41: CURRENT | D41: PROPOSED
B42: RATE RS: (EFFECTIVE AUGUST 31, 2015)
B43: CUSTOMER CHARGE | C43: 4.5 | D43: 11.22 | E43: $ PER MONTH
B44: ENERGY CHARGE | C44: 0.075456 | D44: 0.083908 | E44: $ PER KWH
B46: RATE DS: (EFFECTIVE AUGUST 31, 2015)
B47: CUSTOMER CHARGE
B48: Single Phase | C48: 7.5 | D48: 17.14 | E48: $ PER MONTH
B49: Three Phase | C49: 15 | D49: 34.28 | E49: $ PER MONTH
B50: ENERGY CHARGE
B51: First 6000 | C51: 0.081645 | D51: 0.091917 | E51: $ PER KWH
B52: Next 300 KWH/KW | C52: 0.050119 | D52: 0.056425 | E52: $ PER KWH
B53: Additional | C53: 0.041043 | D53: 0.046204 | E53: $ PER KWH
B54: DEMAND CHARGE
B55: First 15 KW | C55: 0 | D55: 0 | E55: $ PER KW
B56: Additional | C56: 7.75 | D56: 8.73 | E56: $ PER KW
B57: CAP RATES
B58: NON-CHURCH | C58: 0.241184 | D58: 0.271528 | E58: $ PER KWH
B59: CHURCH | C59: 0.148065 | D59: 0.166694 | E59: $ PER KWH
B61: RIDER LM: (EFFECTIVE SEPTEMBER 30, 2010)
B62: CUSTOMER CHARGE
B63: DS (NO INTERVAL DATA RECORDER) | C63: 5 | D63: 5 | E63: $ PER MONTH
B64: DS & DP (INTERVAL DATA RECORDER) | C64: 100 | D64: 5 | E64: $ PER MONTH
B66: RATE DT: (EFFECTIVE AUGUST 31, 2015)
B67: CUSTOMER CHARGE
B68: Single Phase | C68: 7.5 | D68: 200 | E68: $ PER MONTH
B69: Three Phase | C69: 15 | D69: 400 | E69: $ PER MONTH
B70: Primary Voltage | C70: 100 | D70: 465 | E70: $ PER MONTH
B71: ENERGY CHARGE
B72: Summer On-Peak | C72: 0.044195 | D72: 0.049875 | E72: $ PER KWH
B73: Winter On-Peak | C73: 0.042195 | D73: 0.047612 | E73: $ PER KWH
B74: Off-Peak | C74: 0.036195 | D74: 0.040844 | E74: $ PER KWH
B75: DEMAND CHARGE
B76: Summer On-Peak | C76: 12.75 | D76: 14.39 | E76: $ PER KW
B77: Summer Off-Peak | C77: 1.15 | D77: 1.3 | E77: $ PER KW
B78: Winter On-Peak | C78: 12.07 | D78: 13.62 | E78: $ PER KW
B79: Winter Off-Peak | C79: 1.15 | D79: 1.3 | E79: $ PER KW
B80: Primary Service Discount First 1000 KW | C80: -0.65 | D80: -0.73 | E80: $ PER KW
B81: Primary Service Discount Additional KW | C81: -0.5 | D81: -0.56 | E81: $ PER KW
B83: RATE EH: (EFFECTIVE AUGUST 31, 2015)
B84: CUSTOMER CHARGE
B85: Single Phase | C85: 7.5 | D85: 17.14 | E85: $ PER MONTH
B86: Three Phase | C86: 15 | D86: 34.28 | E86: $ PER MONTH
B87: Primary Voltage | C87: 100 | D87: 118.78 | E87: $ PER MONTH
B88: ENERGY CHARGE
B89: All KWH | C89: 0.061524 | D89: 0.069947 | E89: $ PER KWH
B90: DEMAND CHARGE
B91: All KW | C91: 0 | D91: 0 | E91: $ PER KW
B93: RATE SP: (EFFECTIVE AUGUST 31, 2015)
B94: CUSTOMER CHARGE
B95: Single Phase | C95: 7.5 | D95: 17.14 | E95: $ PER MONTH
B96: ENERGY CHARGE
B97: All KWH | C97: 0.100598 | D97: 0.106568 | E97: $ PER KWH
B98: DEMAND CHARGE
B99: All KW | C99: 0 | D99: 0 | E99: $ PER KW
B101: RATE GSFL: (EFFECTIVE AUGUST 31, 2015)
B102: MINIMUM BILL
B103: Minimum Bill | C103: 3 | D103: 3.14 | E103: $ PER MONTH
B104: ENERGY CHARGE
B105: Loads Between 540 to 720 Hours Use per Month | C105: 0.080723 | D105: 0.092698 | E105: $ PER KWH
B106: Loads < 540 Hours Use per Month | C106: 0.092947 | D106: 0.106767 | E106: $ PER KWH
B107: DEMAND CHARGE
B108: All KW | C108: 0 | D108: 0 | E108: $ PER KW
B110: RATE DP: (EFFECTIVE AUGUST 31, 2015)
B111: CUSTOMER CHARGE
B112: Primary Voltage | C112: 100 | D112: 118.78 | E112: $ PER MONTH
B113: ENERGY CHARGE
B114: First 300 KWH/KW | C114: 0.051068 | D114: 0.060595 | E114: $ PER KWH
B115: Additional | C115: 0.043198 | D115: 0.051267 | E115: $ PER KWH
B116: Cap Rate | C116: 0.241184 | D116: 0.286198 | E116: $ PER KWH
B117: DEMAND CHARGE
B118: All KW | C118: 7.08 | D118: 8.4 | E118: $ PER KW
B120: RATE TT: (EFFECTIVE AUGUST 31, 2015)
B121: CUSTOMER CHARGE
B122: Customer Charge | C122: 500 | D122: 500 | E122: $ PER MONTH
B123: ENERGY CHARGE
B124: On-Peak Summer | C124: 0.042648 | D124: 0.054454 | E124: $ PER KWH
B125: On-Peak Winter | C125: 0.042648 | D125: 0.051983
B126: Off-Peak | C126: 0.042648 | D126: 0.044594
B127: DEMAND CHARGE
B128: Summer On-Peak | C128: 7.6 | D128: 8.46 | E128: $ PER KW
B129: Summer Off-Peak | C129: 1.15 | D129: 1.28 | E129: $ PER KW
B130: Winter On-Peak | C130: 6.24 | D130: 6.95 | E130: $ PER KW
B131: Winter Off-Peak | C131: 1.15 | D131: 1.28 | E131: $ PER KW
B133: RATE RTP-M: (EFFECTIVE June 1, 2012) (WITHDRAW & CANCEL)
B134: CUSTOMER CHARGE
B135: Secondary Voltage | C135: 198 | D135: 0 | E135: $ PER MONTH
B136: Primary Voltage | C136: 283 | D136: 0 | E136: $ PER MONTH
B137: Transmission Voltage | C137: 683 | D137: 0 | E137: $ PER MONTH
B138: ENERGY DELIVERY CHARGE
B139: Secondary Voltage | C139: 0.006053 | D139: 0 | E139: $ PER KWH
B140: Primary Voltage | C140: 0.00554 | D140: 0 | E140: $ PER KWH
B141: Transmission Voltage | C141: 0.002008 | D141: 0 | E141: $ PER KWH
B142: ANSCILLARY SERVICES CHARGE
B143: Secondary Voltage | C143: 0.00076 | D143: 0 | E143: $ PER KWH
B144: Primary Voltage | C144: 0.00074 | D144: 0 | E144: $ PER KWH
B145: Transmission Voltage | C145: 0.000721 | D145: 0 | E145: $ PER KWH
B146: COMMODITY CHARGE
B147: Distribution Service | C147: 0.05185858333 | D147: 0 | E147: $ PER KWH
B148: Primary Service | C148: 0.050457 | D148: 0 | E148: $ PER KWH
B149: Transmission Service | C149: 0.049195575 | D149: 0 | E149: $ PER KWH
B151: RATE RTP: (EFFECTIVE June 1, 2012)
B152: PROGRAM CHARGE
B153: Program Charge | C153: 183 | D153: 183 | E153: $ PER MONTH
B154: ENERGY DELIVERY CHARGE
B155: Secondary Voltage | C155: 0.006053 | D155: 0.015412 | E155: $ PER KWH
B156: Primary Voltage | C156: 0.00554 | D156: 0.012471 | E156: $ PER KWH
B157: Transmission Voltage | C157: 0.002008 | D157: 0.006472 | E157: $ PER KWH
B158: ANSCILLARY SERVICES CHARGE
B159: Secondary Voltage | C159: 0.00076 | D159: 0 | E159: $ PER KWH
B160: Primary Voltage | C160: 0.00074 | D160: 0 | E160: $ PER KWH
B161: Transmission Voltage | C161: 0.000721 | D161: 0 | E161: $ PER KWH
B162: COMMODITY CHARGE
B163: Distribution Service (DS-Secondary) | C163: 0.055529 | D163: 0.055529 | E163: $ PER KWH
B164: Primary Service (DT-Secondary) | C164: 0.02428 | D164: 0.02428 | E164: $ PER KWH
B165: Transmission Service | C165: 0.029268 | D165: 0.029268 | E165: $ PER KWH
B167: RIDER ESM : (EFFECTIVE APR 1, 2018)
B168: All Rates - Incremental + Adjustment % | C168: 0 | D168: 0 | E168: % of BASE REVENUE
E169: in decimal form; not % form
B170: RIDER DCI : (EFFECTIVE APR 1, 2018)
B171: RS | C171: 0 | D171: 0 | E171: $ PER KWH
B172: DS | C172: 0 | D172: 0 | E172: $ PER KW
B173: DT-Primary | C173: 0 | D173: 0 | E173: $ PER KW
B174: DT-Secondary | C174: 0 | D174: 0 | E174: $ PER KW
B175: EH | C175: 0 | D175: 0 | E175: $ PER KWH
B176: SP | C176: 0 | D176: 0 | E176: $ PER KWH
B177: GSFL | C177: 0 | D177: 0 | E177: $ PER KWH
B178: DP | C178: 0 | D178: 0 | E178: $ PER KW
B180: Street Lighting | C180: 0 | D180: 0 | E180: $ PER KWH
B182: EXCLUDES TRANSMISSION
B184: RIDER FTR : (EFFECTIVE APR 1, 2018)
B185: RS | C185: 0 | D185: 0 | E185: $ PER KWH
B186: DS | C186: 0 | D186: 0 | E186: $ PER KWH
B187: DT-Primary | C187: 0 | D187: 0 | E187: $ PER KWH
B188: DT-Secondary | C188: 0 | D188: 0 | E188: $ PER KWH
B189: EH | C189: 0 | D189: 0 | E189: $ PER KWH
B190: SP | C190: 0 | D190: 0 | E190: $ PER KWH
B191: GSFL | C191: 0 | D191: 0 | E191: $ PER KWH
B192: DP | C192: 0 | D192: 0 | E192: $ PER KWH
B193: TT | C193: 0 | D193: 0 | E193: $ PER KWH
B194: Street Lighting | C194: 0 | D194: 0 | E194: $ PER KWH
B196: RIDER NAMES:
B197: HOME ENERGY ASSISTANCE (HEA)
B198: DEMAND SIDE MANAGEMENT RIDER (DSMR)
B199: ENVIRONMENTAL SURCHARGE MECHANISM RIDER (ESM)
B200: DISTRIBUTION CAPITAL INVESTMENT RIDER (DCI)
B201: FUEL ADJUSTMENT CLAUSE (FAC)
B202: FERC TRANSMISSION COST RECOVERY RECONCILIATION (FTR)
B203: PROFIT SHARING MECHANISM (PSM)
B205: RATE WS:
B206: Energy | C206: 0.055596 | D206: 0.055596 | E206: $ PER KWH

Sheet PRINT
B1: BASE PERIOD WITH ALL RIDERS
B6: SCHEDULE M-2.2 (CURRENT RATES) | L6: SCHEDULE M-2.3 (PROPOSED RATES)

Sheet SCH M
A1: =NAME -> DUKE ENERGY KENTUCKY, INC.
A2: =CASE_NO -> CASE NO. 2017-00321
A3: REVENUES AT PRESENT AND PROPOSED RATES
A4: =DATE -> FOR THE TWELVE MONTHS ENDED November 30, 2017
A5: =SERVICE -> (ELECTRIC SERVICE)
A7: =DATA_PERIOD -> DATA: __X__ BASE PERIOD ____FORECASTED PERIOD | I7: SCHEDULE M
A8: =TYPE -> TYPE OF FILING: _X_ ORIGINAL ___UPDATED ___ REVISED | I8: PAGE 1 OF 1
A9: WORK PAPER REFERENCE NO(S).: | I9: WITNESS:
A10: =TIME -> 6 Months Actual and 6 Months Projected | I10: =WIT -> B. L. SAILERS
A11: =INPUT!B5 -> 6 Months Actual Ending May 31, 2017
E15: REVENUE AT | G15: REVENUE AT | I15: REVENUE | K15: % OF
A16: LINE | C16: RATE | E16: PRESENT | G16: PROPOSED | I16: CHANGE | K16: REVENUE
A17: NO. | C17: CLASSIFICATION | E17: RATES | G17: RATES | I17: (AMOUNT) | K17: CHANGE
C18: (A) | E18: (B) | G18: (C) | I18: (D=C-B) | K18: (E=D / B)
E19: ($) | G19: ($) | I19: ($)
C20: RESIDENTIAL
A21: 1 | C21: RESIDENTIAL SERVICE (RS) | E21: ='Rate RS'!AN83 -> 129123808 | G21: ='Rate RS'!R40 -> 151660244 | I21: =G21-E21 -> 22536436 | K21: =IF(E21=0,"-",ROUND(I21/E21,4)) -> 0.1745
A22: 2 | C22: TOTAL RESIDENTIAL | E22: =E21 -> 129123808 | G22: =G21 -> 151660244 | I22: =I21 -> 22536436 | K22: =IF(E22=0,"-",ROUND(I22/E22,4)) -> 0.1745
C24: DISTRIBUTION
A25: 3 | C25: DISTRIBUTION SERVICE (DS) | E25: ='Rate DS'!AO111 -> 91350197 | G25: ='Rate DS'!R53 -> 104407142 | I25: =G25-E25 -> 13056945 | K25: =IF(E25=0,"-",ROUND(I25/E25,4)) -> 0.1429
A26: 4 | C26: DT PRIMARY TIME OF DAY (DT-PRI) | E26: ='Rate DT-Pri'!AO137 -> 31328625 | G26: ='Rate DT-Pri'!R65 -> 35313794 | I26: 3985169 | K26: 0.1272
A27: 5 | C27: DT SECONDARY TIME OF DAY (DT-SEC) | E27: ='Rate DT-Sec'!AO133 -> 46568917 | G27: ='Rate DT-Sec'!R63 -> 52959130 | I27: =G27-E27 -> 6390213 | K27: =IF(E27=0,"-",ROUND(I27/E27,4)) -> 0.1372
A28: 6 | C28: ELECTRIC SPACE HEATING (EH) | E28: ='Rate EH'!AO95 -> 640693 | G28: ='Rate EH'!R45 -> 731865 | I28: =G28-E28 -> 91172 | K28: 0.1423
A29: 7 | C29: SPORTS SERVICE (SP) | E29: ='Rate SP GSFL'!AO107 -> 29375 | G29: ='Rate SP GSFL'!R40 -> 32760 | I29: =G29-E29 -> 3385 | K29: 0.1152
A30: 8 | C30: SMALL FIXED LOADS (GSFL) | E30: ='Rate SP GSFL'!AO128 -> 596775 | G30: ='Rate SP GSFL'!R61 -> 682442 | I30: =G30-E30 -> 85667 | K30: 0.1435
A31: 9 | C31: PRIMARY VOLTAGE (DP) | E31: ='Rate DP'!AO102 -> 948402 | G31: ='Rate DP'!R48 -> 1114960 | I31: 166558 | K31: 0.1756
A32: 10 | C32: TOTAL DISTRIBUTION | E32: =SUM(E25:E31) -> 171462984 | G32: =SUM(G25:G31) -> 195242093 | I32: =SUM(I25:I31) -> 23779109 | K32: 0.1387
C34: TRANSMISSION
A35: 11 | C35: TIME OF DAY (TT) | E35: ='Rate TT'!AO122 -> 12528693 | G35: ='Rate TT'!R57 -> 13922324 | I35: =G35-E35 -> 1393631 | K35: =IF(E35=0,"-",ROUND(I35/E35,4)) -> 0.1112
A36: 12 | C36: TOTAL TRANSMISSION | E36: =SUM(E35) -> 12528693 | G36: =SUM(G35) -> 13922324 | I36: =SUM(I35) -> 1393631 | K36: =IF(E36=0,"-",ROUND(I36/E36,4)) -> 0.1112
C38: REAL TIME PRICING
A39: 13 | C39: DT PRIMARY-REAL TIME PRICING (DT-RTP PRI) | E39: ='Rate DT RTP-P'!AO84 -> 0 | G39: ='Rate DT RTP-P'!R39 -> 0 | I39: =G39-E39 -> 0 | K39: =IF(E39=0,"-",ROUND(I39/E39,4)) -> -
A40: 14 | C40: DT SECONDARY-REAL TIME PRICING (DT-RTP SEC) | E40: ='Rate DT RTP-S'!AO89 -> 141597 | G40: ='Rate DT RTP-S'!R42 -> 177120 | I40: =G40-E40 -> 35523 | K40: =IF(E40=0,"-",ROUND(I40/E40,4)) -> 0.2509
A41: 15 | C41: DS-REAL TIME PRICING (DS-RTP) | E41: ='Rate DS RTP'!AO89 -> 25921 | G41: ='Rate DS RTP'!R42 -> 28500 | I41: =G41-E41 -> 2579 | K41: =IF(E41=0,"-",ROUND(I41/E41,4)) -> 0.0995
A42: 16 | C42: TT-REAL TIME PRICING (TT-RTP) | E42: ='Rate TT RTP'!AO89 -> 414116 | G42: ='Rate TT RTP'!R41 -> 462458 | I42: =G42-E42 -> 48342 | K42: =IF(E42=0,"-",ROUND(I42/E42,4)) -> 0.1167
A43: 17 | C43: TOTAL REAL TIME PRICING | E43: =SUM(E39:E42) -> 581634 | G43: =SUM(G39:G42) -> 668078 | I43: =SUM(I39:I42) -> 86444 | K43: =IF(E43=0,"-",ROUND(I43/E43,4)) -> 0.1486
C45: LIGHTING
A46: 18 | C46: STREET LIGHTING (SL) | E46: ='Rate SL'!AO433 -> 1346952 | G46: ='Rate SL'!R211 -> 1506798 | I46: =G46-E46 -> 159846 | K46: =IF(E46=0,"-",ROUND(I46/E46,4)) -> 0.1187
A47: 19 | C47: TRAFFIC LIGHTING (TL) | E47: ='Rate TL'!AO102 -> 71559 | G47: ='Rate TL'!R49 -> 79965 | I47: 8406 | K47: 0.1175
A48: 20 | C48: UNMETERED OUTDOOR LIGHTING (UOLS) | E48: ='Rate UOLS'!AO67 -> 202008 | G48: ='Rate UOLS'!R30 -> 225658 | I48: 23650 | K48: 0.1171
A49: 21 | C49: PRIVATE OUTDOOR LIGHTING (OL) | E49: ='Rate OL'!AO165 -> 16821 | G49: ='Rate OL'!R79 -> 18810 | I49: 1989 | K49: 0.1182
A50: 22 | C50: NON STANDARD STREET LIGHTING (NSU) | E50: ='Rate NSU'!AO99 -> 62007 | G50: ='Rate NSU'!R47 -> 69359 | I50: 7352 | K50: 0.1186
A51: 23 | C51: NON STANDARD PRIVATE LIGHTING (NSP) | E51: ='Rate NSP'!AO123 -> 1456 | G51: ='Rate NSP'!R58 -> 1630 | I51: 174 | K51: 0.1195
A52: 24 | C52: CUST OWNED STREET LIGHTING SERVICE (SC) | E52: ='Rate SC'!AO149 -> 3713 | G52: ='Rate SC'!R74 -> 4148 | I52: 435 | K52: 0.1172
A53: 25 | C53: OVERHEAD EQUIV STREET LIGHTING SERVICE (SE) | E53: ='Rate SE'!AO112 -> 191062 | G53: ='Rate SE'!R54 -> 213712 | I53: 22650 | K53: 0.1185
A54: 26 | C54: TOTAL LIGHTING | E54: =SUM(E46:E53) -> 1895578 | G54: =SUM(G46:G53) -> 2120080 | I54: =SUM(I46:I53) -> 224502 | K54: 0.1184
A56: 27 | C56: INTERDEPARTMENTAL | E56: ='SCH M-2.2'!V57 -> 52074 | G56: ='SCH M-2.3'!R57 -> 52074 | I56: =G56-E56 -> 0 | K56: =IF(E56=0,"-",ROUND(I56/E56,4)) -> 0
A57: 28 | C57: SPECIAL CONTRACTS | E57: =+'SCH M-2.2'!V63 -> 7713 | G57: ='SCH M-2.3'!R63 -> 7713 | I57: =G57-E57 -> 0 | K57: =IF(E57=0,"-",ROUND(I57/E57,4)) -> 0
A59: 29 | C59: TOTAL RETAIL REVENUE | E59: =E54+E43+E36+E32+E22+E56+E57 -> 315652484 | G59: =G54+G43+G36+G32+G22+G56+G57 -> 363672606 | I59: =G59-E59 -> 48020122 | K59: =IF(E59=0,"-",ROUND(I59/E59,4)) -> 0.1521
C61: OTHER MISCELLANEOUS REVENUE
A62: 30 | C62: PJM AND TRANSMISSION | E62: ='SCH M-2.2'!V58 -> 3984486 | G62: ='SCH M-2.3'!R58 -> 3984486 | I62: =G62-E62 -> 0 | K62: =IF(E62=0,"-",ROUND(I62/E62,4)) -> 0
A63: 31 | C63: BAD CHECK CHARGES | E63: ='SCH M-2.2'!V59 -> 23092 | G63: =+'SCH M-2.3'!R59 -> 23092 | I63: 0 | K63: 0
A64: 32 | C64: RECONNECTION CHARGES | E64: ='SCH M-2.2'!V60 -> 189382 | G64: =+'SCH M-2.3'!R60 -> 189382 | I64: 0 | K64: 0
A65: 33 | C65: POLE AND LINE ATTACHMENTS | E65: ='SCH M-2.2'!V61 -> 117775 | G65: =+'SCH M-2.3'!R61 -> 117775 | I65: 0 | K65: =IF(E65=0,"-",ROUND(I65/E65,4)) -> 0
A66: 34 | C66: RENTS | E66: ='SCH M-2.2'!V62 -> 930344 | G66: =+'SCH M-2.3'!R62 -> 930344 | I66: 0 | K66: 0
A67: 35 | C67: OTHER MISCELLANEOUS | E67: ='SCH M-2.2'!V64 -> 19330403 | G67: =+'SCH M-2.3'!R64 -> 19330403 | I67: 0 | K67: 0
A68: 36 | C68: TOTAL MISCELLANEOUS REVENUE | E68: =SUM(E62:E67) -> 24575482 | G68: =SUM(G62:G67) -> 24575482 | I68: =SUM(I62:I67) -> 0 | K68: 0
A70: 37 | C70: TOTAL REVENUE | E70: =E68+E59 -> 340227966 | G70: =G68+G59 -> 388248088 | I70: =I68+I59 -> 48020122 | K70: =IF(E70=0,"-",ROUND(I70/E70,4)) -> 0.1411

Sheet SCH M-2.1
A1: =NAME -> DUKE ENERGY KENTUCKY, INC.
A2: =CASE_NO -> CASE NO. 2017-00321
A3: BASE PERIOD REVENUES AT CURRENT RATES
A4: =DATE -> FOR THE TWELVE MONTHS ENDED November 30, 2017
A5: =SERVICE -> (ELECTRIC SERVICE)
A6: =DATA_PERIOD -> DATA: __X__ BASE PERIOD ____FORECASTED PERIOD | R6: SCHEDULE M-2.1
A7: =TYPE -> TYPE OF FILING: _X_ ORIGINAL ___UPDATED ___ REVISED | R7: PAGE 1 OF 1
A8: WORK PAPER REFERENCE NO(S).: | R8: WITNESS:
A9: =TIME -> 6 Months Actual and 6 Months Projected | R9: =WIT -> B. L. SAILERS
A10: =INPUT!B5 -> 6 Months Actual Ending May 31, 2017
A11: BASE PERIOD REVENUES AT CURRENT RATES
J13: TEST PERIOD | N13: % OF REV
J14: REVENUE LESS | N14: TO TOTAL | R14: TEST PERIOD
A15: LINE | C15: RATE | D15: CLASS / | F15: CUSTOMER | J15: FUEL COST | L15: AVERAGE | N15: EXCLUSIVE OF | P15: FUEL COST | R15: REVENUE | T15: % OF REV
A16: NO. | C16: CODE | D16: DESCRIPTION | F16: BILLS | H16: SALES | J16: REVENUE | L16: RATE | N16: FUEL COST | P16: REVENUE | R16: TOTAL | T16: TO TOTAL
C17: (A) | D17: (B) | F17: (C) | H17: (D) | J17: (E) | L17: (F=E/D) | N17: (G) | P17: (H) | R17: (I) | T17: (J)
H19: (KWH) | J19: ($) | L19: (¢/KWH) | N19: (%) | P19: ($) | R19: ($) | T19: (%)
A20: 1 | C20: RS | D20: RESIDENTIAL SERV | F20: ='Rate RS'!X83 -> 1525197 | H20: ='Rate RS'!Z83 -> 1453752034 | J20: ='Rate RS'!AD83 -> 127629351 | L20: =IF(H20=0,"-",ROUND(J20/H20*100,6)) -> 8.779307 | N20: =IF(ABS(J20/$J$49*100)<0.005,"- ",ROUND(J20/$J$49*100,2))-0.01 -> 37.96 | P20: ='Rate RS'!AL83 -> 1494457 | R20: ='Rate RS'!AN83 -> 129123808 | T20: =IF(ABS(R20/$R$49*100)<0.005,"- ",ROUND(R20/$R$49*100,2))-0.01 -> 37.94
A21: 2 | C21: DS | D21: DISTRIBUTION SERV | F21: ='Rate DS'!Y111 -> 157022 | H21: ='Rate DS'!AA111 -> 1115844489 | J21: ='Rate DS'!AE111 -> 90203109 | L21: 8.083842 | N21: =IF(ABS(J21/$J$49*100)<0.005,"- ",ROUND(J21/$J$49*100,2))-0.01 -> 26.83 | P21: ='Rate DS'!AM111 -> 1147088 | R21: ='Rate DS'!AO111 -> 91350197 | T21: =IF(ABS(R21/$R$49*100)<0.005,"- ",ROUND(R21/$R$49*100,2)) -> 26.85
A22: 3 | C22: DT-PRI | D22: TIME OF DAY | F22: ='Rate DT-Pri'!Y137 -> 443 | H22: ='Rate DT-Pri'!AA137 -> 492952443 | J22: ='Rate DT-Pri'!AE137 -> 30821870 | L22: 6.252504 | N22: =IF(ABS(J22/$J$49*100)<0.005,"- ",ROUND(J22/$J$49*100,2)) -> 9.17 | P22: ='Rate DT-Pri'!AM137 -> 506755 | R22: ='Rate DT-Pri'!AO137 -> 31328625 | T22: 9.21
A23: 4 | C23: DT-SEC | D23: TIME OF DAY | F23: ='Rate DT-Sec'!Y133 -> 1786 | H23: ='Rate DT-Sec'!AA133 -> 683434130 | J23: ='Rate DT-Sec'!AE133 -> 45866347 | L23: 6.711158 | N23: =IF(ABS(J23/$J$49*100)<0.005,"- ",ROUND(J23/$J$49*100,2))-0.01 -> 13.64 | P23: ='Rate DT-Sec'!AM133 -> 702570 | R23: =J23+P23 -> 46568917 | T23: 13.69
A24: 5 | C24: EH | D24: ELEC SPACE HEATING | F24: ='Rate EH'!Y95 -> 502 | H24: ='Rate EH'!AA95 -> 9803357 | J24: ='Rate EH'!AE95 -> 630615 | L24: 6.432643 | N24: 0.19 | P24: ='Rate EH'!AM95 -> 10078 | R24: ='Rate EH'!AO95 -> 640693 | T24: 0.19
A25: 6 | C25: SP | D25: SPORTS SERV | F25: ='Rate SP GSFL'!Y107 -> 184 | H25: ='Rate SP GSFL'!AA107 -> 269849 | J25: ='Rate SP GSFL'!AE107 -> 29098 | L25: 10.783068 | N25: 0.01 | P25: ='Rate SP GSFL'!AM107 -> 277 | R25: ='Rate SP GSFL'!AO107 -> 29375 | T25: 0.01
A26: 7 | C26: GSFL | D26: SMALL FIXED LOADS | F26: ='Rate SP GSFL'!Y128 -> 540 | H26: ='Rate SP GSFL'!AA128 -> 6194943 | J26: ='Rate SP GSFL'!AE128 -> 590407 | L26: 9.530467 | N26: 0.18 | P26: ='Rate SP GSFL'!AM128 -> 6368 | R26: =J26+P26 -> 596775 | T26: 0.18
A27: 8 | C27: DP | D27: PRIMARY VOLTAGE | F27: ='Rate DP'!Y102 -> 120 | H27: ='Rate DP'!AA102 -> 13046582 | J27: ='Rate DP'!AE102 -> 934990 | L27: 7.166551 | N27: =IF(ABS(J27/$J$49*100)<0.005,"- ",ROUND(J27/$J$49*100,2)) -> 0.28 | P27: ='Rate DP'!AM102 -> 13412 | R27: ='Rate DP'!AO102 -> 948402 | T27: 0.28
A28: 9 | C28: TT | D28: TIME OF DAY | F28: ='Rate TT'!Y122 -> 156 | H28: ='Rate TT'!AA122 -> 213269428 | J28: ='Rate TT'!AE122 -> 12309452 | L28: 5.771785 | N28: 3.66 | P28: ='Rate TT'!AM122 -> 219241 | R28: ='Rate TT'!AO122 -> 12528693 | T28: 3.68
A29: 10 | C29: DT-RTP PRI | D29: REAL TIME PRICING | F29: ='Rate DT RTP-P'!Y84 -> 0 | H29: ='Rate DT RTP-P'!AA84 -> 0 | J29: ='Rate DT RTP-P'!AE84 -> 0 | L29: =IF(H29=0,"-",ROUND(J29/H29*100,6)) -> - | N29: - | P29: ='Rate DT RTP-P'!AM84 -> 0 | R29: ='Rate DT RTP-P'!AO84 -> 0 | T29: -
A30: 11 | C30: DT-RTP SEC | D30: REAL TIME PRICING | F30: ='Rate DT RTP-S'!Y89 -> 24 | H30: ='Rate DT RTP-S'!AA89 -> 4131069 | J30: ='Rate DT RTP-S'!AE89 -> 141597 | L30: 3.427612 | N30: 0.04 | P30: ='Rate DT RTP-S'!AM89 -> 0 | R30: ='Rate DT RTP-S'!AO89 -> 141597 | T30: 0.04
A31: 12 | C31: DS-RTP | D31: REAL TIME PRICING | F31: ='Rate DS RTP'!Y89 -> 36 | H31: ='Rate DS RTP'!AA89 -> 299922 | J31: ='Rate DS RTP'!AE89 -> 25921 | L31: 8.64258 | N31: 0.01 | P31: ='Rate DS RTP'!AM89 -> 0 | R31: ='Rate DS RTP'!AO89 -> 25921 | T31: 0.01
A32: 13 | C32: TT-RTP | D32: REAL TIME PRICING | F32: ='Rate TT RTP'!Y89 -> 24 | H32: ='Rate TT RTP'!AA89 -> 12915280 | J32: ='Rate TT RTP'!AE89 -> 414116 | L32: 3.206404 | N32: 0.12 | P32: ='Rate TT RTP'!AM89 -> 0 | R32: ='Rate TT RTP'!AO89 -> 414116 | T32: 0.12
A33: 14 | C33: SL | D33: STREET LIGHTING | F33: ='Rate SL'!Y433 -> 138477 | H33: ='Rate SL'!AA433 -> 10839811 | J33: ='Rate SL'!AE433 -> 1335809 | L33: 12.323176 | N33: 0.4 | P33: ='Rate SL'!AM433 -> 11143 | R33: ='Rate SL'!AO433 -> 1346952 | T33: 0.4
A34: 15 | C34: TL | D34: TRAFFIC LIGHTING | F34: ='Rate TL'!Y102 -> 94895 | H34: ='Rate TL'!AA102 -> 1438465 | J34: ='Rate TL'!AE102 -> 70080 | L34: 4.87186 | N34: 0.02 | P34: ='Rate TL'!AM102 -> 1479 | R34: ='Rate TL'!AO102 -> 71559 | T34: 0.02
A35: 16 | C35: UOLS | D35: UNMTRD OUTDR LIGHT | F35: ='Rate UOLS'!Y67 -> 83973 | H35: ='Rate UOLS'!AA67 -> 5308606 | J35: ='Rate UOLS'!AE67 -> 196551 | L35: 3.702497 | N35: =IF(ABS(J35/$J$49*100)<0.005,"- ",ROUND(J35/$J$49*100,2)) -> 0.06 | P35: ='Rate UOLS'!AM67 -> 5457 | R35: ='Rate UOLS'!AO67 -> 202008 | T35: 0.06
A36: 17 | C36: OL | D36: PRIVATE OUTDR LIGHT | F36: ='Rate OL'!Y165 -> 1382 | H36: ='Rate OL'!AA165 -> 138105 | J36: ='Rate OL'!AE165 -> 16679 | L36: 12.077043 | N36: =IF(ABS(J36/$J$49*100)<0.005,"- ",ROUND(J36/$J$49*100,2)) -> - | P36: ='Rate OL'!AM165 -> 142 | R36: ='Rate OL'!AO165 -> 16821 | T36: -
A37: 18 | C37: NSU | D37: NON STD STREET LIGHT | F37: ='Rate NSU'!Y99 -> 8364 | H37: ='Rate NSU'!AA99 -> 405021 | J37: ='Rate NSU'!AE99 -> 61591 | L37: 15.206866 | N37: =IF(ABS(J37/$J$49*100)<0.005,"- ",ROUND(J37/$J$49*100,2)) -> 0.02 | P37: ='Rate NSU'!AM99 -> 416 | R37: ='Rate NSU'!AO99 -> 62007 | T37: 0.02
A38: 19 | C38: NSP | D38: NON STD PRIVATE LIGHT | F38: ='Rate NSP'!Y123 -> 137 | H38: ='Rate NSP'!AA123 -> 7610 | J38: ='Rate NSP'!AE123 -> 1448 | L38: 19.027595 | N38: =IF(ABS(J38/$J$49*100)<0.005,"- ",ROUND(J38/$J$49*100,2)) -> - | P38: ='Rate NSP'!AM123 -> 8 | R38: ='Rate NSP'!AO123 -> 1456 | T38: -
A39: 20 | C39: SC | D39: CUST OWNED STREET LIGHTING | F39: ='Rate SC'!Y149 -> 2064 | H39: ='Rate SC'!AA149 -> 97596 | J39: ='Rate SC'!AE149 -> 3613 | L39: 3.701996 | N39: =IF(ABS(J39/$J$49*100)<0.005,"- ",ROUND(J39/$J$49*100,2)) -> - | P39: ='Rate SC'!AM149 -> 100 | R39: ='Rate SC'!AO149 -> 3713 | T39: -
A40: 21 | C40: SE | D40: OVR HD EQUIV STREET LIGHTING | F40: ='Rate SE'!Y112 -> 24744 | H40: ='Rate SE'!AA112 -> 1476997 | J40: ='Rate SE'!AE112 -> 189543 | L40: 12.832998 | N40: 0.06 | P40: ='Rate SE'!AM112 -> 1519 | R40: ='Rate SE'!AO112 -> 191062 | T40: 0.06
A41: 22 | C41: ID01 | D41: INTERDEPARTMENTAL | F41: ='SCH M-2.2'!F57 -> 12 | H41: ='SCH M-2.2'!H57 -> 729253 | J41: ='SCH M-2.2'!L57 -> 51324 | L41: 7.037887 | N41: =IF(ABS(J41/$J$49*100)<0.005,"- ",ROUND(J41/$J$49*100,2)) -> 0.02 | P41: ='SCH M-2.2'!T57 -> 750 | R41: ='SCH M-2.2'!V57 -> 52074 | T41: =IF(ABS(R41/$R$49*100)<0.005,"- ",ROUND(R41/$R$49*100,2)) -> 0.02
A42: 23 | C42: IS | D42: PJM AND TRANSMISSION | F42: ='SCH M-2.2'!F58 -> 0 | H42: ='SCH M-2.2'!H58 -> 0 | J42: ='SCH M-2.2'!L58 -> 3984486 | L42: =IF(H42=0,"-",ROUND(J42/H42*100,6)) -> - | N42: 1.19 | P42: ='SCH M-2.2'!T58 -> 0 | R42: ='SCH M-2.2'!V58 -> 3984486 | T42: 1.17
A43: 24 | D43: BAD CHECK CHARGES | F43: ='SCH M-2.2'!F59 -> 0 | H43: ='SCH M-2.2'!H59 -> 0 | J43: ='SCH M-2.2'!L59 -> 23092 | L43: - | N43: =IF(ABS(J43/$J$49*100)<0.005,"- ",ROUND(J43/$J$49*100,2)) -> 0.01 | P43: ='SCH M-2.2'!T59 -> 0 | R43: ='SCH M-2.2'!V59 -> 23092 | T43: 0.01
A44: 25 | D44: RECONNECTION CHGS | F44: ='SCH M-2.2'!F60 -> 0 | H44: ='SCH M-2.2'!H60 -> 0 | J44: ='SCH M-2.2'!L60 -> 189382 | L44: - | N44: 0.06 | P44: ='SCH M-2.2'!T60 -> 0 | R44: ='SCH M-2.2'!V60 -> 189382 | T44: 0.06
A45: 26 | D45: POLE AND LINE ATTACHMENTS | F45: ='SCH M-2.2'!F61 -> 0 | H45: ='SCH M-2.2'!H61 -> 0 | J45: ='SCH M-2.2'!L61 -> 117775 | L45: =IF(H45=0,"-",ROUND(J45/H45*100,6)) -> - | N45: 0.04 | P45: ='SCH M-2.2'!T61 -> 0 | R45: ='SCH M-2.2'!V61 -> 117775 | T45: =IF(ABS(R45/$R$49*100)<0.005,"- ",ROUND(R45/$R$49*100,2)) -> 0.03
A46: 27 | D46: RENTS | F46: ='SCH M-2.2'!F62 -> 0 | H46: ='SCH M-2.2'!H62 -> 0 | J46: ='SCH M-2.2'!L62 -> 930344 | L46: - | N46: 0.28 | P46: ='SCH M-2.2'!T62 -> 0 | R46: ='SCH M-2.2'!V62 -> 930344 | T46: 0.27
A47: 28 | C47: WS | D47: SPECIAL CONTRACTS | F47: ='SCH M-2.2'!F63 -> 132 | H47: ='SCH M-2.2'!H63 -> 138735 | J47: ='SCH M-2.2'!L63 -> 7570 | L47: 5.456446 | N47: =IF(ABS(J47/$J$49*100)<0.005,"- ",ROUND(J47/$J$49*100,2)) -> - | P47: ='SCH M-2.2'!T63 -> 143 | R47: ='SCH M-2.2'!V63 -> 7713 | T47: -
A48: 29 | D48: OTHER MISC | F48: ='SCH M-2.2'!F64 -> 0 | H48: ='SCH M-2.2'!H64 -> 0 | J48: ='SCH M-2.2'!L64 -> 19330403 | L48: - | N48: 5.75 | P48: ='SCH M-2.2'!T64 -> 0 | R48: ='SCH M-2.2'!V64 -> 19330403 | T48: =IF(ABS(R48/$R$49*100)<0.005,"- ",ROUND(R48/$R$49*100,2)) -> 5.68
A49: 30 | C49: TOTAL | F49: =SUM(F20:F48) -> 2040214 | H49: =SUM(H20:H48) -> 4026493725 | J49: =SUM(J20:J48) -> 336106563 | L49: 8.347376 | N49: =SUM(N20:N48) -> 100 | P49: =SUM(P20:P48) -> 4121403 | R49: =SUM(R20:R48) -> 340227966 | T49: =SUM(T20:T48) -> 100
C51: NOTE: DETAIL CONTAINED ON SCHEDULES M-2.2 AND M-2.3.

Sheet SCH M-2.2
A1: =NAME -> DUKE ENERGY KENTUCKY, INC.
A2: =CASE_NO -> CASE NO. 2017-00321
A3: =TITLE -> ANNUALIZED BASE YEAR REVENUES AT PROPOSED VS. MOST CURRENT RATES
A4: =DATE -> FOR THE TWELVE MONTHS ENDED November 30, 2017
A5: =SERVICE -> (ELECTRIC SERVICE)
A6: =DATA_PERIOD -> DATA: __X__ BASE PERIOD ____FORECASTED PERIOD | V6: SCHEDULE M-2.2
A7: =TYPE -> TYPE OF FILING: _X_ ORIGINAL ___UPDATED ___ REVISED | V7: PAGE 1 OF 22
A8: WORK PAPER REFERENCE NO(S).: | V8: WITNESS:
A9: =TIME -> 6 Months Actual and 6 Months Projected | V9: =WIT -> B. L. SAILERS
A10: =INPUT!B5 -> 6 Months Actual Ending May 31, 2017
A11: CURRENT ANNUALIZED
L13: CURRENT | N13: % OF REV TO | P13: REVENUE | R13: % INCR IN | V13: CURRENT | X13: TOTAL
J14: MOST | L14: REVENUE LESS | N14: TOTAL LESS | P14: INCR LESS | R14: REV LESS | V14: TOTAL | X14: REVENUE
A15: LINE | C15: RATE | D15: CLASS / | F15: CUSTOMER | J15: CURRENT | L15: FUEL COST | N15: FUEL COST | P15: FUEL COST REV | R15: FUEL COST REV | T15: FUEL COST | V15: REVENUE | X15: % INCREASE
A16: NO. | C16: CODE | D16: DESCRIPTION | F16: BILLS | H16: SALES | J16: RATES | L16: REVENUE | N16: REVENUE | P16: (F - K) | R16: (M / K) | T16: REVENUE | V16: (K + H) | X16: (M / K1)
C17: (A) | D17: (B) | F17: (C) | H17: (D) | J17: (J) | L17: (K) | N17: (L) | P17: (M) | R17: (N) | T17: (H) | V17: (K1) | X17: (O)
H19: (KWH) | J19: (¢/KWH) | L19: ($) | N19: (%) | P19: ($) | R19: (%) | T19: ($) | V19: ($) | X19: (%)
C20: RESIDENTIAL
A21: 1 | C21: RS | D21: RESIDENTIAL SERV | F21: ='Rate RS'!X83 -> 1525197 | H21: ='Rate RS'!Z83 -> 1453752034 | J21: =IF(H21=0,"-",ROUND((L21/H21)*100,6)) -> 8.779307 | L21: ='Rate RS'!AD83 -> 127629351 | N21: =ROUND((L21/L$22)*100,2) -> 100 | P21: ='Rate RS'!AH83 -> 22536436 | R21: =ROUND((P21/L21)*100,1) -> 17.7 | T21: ='Rate RS'!AL83 -> 1494457 | V21: ='Rate RS'!AN83 -> 129123808 | X21: =ROUND((P21/V21)*100,1) -> 17.5
A22: 2 | C22: TOTAL RESIDENTIAL | F22: =F21 -> 1525197 | H22: =H21 -> 1453752034 | J22: =IF(H22=0,"-",ROUND((L22/H22)*100,6)) -> 8.779307 | L22: =L21 -> 127629351 | N22: =ROUND((L22/L$67)*100,2) -> 37.97 | P22: =P21 -> 22536436 | R22: =ROUND((P22/L22)*100,1) -> 17.7 | T22: =T21 -> 1494457 | V22: =V21 -> 129123808 | X22: =ROUND((P22/V22)*100,1) -> 17.5
C24: DISTRIBUTION
A25: 3 | C25: DS | D25: DISTRIBUTION SERV | F25: ='Rate DS'!Y111 -> 157022 | H25: ='Rate DS'!AA111 -> 1115844489 | J25: =IF(H25=0,"-",ROUND((L25/H25)*100,6)) -> 8.083842 | L25: ='Rate DS'!AE111 -> 90203109 | N25: =ROUND((L25/L$32)*100,2) -> 53.35 | P25: ='Rate DS'!AI111 -> 13056945 | R25: =ROUND((P25/L25)*100,1) -> 14.5 | T25: ='Rate DS'!AM111 -> 1147088 | V25: ='Rate DS'!AO111 -> 91350197 | X25: =ROUND((P25/V25)*100,1) -> 14.3
A26: 4 | C26: DT-PRI | D26: TIME OF DAY | F26: ='Rate DT-Pri'!Y137 -> 443 | H26: ='Rate DT-Pri'!AA137 -> 492952443 | J26: 6.252504 | L26: ='Rate DT-Pri'!AE137 -> 30821870 | N26: 18.23 | P26: ='Rate DT-Pri'!AI137 -> 3985169 | R26: 12.9 | T26: ='Rate DT-Pri'!AM137 -> 506755 | V26: ='Rate DT-Pri'!AO137 -> 31328625 | X26: 12.7
A27: 5 | C27: DT-SEC | D27: TIME OF DAY | F27: ='Rate DT-Sec'!Y133 -> 1786 | H27: ='Rate DT-Sec'!AA133 -> 683434130 | J27: 6.711158 | L27: ='Rate DT-Sec'!AE133 -> 45866347 | N27: 27.13 | P27: ='Rate DT-Sec'!AI133 -> 6390213 | R27: 13.9 | T27: ='Rate DT-Sec'!AM133 -> 702570 | V27: ='Rate DT-Sec'!AO133 -> 46568917 | X27: =ROUND((P27/V27)*100,1) -> 13.7
A28: 6 | C28: EH | D28: ELEC SPACE HEATING | F28: ='Rate EH'!Y95 -> 502 | H28: ='Rate EH'!AA95 -> 9803357 | J28: 6.432643 | L28: ='Rate EH'!AE95 -> 630615 | N28: 0.37 | P28: ='Rate EH'!AI95 -> 91172 | R28: =ROUND((P28/L28)*100,1) -> 14.5 | T28: ='Rate EH'!AM95 -> 10078 | V28: ='Rate EH'!AO95 -> 640693 | X28: =ROUND((P28/V28)*100,1) -> 14.2
A29: 7 | C29: SP | D29: SPORTS SERV | F29: ='Rate SP GSFL'!Y107 -> 184 | H29: ='Rate SP GSFL'!AA107 -> 269849 | J29: 10.783068 | L29: ='Rate SP GSFL'!AE107 -> 29098 | N29: 0.02 | P29: ='Rate SP GSFL'!AI107 -> 3385 | R29: =ROUND((P29/L29)*100,1) -> 11.6 | T29: ='Rate SP GSFL'!AM107 -> 277 | V29: ='Rate SP GSFL'!AO107 -> 29375 | X29: =ROUND((P29/V29)*100,1) -> 11.5
A30: 8 | C30: GSFL | D30: SMALL FIXED LOADS | F30: ='Rate SP GSFL'!Y128 -> 540 | H30: ='Rate SP GSFL'!AA128 -> 6194943 | J30: 9.530467 | L30: ='Rate SP GSFL'!AE128 -> 590407 | N30: 0.35 | P30: ='Rate SP GSFL'!AI128 -> 85667 | R30: =ROUND((P30/L30)*100,1) -> 14.5 | T30: ='Rate SP GSFL'!AM128 -> 6368 | V30: ='Rate SP GSFL'!AO128 -> 596775 | X30: =ROUND((P30/V30)*100,1) -> 14.4
A31: 9 | C31: DP | D31: PRIMARY VOLTAGE | F31: ='Rate DP'!Y102 -> 120 | H31: ='Rate DP'!AA102 -> 13046582 | J31: 7.166551 | L31: ='Rate DP'!AE102 -> 934990 | N31: =ROUND((L31/L$32)*100,2) -> 0.55 | P31: ='Rate DP'!AI102 -> 166558 | R31: 17.8 | T31: ='Rate DP'!AM102 -> 13412 | V31: ='Rate DP'!AO102 -> 948402 | X31: 17.6
A32: 10 | C32: TOTAL DISTRIBUTION | F32: =SUM(F25:F31) -> 160597 | H32: =SUM(H25:H31) -> 2321545793 | J32: =IF(H32=0,"-",ROUND((L32/H32)*100,6)) -> 7.282925 | L32: =SUM(L25:L31) -> 169076436 | N32: =ROUND((L32/L$67)*100,2)+0.01 -> 50.31 | P32: =SUM(P25:P31) -> 23779109 | R32: =ROUND((P32/L32)*100,1) -> 14.1 | T32: =SUM(T25:T31) -> 2386548 | V32: =SUM(V25:V31) -> 171462984 | X32: =ROUND((P32/V32)*100,1) -> 13.9
C34: TRANSMISSION
A35: 11 | C35: TT | D35: TIME OF DAY | F35: ='Rate TT'!Y122 -> 156 | H35: ='Rate TT'!AA122 -> 213269428 | J35: =IF(H35=0,"-",ROUND((L35/H35)*100,6)) -> 5.771785 | L35: ='Rate TT'!AE122 -> 12309452 | N35: =ROUND((L35/L$36)*100,2) -> 100 | P35: ='Rate TT'!AI122 -> 1393631 | R35: =ROUND((P35/L35)*100,1) -> 11.3 | T35: ='Rate TT'!AM122 -> 219241 | V35: ='Rate TT'!AO122 -> 12528693 | X35: ='Rate TT'!AQ122 -> 11.1
A36: 12 | C36: TOTAL TRANSMISSION | F36: =F35 -> 156 | H36: =H35 -> 213269428 | J36: =IF(H36=0,"-",ROUND((L36/H36)*100,6)) -> 5.771785 | L36: =L35 -> 12309452 | N36: =ROUND((L36/L$67)*100,2) -> 3.66 | P36: =P35 -> 1393631 | R36: =ROUND((P36/L36)*100,1) -> 11.3 | T36: =T35 -> 219241 | V36: =V35 -> 12528693 | X36: =ROUND((P36/V36)*100,1) -> 11.1
C38: REAL TIME PRICING
A39: 13 | C39: DT-RTP PRI | D39: REAL TIME PRICING | F39: ='Rate DT RTP-P'!Y84 -> 0 | H39: ='Rate DT RTP-P'!AA84 -> 0 | J39: =IF(H39=0,"-",ROUND((L39/H39)*100,6)) -> - | L39: ='Rate DT RTP-P'!AE84 -> 0 | N39: =IFERROR(ROUND((L39/L$43)*100,2),0) -> 0 | P39: ='Rate DT RTP-P'!AI84 -> 0 | R39: =IFERROR(ROUND((P39/L39)*100,1),0) -> 0 | T39: ='Rate DT RTP-P'!AM84 -> 0 | V39: ='Rate DT RTP-P'!AO84 -> 0 | X39: =IFERROR(ROUND((P39/V39)*100,1),0) -> 0
A40: 14 | C40: DT-RTP SEC | D40: REAL TIME PRICING | F40: ='Rate DT RTP-S'!Y89 -> 24 | H40: ='Rate DT RTP-S'!AA89 -> 4131069 | J40: 3.427612 | L40: ='Rate DT RTP-S'!AE89 -> 141597 | N40: =ROUND((L40/L$43)*100,2) -> 24.34 | P40: ='Rate DT RTP-S'!AI89 -> 35523 | R40: =ROUND((P40/L40)*100,1) -> 25.1 | T40: ='Rate DT RTP-S'!AM89 -> 0 | V40: ='Rate DT RTP-S'!AO89 -> 141597 | X40: =ROUND((P40/V40)*100,1) -> 25.1
A41: 15 | C41: DS-RTP | D41: REAL TIME PRICING | F41: ='Rate DS RTP'!Y89 -> 36 | H41: ='Rate DS RTP'!AA89 -> 299922 | J41: 8.64258 | L41: ='Rate DS RTP'!AE89 -> 25921 | N41: =ROUND((L41/L$43)*100,2) -> 4.46 | P41: ='Rate DS RTP'!AI89 -> 2579 | R41: =ROUND((P41/L41)*100,1) -> 9.9 | T41: ='Rate DS RTP'!AM89 -> 0 | V41: ='Rate DS RTP'!AO89 -> 25921 | X41: =ROUND((P41/V41)*100,1) -> 9.9
A42: 16 | C42: TT-RTP | D42: REAL TIME PRICING | F42: ='Rate TT RTP'!Y89 -> 24 | H42: ='Rate TT RTP'!AA89 -> 12915280 | J42: 3.206404 | L42: ='Rate TT RTP'!AE89 -> 414116 | N42: =ROUND((L42/L$43)*100,2) -> 71.2 | P42: ='Rate TT RTP'!AI89 -> 48342 | R42: =ROUND((P42/L42)*100,1) -> 11.7 | T42: ='Rate TT RTP'!AM89 -> 0 | V42: ='Rate TT RTP'!AO89 -> 414116 | X42: =ROUND((P42/V42)*100,1) -> 11.7
A43: 17 | C43: TOTAL REAL TIME PRICING | F43: =SUM(F39:F42) -> 84 | H43: =SUM(H39:H42) -> 17346271 | J43: =IF(H43=0,"-",ROUND((L43/H43)*100,6)) -> 3.353078 | L43: =SUM(L39:L42) -> 581634 | N43: =ROUND((L43/L$67)*100,2) -> 0.17 | P43: =SUM(P39:P42) -> 86444 | R43: =ROUND((P43/L43)*100,1) -> 14.9 | T43: =SUM(T39:T42) -> 0 | V43: =SUM(V39:V42) -> 581634 | X43: =ROUND((P43/V43)*100,1) -> 14.9
C45: LIGHTING
A46: 18 | C46: SL | D46: STREET LIGHTING | F46: ='Rate SL'!Y433 -> 138477 | H46: ='Rate SL'!AA433 -> 10839811 | J46: =IF(H46=0,"-",ROUND((L46/H46)*100,6)) -> 12.323176 | L46: ='Rate SL'!AE433 -> 1335809 | N46: =ROUND((L46/L$54)*100,2) -> 71.23 | P46: ='Rate SL'!AI433 -> 159846 | R46: =ROUND((P46/L46)*100,1) -> 12 | T46: ='Rate SL'!AM433 -> 11143 | V46: ='Rate SL'!AO433 -> 1346952 | X46: =ROUND((P46/V46)*100,1) -> 11.9
A47: 19 | C47: TL | D47: TRAFFIC LIGHTING | F47: ='Rate TL'!Y102 -> 94895 | H47: ='Rate TL'!AA102 -> 1438465 | J47: 4.87186 | L47: ='Rate TL'!AE102 -> 70080 | N47: =ROUND((L47/L$54)*100,2) -> 3.74 | P47: ='Rate TL'!AI102 -> 8406 | R47: 12 | T47: ='Rate TL'!AM102 -> 1479 | V47: ='Rate TL'!AO102 -> 71559 | X47: 11.7
A48: 20 | C48: UOLS | D48: UNMTRD OUTDR LIGHT | F48: ='Rate UOLS'!Y67 -> 83973 | H48: ='Rate UOLS'!AA67 -> 5308606 | J48: 3.702497 | L48: ='Rate UOLS'!AE67 -> 196551 | N48: 10.48 | P48: ='Rate UOLS'!AI67 -> 23650 | R48: =IF(L48=0,"0.0 ",ROUND((P48/L48)*100,1)) -> 12 | T48: ='Rate UOLS'!AM67 -> 5457 | V48: ='Rate UOLS'!AO67 -> 202008 | X48: =IF(V48=0,"0.0 ",ROUND((P48/V48)*100,1)) -> 11.7
A49: 21 | C49: OL | D49: PRIVATE OUTDR LIGHT | F49: ='Rate OL'!Y165 -> 1382 | H49: ='Rate OL'!AA165 -> 138105 | J49: 12.077043 | L49: ='Rate OL'!AE165 -> 16679 | N49: 0.89 | P49: ='Rate OL'!AI165 -> 1989 | R49: =IF(L49=0,"0.0 ",ROUND((P49/L49)*100,1)) -> 11.9 | T49: ='Rate OL'!AM165 -> 142 | V49: ='Rate OL'!AO165 -> 16821 | X49: =IF(V49=0,"0.0 ",ROUND((P49/V49)*100,1)) -> 11.8
A50: 22 | C50: NSU | D50: NON STD STREET LIGHT | F50: ='Rate NSU'!Y99 -> 8364 | H50: ='Rate NSU'!AA99 -> 405021 | J50: 15.206866 | L50: ='Rate NSU'!AE99 -> 61591 | N50: 3.28 | P50: ='Rate NSU'!AI99 -> 7352 | R50: 11.9 | T50: ='Rate NSU'!AM99 -> 416 | V50: ='Rate NSU'!AO99 -> 62007 | X50: 11.9
A51: 23 | C51: NSP | D51: NON STD PRIVATE LIGHT | F51: ='Rate NSP'!Y123 -> 137 | H51: ='Rate NSP'!AA123 -> 7610 | J51: 19.027595 | L51: ='Rate NSP'!AE123 -> 1448 | N51: 0.08 | P51: ='Rate NSP'!AI123 -> 174 | R51: =IF(L51=0,"0.0 ",ROUND((P51/L51)*100,1)) -> 12 | T51: ='Rate NSP'!AM123 -> 8 | V51: ='Rate NSP'!AO123 -> 1456 | X51: =IF(V51=0,"0.0 ",ROUND((P51/V51)*100,1)) -> 12
A52: 24 | C52: SC | D52: CUST OWNED STREET LIGHTING | F52: ='Rate SC'!Y149 -> 2064 | H52: ='Rate SC'!AA149 -> 97596 | J52: 3.701996 | L52: ='Rate SC'!AE149 -> 3613 | N52: 0.19 | P52: ='Rate SC'!AI149 -> 435 | R52: 12 | T52: ='Rate SC'!AM149 -> 100 | V52: ='Rate SC'!AO149 -> 3713 | X52: 11.7
A53: 25 | C53: SE | D53: OVR HD EQUIV STREET LIGHTING | F53: ='Rate SE'!Y112 -> 24744 | H53: ='Rate SE'!AA112 -> 1476997 | J53: 12.832998 | L53: ='Rate SE'!AE112 -> 189543 | N53: 10.11 | P53: ='Rate SE'!AI112 -> 22650 | R53: 11.9 | T53: ='Rate SE'!AM112 -> 1519 | V53: ='Rate SE'!AO112 -> 191062 | X53: 11.9
A54: 26 | C54: TOTAL LIGHTING | F54: =SUM(F46:F53) -> 354036 | H54: =SUM(H46:H53) -> 19712211 | J54: =IF(H54=0,"-",ROUND((L54/H54)*100,6)) -> 9.513464 | L54: =SUM(L46:L53) -> 1875314 | N54: =ROUND((L54/L$67)*100,2) -> 0.56 | P54: =SUM(P46:P53) -> 224502 | R54: 12 | T54: =SUM(T46:T53) -> 20264 | V54: =SUM(V46:V53) -> 1895578 | X54: 11.8
C56: OTHER MISC REVENUE
A57: 27 | C57: ID01 | D57: INTERDEPARTMENTAL | F57: 12 | H57: 729253 | J57: =IF(H57=0,"-",ROUND((L57/H57)*100,6)) -> 7.037887 | L57: =V57-T57 -> 51324 | N57: =ROUND((L57/L$65)*100,2) -> 0.21 | P57: ='SCH M-2.3'!L57-'SCH M-2.2'!L57 -> 0 | R57: =ROUND((P57/L57)*100,1) -> 0 | T57: =ROUND(H57*CUR_FAC,0) -> 750 | V57: 52074 | X57: =ROUND((P57/V57)*100,1) -> 0
A58: 28 | D58: PJM AND TRANSMISSION | F58: 0 | H58: 0 | J58: =IF(H58=0,"-",ROUND((L58/H58)*100,6)) -> - | L58: =2036810+1947676 -> 3984486 | N58: =ROUND((L58/L$65)*100,2) -> 16.17 | P58: ='SCH M-2.3'!L58-'SCH M-2.2'!L58 -> 0 | R58: =IF(L58=0,0,ROUND((P58/L58)*100,1)) -> 0 | T58: 0 | V58: =L58+T58 -> 3984486 | X58: =IF(V58=0,0,ROUND((P58/V58)*100,1)) -> 0
A59: 29 | D59: BAD CHECK CHARGES | F59: 0 | H59: 0 | J59: =IF(H59=0,"-",ROUND((L59/H59)*100,6)) -> - | L59: 23092 | N59: 0.09 | P59: ='SCH M-2.3'!L59-'SCH M-2.2'!L59 -> 0 | R59: 0 | T59: 0 | V59: 23092 | X59: 0
A60: 30 | D60: RECONNECTION CHGS | F60: 0 | H60: 0 | J60: - | L60: 189382 | N60: 0.77 | P60: ='SCH M-2.3'!L60-'SCH M-2.2'!L60 -> 0 | R60: 0 | T60: 0 | V60: 189382 | X60: 0
A61: 31 | D61: POLE AND LINE ATTACHMENTS | F61: 0 | H61: 0 | J61: =IF(H61=0,"-",ROUND((L61/H61)*100,6)) -> - | L61: 117775 | N61: =ROUND((L61/L$65)*100,2) -> 0.48 | P61: ='SCH M-2.3'!L61-'SCH M-2.2'!L61 -> 0 | R61: =ROUND((P61/L61)*100,1) -> 0 | T61: 0 | V61: =L61+T61 -> 117775 | X61: =ROUND((P61/V61)*100,1) -> 0
A62: 32 | D62: RENTS | F62: 0 | H62: 0 | J62: - | L62: 930344 | N62: 3.78 | P62: ='SCH M-2.3'!L62-'SCH M-2.2'!L62 -> 0 | R62: 0 | T62: 0 | V62: 930344 | X62: 0
A63: 33 | C63: WS | D63: SPECIAL CONTRACTS | F63: 132 | H63: 138735 | J63: =INPUT!D206 -> 0.055596 | L63: =V63-T63 -> 7570 | N63: 0.03 | P63: ='SCH M-2.3'!L63-'SCH M-2.2'!L63 -> 0 | R63: 0 | T63: =ROUND(H63*CUR_FAC,0) -> 143 | V63: =ROUND(H63*J63,0) -> 7713 | X63: 0
A64: 34 | D64: OTHER MISC | F64: 0 | H64: 0 | J64: =IF(H64=0,"-",ROUND((L64/H64)*100,6)) -> - | L64: =1397911+17932492 -> 19330403 | N64: =ROUND((L64/L$65)*100,2) -> 78.47 | P64: ='SCH M-2.3'!L64-'SCH M-2.2'!L64 -> 0 | R64: 0 | T64: 0 | V64: 19330403 | X64: 0
A65: 35 | C65: TOTAL MISC REVENUE | F65: =SUM(F57:F64) -> 144 | H65: =SUM(H57:H64) -> 867988 | L65: =SUM(L57:L64) -> 24634376 | N65: =ROUND((L65/L$67)*100,2) -> 7.33 | P65: =SUM(P57:P64) -> 0 | R65: 0 | T65: =SUM(T57:T64) -> 893 | V65: =SUM(V57:V64) -> 24635269 | X65: 0
A67: 36 | C67: TOTAL | F67: =F65+F54+F43+F36+F32+F22 -> 2040214 | H67: =H65+H54+H43+H36+H32+H22 -> 4026493725 | J67: =IF(H67=0,"-",ROUND((L67/H67)*100,6)) -> 8.347376 | L67: =L65+L54+L43+L36+L32+L22 -> 336106563 | N67: 100 | P67: =P65+P54+P43+P36+P32+P22 -> 48020122 | R67: =ROUND((P67/L67)*100,1) -> 14.3 | T67: =T65+T54+T43+T36+T32+T22 -> 4121403 | V67: =V65+V54+V43+V36+V32+V22 -> 340227966 | X67: =ROUND((P67/V67)*100,1) -> 14.1
C69: NOTE: DETAIL CONTAINED ON SCHEDULES M-2.2 PAGES 2 THROUGH 22.

Sheet SCH M-2.3
A1: =NAME -> DUKE ENERGY KENTUCKY, INC.
A2: =CASE_NO -> CASE NO. 2017-00321
A3: =TITLE -> ANNUALIZED BASE YEAR REVENUES AT PROPOSED VS. MOST CURRENT RATES
A4: =DATE -> FOR THE TWELVE MONTHS ENDED November 30, 2017
A5: =SERVICE -> (ELECTRIC SERVICE)
A6: =DATA_PERIOD -> DATA: __X__ BASE PERIOD ____FORECASTED PERIOD | R6: SCHEDULE M-2.3
A7: =TYPE -> TYPE OF FILING: _X_ ORIGINAL ___UPDATED ___ REVISED | R7: PAGE 1 OF 22
A8: WORK PAPER REFERENCE NO(S).: | R8: WITNESS:
A9: =TIME -> 6 Months Actual and 6 Months Projected | R9: =WIT -> B. L. SAILERS
A10: =INPUT!B5 -> 6 Months Actual Ending May 31, 2017
A11: PROPOSED ANNUALIZED
L13: PROPOSED | N13: % OF REV TO | R13: PROPOSED
L14: REVENUE LESS | N14: TOTAL LESS | R14: TOTAL
A15: LINE | C15: RATE | D15: CLASS / | F15: CUSTOMER | J15: PROPOSED | L15: FUEL COST | N15: FUEL COST | P15: FUEL COST | R15: REVENUE
A16: NO. | C16: CODE | D16: DESCRIPTION | F16: BILLS | H16: SALES | J16: RATES | L16: REVENUE | N16: REVENUE | P16: REVENUE | R16: (F + H)
C17: (A) | D17: (B) | F17: (C) | H17: (D) | J17: (E) | L17: (F) | N17: (G) | P17: (H) | R17: (I)
H19: (KWH) | J19: (¢/KWH) | L19: ($) | N19: (%) | P19: ($) | R19: ($)
C20: RESIDENTIAL
A21: 1 | C21: RS | D21: RESIDENTIAL SERV | F21: ='Rate RS'!F40 -> 1525197 | H21: ='Rate RS'!H40 -> 1453752034 | J21: =IF(H21=0,"-",ROUND((L21/H21)*100,6)) -> 10.329532 | L21: ='Rate RS'!L40 -> 150165787 | N21: =ROUND((L21/L$22)*100,2) -> 100 | P21: ='Rate RS'!P40 -> 1494457 | R21: ='Rate RS'!R40 -> 151660244
A22: 2 | C22: TOTAL RESIDENTIAL | F22: =F21 -> 1525197 | H22: =H21 -> 1453752034 | J22: =IF(H22=0,"-",ROUND((L22/H22)*100,6)) -> 10.329532 | L22: =L21 -> 150165787 | N22: =ROUND((L22/L$67)*100,2) -> 39.09 | P22: =P21 -> 1494457 | R22: =R21 -> 151660244
C24: DISTRIBUTION
A25: 3 | C25: DS | D25: DISTRIBUTION SERV | F25: ='Rate DS'!F53 -> 157022 | H25: ='Rate DS'!H53 -> 1115844489 | J25: =IF(H25=0,"-",ROUND((L25/H25)*100,6)) -> 9.253983 | L25: ='Rate DS'!L53 -> 103260054 | N25: =ROUND((L25/L$32)*100,2) -> 53.54 | P25: ='Rate DS'!P53 -> 1147088 | R25: ='Rate DS'!R53 -> 104407142
A26: 4 | C26: DT-PRI | D26: TIME OF DAY | F26: ='Rate DT-Pri'!F65 -> 443 | H26: ='Rate DT-Pri'!H65 -> 492952443 | J26: 7.060932 | L26: ='Rate DT-Pri'!L65 -> 34807039 | N26: 18.05 | P26: ='Rate DT-Pri'!P65 -> 506755 | R26: ='Rate DT-Pri'!R65 -> 35313794
A27: 5 | C27: DT-SEC | D27: TIME OF DAY | F27: ='Rate DT-Sec'!F63 -> 1786 | H27: ='Rate DT-Sec'!H63 -> 683434130 | J27: 7.646174 | L27: ='Rate DT-Sec'!L63 -> 52256560 | N27: 27.1 | P27: ='Rate DT-Sec'!P63 -> 702570 | R27: ='Rate DT-Sec'!R63 -> 52959130
A28: 6 | C28: EH | D28: ELEC SPACE HEATING | F28: ='Rate EH'!F45 -> 502 | H28: ='Rate EH'!H45 -> 9803357 | J28: 7.362651 | L28: ='Rate EH'!L45 -> 721787 | N28: 0.37 | P28: ='Rate EH'!P45 -> 10078 | R28: ='Rate EH'!R45 -> 731865
A29: 7 | C29: SP | D29: SPORTS SERV | F29: ='Rate SP GSFL'!F40 -> 184 | H29: ='Rate SP GSFL'!H40 -> 269849 | J29: 12.037473 | L29: ='Rate SP GSFL'!L40 -> 32483 | N29: 0.02 | P29: ='Rate SP GSFL'!P40 -> 277 | R29: ='Rate SP GSFL'!R40 -> 32760
A30: 8 | C30: GSFL | D30: SMALL FIXED LOADS | F30: ='Rate SP GSFL'!F61 -> 540 | H30: ='Rate SP GSFL'!H61 -> 6194943 | J30: 10.913321 | L30: ='Rate SP GSFL'!L61 -> 676074 | N30: 0.35 | P30: ='Rate SP GSFL'!P61 -> 6368 | R30: ='Rate SP GSFL'!R61 -> 682442
A31: 9 | C31: DP | D31: PRIMARY VOLTAGE | F31: ='Rate DP'!F48 -> 120 | H31: ='Rate DP'!H48 -> 13046582 | J31: 8.443192 | L31: ='Rate DP'!L48 -> 1101548 | N31: =ROUND((L31/L$32)*100,2) -> 0.57 | P31: ='Rate DP'!P48 -> 13412 | R31: ='Rate DP'!R48 -> 1114960
A32: 10 | C32: TOTAL DISTRIBUTION | F32: =SUM(F25:F31) -> 160597 | H32: =SUM(H25:H31) -> 2321545793 | J32: 8.307204 | L32: =SUM(L25:L31) -> 192855545 | N32: =ROUND((L32/L$67)*100,2) -> 50.21 | P32: =SUM(P25:P31) -> 2386548 | R32: =SUM(R25:R31) -> 195242093
C34: TRANSMISSION
A35: 11 | C35: TT | D35: TIME OF DAY | F35: ='Rate TT'!F57 -> 156 | H35: ='Rate TT'!H57 -> 213269428 | J35: =IF(H35=0,"-",ROUND((L35/H35)*100,6)) -> 6.425245 | L35: ='Rate TT'!L57 -> 13703083 | N35: =ROUND((L35/L$36)*100,2) -> 100 | P35: ='Rate TT'!P57 -> 219241 | R35: ='Rate TT'!R57 -> 13922324
A36: 12 | C36: TOTAL TRANSMISSION | F36: =F35 -> 156 | H36: =H35 -> 213269428 | J36: 6.425245 | L36: =L35 -> 13703083 | N36: =ROUND((L36/L$67)*100,2) -> 3.57 | P36: =P35 -> 219241 | R36: =R35 -> 13922324
C38: REAL TIME PRICING
A39: 13 | C39: DT-RTP PRI | D39: REAL TIME PRICING | F39: ='Rate DT RTP-P'!F39 -> 0 | H39: ='Rate DT RTP-P'!H39 -> 0 | J39: =IF(H39=0,"-",ROUND((L39/H39)*100,6)) -> - | L39: ='Rate DT RTP-P'!L39 -> 0 | N39: =IFERROR(ROUND((L39/L$43)*100,2),0) -> 0 | P39: ='Rate DT RTP-P'!P39 -> 0 | R39: ='Rate DT RTP-P'!R39 -> 0
A40: 14 | C40: DT-RTP SEC | D40: REAL TIME PRICING | F40: ='Rate DT RTP-S'!F42 -> 24 | H40: ='Rate DT RTP-S'!H42 -> 4131069 | J40: 4.28751 | L40: ='Rate DT RTP-S'!L42 -> 177120 | N40: =IFERROR(ROUND((L40/L$43)*100,2),0) -> 26.51 | P40: ='Rate DT RTP-S'!P42 -> 0 | R40: ='Rate DT RTP-S'!R42 -> 177120
A41: 15 | C41: DS-RTP | D41: REAL TIME PRICING | F41: ='Rate DS RTP'!F42 -> 36 | H41: ='Rate DS RTP'!H42 -> 299922 | J41: 9.502471 | L41: ='Rate DS RTP'!L42 -> 28500 | N41: 4.27 | P41: ='Rate DS RTP'!P42 -> 0 | R41: ='Rate DS RTP'!R42 -> 28500
A42: 16 | C42: TT-RTP | D42: REAL TIME PRICING | F42: ='Rate TT RTP'!F41 -> 24 | H42: ='Rate TT RTP'!H41 -> 12915280 | J42: 3.580704 | L42: ='Rate TT RTP'!L41 -> 462458 | N42: 69.22 | P42: ='Rate TT RTP'!P41 -> 0 | R42: ='Rate TT RTP'!R41 -> 462458
A43: 17 | C43: TOTAL REAL TIME PRICING | F43: =SUM(F39:F42) -> 84 | H43: =SUM(H39:H42) -> 17346271 | J43: 3.851421 | L43: =SUM(L39:L42) -> 668078 | N43: =ROUND((L43/L$67)*100,2) -> 0.17 | P43: =SUM(P39:P42) -> 0 | R43: =SUM(R39:R42) -> 668078
C45: LIGHTING
A46: 18 | C46: SL | D46: STREET LIGHTING | F46: ='Rate SL'!F211 -> 138477 | H46: ='Rate SL'!H211 -> 10839811 | J46: =IF(H46=0,"-",ROUND((L46/H46)*100,6)) -> 13.797796 | L46: ='Rate SL'!L211 -> 1495655 | N46: =ROUND((L46/L$54)*100,2)-0.01 -> 71.22 | P46: ='Rate SL'!P211 -> 11143 | R46: ='Rate SL'!R211 -> 1506798
A47: 19 | C47: TL | D47: TRAFFIC LIGHTING | F47: ='Rate TL'!F49 -> 94895 | H47: ='Rate TL'!H49 -> 1438465 | J47: 5.456233 | L47: ='Rate TL'!L49 -> 78486 | N47: =ROUND((L47/L$54)*100,2) -> 3.74 | P47: ='Rate TL'!P49 -> 1479 | R47: ='Rate TL'!R49 -> 79965
A48: 20 | C48: UOLS | D48: UNMTRD OUTDR LIGHT | F48: ='Rate UOLS'!F30 -> 83973 | H48: ='Rate UOLS'!H30 -> 5308606 | J48: 4.148 | L48: ='Rate UOLS'!L30 -> 220201 | N48: 10.49 | P48: ='Rate UOLS'!P30 -> 5457 | R48: ='Rate UOLS'!R30 -> 225658
A49: 21 | C49: OL | D49: PRIVATE OUTDR LIGHT | F49: ='Rate OL'!F79 -> 1382 | H49: ='Rate OL'!H79 -> 138105 | J49: 13.517251 | L49: ='Rate OL'!L79 -> 18668 | N49: 0.89 | P49: ='Rate OL'!P79 -> 142 | R49: ='Rate OL'!R79 -> 18810
A50: 22 | C50: NSU | D50: NON STD STREET LIGHT | F50: ='Rate NSU'!F47 -> 8364 | H50: ='Rate NSU'!H47 -> 405021 | J50: 17.02208 | L50: ='Rate NSU'!L47 -> 68943 | N50: 3.28 | P50: ='Rate NSU'!P47 -> 416 | R50: ='Rate NSU'!R47 -> 69359
A51: 23 | C51: NSP | D51: NON STD PRIVATE LIGHT | F51: ='Rate NSP'!F58 -> 137 | H51: ='Rate NSP'!H58 -> 7610 | J51: 21.31406 | L51: ='Rate NSP'!L58 -> 1622 | N51: 0.08 | P51: ='Rate NSP'!P58 -> 8 | R51: ='Rate NSP'!R58 -> 1630
A52: 24 | C52: SC | D52: CUST OWNED STREET LIGHTING | F52: ='Rate SC'!F74 -> 2064 | H52: ='Rate SC'!H74 -> 97596 | J52: 4.147711 | L52: ='Rate SC'!L74 -> 4048 | N52: 0.19 | P52: ='Rate SC'!P74 -> 100 | R52: ='Rate SC'!R74 -> 4148
A53: 25 | C53: SE | D53: OVR HD EQUIV STREET LIGHTING | F53: ='Rate SE'!F54 -> 24744 | H53: ='Rate SE'!H54 -> 1476997 | J53: 14.366515 | L53: ='Rate SE'!L54 -> 212193 | N53: =ROUND((L53/L$54)*100,2) -> 10.11 | P53: ='Rate SE'!P54 -> 1519 | R53: ='Rate SE'!R54 -> 213712
A54: 26 | C54: TOTAL LIGHTING | F54: =SUM(F46:F53) -> 354036 | H54: =SUM(H46:H53) -> 19712211 | J54: 10.652362 | L54: =SUM(L46:L53) -> 2099816 | N54: =ROUND((L54/L$67)*100,2) -> 0.55 | P54: =SUM(P46:P53) -> 20264 | R54: =SUM(R46:R53) -> 2120080
C56: OTHER MISC REVENUE
A57: 27 | C57: ID01 | D57: INTERDEPARTMENTAL | F57: ='SCH M-2.2'!F57 -> 12 | H57: ='SCH M-2.2'!H57 -> 729253 | J57: =IF(H57=0,"-",ROUND((L57/H57)*100,2)) -> 7.04 | L57: ='SCH M-2.2'!L57 -> 51324 | N57: =ROUND((L57/L$65)*100,2) -> 0.21 | P57: ='SCH M-2.2'!T57 -> 750 | R57: =L57+P57 -> 52074
A58: 28 | D58: PJM AND TRANSMISSION | F58: ='SCH M-2.2'!F58 -> 0 | H58: ='SCH M-2.2'!H58 -> 0 | J58: - | L58: ='SCH M-2.2'!L58 -> 3984486 | N58: 16.17 | P58: ='SCH M-2.2'!T58 -> 0 | R58: =L58+P58 -> 3984486
A59: 29 | D59: BAD CHECK CHARGES | F59: ='SCH M-2.2'!F59 -> 0 | H59: ='SCH M-2.2'!H59 -> 0 | J59: - | L59: ='SCH M-2.2'!L59 -> 23092 | N59: 0.09 | P59: ='SCH M-2.2'!T59 -> 0 | R59: 23092
A60: 30 | D60: RECONNECTION CHGS | F60: ='SCH M-2.2'!F60 -> 0 | H60: ='SCH M-2.2'!H60 -> 0 | J60: - | L60: ='SCH M-2.2'!L60 -> 189382 | N60: 0.77 | P60: ='SCH M-2.2'!T60 -> 0 | R60: 189382
A61: 31 | D61: POLE AND LINE ATTACHMENTS | F61: ='SCH M-2.2'!F61 -> 0 | H61: ='SCH M-2.2'!H61 -> 0 | J61: =IF(H61=0,"-",ROUND((L61/H61)*100,2)) -> - | L61: ='SCH M-2.2'!L61 -> 117775 | N61: =ROUND((L61/L$65)*100,2) -> 0.48 | P61: ='SCH M-2.2'!T61 -> 0 | R61: =L61+P61 -> 117775
A62: 32 | D62: RENTS | F62: ='SCH M-2.2'!F62 -> 0 | H62: ='SCH M-2.2'!H62 -> 0 | J62: - | L62: ='SCH M-2.2'!L62 -> 930344 | N62: 3.78 | P62: ='SCH M-2.2'!T62 -> 0 | R62: 930344
A63: 33 | C63: WS | D63: SPECIAL CONTRACTS | F63: ='SCH M-2.2'!F63 -> 132 | H63: ='SCH M-2.2'!H63 -> 138735 | J63: 5.46 | L63: ='SCH M-2.2'!L63 -> 7570 | N63: 0.03 | P63: ='SCH M-2.2'!T63 -> 143 | R63: 7713
A64: 34 | D64: OTHER MISC | F64: ='SCH M-2.2'!F64 -> 0 | H64: ='SCH M-2.2'!H64 -> 0 | J64: - | L64: ='SCH M-2.2'!L64 -> 19330403 | N64: =ROUND((L64/L$65)*100,2) -> 78.47 | P64: ='SCH M-2.2'!T64 -> 0 | R64: 19330403
A65: 35 | C65: TOTAL MISC REVENUE | F65: =SUM(F57:F64) -> 144 | H65: =SUM(H57:H64) -> 867988 | J65: 2838.1 | L65: =SUM(L57:L64) -> 24634376 | N65: =ROUND((L65/L$67)*100,2) -> 6.41 | P65: =SUM(P57:P64) -> 893 | R65: =SUM(R57:R64) -> 24635269
A67: 36 | C67: TOTAL | F67: =F65+F54+F43+F36+F32+F22 -> 2040214 | H67: =H65+H54+H43+H36+H32+H22 -> 4026493725 | J67: 9.54 | L67: =L65+L54+L43+L36+L32+L22 -> 384126685 | N67: 100 | P67: =P65+P54+P43+P36+P32+P22 -> 4121403 | R67: =R65+R54+R43+R36+R32+R22 -> 388248088
C68: (1) DETAIL CONTAINED ON SCHEDULES M-2.3 PAGES 2 THROUGH 22.

Sheet Rate RS
A1: =NAME -> DUKE ENERGY KENTUCKY, INC.
A2: =CASE_NO -> CASE NO. 2017-00321
A3: =TITLE -> ANNUALIZED BASE YEAR REVENUES AT PROPOSED VS. MOST CURRENT RATES
A4: =DATE -> FOR THE TWELVE MONTHS ENDED November 30, 2017
A5: =SERVICE -> (ELECTRIC SERVICE)
A6: =DATA_PERIOD -> DATA: __X__ BASE PERIOD ____FORECASTED PERIOD | R6: SCHEDULE M-2.3
A7: =TYPE -> TYPE OF FILING: _X_ ORIGINAL ___UPDATED ___ REVISED | R7: PAGE 2 OF 22
A8: WORK PAPER REFERENCE NO(S).: | R8: WITNESS:
A9: =TIME -> 6 Months Actual and 6 Months Projected | R9: =WIT -> B. L. SAILERS
A10: =INPUT!B5 -> 6 Months Actual Ending May 31, 2017
A11: PROPOSED ANNUALIZED
L13: PROPOSED | N13: % OF REV TO | R13: PROPOSED
L14: REVENUE LESS | N14: TOTAL LESS | R14: TOTAL
A15: LINE | C15: RATE | D15: CLASS / | F15: CUSTOMER | J15: PROPOSED | L15: FUEL COST | N15: FUEL COST | P15: FUEL COST | R15: REVENUE
A16: NO. | C16: CODE | D16: DESCRIPTION | F16: BILLS(1) | H16: SALES | J16: RATES | L16: REVENUE | N16: REVENUE | P16: REVENUE (2) | R16: (F + H)
C17: (A) | D17: (B) | F17: (C) | H17: (D) | J17: (E) | L17: (F) | N17: (G) | P17: (H) | R17: (I)
H19: (KWH) | J19: ($/KWH) | L19: ($) | N19: (%) | P19: ($) | R19: ($)
A20: 1 | C20: RS | D20: RESIDENTIAL
A22: 2 | C22: CUSTOMER CHARGE:
A23: 3 | C23: BILLS | F23: 1525197 | J23: =INPUT!D43 -> 11.22 | L23: =ROUND(F23*J23,0) -> 17112710 | N23: =ROUND((L23/$L$40)*100,1) -> 11.4 | R23: =L23+P23 -> 17112710
A25: 4 | C25: ENERGY CHARGE (3):
A26: 5 | C26: ALL KWH | H26: 1453752034 | J26: =INPUT!D44 -> 0.083908 | L26: =ROUND(H26*J26,0) -> 121981426 | N26: =ROUND((L26/$L$40)*100,1) -> 81.2 | R26: =L26+P26 -> 121981426
A28: 6 | C28: TOTAL RATE RS EXCLUDING RIDERS | F28: =F23 -> 1525197 | H28: =H26 -> 1453752034 | L28: =SUM(L23:L26) -> 139094136 | N28: =ROUND((L28/$L$40)*100,1) -> 92.6 | R28: =SUM(R23:R26) -> 139094136
A30: 7 | C30: RIDERS:
A31: 8 | C31: =HEA_Name -> HOME ENERGY ASSISTANCE (HEA) | J31: =DSM_RS_CUST -> 0.1 | L31: =ROUND(F23*J31,0) -> 152520 | N31: =ROUND((L31/$L$40)*100,1) -> 0.1 | R31: =L31+P31 -> 152520
A32: 9 | C32: =DSMR_Name -> DEMAND SIDE MANAGEMENT RIDER (DSMR) | J32: =PRO_DSM_RES -> 0.007967 | L32: =ROUND(H26*J32,0) -> 11582042 | N32: 7.7 | R32: =L32+P32 -> 11582042
A33: 10 | C33: =ESM_Name -> ENVIRONMENTAL SURCHARGE MECHANISM RIDER (ESM) | J33: =PRO_ESM -> 0 | L33: =ROUND(R28*J33,0) -> 0 | N33: 0 | R33: =L33+P33 -> 0
A34: 11 | C34: =DCI_Name -> DISTRIBUTION CAPITAL INVESTMENT RIDER (DCI) | J34: =PRO_DCI -> 0 | L34: =ROUND(H26*J34,0) -> 0 | N34: 0 | R34: =L34+P34 -> 0
A35: 12 | C35: =FAC_Name -> FUEL ADJUSTMENT CLAUSE (FAC) | J35: =PRO_FAC -> 0.001028 | N35: 0 | P35: =ROUND($H$26*PRO_FAC,0) -> 1494457 | R35: 1494457
A36: 13 | C36: =FTR_Name -> FERC TRANSMISSION COST RECOVERY RECONCILIATION (FTR) | J36: =PRO_FTR_RES -> 0 | L36: =ROUND(H26*J36,0) -> 0 | N36: 0 | R36: 0
A37: 14 | C37: =PSM_Name -> PROFIT SHARING MECHANISM (PSM) | J37: =PRO_PSM -> -0.000456 | L37: =ROUND(H26*J37,0) -> -662911 | N37: -0.4 | R37: =L37+P37 -> -662911
A38: 15 | C38: TOTAL RIDERS | L38: =SUM(L31:L37) -> 11071651 | N38: 7.4 | P38: =SUM(P31:P37) -> 1494457 | R38: =SUM(R31:R37) -> 12566108
A40: 16 | C40: TOTAL RATE RS INCLUDING RIDERS | F40: =F23 -> 1525197 | H40: =H26 -> 1453752034 | L40: =L28+L38 -> 150165787 | N40: 100 | P40: =P38 -> 1494457 | R40: =R28+R38 -> 151660244
C42: (1) BILLS THAT TERMINATE IN RESPECTIVE RATE STEPS.
C43: ="(2) REFLECTS FUEL ADJUSTMENT CLAUSE (FAC) OF "&TEXT(PRO_FAC,"$0.000000;($0.000000)")&" PER KWH." -> (2) REFLECTS FUEL ADJUSTMENT CLAUSE (FAC) OF $0.001028 PER KWH.
C44: ="(3) REFLECTS FUEL COST RECOVERY INCLUDED IN BASE RATES OF "&TEXT(PRO_BASE_FUEL,"$0.000000;($0.000000)")&" PER KWH." -> (3) REFLECTS FUEL COST RECOVERY INCLUDED IN BASE RATES OF $0.023837 PER KWH. | T44: =NAME -> DUKE ENERGY KENTUCKY, INC.
T45: =CASE_NO -> CASE NO. 2017-00321
T46: =TITLE -> ANNUALIZED BASE YEAR REVENUES AT PROPOSED VS. MOST CURRENT RATES
T47: =DATE -> FOR THE TWELVE MONTHS ENDED November 30, 2017
T48: =SERVICE -> (ELECTRIC SERVICE)
T49: =DATA_PERIOD -> DATA: __X__ BASE PERIOD ____FORECASTED PERIOD | AN49: SCHEDULE M-2.2
T50: =TYPE -> TYPE OF FILING: _X_ ORIGINAL ___UPDATED ___ REVISED | AN50: =R7 -> PAGE 2 OF 22
T51: WORK PAPER REFERENCE NO(S).: | AN51: WITNESS:
T52: =TIME -> 6 Months Actual and 6 Months Projected | AN52: =WIT -> B. L. SAILERS
T53: =INPUT!B5 -> 6 Months Actual Ending May 31, 2017
AD54: CURRENT ANNUALIZED
AD56: CURRENT | AF56: % OF REV TO | AH56: REVENUE | AJ56: % INCR IN | AN56: CURRENT | AP56: TOTAL
AB57: MOST | AD57: REVENUE LESS | AF57: TOTAL LESS | AH57: INCR LESS | AJ57: REV LESS | AN57: TOTAL | AP57: REVENUE
T58: LINE | V58: RATE | W58: CLASS / | X58: CUSTOMER | AB58: CURRENT | AD58: FUEL COST | AF58: FUEL COST | AH58: FUEL COST REV | AJ58: FUEL COST REV | AL58: FUEL COST | AN58: REVENUE | AP58: % INCREASE
T59: NO. | V59: CODE | W59: DESCRIPTION | X59: BILLS(1) | Z59: SALES | AB59: RATES | AD59: REVENUE | AF59: REVENUE | AH59: (F - K) | AJ59: (M / K) | AL59: REVENUE (2) | AN59: (K + H) | AP59: (M / K1)
V60: (A) | W60: (B) | X60: (C) | Z60: (D) | AB60: (J) | AD60: (K) | AF60: (L) | AH60: (M) | AJ60: (N) | AL60: (H) | AN60: (K1) | AP60: (O)
Z62: (KWH) | AB62: ($/KWH) | AD62: ($) | AF62: (%) | AH62: ($) | AJ62: (%) | AL62: ($) | AN62: ($) | AP62: (%)
T63: 1 | V63: RS | W63: RESIDENTIAL
T65: 2 | V65: CUSTOMER CHARGE:
T66: 3 | V66: BILLS | X66: =F23 -> 1525197 | AB66: =INPUT!C43 -> 4.5 | AD66: =ROUND(X66*AB66,0) -> 6863387 | AF66: =ROUND((AD66/$AD$83)*100,1) -> 5.4 | AH66: =L23-AD66 -> 10249323 | AJ66: =ROUND((AH66/AD66)*100,1) -> 149.3 | AN66: =AD66+AL66 -> 6863387 | AP66: =ROUND((AH66/AN66)*100,1) -> 149.3
T68: 4 | V68: ENERGY CHARGE (3):
T69: 5 | V69: ALL KWH | Z69: =H26 -> 1453752034 | AB69: =INPUT!C44 -> 0.075456 | AD69: =ROUND((Z69*AB69),0) -> 109694313 | AF69: =ROUND((AD69/$AD$83)*100,1) -> 85.9 | AH69: =L26-AD69 -> 12287113 | AJ69: =ROUND((AH69/AD69)*100,1) -> 11.2 | AN69: =AD69+AL69 -> 109694313 | AP69: =ROUND((AH69/AN69)*100,1) -> 11.2
T71: 6 | V71: TOTAL RATE RS EXCLUDING RIDERS | X71: =X66 -> 1525197 | Z71: =Z69 -> 1453752034 | AD71: =SUM(AD66:AD69) -> 116557700 | AF71: =ROUND((AD71/$AD$83)*100,1) -> 91.3 | AH71: =SUM(AH66:AH69) -> 22536436 | AJ71: =ROUND((AH71/AD71)*100,1) -> 19.3 | AN71: =SUM(AN66:AN69) -> 116557700 | AP71: =ROUND((AH71/AN71)*100,1) -> 19.3
T73: 7 | V73: RIDERS:
T74: =A31 -> 8 | V74: HOME ENERGY ASSISTANCE (HEA) | AB74: =DSM_RS_CUST -> 0.1 | AD74: =ROUND(X66*AB74,0) -> 152520 | AF74: =ROUND((AD74/$AD$83)*100,1) -> 0.1 | AH74: =L31-AD74 -> 0 | AJ74: =ROUND((AH74/AD74)*100,1) -> 0 | AN74: =AD74+AL74 -> 152520 | AP74: =ROUND((AH74/AN74)*100,1) -> 0
T75: 9 | V75: DEMAND SIDE MANAGEMENT RIDER (DSMR) | AB75: =DSM_RES -> 0.007967 | AD75: =ROUND(Z69*AB75,0) -> 11582042 | AF75: =ROUND((AD75/$AD$83)*100,1) -> 9.1 | AH75: =L32-AD75 -> 0 | AJ75: 0 | AN75: 11582042 | AP75: 0
T76: 10 | V76: ENVIRONMENTAL SURCHARGE MECHANISM RIDER (ESM) | AB76: =CUR_ESM -> 0 | AD76: =ROUND(AN71*AB76,0) -> 0 | AF76: =ROUND((AD76/$AD$83)*100,1) -> 0 | AH76: 0 | AJ76: =IFERROR(ROUND((AH76/AD76)*100,1),0) -> 0 | AN76: 0 | AP76: =IFERROR(ROUND((AH76/AN76)*100,1),0) -> 0
T77: 11 | V77: DISTRIBUTION CAPITAL INVESTMENT RIDER (DCI) | AB77: =CUR_DCI -> 0 | AD77: =ROUND(Z69*AB77,0) -> 0 | AF77: 0 | AH77: 0 | AJ77: =IFERROR(ROUND((AH77/AD77)*100,1),0) -> 0 | AN77: 0 | AP77: =IFERROR(ROUND((AH77/AN77)*100,1),0) -> 0
T78: 12 | V78: FUEL ADJUSTMENT CLAUSE (FAC) | AB78: =CUR_FAC -> 0.001028 | AL78: =ROUND(Z69*CUR_FAC,0) -> 1494457 | AN78: 1494457 | AP78: =ROUND(((R35-AN78)/AN78)*100,1) -> 0
T79: 13 | V79: =C36 -> FERC TRANSMISSION COST RECOVERY RECONCILIATION (FTR) | AB79: =CUR_FTR_RES -> 0 | AD79: =ROUND(Z69*AB79,0) -> 0 | AF79: 0 | AH79: 0 | AJ79: =IFERROR(ROUND((AH79/AD79)*100,1),0) -> 0 | AN79: 0 | AP79: =IFERROR(ROUND((AH79/AN79)*100,1),0) -> 0
T80: 14 | V80: =C37 -> PROFIT SHARING MECHANISM (PSM) | AB80: =RS_PSM -> -0.000456 | AD80: =ROUND(Z69*AB80,0) -> -662911 | AF80: =ROUND((AD80/$AD$83)*100,1) -> -0.5 | AH80: =L37-AD80 -> 0 | AJ80: 0 | AN80: -662911 | AP80: 0
T81: 15 | V81: TOTAL RIDERS | AD81: =SUM(AD74:AD80) -> 11071651 | AF81: =ROUND((AD81/$AD$83)*100,1) -> 8.7 | AH81: =SUM(AH74:AH80) -> 0 | AJ81: 0 | AL81: =SUM(AL74:AL80) -> 1494457 | AN81: =SUM(AN74:AN80) -> 12566108 | AP81: =ROUND((AH81/AN81)*100,1) -> 0
T83: 16 | V83: TOTAL RATE RS INCLUDING RIDERS | X83: =X66 -> 1525197 | Z83: =Z69 -> 1453752034 | AD83: =AD71+AD81 -> 127629351 | AF83: 100 | AH83: =AH71+AH81 -> 22536436 | AJ83: =ROUND((AH83/AD83)*100,1) -> 17.7 | AL83: =AL71+AL81 -> 1494457 | AN83: =AN71+AN81 -> 129123808 | AP83: =ROUND((AH83/AN83)*100,1) -> 17.5
V85: (1) BILLS THAT TERMINATE IN RESPECTIVE RATE STEPS.
V86: ="(2) REFLECTS FUEL ADJUSTMENT CLAUSE (FAC) OF "&TEXT(CUR_FAC,"$0.000000;($0.000000)")&" PER KWH." -> (2) REFLECTS FUEL ADJUSTMENT CLAUSE (FAC) OF $0.001028 PER KWH.
V87: ="(3) REFLECTS FUEL COST RECOVERY INCLUDED IN BASE RATES OF "&TEXT(CUR_BASE_FUEL,"$0.000000;($0.000000)")&" PER KWH." -> (3) REFLECTS FUEL COST RECOVERY INCLUDED IN BASE RATES OF $0.023837 PER KWH.

Sheet Rate DS
A1: =NAME -> DUKE ENERGY KENTUCKY, INC.
A2: =CASE_NO -> CASE NO. 2017-00321
A3: =TITLE -> ANNUALIZED BASE YEAR REVENUES AT PROPOSED VS. MOST CURRENT RATES
A4: =DATE -> FOR THE TWELVE MONTHS ENDED November 30, 2017
A5: =SERVICE -> (ELECTRIC SERVICE)
A6: =DATA_PERIOD -> DATA: __X__ BASE PERIOD ____FORECASTED PERIOD | R6: SCHEDULE M-2.3
A7: =TYPE -> TYPE OF FILING: _X_ ORIGINAL ___UPDATED ___ REVISED | R7: PAGE 3 OF 22
A8: WORK PAPER REFERENCE NO(S).: | R8: WITNESS:
A9: =TIME -> 6 Months Actual and 6 Months Projected | R9: =WIT -> B. L. SAILERS
A10: =INPUT!B5 -> 6 Months Actual Ending May 31, 2017
A11: PROPOSED ANNUALIZED
L13: PROPOSED | N13: % OF REV TO | R13: PROPOSED
L14: REVENUE LESS | N14: TOTAL LESS | R14: TOTAL
A15: LINE | C15: RATE | D15: CLASS / | F15: CUSTOMER | J15: PROPOSED | L15: FUEL COST | N15: FUEL COST | P15: FUEL COST | R15: REVENUE
A16: NO. | C16: CODE | D16: DESCRIPTION | F16: BILLS(1) | H16: SALES | J16: RATES | L16: REVENUE | N16: REVENUE | P16: REVENUE (2) | R16: (F + H)
C17: (A) | D17: (B) | F17: (C) | H17: (D) | J17: (E) | L17: (F) | N17: (G) | P17: (H) | R17: (I)
H19: (KW/KWH) | J19: ($/KWH)/ | L19: ($) | N19: (%) | P19: ($) | R19: ($)
A20: 1 | C20: DS | D20: SERVICE AT SECONDARY | J20: ($/KW)
A21: 2 | D21: DISTRIBUTION VOLTAGE
A23: 3 | C23: CUSTOMER CHARGE:
A24: 4 | C24: LOAD MANAGEMENT RIDER - NON-INTERVAL | F24: 1798 | J24: =INPUT!D63 -> 5 | L24: =ROUND(F24*J24,0) -> 8990 | N24: =ROUND((L24/L$53)*100,1) -> 0 | R24: =L24+P24 -> 8990
A25: 5 | C25: LOAD MANAGEMENT RIDER - INTERVAL | F25: 12 | J25: =INPUT!D64 -> 5 | L25: =ROUND(F25*J25,0) -> 60 | N25: =ROUND((L25/L$53)*100,1) -> 0 | R25: =L25+P25 -> 60
A26: 6 | C26: SINGLE PHASE | F26: 84521 | J26: =INPUT!D48 -> 17.14 | L26: =ROUND(F26*J26,0) -> 1448690 | N26: =ROUND((L26/L$53)*100,1) -> 1.4 | R26: =L26+P26 -> 1448690
A27: 7 | C27: THREE PHASE | F27: 72501 | J27: =INPUT!D49 -> 34.28 | L27: =ROUND(F27*J27,0) -> 2485334 | N27: =ROUND((L27/L$53)*100,1) -> 2.4 | R27: =L27+P27 -> 2485334
A28: 8 | C28: TOTAL CUSTOMER CHARGE | F28: =SUM(F26:F27) -> 157022 | L28: =SUM(L24:L27) -> 3943074 | N28: =ROUND((L28/L$53)*100,1) -> 3.8 | R28: =SUM(R24:R27) -> 3943074
A30: 9 | C30: DEMAND CHARGE:
A31: 10 | C31: FIRST 15 KW | H31: 1388597.11 | J31: =INPUT!D55 -> 0 | L31: =ROUND(H31*J31,0) -> 0 | N31: =ROUND((L31/L$53)*100,1) -> 0 | R31: =L31+P31 -> 0
A32: 11 | C32: ADDITIONAL KW | H32: 2491897.14 | J32: =INPUT!D56 -> 8.73 | L32: =ROUND(H32*J32,0) -> 21754262 | N32: =ROUND((L32/L$53)*100,1) -> 21.1 | R32: =L32+P32 -> 21754262
A33: 12 | C33: TOTAL DEMAND | H33: =SUM(H31:H32) -> 3880494.25 | L33: =SUM(L31:L32) -> 21754262 | N33: =ROUND((L33/L$53)*100,1) -> 21.1 | R33: =SUM(R31:R32) -> 21754262
A35: 13 | C35: ENERGY CHARGE (3):
A36: 14 | C36: FIRST 6000 KWH | H36: 366515604 | J36: =INPUT!D51 -> 0.091917 | L36: =ROUND(H36*J36,0) -> 33689015 | N36: =ROUND((L36/L$53)*100,1) -> 32.6 | R36: =L36+P36 -> 33689015
A37: 15 | C37: NEXT 300KWH/KW | H37: 627126263 | J37: =INPUT!D52 -> 0.056425 | L37: =ROUND(H37*J37,0) -> 35385599 | N37: =ROUND((L37/L$53)*100,1)-0.1 -> 34.2 | R37: 35385599
A38: 16 | C38: ADDITIONAL KWH | H38: 119801361 | J38: =INPUT!D53 -> 0.046204 | L38: 5535302 | N38: =ROUND((L38/L$53)*100,1) -> 5.4 | R38: 5535302
A39: 17 | C39: NON-CHURCH "CAP" RATE | H39: 1783161 | J39: =INPUT!D58 -> 0.271528 | L39: 484178 | N39: 0.5 | R39: 484178
A40: 18 | C40: CHURCH CAP RATE | H40: 618100 | J40: =INPUT!D59 -> 0.166694 | L40: 103034 | N40: 0.1 | R40: 103034
A41: 19 | C41: TOTAL ENERGY | H41: =SUM(H36:H40) -> 1115844489 | L41: =SUM(L36:L40) -> 75197128 | N41: 72.8 | R41: =SUM(R36:R40) -> 75197128
A42: 20 | C42: TOTAL RATE DS EXCLUDING RIDERS | F42: =F28 -> 157022 | H42: =H41 -> 1115844489 | L42: =L28+L33+L41 -> 100894464 | N42: 97.7 | R42: =R28+R33+R41 -> 100894464
A44: 21 | C44: RIDERS:
A45: 22 | C45: =DSMR_Name -> DEMAND SIDE MANAGEMENT RIDER (DSMR) | J45: =PRO_DSM_DIST -> 0.002576 | L45: =ROUND($H$42*J45,0) -> 2874415 | N45: =ROUND((L45/L$53)*100,1) -> 2.8 | R45: =L45+P45 -> 2874415
A46: 23 | C46: =ESM_Name -> ENVIRONMENTAL SURCHARGE MECHANISM RIDER (ESM) | J46: =PRO_ESM -> 0 | L46: =ROUND(R42*J46,0) -> 0 | N46: =ROUND((L46/L$53)*100,1) -> 0 | R46: 0
A47: 24 | C47: =DCI_Name -> DISTRIBUTION CAPITAL INVESTMENT RIDER (DCI) | J47: =PRO_DCI_DIST -> 0 | L47: =ROUND(H33*J47,0) -> 0 | N47: 0 | R47: 0
A48: 25 | C48: =FAC_Name -> FUEL ADJUSTMENT CLAUSE (FAC) | J48: =PRO_FAC -> 0.001028 | P48: =ROUND(H41*J48,0) -> 1147088 | R48: 1147088
A49: 26 | C49: =FTR_Name -> FERC TRANSMISSION COST RECOVERY RECONCILIATION (FTR) | J49: =PRO_FTR_DIST -> 0 | L49: =ROUND(H42*J49,0) -> 0 | N49: =ROUND((L49/L$53)*100,1) -> 0 | R49: 0
A50: 27 | C50: =PSM_Name -> PROFIT SHARING MECHANISM (PSM) | J50: =PRO_PSM -> -0.000456 | L50: =ROUND(H42*J50,0) -> -508825 | N50: =ROUND((L50/L$53)*100,1) -> -0.5 | R50: -508825
A51: 28 | C51: TOTAL RIDERS | L51: =SUM(L45:L50) -> 2365590 | N51: =ROUND((L51/L$53)*100,1) -> 2.3 | P51: =SUM(P45:P50) -> 1147088 | R51: =SUM(R45:R50) -> 3512678
A53: 29 | C53: TOTAL RATE DS INCLUDING RIDERS | F53: =F42 -> 157022 | H53: =H42 -> 1115844489 | L53: =L42+L51 -> 103260054 | N53: 100 | P53: =P51 -> 1147088 | R53: =R42+R51 -> 104407142
C55: (1) BILLS THAT TERMINATE IN RESPECTIVE RATE STEPS.
C56: ="(2) REFLECTS FUEL ADJUSTMENT CLAUSE OF "&TEXT(PRO_FAC,"$0.000000;($0.000000)")&" PER KWH." -> (2) REFLECTS FUEL ADJUSTMENT CLAUSE OF $0.001028 PER KWH.
C57: ="(3) REFLECTS FUEL COST RECOVERY INCLUDED IN BASE RATES OF "&TEXT(PRO_BASE_FUEL,"$0.000000;($0.000000)")&" PER KWH." -> (3) REFLECTS FUEL COST RECOVERY INCLUDED IN BASE RATES OF $0.023837 PER KWH.
T59: =NAME -> DUKE ENERGY KENTUCKY, INC.
T60: =CASE_NO -> CASE NO. 2017-00321
T61: =TITLE -> ANNUALIZED BASE YEAR REVENUES AT PROPOSED VS. MOST CURRENT RATES
T62: =DATE -> FOR THE TWELVE MONTHS ENDED November 30, 2017
T63: =SERVICE -> (ELECTRIC SERVICE)
T64: =DATA_PERIOD -> DATA: __X__ BASE PERIOD ____FORECASTED PERIOD | AO64: SCHEDULE M-2.2
T65: =TYPE -> TYPE OF FILING: _X_ ORIGINAL ___UPDATED ___ REVISED | AO65: =R7 -> PAGE 3 OF 22
T66: WORK PAPER REFERENCE NO(S).: | AO66: WITNESS:
T67: =TIME -> 6 Months Actual and 6 Months Projected | AO67: =WIT -> B. L. SAILERS
T68: =INPUT!B5 -> 6 Months Actual Ending May 31, 2017
T69: CURRENT ANNUALIZED
AE71: CURRENT | AG71: % OF REV TO | AI71: REVENUE | AK71: % INCR IN | AO71: CURRENT | AQ71: TOTAL
AC72: MOST | AE72: REVENUE LESS | AG72: TOTAL LESS | AI72: INCR LESS | AK72: REV LESS | AO72: TOTAL | AQ72: REVENUE
T73: LINE | V73: RATE | W73: CLASS / | Y73: CUSTOMER | AC73: CURRENT | AE73: FUEL COST | AG73: FUEL COST | AI73: FUEL COST REV | AK73: FUEL COST REV | AM73: FUEL COST | AO73: REVENUE | AQ73: % INCREASE
T74: NO. | V74: CODE | W74: DESCRIPTION | Y74: BILLS(1) | AA74: SALES | AC74: RATES | AE74: REVENUE | AG74: REVENUE | AI74: (F - K) | AK74: (M / K) | AM74: REVENUE (2) | AO74: (K + H) | AQ74: (M / K1)
V75: (A) | W75: (B) | Y75: (C) | AA75: (D) | AC75: (J) | AE75: (K) | AG75: (L) | AI75: (M) | AK75: (N) | AM75: (H) | AO75: (K1) | AQ75: (O)
AA77: (KW/KWH) | AC77: ($/KWH)/ | AE77: ($) | AG77: (%) | AI77: ($) | AK77: (%) | AM77: ($) | AO77: ($) | AQ77: (%)
T78: 1 | V78: DS | W78: SERVICE AT | AC78: ($/KW)
T79: 2 | W79: DISTRIBUTION VOLTAGE
T81: 3 | V81: CUSTOMER CHARGE:
T82: 4 | V82: LOAD MANAGEMENT RIDER - NON-INTERVAL | Y82: =F24 -> 1798 | AC82: =INPUT!C63 -> 5 | AE82: =ROUND(Y82*AC82,0) -> 8990 | AG82: =ROUND((AE82/AE$111)*100,1) -> 0 | AI82: =L24-AE82 -> 0 | AK82: =ROUND((AI82/AE82)*100,1) -> 0 | AO82: =AE82+AM82 -> 8990 | AQ82: =IF(AO82=0,"0.0 ",ROUND((AI82/AO82)*100,1)) -> 0
T83: 5 | V83: LOAD MANAGEMENT RIDER - INTERVAL | Y83: =F25 -> 12 | AC83: =INPUT!C64 -> 100 | AE83: =ROUND(Y83*AC83,0) -> 1200 | AG83: =ROUND((AE83/AE$111)*100,1) -> 0 | AI83: =L25-AE83 -> -1140 | AK83: =ROUND((AI83/AE83)*100,1) -> -95 | AO83: =AE83+AM83 -> 1200 | AQ83: =IF(AO83=0,"0.0 ",ROUND((AI83/AO83)*100,1)) -> -95
T84: 6 | V84: SINGLE PHASE | Y84: =F26 -> 84521 | AC84: =INPUT!C48 -> 7.5 | AE84: =ROUND(Y84*AC84,0) -> 633908 | AG84: =ROUND((AE84/AE$111)*100,1) -> 0.7 | AI84: =L26-AE84 -> 814782 | AK84: =ROUND((AI84/AE84)*100,1) -> 128.5 | AO84: =AE84+AM84 -> 633908 | AQ84: =IF(AO84=0,"0.0 ",ROUND((AI84/AO84)*100,1)) -> 128.5
T85: 7 | V85: THREE PHASE | Y85: =F27 -> 72501 | AC85: =INPUT!C49 -> 15 | AE85: =ROUND(Y85*AC85,0) -> 1087515 | AG85: =ROUND((AE85/AE$111)*100,1) -> 1.2 | AI85: =L27-AE85 -> 1397819 | AK85: =ROUND((AI85/AE85)*100,1) -> 128.5 | AO85: =AE85+AM85 -> 1087515 | AQ85: =IF(AO85=0,"0.0 ",ROUND((AI85/AO85)*100,1)) -> 128.5
T86: 8 | V86: TOTAL CUSTOMER CHARGE | Y86: =F28 -> 157022 | AE86: =SUM(AE82:AE85) -> 1731613 | AG86: =ROUND((AE86/AE$111)*100,1) -> 1.9 | AI86: =SUM(AI82:AI85) -> 2211461 | AK86: =ROUND((AI86/AE86)*100,1) -> 127.7 | AO86: =SUM(AO82:AO85) -> 1731613 | AQ86: =IF(AO86=0,"0.0 ",ROUND((AI86/AO86)*100,1)) -> 127.7
T88: 9 | V88: DEMAND CHARGE:
T89: 10 | V89: FIRST 15 KW | AA89: =H31 -> 1388597.11 | AC89: =INPUT!C55 -> 0 | AE89: =ROUND(AA89*AC89,0) -> 0 | AG89: =ROUND((AE89/AE$111)*100,1) -> 0 | AI89: =L31-AE89 -> 0 | AK89: 0 | AO89: =AE89+AM89 -> 0 | AQ89: =IF(AO89=0,"0.0 ",ROUND((AI89/AO89)*100,1)) -> 0.0
T90: 11 | V90: ADDITIONAL KW | AA90: =H32 -> 2491897.14 | AC90: =INPUT!C56 -> 7.75 | AE90: =ROUND(AA90*AC90,0) -> 19312203 | AG90: =ROUND((AE90/AE$111)*100,1) -> 21.4 | AI90: =L32-AE90 -> 2442059 | AK90: =ROUND((AI90/AE90)*100,1) -> 12.6 | AO90: =AE90+AM90 -> 19312203 | AQ90: =IF(AO90=0,"0.0 ",ROUND((AI90/AO90)*100,1)) -> 12.6
T91: 12 | V91: TOTAL DEMAND | AA91: =H33 -> 3880494.25 | AE91: =SUM(AE89:AE90) -> 19312203 | AG91: =ROUND((AE91/AE$111)*100,1) -> 21.4 | AI91: =SUM(AI89:AI90) -> 2442059 | AK91: =ROUND((AI91/AE91)*100,1) -> 12.6 | AO91: =SUM(AO89:AO90) -> 19312203 | AQ91: =IF(AO91=0,"0.0 ",ROUND((AI91/AO91)*100,1)) -> 12.6 | AT91: =1-AT99 -> 0.2242843017
T93: 13 | V93: ENERGY CHARGE (3):
T94: 14 | V94: FIRST 6000 KWH | AA94: =H36 -> 366515604 | AC94: =INPUT!C51 -> 0.081645 | AE94: =ROUND((AA94*AC94),0) -> 29924166 | AG94: =ROUND((AE94/AE$111)*100,1) -> 33.2 | AI94: =L36-AE94 -> 3764849 | AK94: =ROUND((AI94/AE94)*100,1) -> 12.6 | AO94: =AE94+AM94 -> 29924166 | AQ94: =IF(AO94=0,"0.0 ",ROUND((AI94/AO94)*100,1)) -> 12.6 | AT94: =AO94/SUM($AO$94:$AO$98) -> 0.4480087891
T95: 15 | V95: NEXT 300KWH/KW | AA95: 627126263 | AC95: =INPUT!C52 -> 0.050119 | AE95: =ROUND((AA95*AC95),0) -> 31430941 | AG95: =ROUND((AE95/AE$111)*100,1) -> 34.8 | AI95: =L37-AE95 -> 3954658 | AK95: 12.6 | AO95: =AE95+AM95 -> 31430941 | AQ95: 12.6 | AT95: =AO95/SUM($AO$94:$AO$98) -> 0.4705674276
T96: 16 | V96: ADDITIONAL KWH | AA96: 119801361 | AC96: =INPUT!C53 -> 0.041043 | AE96: =ROUND((AA96*AC96),0) -> 4917007 | AG96: 5.5 | AI96: =L38-AE96 -> 618295 | AK96: 12.6 | AO96: =AE96+AM96 -> 4917007 | AQ96: 12.6 | AT96: =AO96/SUM($AO$94:$AO$98) -> 0.07361482863
T97: 17 | V97: NON-CHURCH "CAP" RATE | AA97: 1783161 | AC97: =INPUT!C58 -> 0.241184 | AE97: =ROUND((AA97*AC97),0) -> 430070 | AG97: 0.5 | AI97: =L39-AE97 -> 54108 | AK97: 12.6 | AO97: =AE97+AM97 -> 430070 | AQ97: 12.6 | AT97: =AO97/SUM($AO$94:$AO$98) -> 0.006438780614
T98: 18 | V98: CHURCH CAP RATE | AA98: 618100 | AC98: =INPUT!C59 -> 0.148065 | AE98: =ROUND((AA98*AC98),0) -> 91519 | AG98: 0.1 | AI98: =L40-AE98 -> 11515 | AK98: 12.6 | AO98: =AE98+AM98 -> 91519 | AQ98: 12.6 | AT98: =AO98/SUM($AO$94:$AO$98) -> 0.001370174072
T99: 19 | V99: TOTAL ENERGY | AA99: 1115844489 | AE99: =SUM(AE94:AE98) -> 66793703 | AG99: =ROUND((AE99/AE$111)*100,1)+0.1 -> 74.1 | AI99: =SUM(AI94:AI98) -> 8403425 | AK99: 12.6 | AO99: =SUM(AO94:AO98) -> 66793703 | AQ99: 12.6 | AT99: =AO99/(AO99+AO91) -> 0.7757156983
T100: 20 | V100: TOTAL RATE DS EXCLUDING RIDERS | Y100: =Y86 -> 157022 | AA100: =AA99 -> 1115844489 | AE100: =AE86+AE91+AE99 -> 87837519 | AG100: 97.4 | AI100: =L42-AE100 -> 13056945 | AK100: 14.9 | AO100: =AO86+AO91+AO99 -> 87837519 | AQ100: 14.9
T102: =A44 -> 21 | V102: RIDERS:
T103: =A45 -> 22 | V103: =C45 -> DEMAND SIDE MANAGEMENT RIDER (DSMR) | AC103: =DSM_DIST -> 0.002576 | AE103: =ROUND($AA$99*AC103,0) -> 2874415 | AG103: =ROUND((AE103/AE$111)*100,1) -> 3.2 | AI103: =L45-AE103 -> 0 | AK103: 0 | AO103: =AE103+AM103 -> 2874415 | AQ103: 0
T104: 23 | V104: =C46 -> ENVIRONMENTAL SURCHARGE MECHANISM RIDER (ESM) | AC104: =CUR_ESM -> 0 | AE104: =ROUND(AO100*AC104,0) -> 0 | AG104: =ROUND((AE104/AE$111)*100,1) -> 0 | AI104: =L46-AE104 -> 0 | AK104: =IFERROR(ROUND((AI104/AE104)*100,1),0) -> 0 | AO104: 0 | AQ104: =IF(AO104=0,"0.0 ",ROUND((AI104/AO104)*100,1)) -> 0.0
T105: 24 | V105: DISTRIBUTION CAPITAL INVESTMENT RIDER (DCI) | AC105: =CUR_DCI_DIST -> 0 | AE105: =ROUND(AA91*AC105,0) -> 0 | AG105: 0 | AI105: 0 | AK105: =IFERROR(ROUND((AI105/AE105)*100,1),0) -> 0 | AO105: 0 | AQ105: =IF(AO105=0,"0.0 ",ROUND((AI105/AO105)*100,1)) -> 0.0
T106: 25 | V106: FUEL ADJUSTMENT CLAUSE (FAC) | AC106: =CUR_FAC -> 0.001028 | AM106: =ROUND(AA99*CUR_FAC,0) -> 1147088 | AO106: 1147088 | AQ106: =IF(AO106=0,"0.0 ",ROUND(((R48-AO106)/AO106)*100,1)) -> 0
T107: 26 | V107: FERC TRANSMISSION COST RECOVERY RECONCILIATION (FTR) | AC107: =CUR_FTR_DIST -> 0 | AE107: =ROUND($AA$100*AC107,0) -> 0 | AG107: 0 | AI107: 0 | AK107: =IFERROR(ROUND((AI107/AE107)*100,1),0) -> 0 | AO107: 0 | AQ107: 0.0
T108: 27 | V108: PROFIT SHARING MECHANISM (PSM) | AC108: =RS_PSM -> -0.000456 | AE108: =ROUND(AA99*AC108,0) -> -508825 | AG108: =ROUND((AE108/AE$111)*100,1) -> -0.6 | AI108: =L50-AE108 -> 0 | AK108: 0 | AO108: -508825 | AQ108: 0
T109: 28 | V109: TOTAL RIDERS | AE109: =SUM(AE103:AE108) -> 2365590 | AG109: =ROUND((AE109/AE$111)*100,1) -> 2.6 | AI109: =SUM(AI103:AI108) -> 0 | AK109: 0 | AM109: =AM106 -> 1147088 | AO109: =SUM(AO103:AO108) -> 3512678 | AQ109: 0
T111: 29 | V111: TOTAL RATE DS INCLUDING RIDERS | Y111: =F53 -> 157022 | AA111: =H53 -> 1115844489 | AE111: =AE100+AE109 -> 90203109 | AG111: 100 | AI111: =AI100+AI109 -> 13056945 | AK111: =ROUND((AI111/AE111)*100,1) -> 14.5 | AM111: =AM109 -> 1147088 | AO111: =AO100+AO109 -> 91350197 | AQ111: =IF(AO111=0,"0.0 ",ROUND((AI111/AO111)*100,1)) -> 14.3
V113: (1) BILLS THAT TERMINATE IN RESPECTIVE RATE STEPS.
V114: ="(2) REFLECTS FUEL ADJUSTMENT CLAUSE OF "&TEXT(CUR_FAC,"$0.000000;($0.000000)")&" PER KWH." -> (2) REFLECTS FUEL ADJUSTMENT CLAUSE OF $0.001028 PER KWH.
V115: ="(3) REFLECTS FUEL COST RECOVERY INCLUDED IN BASE RATES OF "&TEXT(CUR_BASE_FUEL,"$0.000000;($0.000000)")&" PER KWH." -> (3) REFLECTS FUEL COST RECOVERY INCLUDED IN BASE RATES OF $0.023837 PER KWH.

Sheet Rate DT-Pri
A1: =NAME -> DUKE ENERGY KENTUCKY, INC.
A2: =CASE_NO -> CASE NO. 2017-00321
A3: =TITLE -> ANNUALIZED BASE YEAR REVENUES AT PROPOSED VS. MOST CURRENT RATES
A4: =DATE -> FOR THE TWELVE MONTHS ENDED November 30, 2017
A5: =SERVICE -> (ELECTRIC SERVICE)
A6: =DATA_PERIOD -> DATA: __X__ BASE PERIOD ____FORECASTED PERIOD | R6: SCHEDULE M-2.3
A7: =TYPE -> TYPE OF FILING: _X_ ORIGINAL ___UPDATED ___ REVISED | R7: PAGE 4 OF 22
A8: WORK PAPER REFERENCE NO(S).: | R8: WITNESS:
A9: =TIME -> 6 Months Actual and 6 Months Projected | R9: =WIT -> B. L. SAILERS
A10: =INPUT!B5 -> 6 Months Actual Ending May 31, 2017
A11: PROPOSED ANNUALIZED
L13: PROPOSED | N13: % OF REV TO | R13: PROPOSED
L14: REVENUE LESS | N14: TOTAL LESS | R14: TOTAL
A15: LINE | C15: RATE | D15: CLASS / | F15: CUSTOMER | J15: PROPOSED | L15: FUEL COST | N15: FUEL COST | P15: FUEL COST | R15: REVENUE
A16: NO. | C16: CODE | D16: DESCRIPTION | F16: BILLS(1) | H16: SALES | J16: RATES | L16: REVENUE | N16: REVENUE | P16: REVENUE (2) | R16: (F + H)
C17: (A) | D17: (B) | F17: (C) | H17: (D) | J17: (E) | L17: (F) | N17: (G) | P17: (H) | R17: (I)
H19: (KW/KWH) | J19: ($/KWH)/ | L19: ($) | N19: (%) | P19: ($) | R19: ($)
A20: 1 | C20: DT-PRI | D20: TIME OF DAY PRIMARY | J20: ($/KW)
A21: 2 | C21: SUMMER:
A22: 3 | C22: CUSTOMER CHARGE:
A23: 4 | C23: PRIMARY VOLTAGE | F23: 148 | J23: =INPUT!D70 -> 465 | L23: =ROUND(+F23*J23,0) -> 68820 | N23: =ROUND((+L23/$L$65)*100,1) -> 0.2 | R23: =L23+P23 -> 68820
A24: 5 | C24: TOTAL CUSTOMER CHARGE | F24: =SUM(F23:F23) -> 148 | L24: =SUM(L23:L23) -> 68820 | N24: =ROUND((+L24/$L$65)*100,1) -> 0.2 | R24: =SUM(R23:R23) -> 68820
A25: 6 | C25: DEMAND CHARGE:
A26: 7 | C26: ON PEAK KW | H26: 327270 | J26: =INPUT!D76 -> 14.39 | L26: =ROUND(+H26*J26,0) -> 4709415 | N26: =ROUND((+L26/$L$65)*100,1) -> 13.5 | R26: =L26+P26 -> 4709415
A27: 8 | C27: OFF PEAK KW | H27: 16385 | J27: =INPUT!D77 -> 1.3 | L27: =ROUND(+H27*J27,0) -> 21301 | N27: =ROUND((+L27/$L$65)*100,1) -> 0.1 | R27: =L27+P27 -> 21301
A28: 9 | C28: SUB-TOTAL | H28: =SUM(H26:H27) -> 343655 | L28: =SUM(L26:L27) -> 4730716 | N28: =ROUND((+L28/$L$65)*100,1) -> 13.6 | R28: =SUM(R26:R27) -> 4730716
A29: 10 | C29: PRIMARY SERV. DIS.
A30: 11 | C30: FIRST 1000 KW | H30: 130343 | J30: =INPUT!D80 -> -0.73 | L30: =ROUND(+H30*J30,0) -> -95150 | N30: =ROUND((+L30/$L$65)*100,1) -> -0.3 | R30: =L30+P30 -> -95150
A31: 12 | C31: ADDITIONAL KW | H31: 213311 | J31: =INPUT!D81 -> -0.56 | L31: =ROUND(+H31*J31,0) -> -119454 | N31: =ROUND((+L31/$L$65)*100,1) -> -0.3 | R31: =L31+P31 -> -119454
A32: 13 | C32: TOTAL DEMAND | H32: =SUM(H30:H31) -> 343654 | L32: =L28+L30+L31 -> 4516112 | N32: =ROUND((+L32/$L$65)*100,1) -> 13 | R32: =R28+R30+R31 -> 4516112
A33: 14 | C33: ENERGY CHARGE (3):
A34: 15 | C34: ON PEAK KWH | H34: 49861512 | J34: =INPUT!D72 -> 0.049875 | L34: =ROUND((+H34*J34),0) -> 2486843 | N34: =ROUND((+L34/$L$65)*100,1) -> 7.1 | R34: =L34+P34 -> 2486843
A35: 16 | C35: OFF PEAK KWH | H35: 126004348 | J35: =INPUT!D74 -> 0.040844 | L35: =ROUND((+H35*J35),0) -> 5146522 | N35: =ROUND((+L35/$L$65)*100,1) -> 14.8 | R35: =L35+P35 -> 5146522
A36: 17 | C36: TOTAL SUMMER | F36: =F24 -> 148 | H36: =H34+H35 -> 175865860 | L36: =L24+L32+L34+L35 -> 12218297 | N36: =ROUND((+L36/$L$65)*100,1) -> 35.1 | R36: =R24+R32+R34+R35 -> 12218297
A38: 18 | C38: WINTER: | H38: =185857814-185857934 -> -120
A39: 19 | C39: CUSTOMER CHARGE:
A40: 20 | C40: PRIMARY VOLTAGE | F40: 295 | J40: =J23 -> 465 | L40: =ROUND(+F40*J40,0) -> 137175 | N40: =ROUND((+L40/$L$65)*100,1) -> 0.4 | R40: =L40+P40 -> 137175
A41: 21 | C41: TOTAL CUSTOMER CHARGE | F41: =SUM(F40:F40) -> 295 | L41: =SUM(L40:L40) -> 137175 | N41: =ROUND((+L41/$L$65)*100,1) -> 0.4 | R41: =SUM(R40:R40) -> 137175
A42: 22 | C42: DEMAND CHARGE:
A43: 23 | C43: ON PEAK KW | H43: 603474.6 | J43: =INPUT!D78 -> 13.62 | L43: =ROUND(+H43*J43,0) -> 8219324 | N43: =ROUND((+L43/$L$65)*100,1) -> 23.6 | R43: =L43+P43 -> 8219324
A44: 24 | C44: OFF PEAK KW | H44: 41089.8 | J44: =INPUT!D79 -> 1.3 | L44: =ROUND(+H44*J44,0) -> 53417 | N44: =ROUND((+L44/$L$65)*100,1) -> 0.2 | R44: =L44+P44 -> 53417
A45: 25 | C45: SUB-TOTAL | H45: =SUM(H43:H44) -> 644564.4 | L45: =SUM(L43:L44) -> 8272741 | N45: =ROUND((+L45/$L$65)*100,1) -> 23.8 | R45: =SUM(R43:R44) -> 8272741
A46: 26 | C46: PRIMARY SERV. DIS.
A47: 27 | C47: FIRST 1000 KW | H47: 266633.6 | J47: =J30 -> -0.73 | L47: =ROUND(+H47*J47,0) -> -194643 | N47: =ROUND((+L47/$L$65)*100,1) -> -0.6 | R47: =L47+P47 -> -194643
A48: 28 | C48: ADDITIONAL KW | H48: 377930.8 | J48: =J31 -> -0.56 | L48: =ROUND(+H48*J48,0) -> -211641 | N48: =ROUND((+L48/$L$65)*100,1) -> -0.6 | R48: =L48+P48 -> -211641
A49: 29 | C49: TOTAL DEMAND | H49: =SUM(H47:H48) -> 644564.4 | L49: =L45+L47+L48 -> 7866457 | N49: =ROUND((+L49/$L$65)*100,1) -> 22.6 | R49: =R45+R47+R48 -> 7866457
A50: 30 | C50: ENERGY CHARGE (3):
A51: 31 | C51: ON PEAK KWH | H51: 87022244 | J51: =INPUT!D73 -> 0.047612 | L51: =ROUND((+H51*J51),0) -> 4143303 | N51: =ROUND((+L51/$L$65)*100,1) -> 11.9 | R51: =L51+P51 -> 4143303
A52: 32 | C52: OFF PEAK KWH | H52: 230064339 | J52: =J35 -> 0.040844 | L52: =ROUND((+H52*J52),0) -> 9396748 | N52: =ROUND((+L52/$L$65)*100,1) -> 27 | R52: =L52+P52 -> 9396748
A53: 33 | C53: TOTAL WINTER | F53: =F41 -> 295 | H53: =H51+H52 -> 317086583 | L53: =L41+L49+L51+L52 -> 21543683 | N53: =ROUND((+L53/$L$65)*100,1) -> 61.9 | R53: =R41+R49+R51+R52 -> 21543683
A54: 34 | C54: TOTAL RATE DT PRIMARY EXCLUDING RIDERS | F54: =F36+F53 -> 443 | H54: =H36+H53 -> 492952443 | L54: =L36+L53 -> 33761980 | N54: =ROUND((+L54/$L$65)*100,1) -> 97 | R54: =L54+P54 -> 33761980
A56: 35 | C56: RIDERS:
A57: 36 | C57: =DSMR_Name -> DEMAND SIDE MANAGEMENT RIDER (DSMR) | J57: =PRO_DSM_DIST -> 0.002576 | L57: =ROUND($H$54*J57,0) -> 1269845 | N57: =ROUND((+L57/$L$65)*100,1) -> 3.6 | R57: =L57+P57 -> 1269845
A58: 37 | C58: =ESM_Name -> ENVIRONMENTAL SURCHARGE MECHANISM RIDER (ESM) | J58: =PRO_ESM -> 0 | L58: =ROUND(R54*J58,0) -> 0 | N58: =ROUND((+L58/$L$65)*100,1) -> 0 | R58: 0
A59: 38 | C59: =DCI_Name -> DISTRIBUTION CAPITAL INVESTMENT RIDER (DCI) | J59: =PRO_DCI_DTP -> 0 | L59: =ROUND((H45+H28)*J59,0) -> 0 | N59: 0 | R59: 0
A60: 39 | C60: =FAC_Name -> FUEL ADJUSTMENT CLAUSE (FAC) | J60: =PRO_FAC -> 0.001028 | P60: =ROUND(H54*PRO_FAC,0) -> 506755 | R60: 506755
A61: 40 | C61: =FTR_Name -> FERC TRANSMISSION COST RECOVERY RECONCILIATION (FTR) | J61: =PRO_FTR_DTP -> 0 | L61: =ROUND(H54*J61,0) -> 0 | N61: =ROUND((+L61/$L$65)*100,1) -> 0 | R61: 0
A62: 41 | C62: =PSM_Name -> PROFIT SHARING MECHANISM (PSM) | J62: =PRO_PSM -> -0.000456 | L62: =ROUND(H54*PRO_PSM,0) -> -224786 | N62: =ROUND((+L62/$L$65)*100,1) -> -0.6 | R62: -224786
A63: 42 | C63: TOTAL RIDERS | L63: =SUM(L57:L62) -> 1045059 | N63: =ROUND((+L63/$L$65)*100,1) -> 3 | P63: =SUM(P57:P62) -> 506755 | R63: =SUM(R57:R62) -> 1551814
A65: 43 | C65: TOTAL RATE DT PRIMARY INCLUDING RIDERS | F65: =F54 -> 443 | H65: =H54 -> 492952443 | L65: =L54+L63 -> 34807039 | N65: 100 | P65: =P63 -> 506755 | R65: =R54+R63 -> 35313794
C67: (1) BILLS THAT TERMINATE IN RESPECTIVE RATE STEPS.
C68: ="(2) REFLECTS FUEL COMPONENT OF "&TEXT(PRO_FAC,"$0.000000;($0.000000)")&" PER KWH." -> (2) REFLECTS FUEL COMPONENT OF $0.001028 PER KWH.
C69: ="(3) REFLECTS FUEL COST RECOVERY INCLUDED IN BASE RATES OF "&TEXT(PRO_BASE_FUEL,"$0.000000;($0.000000)")&" PER KWH." -> (3) REFLECTS FUEL COST RECOVERY INCLUDED IN BASE RATES OF $0.023837 PER KWH.
T73: =NAME -> DUKE ENERGY KENTUCKY, INC.
T74: =CASE_NO -> CASE NO. 2017-00321
T75: =TITLE -> ANNUALIZED BASE YEAR REVENUES AT PROPOSED VS. MOST CURRENT RATES
T76: =DATE -> FOR THE TWELVE MONTHS ENDED November 30, 2017
T77: =SERVICE -> (ELECTRIC SERVICE)
T78: =DATA_PERIOD -> DATA: __X__ BASE PERIOD ____FORECASTED PERIOD | AO78: SCHEDULE M-2.2
T79: =TYPE -> TYPE OF FILING: _X_ ORIGINAL ___UPDATED ___ REVISED | AO79: =R7 -> PAGE 4 OF 22
T80: WORK PAPER REFERENCE NO(S).: | AO80: WITNESS:
T81: =TIME -> 6 Months Actual and 6 Months Projected | AO81: =WIT -> B. L. SAILERS
T82: =INPUT!B5 -> 6 Months Actual Ending May 31, 2017
T83: CURRENT ANNUALIZED
AE85: CURRENT | AG85: % OF REV TO | AI85: REVENUE | AK85: % INCR IN | AO85: CURRENT | AQ85: TOTAL
AC86: MOST | AE86: REVENUE LESS | AG86: TOTAL LESS | AI86: INCR LESS | AK86: REV LESS | AO86: TOTAL | AQ86: REVENUE
T87: LINE | V87: RATE | W87: CLASS / | Y87: CUSTOMER | AC87: CURRENT | AE87: FUEL COST | AG87: FUEL COST | AI87: FUEL COST REV | AK87: FUEL COST REV | AM87: FUEL COST | AO87: REVENUE | AQ87: % INCREASE
T88: NO. | V88: CODE | W88: DESCRIPTION | Y88: BILLS(1) | AA88: SALES | AC88: RATES | AE88: REVENUE | AG88: REVENUE | AI88: (F - K) | AK88: (M / K) | AM88: REVENUE (2) | AO88: (K + H) | AQ88: (M / K1)
V89: (A) | W89: (B) | Y89: (C) | AA89: (D) | AC89: (J) | AE89: (K) | AG89: (L) | AI89: (M) | AK89: (N) | AM89: (H) | AO89: (K1) | AQ89: (O)
AA91: (KW/KWH) | AC91: ($/KWH)/ | AE91: ($) | AG91: (%) | AI91: ($) | AK91: (%) | AM91: ($) | AO91: ($) | AQ91: (%)
T92: 1 | V92: DT-PRI | W92: TIME OF DAY PRIMARY | AC92: ($/KW)
T93: 2 | V93: SUMMER:
T94: 3 | V94: CUSTOMER CHARGE:
T95: 4 | V95: PRIMARY VOLTAGE | Y95: =F23 -> 148 | AC95: =INPUT!C70 -> 100 | AE95: =ROUND(+Y95*AC95,0) -> 14800 | AG95: =ROUND((+AE95/$AE$137)*100,1) -> 0 | AI95: =L23-AE95 -> 54020 | AK95: =IF(AE95=0,0,ROUND((AI95/AE95)*100,1)) -> 365 | AO95: =AE95+AM95 -> 14800 | AQ95: =ROUND((+AI95/AO95)*100,1) -> 365
T96: 5 | V96: TOTAL CUSTOMER CHARGE | Y96: =F24 -> 148 | AE96: =SUM(AE95:AE95) -> 14800 | AG96: 0 | AI96: =SUM(AI95:AI95) -> 54020 | AK96: =IF(AE96=0,0,ROUND((AI96/AE96)*100,1)) -> 365 | AO96: =SUM(AO95:AO95) -> 14800 | AQ96: =ROUND((+AI96/AO96)*100,1) -> 365
T97: 6 | V97: DEMAND CHARGE:
T98: 7 | V98: ON PEAK KW | AA98: =H26 -> 327270 | AC98: =INPUT!C76 -> 12.75 | AE98: =ROUND(+AA98*AC98,0) -> 4172693 | AG98: =ROUND((+AE98/$AE$137)*100,1) -> 13.5 | AI98: =L26-AE98 -> 536722 | AK98: =IF(AE98=0,0,ROUND((AI98/AE98)*100,1)) -> 12.9 | AO98: =AE98+AM98 -> 4172693 | AQ98: 0
T99: 8 | V99: OFF PEAK KW | AA99: =H27 -> 16385 | AC99: =INPUT!C77 -> 1.15 | AE99: =ROUND(+AA99*AC99,0) -> 18843 | AG99: 0.1 | AI99: =L27-AE99 -> 2458 | AK99: 13 | AO99: =AE99+AM99 -> 18843 | AQ99: =ROUND((+AI99/AO99)*100,1) -> 13
T100: 9 | V100: SUB-TOTAL | AA100: =H28 -> 343655 | AE100: =SUM(AE98:AE99) -> 4191536 | AG100: 13.6 | AI100: =SUM(AI98:AI99) -> 539180 | AK100: 12.9 | AO100: =SUM(AO98:AO99) -> 4191536 | AQ100: =ROUND((+AI100/AO100)*100,1) -> 12.9
T101: 10 | V101: PRIMARY SERV. DIS.
T102: 11 | V102: FIRST 1000 KW | AA102: =H30 -> 130343 | AC102: =INPUT!C80 -> -0.65 | AE102: =ROUND(+AA102*AC102,0) -> -84723 | AG102: =ROUND((+AE102/$AE$137)*100,1) -> -0.3 | AI102: =L30-AE102 -> -10427 | AK102: 12.3 | AO102: =AE102+AM102 -> -84723 | AQ102: =ROUND((+AI102/AO102)*100,1) -> 12.3
T103: 12 | V103: ADDITIONAL KW | AA103: =H31 -> 213311 | AC103: =INPUT!C81 -> -0.5 | AE103: =ROUND(+AA103*AC103,0) -> -106656 | AG103: =ROUND((+AE103/$AE$137)*100,1) -> -0.3 | AI103: =L31-AE103 -> -12798 | AK103: 12 | AO103: =AE103+AM103 -> -106656 | AQ103: =ROUND((+AI103/AO103)*100,1) -> 12
T104: 13 | V104: TOTAL DEMAND | AA104: =H32 -> 343654 | AE104: =AE100+AE102+AE103 -> 4000157 | AG104: 13 | AI104: =AI100+AI102+AI103 -> 515955 | AK104: 12.9 | AO104: =AO100+AO102+AO103 -> 4000157 | AQ104: =ROUND((+AI104/AO104)*100,1) -> 12.9
T105: 14 | V105: ENERGY CHARGE (3):
T106: 15 | V106: ON PEAK KWH | AA106: =H34 -> 49861512 | AC106: =INPUT!C72 -> 0.044195 | AE106: =ROUND((+AA106*AC106),0) -> 2203630 | AG106: =ROUND((+AE106/$AE$137)*100,1) -> 7.1 | AI106: =L34-AE106 -> 283213 | AK106: =IF(AE106=0,0,ROUND((AI106/AE106)*100,1)) -> 12.9 | AO106: =AE106+AM106 -> 2203630 | AQ106: =ROUND((+AI106/AO106)*100,1) -> 12.9
T107: 16 | V107: OFF PEAK KWH | AA107: =H35 -> 126004348 | AC107: =INPUT!C74 -> 0.036195 | AE107: =ROUND((+AA107*AC107),0) -> 4560727 | AG107: =ROUND((+AE107/$AE$137)*100,1)+0.1 -> 14.9 | AI107: =L35-AE107 -> 585795 | AK107: 12.8 | AO107: =AE107+AM107 -> 4560727 | AQ107: =ROUND((+AI107/AO107)*100,1) -> 12.8
T108: 17 | V108: TOTAL SUMMER | Y108: =F36 -> 148 | AA108: =H36 -> 175865860 | AE108: =AE96+AE104+AE106+AE107 -> 10779314 | AG108: =ROUND((+AE108/$AE$137)*100,1) -> 35 | AI108: =AI96+AI104+AI106+AI107 -> 1438983 | AK108: 13.3 | AO108: =AO96+AO104+AO106+AO107 -> 10779314 | AQ108: =ROUND((+AI108/AO108)*100,1) -> 13.3
T110: 18 | V110: WINTER:
T111: 19 | V111: CUSTOMER CHARGE:
T112: 20 | V112: PRIMARY VOLTAGE | Y112: =F40 -> 295 | AC112: =AC95 -> 100 | AE112: =ROUND(+Y112*AC112,0) -> 29500 | AG112: =ROUND((+AE112/$AE$137)*100,1) -> 0.1 | AI112: =L40-AE112 -> 107675 | AK112: =IF(AE112=0,0,ROUND((AI112/AE112)*100,1)) -> 365 | AO112: =AE112+AM112 -> 29500 | AQ112: =ROUND((+AI112/AO112)*100,1) -> 365
T113: 21 | V113: TOTAL CUSTOMER CHARGE | Y113: =F41 -> 295 | AE113: =SUM(AE112:AE112) -> 29500 | AG113: 0.1 | AI113: =SUM(AI112:AI112) -> 107675 | AK113: =IF(AE113=0,0,ROUND((AI113/AE113)*100,1)) -> 365 | AO113: =SUM(AO112:AO112) -> 29500 | AQ113: =ROUND((+AI113/AO113)*100,1) -> 365
T114: 22 | V114: DEMAND CHARGE:
T115: 23 | V115: ON PEAK KW | AA115: =H43 -> 603474.6 | AC115: =INPUT!C78 -> 12.07 | AE115: =ROUND(+AA115*AC115,0) -> 7283938 | AG115: =ROUND((+AE115/$AE$137)*100,1) -> 23.6 | AI115: =L43-AE115 -> 935386 | AK115: =IF(AE115=0,0,ROUND((AI115/AE115)*100,1)) -> 12.8 | AO115: =AE115+AM115 -> 7283938 | AQ115: 0
T116: 24 | V116: OFF PEAK KW | AA116: =H44 -> 41089.8 | AC116: =INPUT!C79 -> 1.15 | AE116: =ROUND(+AA116*AC116,0) -> 47253 | AG116: 0.2 | AI116: =L44-AE116 -> 6164 | AK116: =IF(AE116=0,0,ROUND((AI116/AE116)*100,1)) -> 13 | AO116: =AE116+AM116 -> 47253 | AQ116: =ROUND((+AI116/AO116)*100,1) -> 13
T117: 25 | V117: SUB-TOTAL | AA117: =H45 -> 644564.4 | AE117: =SUM(AE115:AE116) -> 7331191 | AG117: 23.8 | AI117: =SUM(AI115:AI116) -> 941550 | AK117: =IF(AE117=0,0,ROUND((AI117/AE117)*100,1)) -> 12.8 | AO117: =SUM(AO115:AO116) -> 7331191 | AQ117: =ROUND((+AI117/AO117)*100,1) -> 12.8
T118: 26 | V118: PRIMARY SERV. DIS.
T119: 27 | V119: FIRST 1000 KW | AA119: =H47 -> 266633.6 | AC119: =AC102 -> -0.65 | AE119: =ROUND(+AA119*AC119,0) -> -173312 | AG119: =ROUND((+AE119/$AE$137)*100,1) -> -0.6 | AI119: =L47-AE119 -> -21331 | AK119: =IF(AE119=0,0,ROUND((AI119/AE119)*100,1)) -> 12.3 | AO119: =AE119+AM119 -> -173312 | AQ119: =ROUND((+AI119/AO119)*100,1) -> 12.3
T120: 28 | V120: ADDITIONAL KW | AA120: =H48 -> 377930.8 | AC120: =AC103 -> -0.5 | AE120: =ROUND(+AA120*AC120,0) -> -188965 | AG120: =ROUND((+AE120/$AE$137)*100,1) -> -0.6 | AI120: =L48-AE120 -> -22676 | AK120: =IF(AE120=0,0,ROUND((AI120/AE120)*100,1)) -> 12 | AO120: =AE120+AM120 -> -188965 | AQ120: =ROUND((+AI120/AO120)*100,1) -> 12
T121: 29 | V121: TOTAL DEMAND | AA121: =H49 -> 644564.4 | AE121: =AE117+AE119+AE120 -> 6968914 | AG121: 22.6 | AI121: =AI117+AI119+AI120 -> 897543 | AK121: =IF(AE121=0,0,ROUND((AI121/AE121)*100,1)) -> 12.9 | AO121: =AO117+AO119+AO120 -> 6968914 | AQ121: =ROUND((+AI121/AO121)*100,1) -> 12.9
T122: 30 | V122: ENERGY CHARGE (3):
T123: 31 | V123: ON PEAK KWH | AA123: =H51 -> 87022244 | AC123: =INPUT!C73 -> 0.042195 | AE123: =ROUND((+AA123*AC123),0) -> 3671904 | AG123: =ROUND((+AE123/$AE$137)*100,1) -> 11.9 | AI123: =L51-AE123 -> 471399 | AK123: =IF(AE123=0,0,ROUND((AI123/AE123)*100,1)) -> 12.8 | AO123: =AE123+AM123 -> 3671904 | AQ123: =ROUND((+AI123/AO123)*100,1) -> 12.8
T124: 32 | V124: OFF PEAK KWH | AA124: =H52 -> 230064339 | AC124: =AC107 -> 0.036195 | AE124: =ROUND((+AA124*AC124),0) -> 8327179 | AG124: =ROUND((+AE124/$AE$137)*100,1) -> 27 | AI124: =L52-AE124 -> 1069569 | AK124: =IF(AE124=0,0,ROUND((AI124/AE124)*100,1)) -> 12.8 | AO124: =AE124+AM124 -> 8327179 | AQ124: =ROUND((+AI124/AO124)*100,1) -> 12.8
T125: 33 | V125: TOTAL WINTER | Y125: =F53 -> 295 | AA125: =H53 -> 317086583 | AE125: =AE113+AE121+AE123+AE124 -> 18997497 | AG125: 61.6 | AI125: =AI113+AI121+AI123+AI124 -> 2546186 | AK125: =IF(AE125=0,0,ROUND((AI125/AE125)*100,1)) -> 13.4 | AO125: =AO113+AO121+AO123+AO124 -> 18997497 | AQ125: =ROUND((+AI125/AO125)*100,1) -> 13.4
T126: 34 | V126: TOTAL RATE DT PRIMARY EXCLUDING RIDERS | Y126: =Y108+Y125 -> 443 | AA126: =AA108+AA125 -> 492952443 | AE126: =AE125+AE108 -> 29776811 | AG126: =ROUND((+AE126/$AE$137)*100,1) -> 96.6 | AI126: =AI125+AI108 -> 3985169 | AK126: =IF(AE126=0,0,ROUND((AI126/AE126)*100,1)) -> 13.4 | AM126: =AM125+AM108 -> 0 | AO126: =AO125+AO108 -> 29776811 | AQ126: =ROUND((+AI126/AO126)*100,1) -> 13.4
T128: =A56 -> 35 | V128: RIDERS:
T129: =A57 -> 36 | V129: =C57 -> DEMAND SIDE MANAGEMENT RIDER (DSMR) | AC129: =DSM_DIST -> 0.002576 | AE129: =ROUND($AA$126*AC129,0) -> 1269845 | AG129: =ROUND((+AE129/$AE$137)*100,1) -> 4.1 | AI129: =L57-AE129 -> 0 | AK129: =IF(AE129=0,0,ROUND((AI129/AE129)*100,1)) -> 0 | AO129: =AE129+AM129 -> 1269845 | AQ129: =ROUND((+AI129/AO129)*100,1) -> 0
T130: 37 | V130: =C58 -> ENVIRONMENTAL SURCHARGE MECHANISM RIDER (ESM) | AC130: =CUR_ESM -> 0 | AE130: =ROUND(AO126*AC130,0) -> 0 | AG130: =ROUND((+AE130/$AE$137)*100,1) -> 0 | AI130: =L58-AE130 -> 0 | AK130: 0 | AO130: 0 | AQ130: =IF(AO130=0,0,ROUND((+AI130/AO130)*100,1)) -> 0
T131: 38 | V131: DISTRIBUTION CAPITAL INVESTMENT RIDER (DCI) | AC131: =CUR_DCI_DTP -> 0 | AE131: =ROUND((AA117+AA100)*AC131,0) -> 0 | AG131: 0 | AI131: 0 | AK131: 0 | AO131: 0 | AQ131: =IF(AO131=0,0,ROUND((+AI131/AO131)*100,1)) -> 0
T132: 39 | V132: FUEL ADJUSTMENT CLAUSE (FAC) | AC132: =CUR_FAC -> 0.001028 | AM132: =ROUND(AA126*CUR_FAC,0) -> 506755 | AO132: 506755 | AQ132: =ROUND(((R60-AO132)/AO132)*100,1) -> 0
T133: 40 | V133: FERC TRANSMISSION COST RECOVERY RECONCILIATION (FTR) | AC133: =CUR_FTR_DTP -> 0 | AE133: =ROUND(AA126*AC133,0) -> 0 | AG133: =ROUND((+AE133/$AE$137)*100,1) -> 0 | AI133: =L61-AE133 -> 0 | AK133: 0 | AO133: 0 | AQ133: =IF(AO133=0,0,ROUND((+AI133/AO133)*100,1)) -> 0
T134: 41 | V134: PROFIT SHARING MECHANISM (PSM) | AC134: =RS_PSM -> -0.000456 | AE134: =ROUND(AA126*RS_PSM,0) -> -224786 | AG134: =ROUND((+AE134/$AE$137)*100,1) -> -0.7 | AI134: =L62-AE134 -> 0 | AK134: 0 | AO134: -224786 | AQ134: 0
T135: 42 | V135: TOTAL RIDERS | AE135: =SUM(AE129:AE134) -> 1045059 | AG135: =ROUND((+AE135/$AE$137)*100,1) -> 3.4 | AI135: =SUM(AI129:AI134) -> 0 | AK135: 0 | AM135: =AM132 -> 506755 | AO135: =SUM(AO129:AO134) -> 1551814 | AQ135: 0
T137: 43 | V137: TOTAL RATE DT PRIMARY INCLUDING RIDERS | Y137: =F65 -> 443 | AA137: =H65 -> 492952443 | AE137: =AE126+AE135 -> 30821870 | AG137: 100 | AI137: =AI126+AI135 -> 3985169 | AK137: =IF(AE137=0,0,ROUND((AI137/AE137)*100,1)) -> 12.9 | AM137: =AM126+AM135 -> 506755 | AO137: =AO126+AO135 -> 31328625 | AQ137: =ROUND((+AI137/AO137)*100,1) -> 12.7
V139: (1) BILLS THAT TERMINATE IN RESPECTIVE RATE STEPS.
V140: ="(2) REFLECTS FUEL COMPONENT OF "&TEXT(CUR_FAC,"$0.000000;($0.000000)")&" PER KWH." -> (2) REFLECTS FUEL COMPONENT OF $0.001028 PER KWH.
V141: ="(3) REFLECTS FUEL COST RECOVERY INCLUDED IN BASE RATES OF "&TEXT(CUR_BASE_FUEL,"$0.000000;($0.000000)")&" PER KWH." -> (3) REFLECTS FUEL COST RECOVERY INCLUDED IN BASE RATES OF $0.023837 PER KWH.

Sheet Rate DT-Sec
A1: =NAME -> DUKE ENERGY KENTUCKY, INC.
A2: =CASE_NO -> CASE NO. 2017-00321
A3: =TITLE -> ANNUALIZED BASE YEAR REVENUES AT PROPOSED VS. MOST CURRENT RATES
A4: =DATE -> FOR THE TWELVE MONTHS ENDED November 30, 2017
A5: =SERVICE -> (ELECTRIC SERVICE)
A6: =DATA_PERIOD -> DATA: __X__ BASE PERIOD ____FORECASTED PERIOD | R6: SCHEDULE M-2.3
A7: =TYPE -> TYPE OF FILING: _X_ ORIGINAL ___UPDATED ___ REVISED | R7: PAGE 5 OF 22
A8: WORK PAPER REFERENCE NO(S).: | R8: WITNESS:
A9: =TIME -> 6 Months Actual and 6 Months Projected | R9: =WIT -> B. L. SAILERS
A10: =INPUT!B5 -> 6 Months Actual Ending May 31, 2017
A11: PROPOSED ANNUALIZED
L13: PROPOSED | N13: % OF REV TO | R13: PROPOSED
L14: REVENUE LESS | N14: TOTAL LESS | R14: TOTAL
A15: LINE | C15: RATE | D15: CLASS / | F15: CUSTOMER | J15: PROPOSED | L15: FUEL COST | N15: FUEL COST | P15: FUEL COST | R15: REVENUE
A16: NO. | C16: CODE | D16: DESCRIPTION | F16: BILLS(1) | H16: SALES | J16: RATES | L16: REVENUE | N16: REVENUE | P16: REVENUE (2) | R16: (F + H)
C17: (A) | D17: (B) | F17: (C) | H17: (D) | J17: (E) | L17: (F) | N17: (G) | P17: (H) | R17: (I)
H19: (KW/KWH) | J19: ($/KWH)/ | L19: ($) | N19: (%) | P19: ($) | R19: ($)
A20: 1 | C20: DT-SEC | D20: TIME OF DAY SECONDARY | J20: ($/KW)
A21: 2 | C21: SUMMER:
A22: 3 | C22: CUSTOMER CHARGE:
A23: 4 | C23: SINGLE PHASE | F23: 0 | J23: =INPUT!D68 -> 200 | L23: =ROUND(+F23*J23,0) -> 0 | N23: =ROUND((+L23/$L$63)*100,1) -> 0 | R23: =L23+P23 -> 0
A24: 5 | C24: THREE PHASE | F24: 595 | J24: =INPUT!D69 -> 400 | L24: =ROUND(+F24*J24,0) -> 238000 | N24: 0.5 | R24: =L24+P24 -> 238000
A25: 6 | C25: TOTAL CUSTOMER CHARGE | F25: =SUM(F23:F24) -> 595 | L25: =SUM(L23:L24) -> 238000 | N25: =ROUND((+L25/$L$63)*100,1) -> 0.5 | R25: =SUM(R23:R24) -> 238000
A27: 7 | C27: DEMAND CHARGE:
A28: 8 | C28: ON PEAK KW | H28: 522436 | J28: =PRO_DT_SUM_PEAK -> 14.39 | L28: =ROUND(+H28*J28,0) -> 7517854 | N28: =ROUND((+L28/$L$63)*100,1) -> 14.4 | R28: =L28+P28 -> 7517854
A29: 9 | C29: OFF PEAK KW | H29: 12081 | J29: =PRO_DT_SUM_PK_OFF -> 1.3 | L29: =ROUND(+H29*J29,0) -> 15705 | N29: 0 | R29: =L29+P29 -> 15705
A30: 10 | C30: TOTAL DEMAND | H30: =SUM(H28:H29) -> 534517 | L30: =SUM(L28:L29) -> 7533559 | N30: =ROUND((+L30/$L$63)*100,1) -> 14.4 | R30: =SUM(R28:R29) -> 7533559
A32: 11 | C32: ENERGY CHARGE (3):
A33: 12 | C33: ON PEAK KWH | H33: 76814079 | J33: =PRO_DT_SUM_E_ON -> 0.049875 | L33: =ROUND((+H33*J33),0) -> 3831102 | N33: =ROUND((+L33/$L$63)*100,1) -> 7.3 | R33: =L33+P33 -> 3831102
A34: 13 | C34: OFF PEAK KWH | H34: 168266676 | J34: =PRO_DT_SUM_E_OFF -> 0.040844 | L34: =ROUND((+H34*J34),0) -> 6872684 | N34: 13.2 | R34: =L34+P34 -> 6872684
A35: 14 | C35: TOTAL SUMMER | F35: =F25 -> 595 | H35: =H33+H34 -> 245080755 | L35: =L25+L30+L33+L34 -> 18475345 | N35: =ROUND((+L35/$L$63)*100,1) -> 35.4 | R35: =R25+R30+R33+R34 -> 18475345
A37: 15 | C37: WINTER: | H37: =185857814-185857934 -> -120
A38: 16 | C38: CUSTOMER CHARGE:
A39: 17 | C39: SINGLE PHASE | F39: =F23 -> 0 | J39: =J23 -> 200 | L39: =ROUND(+F39*J39,0) -> 0 | N39: =ROUND((+L39/$L$63)*100,1) -> 0 | R39: =L39+P39 -> 0
A40: 18 | C40: THREE PHASE | F40: 1191 | J40: =J24 -> 400 | L40: =ROUND(+F40*J40,0) -> 476400 | N40: 0.9 | R40: =L40+P40 -> 476400
A41: 19 | C41: TOTAL CUSTOMER CHARGE | F41: =SUM(F39:F40) -> 1191 | L41: =SUM(L39:L40) -> 476400 | N41: =ROUND((+L41/$L$63)*100,1) -> 0.9 | R41: =SUM(R39:R40) -> 476400
A43: 20 | C43: DEMAND CHARGE:
A44: 21 | C44: ON PEAK KW | H44: 956045.51 | J44: =PRO_DT_WIN_PEAK -> 13.62 | L44: =ROUND(+H44*J44,0) -> 13021340 | N44: =ROUND((+L44/$L$63)*100,1)-0.1 -> 24.8 | R44: =L44+P44 -> 13021340
A45: 22 | C45: OFF PEAK KW | H45: 22660.27 | J45: =PRO_DT_WIN_PK_OFF -> 1.3 | L45: =ROUND(+H45*J45,0) -> 29458 | N45: =ROUND((+L45/$L$63)*100,1) -> 0.1 | R45: =L45+P45 -> 29458
A46: 23 | C46: TOTAL DEMAND | H46: =SUM(H44:H45) -> 978705.78 | L46: =SUM(L44:L45) -> 13050798 | N46: =ROUND((+L46/$L$63)*100,1)-0.1 -> 24.9 | R46: =SUM(R44:R45) -> 13050798
A48: 24 | C48: ENERGY CHARGE (3):
A49: 25 | C49: ON PEAK KWH | H49: 133131149 | J49: =PRO_DT_WIN_E_ON -> 0.047612 | L49: =ROUND((+H49*J49),0) -> 6338640 | N49: =ROUND((+L49/$L$63)*100,1) -> 12.1 | R49: =L49+P49 -> 6338640
A50: 26 | C50: OFF PEAK KWH | H50: 305222226 | J50: =PRO_DT_WIN_E_OFF -> 0.040844 | L50: =ROUND((+H50*J50),0) -> 12466497 | N50: =ROUND((+L50/$L$63)*100,1) -> 23.9 | R50: =L50+P50 -> 12466497
A51: 27 | C51: TOTAL WINTER | F51: =F41 -> 1191 | H51: =H49+H50 -> 438353375 | L51: =L41+L46+L49+L50 -> 32332335 | N51: =ROUND((+L51/$L$63)*100,1)-0.1 -> 61.8 | R51: =R41+R46+R49+R50 -> 32332335
A52: 28 | C52: TOTAL RATE DT SECONDARY EXCLUDING RIDERS | F52: =F35+F51 -> 1786 | H52: =H51+H35 -> 683434130 | L52: =L35+L51 -> 50807680 | N52: =ROUND((+L52/$L$63)*100,1) -> 97.2 | R52: =R35+R51 -> 50807680
A54: 29 | C54: RIDERS:
A55: 30 | C55: =DSMR_Name -> DEMAND SIDE MANAGEMENT RIDER (DSMR) | J55: =PRO_DSM_DIST -> 0.002576 | L55: =ROUND($H$52*J55,0) -> 1760526 | N55: =ROUND((+L55/$L$63)*100,1) -> 3.4 | R55: =L55+P55 -> 1760526
A56: 31 | C56: =ESM_Name -> ENVIRONMENTAL SURCHARGE MECHANISM RIDER (ESM) | J56: =PRO_ESM -> 0 | L56: =ROUND(R52*J56,0) -> 0 | N56: =ROUND((+L56/$L$63)*100,1) -> 0 | R56: 0
A57: 32 | C57: =DCI_Name -> DISTRIBUTION CAPITAL INVESTMENT RIDER (DCI) | J57: =PRO_DCI_DTS -> 0 | L57: =ROUND((H46+H30)*J57,0) -> 0 | N57: 0 | R57: 0
A58: 33 | C58: =FAC_Name -> FUEL ADJUSTMENT CLAUSE (FAC) | J58: =PRO_FAC -> 0.001028 | P58: =ROUND(H52*PRO_FAC,0) -> 702570 | R58: 702570
A59: 34 | C59: =FTR_Name -> FERC TRANSMISSION COST RECOVERY RECONCILIATION (FTR) | J59: =PRO_FTR_DTS -> 0 | L59: =ROUND(H52*J59,0) -> 0 | N59: =ROUND((+L59/$L$63)*100,1) -> 0 | R59: 0
A60: 35 | C60: =PSM_Name -> PROFIT SHARING MECHANISM (PSM) | J60: =PRO_PSM -> -0.000456 | L60: =ROUND(H52*PRO_PSM,0) -> -311646 | N60: =ROUND((+L60/$L$63)*100,1) -> -0.6 | R60: -311646
A61: 36 | C61: TOTAL RIDERS | L61: =SUM(L55:L60) -> 1448880 | N61: =ROUND((+L61/$L$63)*100,1) -> 2.8 | P61: =SUM(P55:P60) -> 702570 | R61: =SUM(R55:R60) -> 2151450
A63: 37 | C63: TOTAL RATE DT SECONDARY INCLUDING RIDERS | F63: =F35+F51 -> 1786 | H63: =H35+H51 -> 683434130 | L63: =L61+L52 -> 52256560 | N63: 100 | P63: =P61+P52 -> 702570 | R63: =R61+R52 -> 52959130
C65: (1) BILLS THAT TERMINATE IN RESPECTIVE RATE STEPS.
C66: ="(2) REFLECTS FUEL COMPONENT OF "&TEXT(PRO_FAC,"$0.000000;($0.000000)")&" PER KWH." -> (2) REFLECTS FUEL COMPONENT OF $0.001028 PER KWH.
C67: ="(3) REFLECTS FUEL COST RECOVERY INCLUDED IN BASE RATES OF "&TEXT(PRO_BASE_FUEL,"$0.000000;($0.000000)")&" PER KWH." -> (3) REFLECTS FUEL COST RECOVERY INCLUDED IN BASE RATES OF $0.023837 PER KWH.
T71: =NAME -> DUKE ENERGY KENTUCKY, INC.
T72: =CASE_NO -> CASE NO. 2017-00321
T73: =TITLE -> ANNUALIZED BASE YEAR REVENUES AT PROPOSED VS. MOST CURRENT RATES
T74: =DATE -> FOR THE TWELVE MONTHS ENDED November 30, 2017
T75: =SERVICE -> (ELECTRIC SERVICE)
T76: =DATA_PERIOD -> DATA: __X__ BASE PERIOD ____FORECASTED PERIOD | AO76: SCHEDULE M-2.2
T77: =TYPE -> TYPE OF FILING: _X_ ORIGINAL ___UPDATED ___ REVISED | AO77: =R7 -> PAGE 5 OF 22
T78: WORK PAPER REFERENCE NO(S).: | AO78: WITNESS:
T79: =TIME -> 6 Months Actual and 6 Months Projected | AO79: =WIT -> B. L. SAILERS
T80: =INPUT!B5 -> 6 Months Actual Ending May 31, 2017
T81: CURRENT ANNUALIZED
AE83: CURRENT | AG83: % OF REV TO | AI83: REVENUE | AK83: % INCR IN | AO83: CURRENT | AQ83: TOTAL
AC84: MOST | AE84: REVENUE LESS | AG84: TOTAL LESS | AI84: INCR LESS | AK84: REV LESS | AO84: TOTAL | AQ84: REVENUE
T85: LINE | V85: RATE | W85: CLASS / | Y85: CUSTOMER | AC85: CURRENT | AE85: FUEL COST | AG85: FUEL COST | AI85: FUEL COST REV | AK85: FUEL COST REV | AM85: FUEL COST | AO85: REVENUE | AQ85: % INCREASE
T86: NO. | V86: CODE | W86: DESCRIPTION | Y86: BILLS(1) | AA86: SALES | AC86: RATES | AE86: REVENUE | AG86: REVENUE | AI86: (F - K) | AK86: (M / K) | AM86: REVENUE (2) | AO86: (K + H) | AQ86: (M / K1)
V87: (A) | W87: (B) | Y87: (C) | AA87: (D) | AC87: (J) | AE87: (K) | AG87: (L) | AI87: (M) | AK87: (N) | AM87: (H) | AO87: (K1) | AQ87: (O)
AA89: (KW/KWH) | AC89: ($/KWH)/ | AE89: ($) | AG89: (%) | AI89: ($) | AK89: (%) | AM89: ($) | AO89: ($) | AQ89: (%)
T90: 1 | V90: DT-SEC | W90: TIME OF DAY SECONDARY | AC90: ($/KW)
T91: 2 | V91: SUMMER:
T92: 3 | V92: CUSTOMER CHARGE:
T93: 4 | V93: SINGLE PHASE | Y93: =F23 -> 0 | AC93: =INPUT!C68 -> 7.5 | AE93: =ROUND(+Y93*AC93,0) -> 0 | AG93: =ROUND((+AE93/$AE$133)*100,1) -> 0 | AI93: =L23-AE93 -> 0 | AK93: =IF(AE93=0,0,ROUND((AI93/AE93)*100,1)) -> 0 | AO93: =AE93+AM93 -> 0 | AQ93: 0
T94: 5 | V94: THREE PHASE | Y94: =F24 -> 595 | AC94: =INPUT!C69 -> 15 | AE94: =ROUND(+Y94*AC94,0) -> 8925 | AG94: 0 | AI94: =L24-AE94 -> 229075 | AK94: =IF(AE94=0,0,ROUND((AI94/AE94)*100,1)) -> 2566.7 | AO94: =AE94+AM94 -> 8925 | AQ94: =ROUND((+AI94/AO94)*100,1) -> 2566.7
T95: 6 | V95: TOTAL CUSTOMER CHARGE | Y95: =F25 -> 595 | AE95: =SUM(AE93:AE94) -> 8925 | AG95: =ROUND((+AE95/$AE$133)*100,1) -> 0 | AI95: =SUM(AI93:AI94) -> 229075 | AK95: =IF(AE95=0,0,ROUND((AI95/AE95)*100,1)) -> 2566.7 | AO95: =SUM(AO93:AO94) -> 8925 | AQ95: =ROUND((+AI95/AO95)*100,1) -> 2566.7
T97: 7 | V97: DEMAND CHARGE:
T98: 8 | V98: ON PEAK KW | AA98: =H28 -> 522436 | AC98: =CUR_DT_SUM_PEAK_ON -> 12.75 | AE98: =ROUND(+AA98*AC98,0) -> 6661059 | AG98: =ROUND((+AE98/$AE$133)*100,1)+0.1 -> 14.6 | AI98: =L28-AE98 -> 856795 | AK98: =IF(AE98=0,0,ROUND((AI98/AE98)*100,1)) -> 12.9 | AO98: =AE98+AM98 -> 6661059 | AQ98: 0
T99: 9 | V99: OFF PEAK KW | AA99: =H29 -> 12081 | AC99: =CUR_DT_SUM_PK_OFF -> 1.15 | AE99: =ROUND(+AA99*AC99,0) -> 13893 | AG99: =ROUND((+AE99/$AE$133)*100,1) -> 0 | AI99: =L29-AE99 -> 1812 | AK99: =IF(AE99=0,0,ROUND((AI99/AE99)*100,1)) -> 13 | AO99: =AE99+AM99 -> 13893 | AQ99: =ROUND((+AI99/AO99)*100,1) -> 13
T100: 10 | V100: TOTAL DEMAND | AA100: =H30 -> 534517 | AE100: =SUM(AE98:AE99) -> 6674952 | AG100: =ROUND((+AE100/$AE$133)*100,1) -> 14.6 | AI100: =SUM(AI98:AI99) -> 858607 | AK100: =IF(AE100=0,0,ROUND((AI100/AE100)*100,1)) -> 12.9 | AO100: =SUM(AO98:AO99) -> 6674952 | AQ100: =ROUND((+AI100/AO100)*100,1) -> 12.9
T102: 11 | V102: ENERGY CHARGE (3):
T103: 12 | V103: ON PEAK KWH | AA103: =H33 -> 76814079 | AC103: =CUR_DT_SUM_E_ON -> 0.044195 | AE103: =ROUND((+AA103*AC103),0) -> 3394798 | AG103: =ROUND((+AE103/$AE$133)*100,1) -> 7.4 | AI103: =L33-AE103 -> 436304 | AK103: =IF(AE103=0,0,ROUND((AI103/AE103)*100,1)) -> 12.9 | AO103: =AE103+AM103 -> 3394798 | AQ103: =ROUND((+AI103/AO103)*100,1) -> 12.9
T104: 13 | V104: OFF PEAK KWH | AA104: =H34 -> 168266676 | AC104: =CUR_DT_SUM_E_OFF -> 0.036195 | AE104: =ROUND((+AA104*AC104),0) -> 6090412 | AG104: =ROUND((+AE104/$AE$133)*100,1) -> 13.3 | AI104: =L34-AE104 -> 782272 | AK104: =IF(AE104=0,0,ROUND((AI104/AE104)*100,1)) -> 12.8 | AO104: =AE104+AM104 -> 6090412 | AQ104: =ROUND((+AI104/AO104)*100,1) -> 12.8
T105: 14 | V105: TOTAL SUMMER | Y105: =F35 -> 595 | AA105: =H35 -> 245080755 | AE105: =AE95+AE100+AE103+AE104 -> 16169087 | AG105: =ROUND((+AE105/$AE$133)*100,1) -> 35.3 | AI105: =AI95+AI100+AI103+AI104 -> 2306258 | AK105: =IF(AE105=0,0,ROUND((AI105/AE105)*100,1)) -> 14.3 | AO105: =AO95+AO100+AO103+AO104 -> 16169087 | AQ105: =ROUND((+AI105/AO105)*100,1) -> 14.3
T107: 15 | V107: WINTER:
T108: 16 | V108: CUSTOMER CHARGE:
T109: 17 | V109: SINGLE PHASE | Y109: =F39 -> 0 | AC109: =AC93 -> 7.5 | AE109: =ROUND(+Y109*AC109,0) -> 0 | AG109: =ROUND((+AE109/$AE$133)*100,1) -> 0 | AI109: =L39-AE109 -> 0 | AK109: =IF(AE109=0,0,ROUND((AI109/AE109)*100,1)) -> 0 | AO109: =AE109+AM109 -> 0 | AQ109: 0
T110: 18 | V110: THREE PHASE | Y110: =F40 -> 1191 | AC110: =AC94 -> 15 | AE110: =ROUND(+Y110*AC110,0) -> 17865 | AG110: 0 | AI110: =L40-AE110 -> 458535 | AK110: =IF(AE110=0,0,ROUND((AI110/AE110)*100,1)) -> 2566.7 | AO110: =AE110+AM110 -> 17865 | AQ110: =ROUND((+AI110/AO110)*100,1) -> 2566.7
T111: 19 | V111: TOTAL CUSTOMER CHARGE | Y111: =F41 -> 1191 | AE111: =SUM(AE109:AE110) -> 17865 | AG111: =ROUND((+AE111/$AE$133)*100,1) -> 0 | AI111: =SUM(AI109:AI110) -> 458535 | AK111: =IF(AE111=0,0,ROUND((AI111/AE111)*100,1)) -> 2566.7 | AO111: =SUM(AO109:AO110) -> 17865 | AQ111: =ROUND((+AI111/AO111)*100,1) -> 2566.7
T113: 20 | V113: DEMAND CHARGE:
T114: 21 | V114: ON PEAK KW | AA114: =H44 -> 956045.51 | AC114: =CUR_DT_WIN_PEAK_ON -> 12.07 | AE114: =ROUND(+AA114*AC114,0) -> 11539469 | AG114: =ROUND((+AE114/$AE$133)*100,1) -> 25.2 | AI114: =L44-AE114 -> 1481871 | AK114: =IF(AE114=0,0,ROUND((AI114/AE114)*100,1)) -> 12.8 | AO114: =AE114+AM114 -> 11539469 | AQ114: 0
T115: 22 | V115: OFF PEAK KW | AA115: =H45 -> 22660.27 | AC115: =CUR_DT_WIN_PK_OFF -> 1.15 | AE115: =ROUND(+AA115*AC115,0) -> 26059 | AG115: =ROUND((+AE115/$AE$133)*100,1) -> 0.1 | AI115: =L45-AE115 -> 3399 | AK115: =IF(AE115=0,0,ROUND((AI115/AE115)*100,1)) -> 13 | AO115: =AE115+AM115 -> 26059 | AQ115: =ROUND((+AI115/AO115)*100,1) -> 13
T116: 23 | V116: TOTAL DEMAND | AA116: =H46 -> 978705.78 | AE116: =SUM(AE114:AE115) -> 11565528 | AG116: =ROUND((+AE116/$AE$133)*100,1)+0.1 -> 25.3 | AI116: =SUM(AI114:AI115) -> 1485270 | AK116: =IF(AE116=0,0,ROUND((AI116/AE116)*100,1)) -> 12.8 | AO116: =SUM(AO114:AO115) -> 11565528 | AQ116: =ROUND((+AI116/AO116)*100,1) -> 12.8
T118: 24 | V118: ENERGY CHARGE (3):
T119: 25 | V119: ON PEAK KWH | AA119: =H49 -> 133131149 | AC119: =CUR_DT_WIN_E_ON -> 0.042195 | AE119: =ROUND((+AA119*AC119),0) -> 5617469 | AG119: =ROUND((+AE119/$AE$133)*100,1) -> 12.2 | AI119: =L49-AE119 -> 721171 | AK119: =IF(AE119=0,0,ROUND((AI119/AE119)*100,1)) -> 12.8 | AO119: =AE119+AM119 -> 5617469 | AQ119: =ROUND((+AI119/AO119)*100,1) -> 12.8
T120: 26 | V120: OFF PEAK KWH | AA120: =H50 -> 305222226 | AC120: ='Rate DT-Pri'!AC124 -> 0.036195 | AE120: =ROUND((+AA120*AC120),0) -> 11047518 | AG120: 24.1 | AI120: =L50-AE120 -> 1418979 | AK120: =IF(AE120=0,0,ROUND((AI120/AE120)*100,1)) -> 12.8 | AO120: =AE120+AM120 -> 11047518 | AQ120: =ROUND((+AI120/AO120)*100,1) -> 12.8
T121: 27 | V121: TOTAL WINTER | Y121: =F51 -> 1191 | AA121: =H51 -> 438353375 | AE121: =AE111+AE116+AE119+AE120 -> 28248380 | AG121: =ROUND((+AE121/$AE$133)*100,1) -> 61.6 | AI121: =AI111+AI116+AI119+AI120 -> 4083955 | AK121: =IF(AE121=0,0,ROUND((AI121/AE121)*100,1)) -> 14.5 | AO121: =AO111+AO116+AO119+AO120 -> 28248380 | AQ121: =ROUND((+AI121/AO121)*100,1) -> 14.5
T122: 28 | V122: TOTAL RATE DT SECONDARY EXCLUDING RIDERS | Y122: =Y105+Y121 -> 1786 | AA122: =AA121+AA105 -> 683434130 | AE122: =AE121+AE105 -> 44417467 | AG122: =ROUND((+AE122/$AE$133)*100,1) -> 96.8 | AI122: =AI121+AI105 -> 6390213 | AK122: =IF(AE122=0,0,ROUND((AI122/AE122)*100,1)) -> 14.4 | AO122: =AO121+AO105 -> 44417467 | AQ122: 0
T124: 29 | V124: RIDERS:
T125: =A55 -> 30 | V125: =C55 -> DEMAND SIDE MANAGEMENT RIDER (DSMR) | AC125: =DSM_DIST -> 0.002576 | AE125: =ROUND($AA$122*AC125,0) -> 1760526 | AG125: =ROUND((+AE125/$AE$133)*100,1)+0.1 -> 3.9 | AI125: =L55-AE125 -> 0 | AK125: =IF(AE125=0,0,ROUND((AI125/AE125)*100,1)) -> 0 | AO125: =AE125+AM125 -> 1760526 | AQ125: =IF(AO125=0,0,ROUND((+AI125/AO125)*100,1)) -> 0
T126: =A56 -> 31 | V126: =C56 -> ENVIRONMENTAL SURCHARGE MECHANISM RIDER (ESM) | AC126: =CUR_ESM -> 0 | AE126: =ROUND(AO122*AC126,0) -> 0 | AG126: =ROUND((+AE126/$AE$133)*100,1) -> 0 | AI126: =L56-AE126 -> 0 | AK126: 0 | AO126: =AE126+AM126 -> 0 | AQ126: =IF(AO126=0,0,ROUND((+AI126/AO126)*100,1)) -> 0
T127: 32 | V127: DISTRIBUTION CAPITAL INVESTMENT RIDER (DCI) | AC127: =CUR_DCI_DTS -> 0 | AE127: =ROUND((AA100+AA116)*AC127,0) -> 0 | AG127: 0 | AI127: 0 | AK127: 0 | AO127: 0 | AQ127: =IF(AO127=0,0,ROUND((+AI127/AO127)*100,1)) -> 0
T128: 33 | V128: FUEL ADJUSTMENT CLAUSE (FAC) | AC128: =CUR_FAC -> 0.001028 | AM128: =ROUND(AA122*CUR_FAC,0) -> 702570 | AO128: 702570 | AQ128: =IF(AO128=0,0,ROUND(((R58-AO128)/AO128)*100,1)) -> 0
T129: 34 | V129: FERC TRANSMISSION COST RECOVERY RECONCILIATION (FTR) | AC129: =CUR_FTR_DTS -> 0 | AE129: =ROUND(AA122*AC129,0) -> 0 | AG129: 0 | AI129: =L59-AE129 -> 0 | AK129: 0 | AO129: =AE129+AM129 -> 0 | AQ129: =IF(AO129=0,0,ROUND((+AI129/AO129)*100,1)) -> 0
T130: 35 | V130: PROFIT SHARING MECHANISM (PSM) | AC130: =RS_PSM -> -0.000456 | AE130: =ROUND(AA122*RS_PSM,0) -> -311646 | AG130: =ROUND((+AE130/$AE$133)*100,1) -> -0.7 | AI130: =L60-AE130 -> 0 | AK130: 0 | AO130: -311646 | AQ130: =IF(AO130=0,0,ROUND((+AI130/AO130)*100,1)) -> 0
T131: 36 | V131: TOTAL RIDERS | AE131: =SUM(AE125:AE130) -> 1448880 | AG131: =ROUND((+AE131/$AE$133)*100,1) -> 3.2 | AI131: =SUM(AI125:AI130) -> 0 | AK131: 0 | AM131: =SUM(AM125:AM130) -> 702570 | AO131: =SUM(AO125:AO130) -> 2151450 | AQ131: =ROUND((+AI131/AO131)*100,1) -> 0
T133: =A63 -> 37 | V133: TOTAL RATE DT SECONDARY INCLUDING RIDERS | Y133: =Y122 -> 1786 | AA133: =AA122 -> 683434130 | AE133: =AE131+AE122 -> 45866347 | AG133: 100 | AI133: =AI131+AI122 -> 6390213 | AK133: =IF(AE133=0,0,ROUND((AI133/AE133)*100,1)) -> 13.9 | AM133: =AM131+AM122 -> 702570 | AO133: =AO131+AO122 -> 46568917 | AQ133: =ROUND((+AI133/AO133)*100,1) -> 13.7
V135: (1) BILLS THAT TERMINATE IN RESPECTIVE RATE STEPS.
V136: ="(2) REFLECTS FUEL COMPONENT OF "&TEXT(CUR_FAC,"$0.000000;($0.000000)")&" PER KWH." -> (2) REFLECTS FUEL COMPONENT OF $0.001028 PER KWH.
V137: ="(3) REFLECTS FUEL COST RECOVERY INCLUDED IN BASE RATES OF "&TEXT(CUR_BASE_FUEL,"$0.000000;($0.000000)")&" PER KWH." -> (3) REFLECTS FUEL COST RECOVERY INCLUDED IN BASE RATES OF $0.023837 PER KWH.

Sheet Rate EH
A1: =NAME -> DUKE ENERGY KENTUCKY, INC.
A2: =CASE_NO -> CASE NO. 2017-00321
A3: =TITLE -> ANNUALIZED BASE YEAR REVENUES AT PROPOSED VS. MOST CURRENT RATES
A4: =DATE -> FOR THE TWELVE MONTHS ENDED November 30, 2017
A5: =SERVICE -> (ELECTRIC SERVICE)
A6: =DATA_PERIOD -> DATA: __X__ BASE PERIOD ____FORECASTED PERIOD | R6: SCHEDULE M-2.3
A7: =TYPE -> TYPE OF FILING: _X_ ORIGINAL ___UPDATED ___ REVISED | R7: PAGE 6 OF 22
A8: WORK PAPER REFERENCE NO(S).: | R8: WITNESS:
A9: =TIME -> 6 Months Actual and 6 Months Projected | R9: =WIT -> B. L. SAILERS
A10: =INPUT!B5 -> 6 Months Actual Ending May 31, 2017
A11: PROPOSED ANNUALIZED
L13: PROPOSED | N13: % OF REV TO | R13: PROPOSED
L14: REVENUE LESS | N14: TOTAL LESS | R14: TOTAL
A15: LINE | C15: RATE | D15: CLASS / | F15: CUSTOMER | J15: PROPOSED | L15: FUEL COST | N15: FUEL COST | P15: FUEL COST | R15: REVENUE
A16: NO. | C16: CODE | D16: DESCRIPTION | F16: BILLS(1) | H16: SALES | J16: RATES | L16: REVENUE | N16: REVENUE | P16: REVENUE (2) | R16: (F + H)
C17: (A) | D17: (B) | F17: (C) | H17: (D) | J17: (E) | L17: (F) | N17: (G) | P17: (H) | R17: (I)
H19: (KW/KWH) | J19: ($/KWH) | L19: ($) | N19: (%) | P19: ($) | R19: ($)
A20: 1 | C20: EH | D20: OPTIONAL RATE FOR | J20: ($/KW)
A21: 2 | D21: ELEC. SPACE HEATING
A23: 3 | C23: CUSTOMER CHARGE:
A24: 4 | C24: SINGLE PHASE | F24: 112 | J24: =INPUT!D85 -> 17.14 | L24: =ROUND(F24*J24,0) -> 1920 | N24: =ROUND((L24/L$45)*100,1) -> 0.3 | R24: =L24+P24 -> 1920
A25: 5 | C25: THREE PHASE | F25: 390 | J25: =INPUT!D86 -> 34.28 | L25: =ROUND(F25*J25,0) -> 13369 | N25: =ROUND((L25/L$45)*100,1)-0.1 -> 1.8 | R25: =L25+P25 -> 13369
A26: 6 | C26: PRIMARY VOLTAGE | F26: 0 | J26: =INPUT!D87 -> 118.78 | L26: =ROUND(F26*J26,0) -> 0 | N26: =ROUND((L26/L$45)*100,1) -> 0 | R26: =L26+P26 -> 0
A27: 7 | C27: TOTAL CUSTOMER CHARGE | F27: =SUM(F24:F26) -> 502 | L27: =SUM(L24:L26) -> 15289 | N27: =ROUND((L27/L$45)*100,1) -> 2.1 | R27: =SUM(R24:R26) -> 15289
A29: 8 | C29: DEMAND CHARGE:
A30: 9 | C30: ALL KW | H30: 38467.44 | J30: =INPUT!D91 -> 0 | L30: =ROUND((H30*J30),0) -> 0 | N30: =ROUND((L30/L$45)*100,1) -> 0 | R30: =L30+P30 -> 0
A32: 10 | C32: ENERGY CHARGE (3):
A33: 11 | C33: ALL KWH | H33: 9803357 | J33: =INPUT!D89 -> 0.069947 | L33: =ROUND((H33*J33),0) -> 685715 | N33: =ROUND((L33/L$45)*100,1) -> 95 | R33: =L33+P33 -> 685715
A34: 12 | C34: TOTAL RATE EH EXCLUDING RIDERS | F34: =F27 -> 502 | H34: =H33 -> 9803357 | L34: =L27+L30+L33 -> 701004 | N34: =ROUND((L34/L$45)*100,1) -> 97.1 | R34: =R33+R30+R27 -> 701004
A36: 13 | C36: RIDERS:
A37: 14 | C37: =DSMR_Name -> DEMAND SIDE MANAGEMENT RIDER (DSMR) | J37: =PRO_DSM_DIST -> 0.002576 | L37: =ROUND($H$34*J37,0) -> 25253 | N37: =ROUND((L37/L$45)*100,1) -> 3.5 | R37: =L37+P37 -> 25253
A38: 15 | C38: =ESM_Name -> ENVIRONMENTAL SURCHARGE MECHANISM RIDER (ESM) | J38: =PRO_ESM -> 0 | L38: =ROUND(R34*J38,0) -> 0 | N38: =ROUND((L38/L$45)*100,1) -> 0 | R38: 0
A39: 16 | C39: =DCI_Name -> DISTRIBUTION CAPITAL INVESTMENT RIDER (DCI) | J39: =PRO_DCI_EH -> 0 | L39: =ROUND($H$33*J39,0) -> 0 | N39: 0 | R39: 0
A40: 17 | C40: =FAC_Name -> FUEL ADJUSTMENT CLAUSE (FAC) | J40: =PRO_FAC -> 0.001028 | N40: =ROUND((L40/L$45)*100,1) -> 0 | P40: =ROUND(H34*PRO_FAC,0) -> 10078 | R40: 10078
A41: 18 | C41: =FTR_Name -> FERC TRANSMISSION COST RECOVERY RECONCILIATION (FTR) | J41: =PRO_FTR_EH -> 0 | L41: =ROUND($H$33*J41,0) -> 0 | N41: =ROUND((L41/L$45)*100,1) -> 0 | R41: 0
A42: 19 | C42: =PSM_Name -> PROFIT SHARING MECHANISM (PSM) | J42: =PRO_PSM -> -0.000456 | L42: =ROUND(H34*PRO_PSM,0) -> -4470 | N42: =ROUND((L42/L$45)*100,1) -> -0.6 | R42: -4470
A43: 20 | C43: TOTAL RIDERS | L43: =SUM(L37:L42) -> 20783 | N43: =ROUND((L43/L$45)*100,1) -> 2.9 | P43: =SUM(P37:P42) -> 10078 | R43: =SUM(R37:R42) -> 30861
A45: 21 | C45: TOTAL RATE EH INCLUDING RIDERS | F45: =F34 -> 502 | H45: =H34 -> 9803357 | L45: =L34+L43 -> 721787 | N45: 100 | P45: =P43+P34 -> 10078 | R45: =R43+R34 -> 731865
C47: (1) BILLS THAT TERMINATE IN RESPECTIVE RATE STEPS.
C48: ="(2) REFLECTS FUEL COMPONENT OF "&TEXT(PRO_FAC,"$0.000000;($0.000000)")&" PER KWH." -> (2) REFLECTS FUEL COMPONENT OF $0.001028 PER KWH.
C49: ="(3) REFLECTS FUEL COST RECOVERY INCLUDED IN BASE RATES OF "&TEXT(PRO_BASE_FUEL,"$0.000000;($0.000000)")&" PER KWH." -> (3) REFLECTS FUEL COST RECOVERY INCLUDED IN BASE RATES OF $0.023837 PER KWH.
T51: =NAME -> DUKE ENERGY KENTUCKY, INC.
T52: =CASE_NO -> CASE NO. 2017-00321
T53: =TITLE -> ANNUALIZED BASE YEAR REVENUES AT PROPOSED VS. MOST CURRENT RATES
T54: =DATE -> FOR THE TWELVE MONTHS ENDED November 30, 2017
T55: =SERVICE -> (ELECTRIC SERVICE)
T56: =DATA_PERIOD -> DATA: __X__ BASE PERIOD ____FORECASTED PERIOD | AO56: SCHEDULE M-2.2
T57: =TYPE -> TYPE OF FILING: _X_ ORIGINAL ___UPDATED ___ REVISED | AO57: =R7 -> PAGE 6 OF 22
T58: WORK PAPER REFERENCE NO(S).: | AO58: WITNESS:
T59: =TIME -> 6 Months Actual and 6 Months Projected | AO59: =WIT -> B. L. SAILERS
T60: =INPUT!B5 -> 6 Months Actual Ending May 31, 2017
T61: CURRENT ANNUALIZED
AE63: CURRENT | AG63: % OF REV TO | AI63: REVENUE | AK63: % INCR IN | AO63: CURRENT | AQ63: TOTAL
AC64: MOST | AE64: REVENUE LESS | AG64: TOTAL LESS | AI64: INCR LESS | AK64: REV LESS | AO64: TOTAL | AQ64: REVENUE
T65: LINE | V65: RATE | W65: CLASS / | Y65: CUSTOMER | AC65: CURRENT | AE65: FUEL COST | AG65: FUEL COST | AI65: FUEL COST REV | AK65: FUEL COST REV | AM65: FUEL COST | AO65: REVENUE | AQ65: % INCREASE
T66: NO. | V66: CODE | W66: DESCRIPTION | Y66: BILLS(1) | AA66: SALES | AC66: RATES | AE66: REVENUE | AG66: REVENUE | AI66: (F - K) | AK66: (M / K) | AM66: REVENUE (2) | AO66: (K + H) | AQ66: (M / K1)
V67: (A) | W67: (B) | Y67: (C) | AA67: (D) | AC67: (J) | AE67: (K) | AG67: (L) | AI67: (M) | AK67: (N) | AM67: (H) | AO67: (K1) | AQ67: (O)
AA69: (KW/KWH) | AC69: ($/KWH)/ | AE69: ($) | AG69: (%) | AI69: ($) | AK69: (%) | AM69: ($) | AO69: ($) | AQ69: (%)
T70: 1 | V70: EH | W70: OPTIONAL RATE FOR | AC70: ($/KW)
T71: 2 | W71: ELEC. SPACE HEATING
T73: 3 | V73: CUSTOMER CHARGE:
T74: 4 | V74: SINGLE PHASE | Y74: =F24 -> 112 | AC74: =INPUT!C85 -> 7.5 | AE74: =ROUND(Y74*AC74,0) -> 840 | AG74: =ROUND((AE74/AE$95)*100,1) -> 0.1 | AI74: =L24-AE74 -> 1080 | AK74: =IF(AE74=0,"0.0 ",ROUND((AI74/AE74)*100,1)) -> 128.6 | AO74: =AE74+AM74 -> 840 | AQ74: =IF(AO74=0,"0.0 ",ROUND((AI74/AO74)*100,1)) -> 128.6
T75: 5 | V75: THREE PHASE | Y75: =F25 -> 390 | AC75: =INPUT!C86 -> 15 | AE75: =ROUND(Y75*AC75,0) -> 5850 | AG75: =ROUND((AE75/AE$95)*100,1)+0.1 -> 1 | AI75: =L25-AE75 -> 7519 | AK75: =IF(AE75=0,"0.0 ",ROUND((AI75/AE75)*100,1)) -> 128.5 | AO75: =AE75+AM75 -> 5850 | AQ75: =IF(AO75=0,"0.0 ",ROUND((AI75/AO75)*100,1)) -> 128.5
T76: 6 | V76: PRIMARY VOLTAGE | Y76: =F26 -> 0 | AC76: =INPUT!C87 -> 100 | AE76: =ROUND(Y76*AC76,0) -> 0 | AG76: =ROUND((AE76/AE$95)*100,1) -> 0 | AI76: =L26-AE76 -> 0 | AK76: =IF(AE76=0,"0.0 ",ROUND((AI76/AE76)*100,1)) -> 0.0 | AO76: =AE76+AM76 -> 0 | AQ76: =IF(AO76=0,"0.0 ",ROUND((AI76/AO76)*100,1)) -> 0.0
T77: 7 | V77: TOTAL CUSTOMER CHARGE | Y77: =F27 -> 502 | AE77: =SUM(AE74:AE76) -> 6690 | AG77: =ROUND((AE77/AE$95)*100,1) -> 1.1 | AI77: =SUM(AI74:AI76) -> 8599 | AK77: =IF(AE77=0,"0.0 ",ROUND((AI77/AE77)*100,1)) -> 128.5 | AO77: =SUM(AO74:AO76) -> 6690 | AQ77: =IF(AO77=0,"0.0 ",ROUND((AI77/AO77)*100,1)) -> 128.5
T79: 8 | V79: DEMAND CHARGE:
T80: 9 | V80: ALL KW | AA80: =H30 -> 38467.44 | AC80: =INPUT!C91 -> 0 | AE80: =ROUND(Y80*AC80,0) -> 0 | AG80: =ROUND((AE80/AE$95)*100,1) -> 0 | AI80: =L30-AE80 -> 0 | AK80: =IF(AE80=0,"0.0 ",ROUND((AI80/AE80)*100,1)) -> 0.0 | AO80: =AE80+AM80 -> 0 | AQ80: =IF(AO80=0,"0.0 ",ROUND((AI80/AO80)*100,1)) -> 0.0
T82: 10 | V82: ENERGY CHARGE (3):
T83: 11 | V83: ALL CONSUMPTION | AA83: =H33 -> 9803357 | AC83: =INPUT!C89 -> 0.061524 | AE83: =ROUND((AA83*AC83),0) -> 603142 | AG83: =ROUND((AE83/AE$95)*100,1) -> 95.6 | AI83: =L33-AE83 -> 82573 | AK83: =IF(AE83=0,"0.0 ",ROUND((AI83/AE83)*100,1)) -> 13.7 | AO83: =AE83+AM83 -> 603142 | AQ83: =IF(AO83=0,"0.0 ",ROUND((AI83/AO83)*100,1)) -> 13.7
T84: 12 | V84: TOTAL RATE EH EXCLUDING RIDERS | Y84: =Y77 -> 502 | AA84: =AA83 -> 9803357 | AE84: =AE77+AE80+AE83 -> 609832 | AG84: =ROUND((AE84/AE$95)*100,1) -> 96.7 | AI84: =AI77+AI80+AI83 -> 91172 | AK84: =IF(AE84=0,"0.0 ",ROUND((AI84/AE84)*100,1)) -> 15 | AO84: =AO77+AO80+AO83 -> 609832 | AQ84: =IF(AO84=0,"0.0 ",ROUND((AI84/AO84)*100,1)) -> 15
T86: =A36 -> 13 | V86: RIDERS:
T87: =A37 -> 14 | V87: =C37 -> DEMAND SIDE MANAGEMENT RIDER (DSMR) | AC87: =DSM_DIST -> 0.002576 | AE87: =ROUND($AA$84*AC87,0) -> 25253 | AG87: =ROUND((AE87/AE$95)*100,1) -> 4 | AI87: =L37-AE87 -> 0 | AK87: =IF(AE87=0,"0.0 ",ROUND((AI87/AE87)*100,1)) -> 0 | AO87: =AE87+AM87 -> 25253 | AQ87: =IF(AO87=0,"0.0 ",ROUND((AI87/AO87)*100,1)) -> 0
T88: 15 | V88: =C38 -> ENVIRONMENTAL SURCHARGE MECHANISM RIDER (ESM) | AC88: =CUR_ESM -> 0 | AE88: =ROUND(AO84*AC88,0) -> 0 | AG88: =ROUND((AE88/AE$95)*100,1) -> 0 | AI88: =L38-AE88 -> 0 | AK88: 0.0 | AO88: =AE88+AM88 -> 0 | AQ88: =IF(AO88=0,"0.0 ",ROUND((AI88/AO88)*100,1)) -> 0.0
T89: 16 | V89: DISTRIBUTION CAPITAL INVESTMENT RIDER (DCI) | AC89: =CUR_DCI_EH -> 0 | AE89: =ROUND($AA$83*AC89,0) -> 0 | AG89: 0 | AI89: 0 | AK89: 0.0 | AO89: 0 | AQ89: 0.0
T90: 17 | V90: FUEL ADJUSTMENT CLAUSE (FAC) | AC90: =CUR_FAC -> 0.001028 | AM90: =ROUND(AA84*CUR_FAC,0) -> 10078 | AO90: 10078 | AQ90: =IF(AO90=0,"0.0 ",ROUND(((R40-AO90)/AO90)*100,1)) -> 0
T91: 18 | V91: FERC TRANSMISSION COST RECOVERY RECONCILIATION (FTR) | AC91: =CUR_FTR_EH -> 0 | AE91: =ROUND($AA$83*AC91,0) -> 0 | AG91: 0 | AI91: =L41-AE91 -> 0 | AK91: 0.0 | AO91: =AE91+AM91 -> 0 | AQ91: =IF(AO91=0,"0.0 ",ROUND((AI91/AO91)*100,1)) -> 0.0
T92: 19 | V92: PROFIT SHARING MECHANISM (PSM) | AC92: =RS_PSM -> -0.000456 | AE92: =ROUND(AA84*RS_PSM,0) -> -4470 | AG92: =ROUND((AE92/AE$95)*100,1) -> -0.7 | AI92: =L42-AE92 -> 0 | AK92: 0 | AO92: -4470 | AQ92: 0
T93: 20 | V93: TOTAL RIDERS | AE93: =SUM(AE87:AE92) -> 20783 | AG93: =ROUND((AE93/AE$95)*100,1) -> 3.3 | AI93: =SUM(AI87:AI92) -> 0 | AK93: 0 | AM93: =SUM(AM87:AM92) -> 10078 | AO93: =SUM(AO87:AO92) -> 30861 | AQ93: 0
T95: =A45 -> 21 | V95: TOTAL RATE EH INCLUDING RIDERS | Y95: =Y84 -> 502 | AA95: =AA84 -> 9803357 | AE95: =AE93+AE84 -> 630615 | AG95: 100 | AI95: =AI93+AI84 -> 91172 | AK95: =IF(AE95=0,"0.0 ",ROUND((AI95/AE95)*100,1)) -> 14.5 | AM95: =AM93+AM84 -> 10078 | AO95: =AO93+AO84 -> 640693 | AQ95: =IF(AO95=0,"0.0 ",ROUND((AI95/AO95)*100,1)) -> 14.2
V97: (1) BILLS THAT TERMINATE IN RESPECTIVE RATE STEPS.
V98: ="(2) REFLECTS FUEL COMPONENT OF "&TEXT(CUR_FAC,"$0.000000;($0.000000)")&" PER KWH." -> (2) REFLECTS FUEL COMPONENT OF $0.001028 PER KWH.
V99: ="(3) REFLECTS FUEL COST RECOVERY INCLUDED IN BASE RATES OF "&TEXT(CUR_BASE_FUEL,"$0.000000;($0.000000)")&" PER KWH." -> (3) REFLECTS FUEL COST RECOVERY INCLUDED IN BASE RATES OF $0.023837 PER KWH.

Sheet Rate SP GSFL
A1: =NAME -> DUKE ENERGY KENTUCKY, INC.
A2: =CASE_NO -> CASE NO. 2017-00321
A3: =TITLE -> ANNUALIZED BASE YEAR REVENUES AT PROPOSED VS. MOST CURRENT RATES
A4: =DATE -> FOR THE TWELVE MONTHS ENDED November 30, 2017
A5: =SERVICE -> (ELECTRIC SERVICE)
A6: =DATA_PERIOD -> DATA: __X__ BASE PERIOD ____FORECASTED PERIOD | R6: SCHEDULE M-2.3
A7: =TYPE -> TYPE OF FILING: _X_ ORIGINAL ___UPDATED ___ REVISED | R7: PAGE 7 OF 22
A8: WORK PAPER REFERENCE NO(S).: | R8: WITNESS:
A9: =TIME -> 6 Months Actual and 6 Months Projected | R9: =WIT -> B. L. SAILERS
A10: =INPUT!B5 -> 6 Months Actual Ending May 31, 2017
A11: PROPOSED ANNUALIZED
L13: PROPOSED | N13: % OF REV TO | R13: PROPOSED
L14: REVENUE LESS | N14: TOTAL LESS | R14: TOTAL
A15: LINE | C15: RATE | D15: CLASS / | F15: CUSTOMER | J15: PROPOSED | L15: FUEL COST | N15: FUEL COST | P15: FUEL COST | R15: REVENUE
A16: NO. | C16: CODE | D16: DESCRIPTION | F16: BILLS(1) | H16: SALES | J16: RATES | L16: REVENUE | N16: REVENUE | P16: REVENUE (2) | R16: (F + H)
C17: (A) | D17: (B) | F17: (C) | H17: (D) | J17: (E) | L17: (F) | N17: (G) | P17: (H) | R17: (I)
H19: (KWH) | J19: ($/KWH) | L19: ($) | N19: (%) | P19: ($) | R19: ($)
A21: 1 | C21: SP | D21: SEASONAL SPORTS SERVICE
A23: 2 | C23: MINIMUM BILLS (4) | F23: 0 | L23: 0 | N23: =ROUND((L23/L$40)*100,1) -> 0 | R23: =L23+P23 -> 0
A25: 3 | C25: CUSTOMER CHARGE | F25: 184 | J25: =INPUT!D95 -> 17.14 | L25: =ROUND(F25*J25,0) -> 3154 | N25: =ROUND((L25/L$40)*100,1) -> 9.7 | R25: =L25+P25 -> 3154
A27: 4 | C27: ENERGY CHARGE (3):
A28: 5 | C28: ALL CONSUMPTION | H28: 269849 | J28: =INPUT!D97 -> 0.106568 | L28: =ROUND((H28*(J28)),0) -> 28757 | N28: =ROUND((L28/L$40)*100,1) -> 88.5 | R28: =L28+P28 -> 28757
A29: 6 | C29: TOTAL RATE SP EXCLUDING RIDERS | F29: =F25 -> 184 | H29: =H28 -> 269849 | L29: =L23+L25+L28 -> 31911 | N29: =ROUND((L29/L$40)*100,1) -> 98.2 | R29: =R23+R25+R28 -> 31911
A31: 7 | C31: RIDERS:
A32: 8 | C32: =DSMR_Name -> DEMAND SIDE MANAGEMENT RIDER (DSMR) | J32: =PRO_DSM_DIST -> 0.002576 | L32: =ROUND($H$29*J32,0) -> 695 | N32: =ROUND((L32/L$40)*100,1)+0.1 -> 2.2 | R32: =L32+P32 -> 695
A33: 9 | C33: =ESM_Name -> ENVIRONMENTAL SURCHARGE MECHANISM RIDER (ESM) | J33: =PRO_ESM -> 0 | L33: =ROUND(R29*J33,0) -> 0 | N33: =ROUND((L33/L$40)*100,1) -> 0 | R33: =L33+P33 -> 0
A34: 10 | C34: =DCI_Name -> DISTRIBUTION CAPITAL INVESTMENT RIDER (DCI) | J34: =PRO_DCI_SP -> 0 | L34: =ROUND($H$29*J34,0) -> 0 | N34: 0 | R34: 0
A35: 11 | C35: =FAC_Name -> FUEL ADJUSTMENT CLAUSE (FAC) | J35: =PRO_FAC -> 0.001028 | P35: =ROUND(H29*PRO_FAC,0) -> 277 | R35: 277
A36: 12 | C36: =FTR_Name -> FERC TRANSMISSION COST RECOVERY RECONCILIATION (FTR) | J36: =PRO_FTR_SP -> 0 | L36: =ROUND($H$29*J36,0) -> 0 | N36: =ROUND((L36/L$40)*100,1) -> 0 | R36: =L36+P36 -> 0
A37: 13 | C37: =PSM_Name -> PROFIT SHARING MECHANISM (PSM) | J37: =PRO_PSM -> -0.000456 | L37: =ROUND(H29*PRO_PSM,0) -> -123 | N37: =ROUND((L37/L$40)*100,1) -> -0.4 | R37: -123
A38: 14 | C38: TOTAL RIDERS | L38: =SUM(L32:L37) -> 572 | N38: =ROUND((L38/L$40)*100,1) -> 1.8 | P38: =SUM(P32:P37) -> 277 | R38: =SUM(R32:R37) -> 849
A40: 15 | C40: TOTAL RATE SP INCLUDING RIDERS | F40: =F23+F25 -> 184 | H40: =H28 -> 269849 | L40: =L29+L38 -> 32483 | N40: 100 | P40: =P38+P29 -> 277 | R40: =R29+R38 -> 32760
A43: 16 | C43: GS-FL | D43: SMALL FIXED LOADS
A45: 17 | C45: MINIMUM BILLS | F45: 540 | J45: =INPUT!D103 -> 3.14 | L45: =ROUND(F45*J45,0) -> 1696 | N45: =ROUND((L45/L$61)*100,1) -> 0.3 | R45: =L45+P45 -> 1696
A47: 18 | C47: BASE RATE (3):
A48: 19 | C48: LOAD RANGE 540 TO 720 HRS | H48: 12111 | J48: =INPUT!D105 -> 0.092698 | L48: =ROUND((H48*J48),0) -> 1123 | N48: =ROUND((L48/L$61)*100,1) -> 0.2 | R48: =L48+P48 -> 1123
A49: 20 | C49: LOAD RANGE LESS THAN 540 HRS | H49: 6182832 | J49: =INPUT!D106 -> 0.106767 | L49: =ROUND((H49*J49),0) -> 660122 | N49: =ROUND((L49/L$61)*100,1) -> 97.6 | R49: =L49+P49 -> 660122
A50: 21 | C50: TOTAL RATE GS-FL EXCLUDING RIDERS | F50: =SUM(F45:F49) -> 540 | H50: =SUM(H48:H49) -> 6194943 | L50: =SUM(L45:L49) -> 662941 | N50: =ROUND((L50/L$61)*100,1) -> 98.1 | R50: =SUM(R45:R49) -> 662941
A52: 22 | C52: RIDERS:
A53: 23 | C53: =DSMR_Name -> DEMAND SIDE MANAGEMENT RIDER (DSMR) | J53: =PRO_DSM_DIST -> 0.002576 | L53: =ROUND($H$50*J53,0) -> 15958 | N53: =ROUND((L53/L$61)*100,1)-0.1 -> 2.3 | R53: =L53+P53 -> 15958
A54: 24 | C54: =ESM_Name -> ENVIRONMENTAL SURCHARGE MECHANISM RIDER (ESM) | J54: =PRO_ESM -> 0 | L54: =ROUND(R50*J54,0) -> 0 | N54: =ROUND((L54/L$61)*100,1) -> 0 | R54: =L54+P54 -> 0
A55: 25 | C55: =DCI_Name -> DISTRIBUTION CAPITAL INVESTMENT RIDER (DCI) | J55: =PRO_DCI_GSFL -> 0 | L55: =ROUND($H$50*J55,0) -> 0 | N55: 0 | R55: 0
A56: 26 | C56: =FAC_Name -> FUEL ADJUSTMENT CLAUSE (FAC) | J56: =PRO_FAC -> 0.001028 | P56: =ROUND(H50*PRO_FAC,0) -> 6368 | R56: 6368
A57: 27 | C57: =FTR_Name -> FERC TRANSMISSION COST RECOVERY RECONCILIATION (FTR) | J57: =PRO_FTR_GSFL -> 0 | L57: =ROUND($H$50*J57,0) -> 0 | N57: =ROUND((L57/L$61)*100,1) -> 0 | R57: =L57+P57 -> 0
A58: 28 | C58: =PSM_Name -> PROFIT SHARING MECHANISM (PSM) | J58: =PRO_PSM -> -0.000456 | L58: =ROUND($H$50*J58,0) -> -2825 | N58: =ROUND((L58/L$61)*100,1) -> -0.4 | R58: -2825
A59: 29 | C59: TOTAL RIDERS | L59: =SUM(L53:L58) -> 13133 | N59: =ROUND((L59/L$61)*100,1) -> 1.9 | P59: =SUM(P53:P58) -> 6368 | R59: =SUM(R53:R58) -> 19501
A61: 30 | C61: TOTAL RATE GS-FL INCLUDING RIDERS | F61: =SUM(F45:F49) -> 540 | H61: =SUM(H45:H49) -> 6194943 | L61: =L50+L59 -> 676074 | N61: 100 | P61: =P50+P59 -> 6368 | R61: =R50+R59 -> 682442
C63: (1) BILLS THAT TERMINATE IN RESPECTIVE RATE STEPS.
C64: ="(2) REFLECTS FUEL COMPONENT OF "&TEXT(PRO_FAC,"$0.000000;($0.000000)")&" PER KWH." -> (2) REFLECTS FUEL COMPONENT OF $0.001028 PER KWH.
C65: ="(3) REFLECTS FUEL COST RECOVERY INCLUDED IN BASE RATES OF "&TEXT(PRO_BASE_FUEL,"$0.000000;($0.000000)")&" PER KWH." -> (3) REFLECTS FUEL COST RECOVERY INCLUDED IN BASE RATES OF $0.023837 PER KWH.
C66: (4) 1.5% OF INSTALLED TRANSFORMER AMD METERING COSTS BUT NOT LESS THAN CUSTOMER CHARGE WHETHER SERVICE IS ON OR DISCONNECTED.
T69: =NAME -> DUKE ENERGY KENTUCKY, INC.
T70: =CASE_NO -> CASE NO. 2017-00321
T71: =TITLE -> ANNUALIZED BASE YEAR REVENUES AT PROPOSED VS. MOST CURRENT RATES
T72: =DATE -> FOR THE TWELVE MONTHS ENDED November 30, 2017
T73: =SERVICE -> (ELECTRIC SERVICE)
T74: =DATA_PERIOD -> DATA: __X__ BASE PERIOD ____FORECASTED PERIOD | AO74: SCHEDULE M-2.2
T75: =TYPE -> TYPE OF FILING: _X_ ORIGINAL ___UPDATED ___ REVISED | AO75: =R7 -> PAGE 7 OF 22
T76: WORK PAPER REFERENCE NO(S).: | AO76: WITNESS:
T77: =TIME -> 6 Months Actual and 6 Months Projected | AO77: =WIT -> B. L. SAILERS
T78: =INPUT!B5 -> 6 Months Actual Ending May 31, 2017
T79: CURRENT ANNUALIZED
AE81: CURRENT | AG81: % OF REV TO | AI81: REVENUE | AK81: % INCR IN | AO81: CURRENT | AQ81: TOTAL
AC82: MOST | AE82: REVENUE LESS | AG82: TOTAL LESS | AI82: INCR LESS | AK82: REV LESS | AO82: TOTAL | AQ82: REVENUE
T83: LINE | V83: RATE | W83: CLASS / | Y83: CUSTOMER | AC83: CURRENT | AE83: FUEL COST | AG83: FUEL COST | AI83: FUEL COST REV | AK83: FUEL COST REV | AM83: FUEL COST | AO83: REVENUE | AQ83: % INCREASE
T84: NO. | V84: CODE | W84: DESCRIPTION | Y84: BILLS(1) | AA84: SALES | AC84: RATES | AE84: REVENUE | AG84: REVENUE | AI84: (F - K) | AK84: (M / K) | AM84: REVENUE (2) | AO84: (K + H) | AQ84: (M / K1)
V85: (A) | W85: (B) | Y85: (C) | AA85: (D) | AC85: (J) | AE85: (K) | AG85: (L) | AI85: (M) | AK85: (N) | AM85: (H) | AO85: (K1) | AQ85: (O)
AA87: (KWH) | AC87: ($/KWH) | AE87: ($) | AG87: (%) | AI87: ($) | AK87: (%) | AM87: ($) | AO87: ($) | AQ87: (%)
T88: 1 | V88: SP | W88: SEASONAL SPORTS SERVICE
T90: 2 | V90: MINIMUM BILLS (4) | Y90: =F23 -> 0 | AE90: =L23 -> 0 | AG90: =ROUND((AE90/AE$107)*100,1) -> 0 | AI90: =L23-AE90 -> 0 | AK90: 0 | AO90: =AE90+AM90 -> 0 | AQ90: =IF(AO90=0,"0.0 ",ROUND((AI90/AO90)*100,1)) -> 0.0
T92: 3 | V92: CUSTOMER CHARGE | Y92: =F25 -> 184 | AC92: =INPUT!C95 -> 7.5 | AE92: =ROUND(Y92*AC92,0) -> 1380 | AG92: =ROUND((AE92/AE$107)*100,1) -> 4.7 | AI92: =L25-AE92 -> 1774 | AK92: =ROUND((AI92/AE92)*100,1) -> 128.6 | AO92: =AE92+AM92 -> 1380 | AQ92: =IF(AO92=0,"0.0 ",ROUND((AI92/AO92)*100,1)) -> 128.6
T94: 4 | V94: ENERGY CHARGE (3):
T95: 5 | V95: ALL CONSUMPTION | AA95: =H28 -> 269849 | AC95: =INPUT!C97 -> 0.100598 | AE95: =ROUND((AA95*AC95),0) -> 27146 | AG95: =ROUND((AE95/AE$107)*100,1) -> 93.3 | AI95: =L28-AE95 -> 1611 | AK95: =ROUND((AI95/AE95)*100,1) -> 5.9 | AO95: =AE95+AM95 -> 27146 | AQ95: =IF(AO95=0,"0.0 ",ROUND((AI95/AO95)*100,1)) -> 5.9
T96: 6 | V96: TOTAL RATE SP EXCLUDING RIDERS | Y96: =Y92 -> 184 | AA96: =AA95 -> 269849 | AE96: =SUM(AE90:AE95) -> 28526 | AG96: =ROUND((AE96/AE$107)*100,1) -> 98 | AI96: =SUM(AI90:AI95) -> 3385 | AK96: =ROUND((AI96/AE96)*100,1) -> 11.9 | AO96: =SUM(AO90:AO95) -> 28526 | AQ96: =IF(AO96=0,"0.0 ",ROUND((AI96/AO96)*100,1)) -> 11.9
T98: 7 | V98: RIDERS:
T99: =A32 -> 8 | V99: =C32 -> DEMAND SIDE MANAGEMENT RIDER (DSMR) | AC99: =DSM_DIST -> 0.002576 | AE99: =ROUND(AA96*AC99,0) -> 695 | AG99: =ROUND((AE99/AE$107)*100,1) -> 2.4 | AI99: =L32-AE99 -> 0 | AK99: =ROUND((AI99/AE99)*100,1) -> 0 | AO99: =AE99+AM99 -> 695 | AQ99: =IF(AO99=0,"0.0 ",ROUND((AI99/AO99)*100,1)) -> 0
T100: =A33 -> 9 | V100: =C33 -> ENVIRONMENTAL SURCHARGE MECHANISM RIDER (ESM) | AC100: =CUR_ESM -> 0 | AE100: =ROUND(AO96*AC100,0) -> 0 | AG100: =ROUND((AE100/AE$107)*100,1) -> 0 | AI100: =L33-AE100 -> 0 | AK100: =IF(AE100=0,0,ROUND((AI100/AE100)*100,1)) -> 0 | AO100: =AE100+AM100 -> 0 | AQ100: =IF(AO100=0,"0.0 ",ROUND((AI100/AO100)*100,1)) -> 0.0
T101: 10 | V101: DISTRIBUTION CAPITAL INVESTMENT RIDER (DCI) | AC101: =CUR_DCI_SP -> 0 | AE101: =ROUND(AA96*AC101,0) -> 0 | AG101: 0 | AI101: 0 | AK101: =IF(AE101=0,0,ROUND((AI101/AE101)*100,1)) -> 0 | AO101: 0 | AQ101: 0.0
T102: 11 | V102: FUEL ADJUSTMENT CLAUSE (FAC) | AC102: =CUR_FAC -> 0.001028 | AM102: =ROUND(AA96*CUR_FAC,0) -> 277 | AO102: 277 | AQ102: =IF(AO102=0,0,ROUND(((R35-AO102)/AO102)*100,1)) -> 0
T103: 12 | V103: FERC TRANSMISSION COST RECOVERY RECONCILIATION (FTR) | AC103: =CUR_FTR_SP -> 0 | AE103: =ROUND(AA96*AC103,0) -> 0 | AG103: =ROUND((AE103/AE$107)*100,1) -> 0 | AI103: =L36-AE103 -> 0 | AK103: =IF(AE103=0,0,ROUND((AI103/AE103)*100,1)) -> 0 | AO103: =AE103+AM103 -> 0 | AQ103: =IF(AO103=0,"0.0 ",ROUND((AI103/AO103)*100,1)) -> 0.0
T104: 13 | V104: PROFIT SHARING MECHANISM (PSM) | AC104: =RS_PSM -> -0.000456 | AE104: =ROUND(AA96*AC104,0) -> -123 | AG104: =ROUND((AE104/AE$107)*100,1) -> -0.4 | AI104: =L37-AE104 -> 0 | AK104: 0 | AO104: -123 | AQ104: 0
T105: 14 | V105: TOTAL RIDERS | AE105: =SUM(AE99:AE104) -> 572 | AG105: =ROUND((AE105/AE$107)*100,1) -> 2 | AI105: =SUM(AI99:AI104) -> 0 | AK105: =ROUND((AI105/AE105)*100,1) -> 0 | AM105: =SUM(AM99:AM104) -> 277 | AO105: =SUM(AO99:AO104) -> 849 | AQ105: 0
T107: =A40 -> 15 | V107: TOTAL RATE SP INCLUDING RIDERS | Y107: =F40 -> 184 | AA107: =H40 -> 269849 | AE107: =AE96+AE105 -> 29098 | AG107: 100 | AI107: =AI96+AI105 -> 3385 | AK107: =ROUND((AI107/AE107)*100,1) -> 11.6 | AM107: =AM105+AM96 -> 277 | AO107: =AO105+AO96 -> 29375 | AQ107: =IF(AO107=0,"0.0 ",ROUND((AI107/AO107)*100,1)) -> 11.5
T110: =A43 -> 16 | V110: GS-FL | W110: SMALL FIXED LOADS
T112: =A45 -> 17 | V112: MINIMUM BILLS | Y112: =F45 -> 540 | AC112: =INPUT!C103 -> 3 | AE112: =ROUND(Y112*AC112,0) -> 1620 | AG112: =ROUND((AE112/AE$128)*100,1) -> 0.3 | AI112: =L45-AE112 -> 76 | AK112: =IF(AE112=0,"0.0 ",ROUND((AI112/AE112)*100,1)) -> 4.7 | AO112: =AE112+AM112 -> 1620 | AQ112: =IF(AO112=0,"0.0 ",ROUND((AI112/AO112)*100,1)) -> 4.7
T114: =A47 -> 18 | V114: BASE RATE (3):
T115: 19 | V115: LOAD RANGE 540 TO 720 HRS | Y115: =F48 -> 0 | AA115: =H48 -> 12111 | AC115: =INPUT!C105 -> 0.080723 | AE115: =ROUND((AA115*AC115),0) -> 978 | AG115: =ROUND((AE115/AE$128)*100,1) -> 0.2 | AI115: =L48-AE115 -> 145 | AK115: =IF(AE115=0,"0.0 ",ROUND((AI115/AE115)*100,1)) -> 14.8 | AO115: =AE115+AM115 -> 978 | AQ115: =IF(AO115=0,"0.0 ",ROUND((AI115/AO115)*100,1)) -> 14.8
T116: 20 | V116: LOAD RANGE LESS THAN 540 HRS | Y116: =F49 -> 0 | AA116: =H49 -> 6182832 | AC116: =INPUT!C106 -> 0.092947 | AE116: =ROUND((AA116*AC116),0) -> 574676 | AG116: =ROUND((AE116/AE$128)*100,1)-0.1 -> 97.2 | AI116: =L49-AE116 -> 85446 | AK116: =IF(AE116=0,"0.0 ",ROUND((AI116/AE116)*100,1)) -> 14.9 | AO116: =AE116+AM116 -> 574676 | AQ116: =IF(AO116=0,"0.0 ",ROUND((AI116/AO116)*100,1)) -> 14.9
T117: 21 | V117: TOTAL RATE GS-FL EXCLUDING RIDERS | Y117: =SUM(Y112:Y116) -> 540 | AA117: =SUM(AA112:AA116) -> 6194943 | AE117: =SUM(AE112:AE116) -> 577274 | AG117: =ROUND((AE117/AE$128)*100,1) -> 97.8 | AI117: =SUM(AI112:AI116) -> 85667 | AK117: =IF(AE117=0,"0.0 ",ROUND((AI117/AE117)*100,1)) -> 14.8 | AO117: =SUM(AO112:AO116) -> 577274 | AQ117: =IF(AO117=0,"0.0 ",ROUND((AI117/AO117)*100,1)) -> 14.8
T119: =A52 -> 22 | V119: RIDERS:
T120: 23 | V120: =C53 -> DEMAND SIDE MANAGEMENT RIDER (DSMR) | AC120: =DSM_DIST -> 0.002576 | AE120: =ROUND($AA$117*AC120,0) -> 15958 | AG120: =ROUND((AE120/AE$128)*100,1) -> 2.7 | AI120: =L53-AE120 -> 0 | AK120: =IF(AE120=0,"0.0 ",ROUND((AI120/AE120)*100,1)) -> 0 | AO120: =AE120+AM120 -> 15958 | AQ120: =IF(AO120=0,"0.0 ",ROUND((AI120/AO120)*100,1)) -> 0
T121: 24 | V121: =C54 -> ENVIRONMENTAL SURCHARGE MECHANISM RIDER (ESM) | AC121: =CUR_ESM -> 0 | AE121: =ROUND(AO117*AC121,0) -> 0 | AG121: =ROUND((AE121/AE$128)*100,1) -> 0 | AI121: =L54-AE121 -> 0 | AK121: =IF(AE121=0,"0.0 ",ROUND((AI121/AE121)*100,1)) -> 0.0 | AO121: =AE121+AM121 -> 0 | AQ121: =IF(AO121=0,"0.0 ",ROUND((AI121/AO121)*100,1)) -> 0.0
T122: 25 | V122: DISTRIBUTION CAPITAL INVESTMENT RIDER (DCI) | AC122: =CUR_DCI_GSFL -> 0 | AE122: =ROUND($AA$117*AC122,0) -> 0 | AG122: 0 | AI122: 0 | AK122: 0.0 | AO122: 0 | AQ122: 0.0
T123: 26 | V123: FUEL ADJUSTMENT CLAUSE (FAC) | AC123: =CUR_FAC -> 0.001028 | AM123: =ROUND(AA117*CUR_FAC,0) -> 6368 | AO123: 6368 | AQ123: =IF(AO123=0,0,ROUND(((R56-AO123)/AO123)*100,1)) -> 0
T124: 27 | V124: FERC TRANSMISSION COST RECOVERY RECONCILIATION (FTR) | AC124: =CUR_FTR_GSFL -> 0 | AE124: =ROUND($AA$117*AC124,0) -> 0 | AG124: =ROUND((AE124/AE$128)*100,1) -> 0 | AI124: =L57-AE124 -> 0 | AK124: =IF(AE124=0,"0.0 ",ROUND((AI124/AE124)*100,1)) -> 0.0 | AO124: =AE124+AM124 -> 0 | AQ124: =IF(AO124=0,"0.0 ",ROUND((AI124/AO124)*100,1)) -> 0.0
T125: 28 | V125: PROFIT SHARING MECHANISM (PSM) | AC125: =RS_PSM -> -0.000456 | AE125: =ROUND(AA117*RS_PSM,0) -> -2825 | AG125: =ROUND((AE125/AE$128)*100,1) -> -0.5 | AI125: =L58-AE125 -> 0 | AK125: 0 | AO125: -2825 | AQ125: 0
T126: 29 | V126: TOTAL RIDERS | AE126: =SUM(AE120:AE125) -> 13133 | AG126: =ROUND((AE126/AE$128)*100,1) -> 2.2 | AI126: =SUM(AI120:AI125) -> 0 | AK126: =IF(AE126=0,"0.0 ",ROUND((AI126/AE126)*100,1)) -> 0 | AM126: =SUM(AM120:AM125) -> 6368 | AO126: =SUM(AO120:AO125) -> 19501 | AQ126: 0
T128: =A61 -> 30 | V128: TOTAL RATE GS-FL INCLUDING RIDERS | Y128: =F61 -> 540 | AA128: =H61 -> 6194943 | AE128: =AE117+AE126 -> 590407 | AG128: 100 | AI128: =AI117+AI126 -> 85667 | AK128: =IF(AE128=0,"0.0 ",ROUND((AI128/AE128)*100,1)) -> 14.5 | AM128: =AM117+AM126 -> 6368 | AO128: =AO117+AO126 -> 596775 | AQ128: =IF(AO128=0,"0.0 ",ROUND((AI128/AO128)*100,1)) -> 14.4
V130: (1) BILLS THAT TERMINATE IN RESPECTIVE RATE STEPS.
V131: ="(2) REFLECTS FUEL COMPONENT OF "&TEXT(CUR_FAC,"$0.000000;($0.000000)")&" PER KWH." -> (2) REFLECTS FUEL COMPONENT OF $0.001028 PER KWH.
V132: ="(3) REFLECTS FUEL COST RECOVERY INCLUDED IN BASE RATES OF "&TEXT(CUR_BASE_FUEL,"$0.000000;($0.000000)")&" PER KWH." -> (3) REFLECTS FUEL COST RECOVERY INCLUDED IN BASE RATES OF $0.023837 PER KWH.
V133: (4) 1.5% OF INSTALLED TRANSFORMER AMD METERING COSTS BUT NOT LESS THAN CUSTOMER CHARGE WHETHER SERVICE IS ON OR DISCONNECTED.

Sheet Rate DP
A1: =NAME -> DUKE ENERGY KENTUCKY, INC.
A2: =CASE_NO -> CASE NO. 2017-00321
A3: =TITLE -> ANNUALIZED BASE YEAR REVENUES AT PROPOSED VS. MOST CURRENT RATES
A4: =DATE -> FOR THE TWELVE MONTHS ENDED November 30, 2017
A5: =SERVICE -> (ELECTRIC SERVICE)
A6: =DATA_PERIOD -> DATA: __X__ BASE PERIOD ____FORECASTED PERIOD | R6: SCHEDULE M-2.3
A7: =TYPE -> TYPE OF FILING: _X_ ORIGINAL ___UPDATED ___ REVISED | R7: PAGE 8 OF 22
A8: WORK PAPER REFERENCE NO(S).: | R8: WITNESS:
A9: =TIME -> 6 Months Actual and 6 Months Projected | R9: =WIT -> B. L. SAILERS
A10: =INPUT!B5 -> 6 Months Actual Ending May 31, 2017
A11: PROPOSED ANNUALIZED
L13: PROPOSED | N13: % OF REV TO | R13: PROPOSED
L14: REVENUE LESS | N14: TOTAL LESS | R14: TOTAL
A15: LINE | C15: RATE | D15: CLASS / | F15: CUSTOMER | J15: PROPOSED | L15: FUEL COST | N15: FUEL COST | P15: FUEL COST | R15: REVENUE
A16: NO. | C16: CODE | D16: DESCRIPTION | F16: BILLS(1) | H16: SALES | J16: RATES | L16: REVENUE | N16: REVENUE | P16: REVENUE (2) | R16: (F + H)
C17: (A) | D17: (B) | F17: (C) | H17: (D) | J17: (E) | L17: (F) | N17: (G) | P17: (H) | R17: (I)
H19: (KW/KWH) | J19: ($/KWH) | L19: ($) | N19: (%) | P19: ($) | R19: ($)
A20: 1 | C20: DP | D20: SERVICE AT PRIMARY | J20: ($/KW)
A21: 2 | D21: DISTRIBUTION VOLTAGE
A23: 3 | C23: CUSTOMER CHARGE:
A24: 4 | C24: LOAD MANAGEMENT RIDER | F24: 24 | J24: =INPUT!D64 -> 5 | L24: =ROUND(F24*J24,0) -> 120 | N24: =ROUND((L24/$L$48)*100,1) -> 0 | R24: =L24+P24 -> 120
A25: 5 | C25: PRIMARY VOLTAGE | F25: 120 | J25: =INPUT!D112 -> 118.78 | L25: =ROUND(F25*J25,0) -> 14254 | N25: =ROUND((L25/$L$48)*100,1) -> 1.3 | R25: =L25+P25 -> 14254
A26: 6 | C26: TOTAL CUSTOMER CHARGE | F26: =F25 -> 120 | L26: =SUM(L24:L25) -> 14374 | N26: =ROUND((L26/$L$48)*100,1) -> 1.3 | R26: =SUM(R24:R25) -> 14374
A28: 7 | C28: DEMAND CHARGE:
A29: 8 | C29: ALL KW | H29: 34707.33 | J29: =INPUT!D118 -> 8.4 | L29: =ROUND(H29*J29,0) -> 291542 | N29: =ROUND((L29/$L$48)*100,1) -> 26.5 | R29: =L29+P29 -> 291542
A30: 9 | C30: TOTAL DEMAND | H30: =SUM(H29) -> 34707.33 | L30: =SUM(L29) -> 291542 | N30: =ROUND((L30/$L$48)*100,1) -> 26.5 | R30: =SUM(R29) -> 291542
A32: 10 | C32: ENERGY CHARGE (3):
A33: 11 | C33: FIRST 300KWH/KW | H33: 10097570 | J33: =INPUT!D114 -> 0.060595 | L33: =ROUND((H33*J33),0) -> 611862 | N33: =ROUND((L33/$L$48)*100,1)+0.1 -> 55.6 | R33: =L33+P33 -> 611862
A34: 12 | C34: ADDITIONAL KWH | H34: 2928055 | J34: =INPUT!D115 -> 0.051267 | L34: =ROUND((H34*J34),0) -> 150113 | N34: =ROUND((L34/$L$48)*100,1) -> 13.6 | R34: =L34+P34 -> 150113
A35: 13 | C35: CAP RATE KWH | H35: 20957 | J35: =INPUT!D116 -> 0.286198 | L35: =ROUND((H35*J35),0) -> 5998 | N35: =ROUND((L35/$L$48)*100,1) -> 0.5 | R35: =L35+P35 -> 5998
A36: 14 | C36: TOTAL ENERGY | H36: =SUM(H33:H35) -> 13046582 | L36: =SUM(L33:L35) -> 767973 | N36: =ROUND((L36/$L$48)*100,1) -> 69.7 | R36: =L36+P36 -> 767973
A37: 15 | C37: TOTAL RATE DP EXCLUDING RIDERS | F37: =F26 -> 120 | H37: =H36 -> 13046582 | L37: =L36+L30+L26 -> 1073889 | N37: =ROUND((L37/$L$48)*100,1) -> 97.5 | R37: =R26+R30+R36 -> 1073889
A39: 16 | C39: RIDERS:
A40: 17 | C40: =DSMR_Name -> DEMAND SIDE MANAGEMENT RIDER (DSMR) | J40: =PRO_DSM_DIST -> 0.002576 | L40: =ROUND($H$37*J40,0) -> 33608 | N40: =ROUND((L40/$L$48)*100,1)-0.1 -> 3 | R40: =L40+P40 -> 33608
A41: 18 | C41: =ESM_Name -> ENVIRONMENTAL SURCHARGE MECHANISM RIDER (ESM) | J41: =PRO_ESM -> 0 | L41: =ROUND(R37*J41,0) -> 0 | N41: =ROUND((L41/$L$48)*100,1) -> 0 | R41: =L41+P41 -> 0
A42: 19 | C42: =DCI_Name -> DISTRIBUTION CAPITAL INVESTMENT RIDER (DCI) | J42: =PRO_DCI_DP -> 0 | L42: =ROUND($H$30*J42,0) -> 0 | N42: 0 | R42: 0
A43: 20 | C43: =FAC_Name -> FUEL ADJUSTMENT CLAUSE (FAC) | J43: =PRO_FAC -> 0.001028 | P43: =ROUND(H37*PRO_FAC,0) -> 13412 | R43: 13412
A44: 21 | C44: =FTR_Name -> FERC TRANSMISSION COST RECOVERY RECONCILIATION (FTR) | J44: =PRO_FTR_DP -> 0 | L44: =ROUND($H$37*J44,0) -> 0 | N44: =ROUND((L44/$L$48)*100,1) -> 0 | R44: =L44+P44 -> 0
A45: 22 | C45: =PSM_Name -> PROFIT SHARING MECHANISM (PSM) | J45: =PRO_PSM -> -0.000456 | L45: =ROUND(H37*PRO_PSM,0) -> -5949 | N45: =ROUND((L45/$L$48)*100,1) -> -0.5 | R45: -5949
A46: 23 | C46: TOTAL RIDERS | L46: =SUM(L40:L45) -> 27659 | N46: =ROUND((L46/$L$48)*100,1) -> 2.5 | P46: =SUM(P40:P45) -> 13412 | R46: =SUM(R40:R45) -> 41071
A48: 24 | C48: TOTAL RATE DP INCLUDING RIDERS | F48: =F26 -> 120 | H48: =H36 -> 13046582 | L48: =L37+L46 -> 1101548 | N48: 100 | P48: =P46+P37 -> 13412 | R48: =R46+R37 -> 1114960
C50: (1) BILLS THAT TERMINATE IN RESPECTIVE RATE STEPS.
C51: ="(2) REFLECTS FUEL COMPONENT OF "&TEXT(PRO_FAC,"$0.000000;($0.000000)")&" PER KWH." -> (2) REFLECTS FUEL COMPONENT OF $0.001028 PER KWH.
C52: ="(3) REFLECTS FUEL COST RECOVERY INCLUDED IN BASE RATES OF "&TEXT(PRO_BASE_FUEL,"$0.000000;($0.000000)")&" PER KWH." -> (3) REFLECTS FUEL COST RECOVERY INCLUDED IN BASE RATES OF $0.023837 PER KWH.
T55: =NAME -> DUKE ENERGY KENTUCKY, INC.
T56: =CASE_NO -> CASE NO. 2017-00321
T57: =TITLE -> ANNUALIZED BASE YEAR REVENUES AT PROPOSED VS. MOST CURRENT RATES
T58: =DATE -> FOR THE TWELVE MONTHS ENDED November 30, 2017
T59: =SERVICE -> (ELECTRIC SERVICE)
T60: =DATA_PERIOD -> DATA: __X__ BASE PERIOD ____FORECASTED PERIOD | AO60: SCHEDULE M-2.2
T61: =TYPE -> TYPE OF FILING: _X_ ORIGINAL ___UPDATED ___ REVISED | AO61: =R7 -> PAGE 8 OF 22
T62: WORK PAPER REFERENCE NO(S).: | AO62: WITNESS:
T63: =TIME -> 6 Months Actual and 6 Months Projected | AO63: =WIT -> B. L. SAILERS
T64: =INPUT!B5 -> 6 Months Actual Ending May 31, 2017
T65: CURRENT ANNUALIZED
AE67: CURRENT | AG67: % OF REV TO | AI67: REVENUE | AK67: % INCR IN | AO67: CURRENT | AQ67: TOTAL
AC68: MOST | AE68: REVENUE LESS | AG68: TOTAL LESS | AI68: INCR LESS | AK68: REV LESS | AO68: TOTAL | AQ68: REVENUE
T69: LINE | V69: RATE | W69: CLASS / | Y69: CUSTOMER | AC69: CURRENT | AE69: FUEL COST | AG69: FUEL COST | AI69: FUEL COST REV | AK69: FUEL COST REV | AM69: FUEL COST | AO69: REVENUE | AQ69: % INCREASE
T70: NO. | V70: CODE | W70: DESCRIPTION | Y70: BILLS(1) | AA70: SALES | AC70: RATES | AE70: REVENUE | AG70: REVENUE | AI70: (F - K) | AK70: (M / K) | AM70: REVENUE (2) | AO70: (K + H) | AQ70: (M / K1)
V71: (A) | W71: (B) | Y71: (C) | AA71: (D) | AC71: (J) | AE71: (K) | AG71: (L) | AI71: (M) | AK71: (N) | AM71: (H) | AO71: (K1) | AQ71: (O)
AA73: (KW/KWH) | AC73: ($/KWH)/ | AE73: ($) | AG73: (%) | AI73: ($) | AK73: (%) | AM73: ($) | AO73: ($) | AQ73: (%)
T74: 1 | V74: DP | W74: SERVICE AT PRIMARY | AC74: ($/KW)
T75: 2 | W75: DISTRIBUTION VOLTAGE
T77: 3 | V77: CUSTOMER CHARGE:
T78: 4 | V78: LOAD MANAGEMENT RIDER | Y78: =F24 -> 24 | AC78: =INPUT!C64 -> 100 | AE78: =ROUND(Y78*AC78,0) -> 2400 | AG78: =ROUND((AE78/$AE$102)*100,1) -> 0.3 | AI78: =L24-AE78 -> -2280 | AK78: =ROUND((AI78/AE78)*100,1) -> -95 | AO78: =AE78+AM78 -> 2400 | AQ78: =ROUND((AI78/AO78)*100,1) -> -95
T79: 5 | V79: PRIMARY VOLTAGE | Y79: =F25 -> 120 | AC79: =INPUT!C112 -> 100 | AE79: =ROUND(Y79*AC79,0) -> 12000 | AG79: =ROUND((AE79/$AE$102)*100,1)-0.1 -> 1.2 | AI79: =L25-AE79 -> 2254 | AK79: =ROUND((AI79/AE79)*100,1) -> 18.8 | AO79: =AE79+AM79 -> 12000 | AQ79: =ROUND((AI79/AO79)*100,1) -> 18.8
T80: 6 | V80: TOTAL CUSTOMER CHARGE | Y80: =F26 -> 120 | AE80: =SUM(AE78:AE79) -> 14400 | AG80: =ROUND((AE80/$AE$102)*100,1) -> 1.5 | AI80: =SUM(AI78:AI79) -> -26 | AK80: =SUM(AK78:AK79) -> -76.2 | AO80: =SUM(AO78:AO79) -> 14400 | AQ80: =ROUND((AI80/AO80)*100,1) -> -0.2
T82: 7 | V82: DEMAND CHARGE:
T83: 8 | V83: ALL KW | AA83: =H29 -> 34707.33 | AC83: =INPUT!C118 -> 7.08 | AE83: =ROUND(AA83*AC83,0) -> 245728 | AG83: =ROUND((AE83/$AE$102)*100,1) -> 26.3 | AI83: =L29-AE83 -> 45814 | AK83: =ROUND((AI83/AE83)*100,1) -> 18.6 | AO83: =AE83+AM83 -> 245728 | AQ83: =ROUND((AI83/AO83)*100,1) -> 18.6
T84: 9 | V84: TOTAL DEMAND | AA84: =H30 -> 34707.33 | AE84: =SUM(AE83) -> 245728 | AG84: =ROUND((AE84/$AE$102)*100,1) -> 26.3 | AI84: =SUM(AI83) -> 45814 | AK84: =ROUND((AI84/AE84)*100,1) -> 18.6 | AO84: =SUM(AO83) -> 245728 | AQ84: =ROUND((AI84/AO84)*100,1) -> 18.6
T86: 10 | V86: ENERGY CHARGE (3):
T87: 11 | V87: FIRST 300KWH/KW | AA87: =H33 -> 10097570 | AC87: =INPUT!C114 -> 0.051068 | AE87: =ROUND((AA87*AC87),0) -> 515663 | AG87: =ROUND((AE87/$AE$102)*100,1) -> 55.2 | AI87: =L33-AE87 -> 96199 | AK87: =ROUND((AI87/AE87)*100,1) -> 18.7 | AO87: =AE87+AM87 -> 515663 | AQ87: =ROUND((AI87/AO87)*100,1) -> 18.7
T88: 12 | V88: ADDITIONAL KWH | AA88: =H34 -> 2928055 | AC88: =INPUT!C115 -> 0.043198 | AE88: =ROUND((AA88*AC88),0) -> 126486 | AG88: =ROUND((AE88/$AE$102)*100,1) -> 13.5 | AI88: =L34-AE88 -> 23627 | AK88: =ROUND((AI88/AE88)*100,1) -> 18.7 | AO88: =AE88+AM88 -> 126486 | AQ88: =ROUND((AI88/AO88)*100,1) -> 18.7
T89: 13 | V89: CAP RATE KWH | AA89: =H35 -> 20957 | AC89: =INPUT!C116 -> 0.241184 | AE89: =ROUND((AA89*AC89),0) -> 5054 | AG89: =ROUND((AE89/$AE$102)*100,1) -> 0.5 | AI89: =L35-AE89 -> 944 | AK89: =ROUND((AI89/AE89)*100,1) -> 18.7 | AO89: =AE89+AM89 -> 5054 | AQ89: =ROUND((AI89/AO89)*100,1) -> 18.7
T90: 14 | V90: TOTAL ENERGY | AA90: =H36 -> 13046582 | AE90: =SUM(AE87:AE89) -> 647203 | AG90: =ROUND((AE90/$AE$102)*100,1) -> 69.2 | AI90: =SUM(AI87:AI89) -> 120770 | AK90: =ROUND((AI90/AE90)*100,1) -> 18.7 | AO90: =SUM(AO87:AO89) -> 647203 | AQ90: =ROUND((AI90/AO90)*100,1) -> 18.7
T91: 15 | V91: TOTAL RATE DP EXCLUDING RIDERS | Y91: =Y80 -> 120 | AA91: =AA90 -> 13046582 | AE91: =AE80+AE84+AE90 -> 907331 | AG91: =ROUND((AE91/$AE$102)*100,1) -> 97 | AI91: =AI80+AI84+AI90 -> 166558 | AK91: =ROUND((AI91/AE91)*100,1) -> 18.4 | AO91: =AO80+AO84+AO90 -> 907331 | AQ91: =ROUND((AI91/AO91)*100,1) -> 18.4
T93: =A39 -> 16 | V93: RIDERS:
T94: 17 | V94: =C40 -> DEMAND SIDE MANAGEMENT RIDER (DSMR) | AC94: =DSM_DIST -> 0.002576 | AE94: =ROUND($AA$91*AC94,0) -> 33608 | AG94: =ROUND((AE94/$AE$102)*100,1) -> 3.6 | AI94: =L40-AE94 -> 0 | AK94: =ROUND((AI94/AE94)*100,1) -> 0 | AO94: =AE94+AM94 -> 33608 | AQ94: =IF(AO94=0,0,ROUND((AI94/AO94)*100,1)) -> 0
T95: 18 | V95: ENVIRONMENTAL SURCHARGE MECHANISM RIDER (ESM) | AC95: =CUR_ESM -> 0 | AE95: =ROUND(AO91*AC95,0) -> 0 | AG95: =ROUND((AE95/$AE$102)*100,1) -> 0 | AI95: 0 | AK95: =IF(AE95=0,0,ROUND((AI95/AE95)*100,1)) -> 0 | AO95: =AE95+AM95 -> 0 | AQ95: =IF(AO95=0,0,ROUND((AI95/AO95)*100,1)) -> 0
T96: 19 | V96: DISTRIBUTION CAPITAL INVESTMENT RIDER (DCI) | AC96: =CUR_FTR_DP -> 0 | AE96: =ROUND(AA84*AC96,0) -> 0 | AG96: 0 | AI96: 0 | AK96: =IF(AE96=0,0,ROUND((AI96/AE96)*100,1)) -> 0 | AO96: 0 | AQ96: 0
T97: 20 | V97: FUEL ADJUSTMENT CLAUSE (FAC) | AC97: =CUR_FAC -> 0.001028 | AM97: =ROUND(AA91*CUR_FAC,0) -> 13412 | AO97: 13412 | AQ97: =IF(AO97=0,0,ROUND(((R43-AO97)/AO97)*100,1)) -> 0
T98: 21 | V98: FERC TRANSMISSION COST RECOVERY RECONCILIATION (FTR) | AC98: =CUR_FTR_DP -> 0 | AE98: =ROUND($AA$91*AC98,0) -> 0 | AG98: =ROUND((AE98/$AE$102)*100,1) -> 0 | AI98: 0 | AK98: =IF(AE98=0,0,ROUND((AI98/AE98)*100,1)) -> 0 | AO98: =AE98+AM98 -> 0 | AQ98: 0
T99: 22 | V99: PROFIT SHARING MECHANISM (PSM) | AC99: =RS_PSM -> -0.000456 | AE99: =ROUND(AA91*RS_PSM,0) -> -5949 | AG99: =ROUND((AE99/$AE$102)*100,1) -> -0.6 | AI99: 0 | AK99: 0 | AO99: -5949 | AQ99: =ROUND((AI99/AO99)*100,1) -> 0
T100: 23 | V100: TOTAL RIDERS | AE100: =SUM(AE94:AE99) -> 27659 | AG100: =ROUND((AE100/$AE$102)*100,1) -> 3 | AI100: =SUM(AI94:AI99) -> 0 | AK100: =ROUND((AI100/AE100)*100,1) -> 0 | AM100: =SUM(AM94:AM99) -> 13412 | AO100: =SUM(AO94:AO99) -> 41071 | AQ100: 0
T102: =A48 -> 24 | V102: TOTAL RATE DP INCLUDING RIDERS | Y102: =F48 -> 120 | AA102: =H48 -> 13046582 | AE102: =AE100+AE91 -> 934990 | AG102: 100 | AI102: =AI100+AI91 -> 166558 | AK102: =ROUND((AI102/AE102)*100,1) -> 17.8 | AM102: =AM100+AM91 -> 13412 | AO102: =AO100+AO91 -> 948402 | AQ102: =ROUND((AI102/AO102)*100,1) -> 17.6
V104: (1) BILLS THAT TERMINATE IN RESPECTIVE RATE STEPS.
V105: ="(2) REFLECTS FUEL COMPONENT OF "&TEXT(CUR_FAC,"$0.000000;($0.000000)")&" PER KWH." -> (2) REFLECTS FUEL COMPONENT OF $0.001028 PER KWH.
V106: ="(3) REFLECTS FUEL COST RECOVERY INCLUDED IN BASE RATES OF "&TEXT(CUR_BASE_FUEL,"$0.000000;($0.000000)")&" PER KWH." -> (3) REFLECTS FUEL COST RECOVERY INCLUDED IN BASE RATES OF $0.023837 PER KWH.

Sheet Rate TT
A1: =NAME -> DUKE ENERGY KENTUCKY, INC.
A2: =CASE_NO -> CASE NO. 2017-00321
A3: =TITLE -> ANNUALIZED BASE YEAR REVENUES AT PROPOSED VS. MOST CURRENT RATES
A4: =DATE -> FOR THE TWELVE MONTHS ENDED November 30, 2017
A5: =SERVICE -> (ELECTRIC SERVICE)
A6: =DATA_PERIOD -> DATA: __X__ BASE PERIOD ____FORECASTED PERIOD | R6: SCHEDULE M-2.3
A7: =TYPE -> TYPE OF FILING: _X_ ORIGINAL ___UPDATED ___ REVISED | R7: PAGE 9 OF 22
A8: WORK PAPER REFERENCE NO(S).: | R8: WITNESS:
A9: =TIME -> 6 Months Actual and 6 Months Projected | R9: =WIT -> B. L. SAILERS
A10: =INPUT!B5 -> 6 Months Actual Ending May 31, 2017
A11: PROPOSED ANNUALIZED
L13: PROPOSED | N13: % OF REV TO | R13: PROPOSED
L14: REVENUE LESS | N14: TOTAL LESS | R14: TOTAL
A15: LINE | C15: RATE | D15: CLASS / | F15: CUSTOMER | J15: PROPOSED | L15: FUEL COST | N15: FUEL COST | P15: FUEL COST | R15: REVENUE
A16: NO. | C16: CODE | D16: DESCRIPTION | F16: BILLS(1) | H16: SALES | J16: RATES | L16: REVENUE | N16: REVENUE | P16: REVENUE (2) | R16: (F + H)
C17: (A) | D17: (B) | F17: (C) | H17: (D) | J17: (E) | L17: (F) | N17: (G) | P17: (H) | R17: (I)
H18: (KW/KWH) | J18: ($/KWH)/ | L18: ($) | N18: (%) | P18: ($) | R18: ($)
A19: 1 | C19: TT | D19: TIME OF DAY | J19: ($/KW)
A20: 2 | C20: SUMMER:
A21: 3 | C21: CUSTOMER CHARGE | F21: 52 | J21: =INPUT!D122 -> 500 | L21: =ROUND(F21*J21,0) -> 26000 | N21: =ROUND((L21/$L$57)*100,1) -> 0.2 | R21: =L21+P21 -> 26000
A23: 4 | C23: DEMAND CHARGE:
A24: 5 | C24: ON PEAK KW | H24: 158600 | J24: =INPUT!D128 -> 8.46 | L24: =ROUND(H24*J24,0) -> 1341756 | N24: =ROUND((L24/$L$57)*100,1) -> 9.8 | R24: =L24+P24 -> 1341756
A25: 6 | C25: OFF PEAK KW | H25: 6575 | J25: =INPUT!D129 -> 1.28 | L25: =ROUND(H25*J25,0) -> 8416 | N25: =ROUND((L25/$L$57)*100,1) -> 0.1 | R25: =L25+P25 -> 8416
A26: 7 | C26: TOTAL DEMAND | H26: =SUM(H24:H25) -> 165175 | L26: =SUM(L24:L25) -> 1350172 | N26: =ROUND((L26/$L$57)*100,1) -> 9.9 | R26: =SUM(R24:R25) -> 1350172
A28: 8 | C28: ENERGY CHARGE (3):
A29: 9 | C29: ON PEAK KWH | H29: 25151023 | J29: =PRO_SUM_TT_ON_KWH -> 0.054454 | L29: =ROUND((H29*J29),0) -> 1369574 | N29: =ROUND((L29/$L$57)*100,1) -> 10 | R29: =L29+P29 -> 1369574
A30: 10 | C30: OFF PEAK KWH | H30: 45316087 | J30: =PRO_TT_OFF -> 0.044594 | L30: =ROUND((H30*J30),0) -> 2020826 | N30: =ROUND((L30/$L$57)*100,1) -> 14.7 | R30: =L30+P30 -> 2020826
A31: 11 | C31: TOTAL ENERGY | H31: =SUM(H29:H30) -> 70467110 | L31: =SUM(L29:L30) -> 3390400 | N31: =ROUND((L31/$L$57)*100,1) -> 24.7 | R31: =SUM(R29:R30) -> 3390400
A32: 12 | C32: TOTAL SUMMER | F32: =F21 -> 52 | H32: =H31 -> 70467110 | L32: =L21+L26+L31 -> 4766572 | N32: =ROUND((L32/$L$57)*100,1) -> 34.8 | R32: =R21+R26+R31 -> 4766572
A34: 13 | C34: WINTER:
A35: 14 | C35: CUSTOMER CHARGE | F35: 104 | J35: =J21 -> 500 | L35: =ROUND(F35*J35,0) -> 52000 | N35: =ROUND((L35/L$57)*100,1) -> 0.4 | R35: =L35+P35 -> 52000
A37: 15 | C37: DEMAND CHARGE:
A38: 16 | C38: ON PEAK KW | H38: 315418.8 | J38: =INPUT!D130 -> 6.95 | L38: =ROUND(H38*J38,0) -> 2192161 | N38: =ROUND((L38/$L$57)*100,1) -> 16 | R38: =L38+P38 -> 2192161
A39: 17 | C39: OFF PEAK KW | H39: 11327.7 | J39: =INPUT!D131 -> 1.28 | L39: =ROUND(H39*J39,0) -> 14499 | N39: =ROUND((L39/$L$57)*100,1) -> 0.1 | R39: =L39+P39 -> 14499
A40: 18 | C40: TOTAL DEMAND | H40: =SUM(H38:H39) -> 326746.5 | L40: =L38+L39 -> 2206660 | N40: =ROUND((L40/$L$57)*100,1) -> 16.1 | R40: =L40+P40 -> 2206660
A42: 19 | C42: ENERGY CHARGE (3):
A43: 20 | C43: ON PEAK KWH | H43: 49796666 | J43: =PRO_WIN_TT_ON_KWH -> 0.051983 | L43: =ROUND((H43*J43),0) -> 2588580 | N43: =ROUND((L43/$L$57)*100,1) -> 18.9 | R43: =L43+P43 -> 2588580
A44: 21 | C44: OFF PEAK KWH | H44: 93005652 | J44: =PRO_TT_OFF -> 0.044594 | L44: =ROUND((H44*J44),0) -> 4147494 | N44: =ROUND((L44/$L$57)*100,1)-0.1 -> 30.2 | R44: =L44+P44 -> 4147494
A45: 22 | C45: TOTAL ENERGY | H45: =SUM(H43:H44) -> 142802318 | L45: =SUM(L43:L44) -> 6736074 | N45: =ROUND((L45/$L$57)*100,1)-0.1 -> 49.1 | R45: =SUM(R43:R44) -> 6736074
A46: 23 | C46: TOTAL WINTER | F46: =F35 -> 104 | H46: =H45 -> 142802318 | L46: =L35+L40+L45 -> 8994734 | N46: =ROUND((L46/$L$57)*100,1) -> 65.6 | R46: =R35+R40+R45 -> 8994734
A47: 24 | C47: TOTAL RATE TT EXCLUDING RIDERS | F47: =F32+F46 -> 156 | H47: =H46+H32 -> 213269428 | L47: =L46+L32 -> 13761306 | N47: =ROUND((L47/L$57)*100,1) -> 100.4 | R47: =R46+R32 -> 13761306
A49: 25 | C49: RIDERS:
A50: 26 | C50: =DSMR_Name -> DEMAND SIDE MANAGEMENT RIDER (DSMR) | J50: =PRO_DSM_TRANS -> 0.000183 | L50: =ROUND($H$47*J50,0) -> 39028 | N50: =ROUND((L50/L$57)*100,1) -> 0.3 | R50: =L50+P50 -> 39028
A51: 27 | C51: =ESM_Name -> ENVIRONMENTAL SURCHARGE MECHANISM RIDER (ESM) | J51: =PRO_ESM -> 0 | L51: =ROUND(R47*J51,0) -> 0 | N51: =ROUND((L51/L$57)*100,1) -> 0 | R51: =L51+P51 -> 0
A52: 28 | C52: =FAC_Name -> FUEL ADJUSTMENT CLAUSE (FAC) | J52: =PRO_FAC -> 0.001028 | P52: =ROUND(H47*PRO_FAC,0) -> 219241 | R52: =L52+P52 -> 219241
A53: 29 | C53: =FTR_Name -> FERC TRANSMISSION COST RECOVERY RECONCILIATION (FTR) | J53: =PRO_FTR_TT -> 0 | L53: =ROUND(H47*J53,0) -> 0 | N53: =ROUND((L53/L$57)*100,1) -> 0 | R53: =L53+P53 -> 0
A54: 30 | C54: =PSM_Name -> PROFIT SHARING MECHANISM (PSM) | J54: =PRO_PSM -> -0.000456 | L54: =ROUND(H47*PRO_PSM,0) -> -97251 | N54: =ROUND((L54/L$57)*100,1) -> -0.7 | R54: -97251
A55: 31 | C55: TOTAL RIDERS | L55: =SUM(L50:L54) -> -58223 | N55: =ROUND((L55/L$57)*100,1) -> -0.4 | P55: =SUM(P50:P54) -> 219241 | R55: =SUM(R50:R54) -> 161018
A57: 32 | C57: TOTAL RATE TT INCLUDING RIDERS | F57: =F32+F46 -> 156 | H57: =H32+H46 -> 213269428 | L57: =L55+L47 -> 13703083 | N57: 100 | P57: =P55+P47 -> 219241 | R57: =R55+R47 -> 13922324
C59: (1) BILLS THAT TERMINATE IN RESPECTIVE RATE STEPS.
C60: ="(2) REFLECTS FUEL COMPONENT OF "&TEXT(PRO_FAC,"$0.000000;($0.000000)")&" PER KWH." -> (2) REFLECTS FUEL COMPONENT OF $0.001028 PER KWH.
C61: ="(3) REFLECTS FUEL COST RECOVERY INCLUDED IN BASE RATES OF "&TEXT(PRO_BASE_FUEL,"$0.000000;($0.000000)")&" PER KWH." -> (3) REFLECTS FUEL COST RECOVERY INCLUDED IN BASE RATES OF $0.023837 PER KWH.
T66: =NAME -> DUKE ENERGY KENTUCKY, INC.
T67: =CASE_NO -> CASE NO. 2017-00321
T68: =TITLE -> ANNUALIZED BASE YEAR REVENUES AT PROPOSED VS. MOST CURRENT RATES
T69: =DATE -> FOR THE TWELVE MONTHS ENDED November 30, 2017
T70: =SERVICE -> (ELECTRIC SERVICE)
T71: =DATA_PERIOD -> DATA: __X__ BASE PERIOD ____FORECASTED PERIOD | AO71: SCHEDULE M-2.2
T72: =TYPE -> TYPE OF FILING: _X_ ORIGINAL ___UPDATED ___ REVISED | AO72: =R7 -> PAGE 9 OF 22
T73: WORK PAPER REFERENCE NO(S).: | AO73: WITNESS:
T74: =TIME -> 6 Months Actual and 6 Months Projected | AO74: =WIT -> B. L. SAILERS
T75: =INPUT!B5 -> 6 Months Actual Ending May 31, 2017
T76: CURRENT ANNUALIZED
AE78: CURRENT | AG78: % OF REV TO | AI78: REVENUE | AK78: % INCR IN | AO78: CURRENT | AQ78: TOTAL
AC79: MOST | AE79: REVENUE LESS | AG79: TOTAL LESS | AI79: INCR LESS | AK79: REV LESS | AO79: TOTAL | AQ79: REVENUE
T80: LINE | V80: RATE | W80: CLASS / | Y80: CUSTOMER | AC80: CURRENT | AE80: FUEL COST | AG80: FUEL COST | AI80: FUEL COST REV | AK80: FUEL COST REV | AM80: FUEL COST | AO80: REVENUE | AQ80: % INCREASE
T81: NO. | V81: CODE | W81: DESCRIPTION | Y81: BILLS(1) | AA81: SALES | AC81: RATES | AE81: REVENUE | AG81: REVENUE | AI81: (F - K) | AK81: (M / K) | AM81: REVENUE (2) | AO81: (K + H) | AQ81: (M / K1)
V82: (A) | W82: (B) | Y82: (C) | AA82: (D) | AC82: (J) | AE82: (K) | AG82: (L) | AI82: (M) | AK82: (N) | AM82: (H) | AO82: (K1) | AQ82: (O)
AA83: (KW/KWH) | AC83: ($/KWH)/ | AE83: ($) | AG83: (%) | AI83: ($) | AK83: (%) | AM83: ($) | AO83: ($) | AQ83: (%)
T84: =A19 -> 1 | V84: TT | W84: TIME OF DAY | AC84: ($/KW)
T85: =A20 -> 2 | V85: SUMMER:
T86: 3 | V86: CUSTOMER CHARGE | Y86: =F21 -> 52 | AC86: =INPUT!C122 -> 500 | AE86: =ROUND(Y86*AC86,0) -> 26000 | AG86: =ROUND((AE86/AE$122)*100,1) -> 0.2 | AI86: =L21-AE86 -> 0 | AK86: =IF(AE86=0,"0.0 ",ROUND((AI86/AE86)*100,1)) -> 0 | AO86: =AE86+AM86 -> 26000 | AQ86: =IF(AO86=0,"0.0 ",ROUND((AI86/AO86)*100,1)) -> 0
T88: 4 | V88: DEMAND CHARGE:
T89: 5 | V89: ON PEAK KW | AA89: =H24 -> 158600 | AC89: =INPUT!C128 -> 7.6 | AE89: =ROUND(AA89*AC89,0) -> 1205360 | AG89: =ROUND((AE89/AE$122)*100,1) -> 9.8 | AI89: =L24-AE89 -> 136396 | AK89: =IF(AE89=0,"0.0 ",ROUND((AI89/AE89)*100,1)) -> 11.3 | AO89: =AE89+AM89 -> 1205360 | AQ89: =IF(AO89=0,"0.0 ",ROUND((AI89/AO89)*100,1)) -> 11.3
T90: 6 | V90: OFF PEAK KW | AA90: =H25 -> 6575 | AC90: =INPUT!C129 -> 1.15 | AE90: =ROUND(AA90*AC90,0) -> 7561 | AG90: =ROUND((AE90/AE$122)*100,1) -> 0.1 | AI90: =L25-AE90 -> 855 | AK90: =IF(AE90=0,"0.0 ",ROUND((AI90/AE90)*100,1)) -> 11.3 | AO90: =AE90+AM90 -> 7561 | AQ90: =IF(AO90=0,"0.0 ",ROUND((AI90/AO90)*100,1)) -> 11.3
T91: 7 | V91: TOTAL DEMAND | AA91: =H26 -> 165175 | AE91: =AE89+AE90 -> 1212921 | AG91: =ROUND((AE91/AE$122)*100,1) -> 9.9 | AI91: =SUM(AI89:AI90) -> 137251 | AK91: =IF(AE91=0,"0.0 ",ROUND((AI91/AE91)*100,1)) -> 11.3 | AO91: =AO89+AO90 -> 1212921 | AQ91: =IF(AO91=0,"0.0 ",ROUND((AI91/AO91)*100,1)) -> 11.3
T93: 8 | V93: ENERGY CHARGE (3):
T94: 9 | V94: ON PEAK KWH | AA94: =H29 -> 25151023 | AC94: =CUR_TT_KWH -> 0.042648 | AE94: =ROUND((AA94*AC94),0) -> 1072641 | AG94: =ROUND((AE94/AE$122)*100,1) -> 8.7 | AI94: =L29-AE94 -> 296933 | AK94: =IF(AE94=0,"0.0 ",ROUND((AI94/AE94)*100,1)) -> 27.7 | AO94: =AE94+AM94 -> 1072641 | AQ94: =IF(AO94=0,"0.0 ",ROUND((AI94/AO94)*100,1)) -> 27.7
T95: 10 | V95: OFF PEAK KWH | AA95: 45316087 | AC95: =CUR_TT_KWH -> 0.042648 | AE95: =ROUND((AA95*AC95),0) -> 1932640 | AG95: =ROUND((AE95/AE$122)*100,1) -> 15.7 | AI95: =L30-AE95 -> 88186 | AK95: =IF(AE95=0,"0.0 ",ROUND((AI95/AE95)*100,1)) -> 4.6 | AO95: =AE95+AM95 -> 1932640 | AQ95: =IF(AO95=0,"0.0 ",ROUND((AI95/AO95)*100,1)) -> 4.6
T96: 11 | V96: TOTAL ENERGY | AA96: =H31 -> 70467110 | AE96: =AE94+AE95 -> 3005281 | AG96: =ROUND((AE96/AE$122)*100,1) -> 24.4 | AI96: =SUM(AI94:AI95) -> 385119 | AK96: =IF(AE96=0,"0.0 ",ROUND((AI96/AE96)*100,1)) -> 12.8 | AO96: =AO94+AO95 -> 3005281 | AQ96: =IF(AO96=0,"0.0 ",ROUND((AI96/AO96)*100,1)) -> 12.8
T97: 12 | V97: TOTAL SUMMER | Y97: =F32 -> 52 | AA97: =H32 -> 70467110 | AE97: =AE86+AE91+AE96 -> 4244202 | AG97: =ROUND((AE97/AE$122)*100,1) -> 34.5 | AI97: =AI86+AI91+AI96 -> 522370 | AK97: =IF(AE97=0,"0.0 ",ROUND((AI97/AE97)*100,1)) -> 12.3 | AO97: =AO86+AO91+AO96 -> 4244202 | AQ97: =IF(AO97=0,"0.0 ",ROUND((AI97/AO97)*100,1)) -> 12.3
T99: 13 | V99: WINTER:
T100: 14 | V100: CUSTOMER CHARGE | Y100: =F35 -> 104 | AC100: =AC86 -> 500 | AE100: =ROUND(Y100*AC100,0) -> 52000 | AG100: =ROUND((AE100/AE$122)*100,1) -> 0.4 | AI100: =L35-AE100 -> 0 | AK100: =IF(AE100=0,"0.0 ",ROUND((AI100/AE100)*100,1)) -> 0 | AO100: =AE100+AM100 -> 52000 | AQ100: =IF(AO100=0,"0.0 ",ROUND((AI100/AO100)*100,1)) -> 0
T102: 15 | V102: DEMAND CHARGE:
T103: 16 | V103: ON PEAK KW | AA103: =H38 -> 315418.8 | AC103: =INPUT!C130 -> 6.24 | AE103: =ROUND(AA103*AC103,0) -> 1968213 | AG103: =ROUND((AE103/AE$122)*100,1) -> 16 | AI103: =L38-AE103 -> 223948 | AK103: =IF(AE103=0,"0.0 ",ROUND((AI103/AE103)*100,1)) -> 11.4 | AO103: =AE103+AM103 -> 1968213 | AQ103: =IF(AO103=0,"0.0 ",ROUND((AI103/AO103)*100,1)) -> 11.4
T104: 17 | V104: OFF PEAK KW | AA104: =H39 -> 11327.7 | AC104: =INPUT!C131 -> 1.15 | AE104: =ROUND(AA104*AC104,0) -> 13027 | AG104: =ROUND((AE104/AE$122)*100,1) -> 0.1 | AI104: =L39-AE104 -> 1472 | AK104: =IF(AE104=0,"0.0 ",ROUND((AI104/AE104)*100,1)) -> 11.3 | AO104: =AE104+AM104 -> 13027 | AQ104: =IF(AO104=0,"0.0 ",ROUND((AI104/AO104)*100,1)) -> 11.3
T105: 18 | V105: TOTAL DEMAND | AA105: =H40 -> 326746.5 | AE105: =AE103+AE104 -> 1981240 | AG105: =ROUND((AE105/AE$122)*100,1) -> 16.1 | AI105: =SUM(AI103:AI104) -> 225420 | AK105: =IF(AE105=0,"0.0 ",ROUND((AI105/AE105)*100,1)) -> 11.4 | AO105: =AO103+AO104 -> 1981240 | AQ105: =IF(AO105=0,"0.0 ",ROUND((AI105/AO105)*100,1)) -> 11.4
T107: 19 | V107: ENERGY CHARGE (3):
T108: 20 | V108: ON PEAK KWH | AA108: =H43 -> 49796666 | AC108: =CUR_TT_KWH -> 0.042648 | AE108: =ROUND((AA108*AC108),0) -> 2123728 | AG108: =ROUND((AE108/AE$122)*100,1) -> 17.3 | AI108: =L43-AE108 -> 464852 | AK108: =IF(AE108=0,"0.0 ",ROUND((AI108/AE108)*100,1)) -> 21.9 | AO108: =AE108+AM108 -> 2123728 | AQ108: =IF(AO108=0,"0.0 ",ROUND((AI108/AO108)*100,1)) -> 21.9
T109: 21 | V109: OFF PEAK KWH | AA109: =H44 -> 93005652 | AC109: =CUR_TT_KWH -> 0.042648 | AE109: =ROUND((AA109*AC109),0) -> 3966505 | AG109: =ROUND((AE109/AE$122)*100,1) -> 32.2 | AI109: =L44-AE109 -> 180989 | AK109: =IF(AE109=0,"0.0 ",ROUND((AI109/AE109)*100,1)) -> 4.6 | AO109: =AE109+AM109 -> 3966505 | AQ109: =IF(AO109=0,"0.0 ",ROUND((AI109/AO109)*100,1)) -> 4.6
T110: 22 | V110: TOTAL ENERGY | AA110: =H45 -> 142802318 | AE110: =AE108+AE109 -> 6090233 | AG110: =ROUND((AE110/AE$122)*100,1) -> 49.5 | AI110: =SUM(AI108:AI109) -> 645841 | AK110: =IF(AE110=0,"0.0 ",ROUND((AI110/AE110)*100,1)) -> 10.6 | AO110: =AO108+AO109 -> 6090233 | AQ110: =IF(AO110=0,"0.0 ",ROUND((AI110/AO110)*100,1)) -> 10.6
T111: 23 | V111: TOTAL WINTER | Y111: =F46 -> 104 | AA111: =H46 -> 142802318 | AE111: =AE100+AE105+AE110 -> 8123473 | AG111: =ROUND((AE111/AE$122)*100,1) -> 66 | AI111: =AI100+AI105+AI110 -> 871261 | AK111: =IF(AE111=0,"0.0 ",ROUND((AI111/AE111)*100,1)) -> 10.7 | AO111: =AO100+AO105+AO110 -> 8123473 | AQ111: =IF(AO111=0,"0.0 ",ROUND((AI111/AO111)*100,1)) -> 10.7
T112: 24 | V112: TOTAL RATE TT EXCLUDING RIDERS | Y112: =Y97+Y111 -> 156 | AA112: =AA97+AA111 -> 213269428 | AE112: =AE97+AE111 -> 12367675 | AG112: =ROUND((AE112/AE$122)*100,1) -> 100.5 | AI112: =AI111+AI97 -> 1393631 | AK112: =IF(AE112=0,"0.0 ",ROUND((AI112/AE112)*100,1)) -> 11.3 | AO112: =AO111+AO97 -> 12367675 | AQ112: =IF(AO112=0,"0.0 ",ROUND((AI112/AO112)*100,1)) -> 11.3
T114: 25 | V114: RIDERS:
T115: 26 | V115: =C50 -> DEMAND SIDE MANAGEMENT RIDER (DSMR) | AC115: =DSM_TRANS -> 0.000183 | AE115: =ROUND($AA$112*AC115,0) -> 39028 | AG115: =ROUND((AE115/AE$122)*100,1) -> 0.3 | AI115: =L50-AE115 -> 0 | AK115: =IF(AE115=0,"0.0 ",ROUND((AI115/AE115)*100,1)) -> 0 | AO115: =AE115+AM115 -> 39028 | AQ115: =IF(AO115=0,"0.0 ",ROUND((AI115/AO115)*100,1)) -> 0
T116: 27 | V116: =C51 -> ENVIRONMENTAL SURCHARGE MECHANISM RIDER (ESM) | AC116: =CUR_ESM -> 0 | AE116: =ROUND(AO112*AC116,0) -> 0 | AG116: =ROUND((AE116/AE$122)*100,1) -> 0 | AI116: =L51-AE116 -> 0 | AK116: =IF(AE116=0,"0.0 ",ROUND((AI116/AE116)*100,1)) -> 0.0 | AO116: =AE116+AM116 -> 0 | AQ116: =IF(AO116=0,"0.0 ",ROUND((AI116/AO116)*100,1)) -> 0.0
T117: 28 | V117: =C52 -> FUEL ADJUSTMENT CLAUSE (FAC) | AC117: =CUR_FAC -> 0.001028 | AM117: =ROUND(AA112*CUR_FAC,0) -> 219241 | AO117: 219241 | AQ117: =IF(AO117=0,"0.0 ",ROUND(((R52-AO117)/AO117)*100,1)) -> 0
T118: 29 | V118: =C53 -> FERC TRANSMISSION COST RECOVERY RECONCILIATION (FTR) | AC118: =CUR_FTR_TT -> 0 | AE118: =ROUND(AA112*AC118,0) -> 0 | AG118: =ROUND((AE118/AE$122)*100,1) -> 0 | AI118: =L53-AE118 -> 0 | AK118: =IF(AE118=0,"0.0 ",ROUND((AI118/AE118)*100,1)) -> 0.0 | AO118: =AE118+AM118 -> 0 | AQ118: =IF(AO118=0,"0.0 ",ROUND((AI118/AO118)*100,1)) -> 0.0
T119: 30 | V119: =C54 -> PROFIT SHARING MECHANISM (PSM) | AC119: =RS_PSM -> -0.000456 | AE119: =ROUND(AA112*RS_PSM,0) -> -97251 | AG119: =ROUND((AE119/AE$122)*100,1) -> -0.8 | AI119: =L54-AE119 -> 0 | AK119: 0 | AO119: -97251 | AQ119: 0
T120: 31 | V120: TOTAL RIDERS | AE120: =SUM(AE115:AE119) -> -58223 | AG120: =ROUND((AE120/AE$122)*100,1) -> -0.5 | AI120: =SUM(AI115:AI119) -> 0 | AK120: 0 | AM120: =SUM(AM115:AM119) -> 219241 | AO120: =SUM(AO115:AO119) -> 161018 | AQ120: 0
T122: 32 | V122: TOTAL RATE TT INCLUDING RIDERS | Y122: =Y112 -> 156 | AA122: =AA112 -> 213269428 | AE122: =AE112+AE120 -> 12309452 | AG122: 100 | AI122: =AI112+AI120 -> 1393631 | AK122: =IF(AE122=0,"0.0 ",ROUND((AI122/AE122)*100,1)) -> 11.3 | AM122: =AM112+AM120 -> 219241 | AO122: =AO112+AO120 -> 12528693 | AQ122: =IF(AO122=0,"0.0 ",ROUND((AI122/AO122)*100,1)) -> 11.1
V124: (1) BILLS THAT TERMINATE IN RESPECTIVE RATE STEPS.
V125: ="(2) REFLECTS FUEL COMPONENT OF "&TEXT(CUR_FAC,"$0.000000;($0.000000)")&" PER KWH." -> (2) REFLECTS FUEL COMPONENT OF $0.001028 PER KWH.
V126: ="(3) REFLECTS FUEL COST RECOVERY INCLUDED IN BASE RATES OF "&TEXT(CUR_BASE_FUEL,"$0.000000;($0.000000)")&" PER KWH." -> (3) REFLECTS FUEL COST RECOVERY INCLUDED IN BASE RATES OF $0.023837 PER KWH.

Sheet Rate DT RTPM-P
A1: =NAME -> DUKE ENERGY KENTUCKY, INC.
A2: =CASE_NO -> CASE NO. 2017-00321
A3: =TITLE -> ANNUALIZED BASE YEAR REVENUES AT PROPOSED VS. MOST CURRENT RATES
A4: =DATE -> FOR THE TWELVE MONTHS ENDED November 30, 2017
A5: =SERVICE -> (ELECTRIC SERVICE)
A6: =DATA_PERIOD -> DATA: __X__ BASE PERIOD ____FORECASTED PERIOD | R6: SCHEDULE M-2.3
A7: =TYPE -> TYPE OF FILING: _X_ ORIGINAL ___UPDATED ___ REVISED | R7: PAGE xx OF 22
A8: WORK PAPER REFERENCE NO(S).: | R8: WITNESS:
A9: =TIME -> 6 Months Actual and 6 Months Projected | R9: =WIT -> B. L. SAILERS
A10: =INPUT!B5 -> 6 Months Actual Ending May 31, 2017
A11: PROPOSED ANNUALIZED
L13: PROPOSED | N13: % OF REV TO | R13: PROPOSED
L14: REVENUE LESS | N14: TOTAL LESS | R14: TOTAL
A15: LINE | C15: RATE | D15: CLASS / | F15: CUSTOMER | J15: PROPOSED | L15: FUEL COST | N15: FUEL COST | P15: FUEL COST | R15: REVENUE
A16: NO. | C16: CODE | D16: DESCRIPTION | F16: BILLS(1) | H16: SALES | J16: RATES | L16: REVENUE | N16: REVENUE | P16: REVENUE | R16: (F + H)
C17: (A) | D17: (B) | F17: (C) | H17: (D) | J17: (E) | L17: (F) | N17: (G) | P17: (H) | R17: (I)
H19: (KWH) | J19: ($/KWH) | L19: ($) | N19: (%) | P19: ($) | R19: ($)
A20: 1 | C20: DT RTP | D20: TIME OF DAY SERVICE AT PRIMARY
A21: 2 | D21: DISTRIBUTION VOLTAGE
A23: 3 | C23: CUSTOMER CHARGE:
A24: 4 | C24: BILLS (Real-Time Pricing) | F24: 0 | J24: =INPUT!D136 -> 0 | L24: =ROUND(+F24*J24,0) -> 0 | N24: 0 | R24: =L24+P24 -> 0
A25: 5 | C25: TOTAL CUSTOMER CHARGE | L25: =SUM(L24:L24) -> 0 | N25: 0 | R25: =SUM(R24:R24) -> 0
A27: 6 | C27: ENERGY CHARGE (3):
A28: 7 | C28: ALL KWH | H28: 0 | J28: =INPUT!D140 -> 0 | L28: =ROUND((H28*J28),0) -> 0 | N28: 0 | R28: =L28+P28 -> 0
A29: 8 | C29: ANCILLARY SERVICES | H29: =H28 -> 0 | J29: =INPUT!D144 -> 0 | L29: =ROUND((H29*J29),0) -> 0 | N29: 0 | R29: =L29+P29 -> 0
A30: 9 | C30: COMMODITY CHARGES | H30: =H29 -> 0 | J30: =INPUT!D148 -> 0 | L30: =ROUND((H30*J30),0) -> 0 | N30: 0 | P30: =ROUND(-H30*(CUR_FAC+CUR_BASE_FUEL),0) -> 0 | R30: =L30+P30 -> 0
A31: 10 | C31: TOTAL ENERGY | H31: =H28 -> 0 | L31: =SUM(L28:L30) -> 0 | N31: 0 | P31: =P30 -> 0 | R31: =SUM(R28:R30) -> 0
A32: 11 | C32: TOTAL RATE DT RTP PRIMARY EXCLUDING RIDERS | F32: =F24 -> 0 | H32: =H31 -> 0 | L32: =L31+L25 -> 0 | N32: 0 | P32: =P31 -> 0 | R32: =R25+R31 -> 0
A34: 12 | C34: RIDERS:
A35: 13 | C35: DEMAND SIDE MANAGEMENT RIDER (DSMR) | J35: =PRO_DSM_DIST -> 0.002576 | L35: =ROUND(H32*PRO_DSM_DIST,0) -> 0 | N35: 0 | R35: =L35+P35 -> 0
A36: 14 | C36: PROFIT SHARING MECHANISM (PSM) | J36: =PRO_PSM -> -0.000456 | L36: =ROUND(H32*PRO_PSM,0) -> 0 | N36: 0 | R36: 0
A37: 15 | C37: TOTAL RIDERS | L37: =SUM(L35:L36) -> 0 | N37: 0 | P37: =SUM(P35:P36) -> 0 | R37: =SUM(R35:R36) -> 0
A39: 16 | C39: TOTAL RATE DT RTP PRIMARY INCLUDING RIDERS | F39: =F32 -> 0 | H39: =H32 -> 0 | L39: =L37+L32 -> 0 | N39: 100 | P39: =P37+P32 -> 0 | R39: =R37+R32 -> 0
C41: (1) BILLS THAT TERMINATE IN RESPECTIVE RATE STEPS.
F42: 0 | H42: 0
T46: =NAME -> DUKE ENERGY KENTUCKY, INC.
T47: =CASE_NO -> CASE NO. 2017-00321
T48: =TITLE -> ANNUALIZED BASE YEAR REVENUES AT PROPOSED VS. MOST CURRENT RATES
T49: =DATE -> FOR THE TWELVE MONTHS ENDED November 30, 2017
T50: =SERVICE -> (ELECTRIC SERVICE)
T51: =DATA_PERIOD -> DATA: __X__ BASE PERIOD ____FORECASTED PERIOD | AO51: SCHEDULE M-2.2
T52: =TYPE -> TYPE OF FILING: _X_ ORIGINAL ___UPDATED ___ REVISED | AO52: =R7 -> PAGE xx OF 22
T53: WORK PAPER REFERENCE NO(S).: | AO53: WITNESS:
T54: =TIME -> 6 Months Actual and 6 Months Projected | AO54: =WIT -> B. L. SAILERS
T55: =INPUT!B5 -> 6 Months Actual Ending May 31, 2017
T56: CURRENT ANNUALIZED
AE58: CURRENT | AG58: % OF REV TO | AI58: REVENUE | AK58: % INCR IN | AO58: CURRENT | AQ58: TOTAL
AC59: MOST | AE59: REVENUE LESS | AG59: TOTAL LESS | AI59: INCR LESS | AK59: REV LESS | AO59: TOTAL | AQ59: REVENUE
T60: LINE | V60: RATE | W60: CLASS / | Y60: CUSTOMER | AC60: CURRENT | AE60: FUEL COST | AG60: FUEL COST | AI60: FUEL COST REV | AK60: FUEL COST REV | AM60: FUEL COST | AO60: REVENUE | AQ60: % INCREASE
T61: NO. | V61: CODE | W61: DESCRIPTION | Y61: BILLS(1) | AA61: SALES | AC61: RATES | AE61: REVENUE | AG61: REVENUE | AI61: (F - K) | AK61: (M / K) | AM61: REVENUE | AO61: (K + H) | AQ61: (M / K1)
V62: (A) | W62: (B) | Y62: (C) | AA62: (D) | AC62: (J) | AE62: (K) | AG62: (L) | AI62: (M) | AK62: (N) | AM62: (H) | AO62: (K1) | AQ62: (O)
AA64: (KWH) | AC64: ($/KWH) | AE64: ($) | AG64: (%) | AI64: ($) | AK64: (%) | AM64: ($) | AO64: ($) | AQ64: (%)
T65: 1 | V65: DT RTP | W65: TIME OF DAY SERVICE AT PRIMARY
T66: 2 | W66: DISTRIBUTION VOLTAGE
T68: 3 | V68: CUSTOMER CHARGE:
T69: 4 | V69: BILLS (Real-Time Pricing) | Y69: =F24 -> 0 | AC69: =INPUT!C136 -> 283 | AE69: =ROUND(+Y69*AC69,0) -> 0 | AG69: 0 | AI69: =L24-AE69 -> 0 | AK69: =IF(AE69=0,0,ROUND((AI69/AE69)*100,1)) -> 0 | AO69: =AE69+AM69 -> 0 | AQ69: 0
T70: 5 | V70: TOTAL CUSTOMER CHARGE | AE70: =SUM(AE69:AE69) -> 0 | AG70: 0 | AI70: =SUM(AI69:AI69) -> 0 | AK70: =IF(AE70=0,0,ROUND((AI70/AE70)*100,1)) -> 0 | AO70: =SUM(AO69:AO69) -> 0 | AQ70: 0
T72: 6 | V72: ENERGY CHARGE:
T73: 7 | V73: ALL KWH | AA73: =H28 -> 0 | AC73: =INPUT!C140 -> 0.00554 | AE73: =ROUND((+AA73*AC73),0) -> 0 | AG73: 0 | AI73: =L28-AE73 -> 0 | AK73: =IF(AE73=0,0,ROUND((AI73/AE73)*100,1)) -> 0 | AO73: =AE73+AM73 -> 0 | AQ73: 0
T74: 8 | V74: ANCILLARY SERVICES | AA74: =H29 -> 0 | AC74: =INPUT!C144 -> 0.00074 | AE74: =ROUND((+AA74*AC74),0) -> 0 | AG74: 0 | AI74: =L29-AE74 -> 0 | AK74: =IF(AE74=0,0,ROUND((AI74/AE74)*100,1)) -> 0 | AO74: =AE74+AM74 -> 0 | AQ74: 0
T75: 9 | V75: COMMODITY CHARGES | AA75: =H30 -> 0 | AC75: =INPUT!C148 -> 0.050457 | AE75: =ROUND((+AA75*AC75),0) -> 0 | AG75: 0 | AI75: =L30-AE75 -> 0 | AK75: =IF(AE75=0,0,ROUND((AI75/AE75)*100,1)) -> 0 | AM75: =ROUND(-AA75*(CUR_FAC+CUR_BASE_FUEL),0) -> 0 | AO75: =AE75+AM75 -> 0 | AQ75: 0
T76: 10 | V76: TOTAL ENERGY | AA76: =H31 -> 0 | AE76: =SUM(AE73:AE75) -> 0 | AG76: 0 | AI76: =SUM(AI73:AI75) -> 0 | AK76: =IF(AE76=0,0,ROUND((AI76/AE76)*100,1)) -> 0 | AM76: =AM75 -> 0 | AO76: =SUM(AO73:AO75) -> 0 | AQ76: 0
T77: 11 | V77: TOTAL RATE DT RTP PRIMARY EXCLUDING RIDERS | Y77: =Y69 -> 0 | AA77: =AA76 -> 0 | AE77: =AE70+AE76 -> 0 | AG77: 0 | AI77: =AI70+AI76 -> 0 | AK77: =IF(AE77=0,0,ROUND((AI77/AE77)*100,1)) -> 0 | AM77: =AM76+AM70 -> 0 | AO77: =AO76+AO70 -> 0 | AQ77: 0
T79: 12 | V79: RIDERS:
T80: 13 | V80: DEMAND SIDE MANAGEMENT RIDER (DSMR) | AC80: =DSM_DIST -> 0.002576 | AE80: =ROUND(AA77*DSM_DIST,0) -> 0 | AG80: 0 | AI80: =L35-AE80 -> 0 | AK80: =IF(AE80=0,0,ROUND((AI80/AE80)*100,1)) -> 0 | AO80: =AE80+AM80 -> 0 | AQ80: 0
T81: 14 | V81: PROFIT SHARING MECHANISM (PSM) | AC81: =RS_PSM -> -0.000456 | AE81: =ROUND(AA77*RS_PSM,0) -> 0 | AG81: 0 | AI81: =L36-AE81 -> 0 | AK81: 0 | AO81: 0 | AQ81: 0
T82: 15 | V82: TOTAL RIDERS | AE82: =SUM(AE80:AE81) -> 0 | AG82: 0 | AI82: =SUM(AI80:AI81) -> 0 | AK82: 0 | AO82: =SUM(AO80:AO81) -> 0 | AQ82: 0
T84: 16 | V84: TOTAL RATE DT RTP PRIMARY INCLUDING RIDERS | Y84: =F39 -> 0 | AA84: =H39 -> 0 | AE84: =AE82+AE77 -> 0 | AG84: 100 | AI84: =AI82+AI77 -> 0 | AK84: =IF(AE84=0,0,ROUND((AI84/AE84)*100,1)) -> 0 | AM84: =AM82+AM77 -> 0 | AO84: =AO70+AO76 -> 0 | AQ84: 0
V86: (1) BILLS THAT TERMINATE IN RESPECTIVE RATE STEPS.

Sheet Rate DT RTP-P
A1: =NAME -> DUKE ENERGY KENTUCKY, INC.
A2: =CASE_NO -> CASE NO. 2017-00321
A3: =TITLE -> ANNUALIZED BASE YEAR REVENUES AT PROPOSED VS. MOST CURRENT RATES
A4: =DATE -> FOR THE TWELVE MONTHS ENDED November 30, 2017
A5: =SERVICE -> (ELECTRIC SERVICE)
A6: =DATA_PERIOD -> DATA: __X__ BASE PERIOD ____FORECASTED PERIOD | R6: SCHEDULE M-2.3
A7: =TYPE -> TYPE OF FILING: _X_ ORIGINAL ___UPDATED ___ REVISED | R7: PAGE xx OF 22
A8: WORK PAPER REFERENCE NO(S).: | R8: WITNESS:
A9: =TIME -> 6 Months Actual and 6 Months Projected | R9: =WIT -> B. L. SAILERS
A10: =INPUT!B5 -> 6 Months Actual Ending May 31, 2017
A11: PROPOSED ANNUALIZED
L13: PROPOSED | N13: % OF REV TO | R13: PROPOSED
L14: REVENUE LESS | N14: TOTAL LESS | R14: TOTAL
A15: LINE | C15: RATE | D15: CLASS / | F15: CUSTOMER | J15: PROPOSED | L15: FUEL COST | N15: FUEL COST | P15: FUEL COST | R15: REVENUE
A16: NO. | C16: CODE | D16: DESCRIPTION | F16: BILLS(1) | H16: SALES | J16: RATES | L16: REVENUE | N16: REVENUE | P16: REVENUE | R16: (F + H)
C17: (A) | D17: (B) | F17: (C) | H17: (D) | J17: (E) | L17: (F) | N17: (G) | P17: (H) | R17: (I)
H19: (KWH) | J19: ($/KWH) | L19: ($) | N19: (%) | P19: ($) | R19: ($)
A20: 1 | C20: DT RTP | D20: TIME OF DAY SERVICE AT PRIMARY
A21: 2 | D21: DISTRIBUTION VOLTAGE
A23: 3 | C23: CUSTOMER CHARGE:
A24: 4 | C24: BILLS (Real-Time Pricing) | F24: 0 | J24: =INPUT!D153 -> 183 | L24: =ROUND(+F24*J24,0) -> 0 | N24: 0 | R24: =L24+P24 -> 0
A25: 5 | C25: TOTAL CUSTOMER CHARGE | L25: =SUM(L24:L24) -> 0 | N25: 0 | R25: =SUM(R24:R24) -> 0
A27: 6 | C27: ENERGY CHARGE (3):
A28: 7 | C28: ALL KWH | H28: 0 | J28: =INPUT!D156 -> 0.012471 | L28: =ROUND((H28*J28),0) -> 0 | N28: 0 | R28: =L28+P28 -> 0
A29: 8 | C29: ANCILLARY SERVICES | H29: =H28 -> 0 | J29: =INPUT!D160 -> 0 | L29: =ROUND((H29*J29),0) -> 0 | N29: 0 | R29: =L29+P29 -> 0
A30: 9 | C30: COMMODITY CHARGES | H30: =H29 -> 0 | J30: =INPUT!D164 -> 0.02428 | L30: =ROUND((H30*J30),0) -> 0 | N30: 0 | P30: =ROUND(-H30*(CUR_FAC+CUR_BASE_FUEL),0) -> 0 | R30: =L30+P30 -> 0
A31: 10 | C31: TOTAL ENERGY | H31: =H28 -> 0 | L31: =SUM(L28:L30) -> 0 | N31: 0 | P31: =P30 -> 0 | R31: =SUM(R28:R30) -> 0
A32: 11 | C32: TOTAL RATE DT RTP PRIMARY EXCLUDING RIDERS | F32: =F24 -> 0 | H32: =H31 -> 0 | L32: =L31+L25 -> 0 | N32: 0 | P32: =P31 -> 0 | R32: =R25+R31 -> 0
A34: 12 | C34: RIDERS:
A35: 13 | C35: DEMAND SIDE MANAGEMENT RIDER (DSMR) | J35: =PRO_DSM_DIST -> 0.002576 | L35: =ROUND(H32*PRO_DSM_DIST,0) -> 0 | N35: 0 | R35: =L35+P35 -> 0
A36: 14 | C36: PROFIT SHARING MECHANISM (PSM) | J36: =PRO_PSM -> -0.000456 | L36: =ROUND(H32*PRO_PSM,0) -> 0 | N36: 0 | R36: 0
A37: 15 | C37: TOTAL RIDERS | L37: =SUM(L35:L36) -> 0 | N37: 0 | P37: =SUM(P35:P36) -> 0 | R37: =SUM(R35:R36) -> 0
A39: 16 | C39: TOTAL RATE DT RTP PRIMARY INCLUDING RIDERS | F39: =F32 -> 0 | H39: =H32 -> 0 | L39: =L37+L32 -> 0 | N39: 100 | P39: =P37+P32 -> 0 | R39: =R37+R32 -> 0
C41: (1) BILLS THAT TERMINATE IN RESPECTIVE RATE STEPS.
F42: 0 | H42: 0
T46: =NAME -> DUKE ENERGY KENTUCKY, INC.
T47: =CASE_NO -> CASE NO. 2017-00321
T48: =TITLE -> ANNUALIZED BASE YEAR REVENUES AT PROPOSED VS. MOST CURRENT RATES
T49: =DATE -> FOR THE TWELVE MONTHS ENDED November 30, 2017
T50: =SERVICE -> (ELECTRIC SERVICE)
T51: =DATA_PERIOD -> DATA: __X__ BASE PERIOD ____FORECASTED PERIOD | AO51: SCHEDULE M-2.2
T52: =TYPE -> TYPE OF FILING: _X_ ORIGINAL ___UPDATED ___ REVISED | AO52: =R7 -> PAGE xx OF 22
T53: WORK PAPER REFERENCE NO(S).: | AO53: WITNESS:
T54: =TIME -> 6 Months Actual and 6 Months Projected | AO54: =WIT -> B. L. SAILERS
T55: =INPUT!B5 -> 6 Months Actual Ending May 31, 2017
T56: CURRENT ANNUALIZED
AE58: CURRENT | AG58: % OF REV TO | AI58: REVENUE | AK58: % INCR IN | AO58: CURRENT | AQ58: TOTAL
AC59: MOST | AE59: REVENUE LESS | AG59: TOTAL LESS | AI59: INCR LESS | AK59: REV LESS | AO59: TOTAL | AQ59: REVENUE
T60: LINE | V60: RATE | W60: CLASS / | Y60: CUSTOMER | AC60: CURRENT | AE60: FUEL COST | AG60: FUEL COST | AI60: FUEL COST REV | AK60: FUEL COST REV | AM60: FUEL COST | AO60: REVENUE | AQ60: % INCREASE
T61: NO. | V61: CODE | W61: DESCRIPTION | Y61: BILLS(1) | AA61: SALES | AC61: RATES | AE61: REVENUE | AG61: REVENUE | AI61: (F - K) | AK61: (M / K) | AM61: REVENUE | AO61: (K + H) | AQ61: (M / K1)
V62: (A) | W62: (B) | Y62: (C) | AA62: (D) | AC62: (J) | AE62: (K) | AG62: (L) | AI62: (M) | AK62: (N) | AM62: (H) | AO62: (K1) | AQ62: (O)
AA64: (KWH) | AC64: ($/KWH) | AE64: ($) | AG64: (%) | AI64: ($) | AK64: (%) | AM64: ($) | AO64: ($) | AQ64: (%)
T65: 1 | V65: DT RTP | W65: TIME OF DAY SERVICE AT PRIMARY
T66: 2 | W66: DISTRIBUTION VOLTAGE
T68: 3 | V68: CUSTOMER CHARGE:
T69: 4 | V69: BILLS (Real-Time Pricing) | Y69: =F24 -> 0 | AC69: =INPUT!C153 -> 183 | AE69: =ROUND(+Y69*AC69,0) -> 0 | AG69: 0 | AI69: =L24-AE69 -> 0 | AK69: =IF(AE69=0,0,ROUND((AI69/AE69)*100,1)) -> 0 | AO69: =AE69+AM69 -> 0 | AQ69: 0
T70: 5 | V70: TOTAL CUSTOMER CHARGE | AE70: =SUM(AE69:AE69) -> 0 | AG70: 0 | AI70: =SUM(AI69:AI69) -> 0 | AK70: =IF(AE70=0,0,ROUND((AI70/AE70)*100,1)) -> 0 | AO70: =SUM(AO69:AO69) -> 0 | AQ70: 0
T72: 6 | V72: ENERGY CHARGE:
T73: 7 | V73: ALL KWH | AA73: =H28 -> 0 | AC73: =INPUT!C156 -> 0.00554 | AE73: =ROUND((+AA73*AC73),0) -> 0 | AG73: 0 | AI73: =L28-AE73 -> 0 | AK73: =IF(AE73=0,0,ROUND((AI73/AE73)*100,1)) -> 0 | AO73: =AE73+AM73 -> 0 | AQ73: 0
T74: 8 | V74: ANCILLARY SERVICES | AA74: =H29 -> 0 | AC74: =INPUT!C160 -> 0.00074 | AE74: =ROUND((+AA74*AC74),0) -> 0 | AG74: 0 | AI74: =L29-AE74 -> 0 | AK74: =IF(AE74=0,0,ROUND((AI74/AE74)*100,1)) -> 0 | AO74: =AE74+AM74 -> 0 | AQ74: 0
T75: 9 | V75: COMMODITY CHARGES | AA75: =H30 -> 0 | AC75: =INPUT!C164 -> 0.02428 | AE75: =ROUND((+AA75*AC75),0) -> 0 | AG75: 0 | AI75: =L30-AE75 -> 0 | AK75: =IF(AE75=0,0,ROUND((AI75/AE75)*100,1)) -> 0 | AM75: =ROUND(-AA75*(CUR_FAC+CUR_BASE_FUEL),0) -> 0 | AO75: =AE75+AM75 -> 0 | AQ75: 0
T76: 10 | V76: TOTAL ENERGY | AA76: =H31 -> 0 | AE76: =SUM(AE73:AE75) -> 0 | AG76: 0 | AI76: =SUM(AI73:AI75) -> 0 | AK76: =IF(AE76=0,0,ROUND((AI76/AE76)*100,1)) -> 0 | AM76: =AM75 -> 0 | AO76: =SUM(AO73:AO75) -> 0 | AQ76: 0
T77: 11 | V77: TOTAL RATE DT RTP PRIMARY EXCLUDING RIDERS | Y77: =Y69 -> 0 | AA77: =AA76 -> 0 | AE77: =AE70+AE76 -> 0 | AG77: 0 | AI77: =AI70+AI76 -> 0 | AK77: =IF(AE77=0,0,ROUND((AI77/AE77)*100,1)) -> 0 | AM77: =AM76+AM70 -> 0 | AO77: =AO76+AO70 -> 0 | AQ77: 0
T79: 12 | V79: RIDERS:
T80: 13 | V80: DEMAND SIDE MANAGEMENT RIDER (DSMR) | AC80: =DSM_DIST -> 0.002576 | AE80: =ROUND(AA77*DSM_DIST,0) -> 0 | AG80: 0 | AI80: =L35-AE80 -> 0 | AK80: =IF(AE80=0,0,ROUND((AI80/AE80)*100,1)) -> 0 | AO80: =AE80+AM80 -> 0 | AQ80: 0
T81: 14 | V81: PROFIT SHARING MECHANISM (PSM) | AC81: =RS_PSM -> -0.000456 | AE81: =ROUND(AA77*RS_PSM,0) -> 0 | AG81: 0 | AI81: =L36-AE81 -> 0 | AK81: 0 | AO81: 0 | AQ81: 0
T82: 15 | V82: TOTAL RIDERS | AE82: =SUM(AE80:AE81) -> 0 | AG82: 0 | AI82: =SUM(AI80:AI81) -> 0 | AK82: 0 | AO82: =SUM(AO80:AO81) -> 0 | AQ82: 0
T84: 16 | V84: TOTAL RATE DT RTP PRIMARY INCLUDING RIDERS | Y84: =F39 -> 0 | AA84: =H39 -> 0 | AE84: =AE82+AE77 -> 0 | AG84: 100 | AI84: =AI82+AI77 -> 0 | AK84: =IF(AE84=0,0,ROUND((AI84/AE84)*100,1)) -> 0 | AM84: =AM82+AM77 -> 0 | AO84: =AO70+AO76 -> 0 | AQ84: 0
V86: (1) BILLS THAT TERMINATE IN RESPECTIVE RATE STEPS.

Sheet Rate DT RTPM-S
A1: =NAME -> DUKE ENERGY KENTUCKY, INC.
A2: =CASE_NO -> CASE NO. 2017-00321
A3: =TITLE -> ANNUALIZED BASE YEAR REVENUES AT PROPOSED VS. MOST CURRENT RATES
A4: =DATE -> FOR THE TWELVE MONTHS ENDED November 30, 2017
A5: =SERVICE -> (ELECTRIC SERVICE)
A6: =DATA_PERIOD -> DATA: __X__ BASE PERIOD ____FORECASTED PERIOD | R6: SCHEDULE M-2.3
A7: =TYPE -> TYPE OF FILING: _X_ ORIGINAL ___UPDATED ___ REVISED | R7: PAGE xx OF 22
A8: WORK PAPER REFERENCE NO(S).: | R8: WITNESS:
A9: =TIME -> 6 Months Actual and 6 Months Projected | R9: =WIT -> B. L. SAILERS
A10: =INPUT!B5 -> 6 Months Actual Ending May 31, 2017
A11: PROPOSED ANNUALIZED
L13: PROPOSED | N13: % OF REV TO | R13: PROPOSED
L14: REVENUE LESS | N14: TOTAL LESS | R14: TOTAL
A15: LINE | C15: RATE | D15: CLASS / | F15: CUSTOMER | J15: PROPOSED | L15: FUEL COST | N15: FUEL COST | P15: FUEL COST | R15: REVENUE
A16: NO. | C16: CODE | D16: DESCRIPTION | F16: BILLS(1) | H16: SALES | J16: RATES | L16: REVENUE | N16: REVENUE | P16: REVENUE | R16: (F + H)
C17: (A) | D17: (B) | F17: (C) | H17: (D) | J17: (E) | L17: (F) | N17: (G) | P17: (H) | R17: (I)
H19: (KWH) | J19: ($/KWH) | L19: ($) | N19: (%) | P19: ($) | R19: ($)
A20: 1 | C20: DT RTP | D20: TIME OF DAY SERVICE AT SECONDARY
A21: 2 | D21: DISTRIBUTION VOLTAGE
A23: 3 | C23: CUSTOMER CHARGE:
A24: 4 | C24: BILLS (Real-Time Pricing) | F24: 0 | J24: =INPUT!D135 -> 0 | L24: =ROUND(F24*J24,0) -> 0 | N24: 0 | R24: =L24+P24 -> 0
A25: 5 | C25: TOTAL CUSTOMER CHARGE | L25: =SUM(L24) -> 0 | N25: 0 | R25: =SUM(R24) -> 0
A27: 6 | C27: ENERGY CHARGE:
A28: 7 | C28: ALL KWH | H28: 0 | J28: =INPUT!D139 -> 0 | L28: =ROUND((H28*J28),0) -> 0 | N28: 0 | R28: =L28+P28 -> 0
A29: 8 | C29: ANCILLARY SERVICES | H29: =H28 -> 0 | J29: =INPUT!D143 -> 0 | L29: =ROUND((H29*J29),0) -> 0 | N29: 0 | R29: =L29+P29 -> 0
A30: 9 | C30: COMMODITY CHARGES | H30: =H29 -> 0 | J30: =INPUT!D147 -> 0 | L30: =ROUND((H30*J30),0) -> 0 | N30: 0 | P30: =ROUND(-H30*(CUR_FAC+CUR_BASE_FUEL),0) -> 0 | R30: =L30+P30 -> 0
A31: 10 | C31: TOTAL ENERGY | H31: =H28 -> 0 | L31: =SUM(L28:L30) -> 0 | N31: 0 | P31: =P30 -> 0 | R31: =SUM(R28:R30) -> 0
A32: 11 | C32: TOTAL RATE DT RTP SECONDARY EXCLUDING RIDERS | F32: =F24 -> 0 | H32: =H31 -> 0 | L32: =L31+L25 -> 0 | N32: 0 | P32: =P31+P25 -> 0 | R32: =R31+R25 -> 0
A34: 12 | C34: RIDERS:
A35: 13 | C35: DEMAND SIDE MANAGEMENT RIDER (DSMR) | J35: =PRO_DSM_DIST -> 0.002576 | L35: =ROUND(H32*PRO_DSM_DIST,0) -> 0 | N35: 0 | R35: =L35+P35 -> 0
A36: 14 | C36: PROFIT SHARING MECHANISM (PSM) | J36: =PRO_PSM -> -0.000456 | L36: =ROUND(H32*PRO_PSM,0) -> 0 | N36: 0 | R36: 0
A37: 15 | C37: TOTAL RIDERS | L37: =SUM(L35:L36) -> 0 | N37: 0 | P37: =SUM(P35:P36) -> 0 | R37: =SUM(R35:R36) -> 0
A39: 16 | C39: TOTAL RATE DT RTP SECONDARY INCLUDING RIDERS | F39: =F32 -> 0 | H39: =H32 -> 0 | L39: =L37+L32 -> 0 | N39: 100 | P39: =P37+P32 -> 0 | R39: =R37+R32 -> 0
C41: (1) BILLS THAT TERMINATE IN RESPECTIVE RATE STEPS.
T45: =NAME -> DUKE ENERGY KENTUCKY, INC.
T46: =CASE_NO -> CASE NO. 2017-00321
T47: =TITLE -> ANNUALIZED BASE YEAR REVENUES AT PROPOSED VS. MOST CURRENT RATES
T48: =DATE -> FOR THE TWELVE MONTHS ENDED November 30, 2017
T49: =SERVICE -> (ELECTRIC SERVICE)
T50: =DATA_PERIOD -> DATA: __X__ BASE PERIOD ____FORECASTED PERIOD | AO50: SCHEDULE M-2.2
T51: =TYPE -> TYPE OF FILING: _X_ ORIGINAL ___UPDATED ___ REVISED | AO51: =R7 -> PAGE xx OF 22
T52: WORK PAPER REFERENCE NO(S).: | AO52: WITNESS:
T53: =TIME -> 6 Months Actual and 6 Months Projected | AO53: =WIT -> B. L. SAILERS
T54: =INPUT!B5 -> 6 Months Actual Ending May 31, 2017
T55: CURRENT ANNUALIZED
AE57: CURRENT | AG57: % OF REV TO | AI57: REVENUE | AK57: % INCR IN | AO57: CURRENT | AQ57: TOTAL
AC58: MOST | AE58: REVENUE LESS | AG58: TOTAL LESS | AI58: INCR LESS | AK58: REV LESS | AO58: TOTAL | AQ58: REVENUE
T59: LINE | V59: RATE | W59: CLASS / | Y59: CUSTOMER | AC59: CURRENT | AE59: FUEL COST | AG59: FUEL COST | AI59: FUEL COST REV | AK59: FUEL COST REV | AM59: FUEL COST | AO59: REVENUE | AQ59: % INCREASE
T60: NO. | V60: CODE | W60: DESCRIPTION | Y60: BILLS(1) | AA60: SALES | AC60: RATES | AE60: REVENUE | AG60: REVENUE | AI60: (F - K) | AK60: (M / K) | AM60: REVENUE | AO60: (K + H) | AQ60: (M / K1)
V61: (A) | W61: (B) | Y61: (C) | AA61: (D) | AC61: (J) | AE61: (K) | AG61: (L) | AI61: (M) | AK61: (N) | AM61: (H) | AO61: (K1) | AQ61: (O)
AA63: (KWH) | AC63: ($/KWH) | AE63: ($) | AG63: (%) | AI63: ($) | AK63: (%) | AM63: ($) | AO63: ($) | AQ63: (%)
T64: 1 | V64: DT RTP | W64: TIME OF DAY SERVICE AT SECONDARY
T65: 2 | W65: DISTRIBUTION VOLTAGE
T67: 3 | V67: CUSTOMER CHARGE:
T68: 4 | V68: BILLS (Real-Time Pricing) | Y68: =F24 -> 0 | AC68: =INPUT!C135 -> 198 | AE68: =ROUND(Y68*AC68,0) -> 0 | AG68: =ROUND((AE68/$AE$83)*100,1) ->  | AI68: =L24-AE68 -> 0 | AK68: =ROUND((AI68/AE68)*100,1) ->  | AO68: =AE68+AM68 -> 0 | AQ68: =ROUND((AI68/AO68)*100,1) -> 
T69: 5 | V69: TOTAL CUSTOMER CHARGE | AE69: =SUM(AE68) -> 0 | AG69: =ROUND((AE69/$AE$83)*100,1) ->  | AI69: =SUM(AI68) -> 0 | AK69: =ROUND((AI69/AE69)*100,1) ->  | AO69: =SUM(AO68) -> 0 | AQ69: =ROUND((AI69/AO69)*100,1) -> 
T71: 6 | V71: ENERGY CHARGE:
T72: 7 | V72: ALL KWH | AA72: =H28 -> 0 | AC72: =INPUT!C139 -> 0.006053 | AE72: =ROUND((AA72*AC72),0) -> 0 | AG72: =ROUND((AE72/$AE$83)*100,1) ->  | AI72: =L28-AE72 -> 0 | AK72: =ROUND((AI72/AE72)*100,1) ->  | AO72: =AE72+AM72 -> 0 | AQ72: =ROUND((AI72/AO72)*100,1) -> 
T73: 8 | V73: ANCILLARY SERVICES | AA73: =H29 -> 0 | AC73: =INPUT!C143 -> 0.00076 | AE73: =ROUND((AA73*AC73),0) -> 0 | AG73: =ROUND((AE73/$AE$83)*100,1) ->  | AI73: =L29-AE73 -> 0 | AK73: =ROUND((AI73/AE73)*100,1) ->  | AO73: =AE73+AM73 -> 0 | AQ73: =ROUND((AI73/AO73)*100,1) -> 
T74: 9 | V74: COMMODITY CHARGES | AA74: =H30 -> 0 | AC74: =INPUT!C147 -> 0.05185858333 | AE74: =ROUND((AA74*AC74),0) -> 0 | AG74: =ROUND((AE74/$AE$83)*100,1) ->  | AI74: =L30-AE74 -> 0 | AK74: =ROUND((AI74/AE74)*100,1) ->  | AM74: =ROUND(-AA74*(CUR_FAC+CUR_BASE_FUEL),0) -> 0 | AO74: =AE74+AM74 -> 0 | AQ74: =ROUND((AI74/AO74)*100,1) -> 
T75: 10 | V75: TOTAL ENERGY | AA75: =H31 -> 0 | AE75: =SUM(AE72:AE74) -> 0 | AG75: =ROUND((AE75/$AE$83)*100,1) ->  | AI75: =SUM(AI72:AI74) -> 0 | AK75: =ROUND((AI75/AE75)*100,1) ->  | AM75: =AM74 -> 0 | AO75: =SUM(AO72:AO74) -> 0 | AQ75: =ROUND((AI75/AO75)*100,1) -> 
T76: 11 | V76: TOTAL RATE DT RTP SECONDARY EXCLUDING RIDERS | Y76: =Y68 -> 0 | AA76: =AA75 -> 0 | AE76: =AE75+AE69 -> 0 | AG76: =ROUND((AE76/$AE$83)*100,1) ->  | AI76: =AI75+AI69 -> 0 | AK76: =ROUND((AI76/AE76)*100,1) ->  | AM76: =AM75+AM69 -> 0 | AO76: =AO75+AO69 -> 0 | AQ76: =ROUND((AI76/AO76)*100,1) -> 
T78: 12 | V78: RIDERS:
T79: 13 | V79: DEMAND SIDE MANAGEMENT RIDER (DSMR) | AC79: =DSM_DIST -> 0.002576 | AE79: =ROUND(AA76*DSM_DIST,0) -> 0 | AG79: =ROUND((AE79/$AE$83)*100,1)+0.1 ->  | AI79: =L35-AE79 -> 0 | AK79: =ROUND((AI79/AE79)*100,1) ->  | AO79: =AE79+AM79 -> 0 | AQ79: =ROUND((AI79/AO79)*100,1) -> 
T80: 14 | V80: PROFIT SHARING MECHANISM (PSM) | AC80: =RS_PSM -> -0.000456 | AE80: =ROUND(AA76*RS_PSM,0) -> 0 | AG80: =ROUND((AE80/$AE$83)*100,1) ->  | AI80: =L36-AE80 -> 0 | AO80: 0
T81: 15 | V81: TOTAL RIDERS | AE81: =SUM(AE79:AE80) -> 0 | AG81: =ROUND((AE81/$AE$83)*100,1) ->  | AI81: =SUM(AI79:AI80) -> 0 | AM81: =SUM(AM79:AM80) -> 0 | AO81: =SUM(AO79:AO80) -> 0
T83: 16 | V83: TOTAL RATE DT RTP SECONDARY INCLUDING RIDERS | Y83: =F39 -> 0 | AA83: =H39 -> 0 | AE83: =AE81+AE76 -> 0 | AG83: 100 | AI83: =AI81+AI76 -> 0 | AK83: =ROUND((AI83/AE83)*100,1) ->  | AM83: =AM81+AM76 -> 0 | AO83: =AO81+AO76 -> 0 | AQ83: =ROUND((AI83/AO83)*100,1) -> 
V85: (1) BILLS THAT TERMINATE IN RESPECTIVE RATE STEPS.

Sheet Rate DT RTP-S
A1: =NAME -> DUKE ENERGY KENTUCKY, INC.
A2: =CASE_NO -> CASE NO. 2017-00321
A3: =TITLE -> ANNUALIZED BASE YEAR REVENUES AT PROPOSED VS. MOST CURRENT RATES
A4: =DATE -> FOR THE TWELVE MONTHS ENDED November 30, 2017
A5: =SERVICE -> (ELECTRIC SERVICE)
A6: =DATA_PERIOD -> DATA: __X__ BASE PERIOD ____FORECASTED PERIOD | R6: SCHEDULE M-2.3
A7: =TYPE -> TYPE OF FILING: _X_ ORIGINAL ___UPDATED ___ REVISED | R7: PAGE 10 OF 22
A8: WORK PAPER REFERENCE NO(S).: | R8: WITNESS:
A9: =TIME -> 6 Months Actual and 6 Months Projected | R9: =WIT -> B. L. SAILERS
A10: =INPUT!B5 -> 6 Months Actual Ending May 31, 2017
A11: PROPOSED ANNUALIZED
L13: PROPOSED | N13: % OF REV TO | R13: PROPOSED
L14: REVENUE LESS | N14: TOTAL LESS | R14: TOTAL
A15: LINE | C15: RATE | D15: CLASS / | F15: CUSTOMER | J15: PROPOSED | L15: FUEL COST | N15: FUEL COST | P15: FUEL COST | R15: REVENUE
A16: NO. | C16: CODE | D16: DESCRIPTION | F16: BILLS(1) | H16: SALES | J16: RATES | L16: REVENUE | N16: REVENUE | P16: REVENUE | R16: (F + H)
C17: (A) | D17: (B) | F17: (C) | H17: (D) | J17: (E) | L17: (F) | N17: (G) | P17: (H) | R17: (I)
H19: (KWH) | J19: ($/KWH) | L19: ($) | N19: (%) | P19: ($) | R19: ($)
A20: 1 | C20: DT RTP | D20: TIME OF DAY SERVICE AT SECONDARY
A21: 2 | D21: DISTRIBUTION VOLTAGE
A23: 3 | C23: CUSTOMER CHARGE:
A24: 4 | C24: BILLS (Real-Time Pricing) | F24: 24 | J24: =INPUT!D153 -> 183 | L24: =ROUND(F24*J24,0) -> 4392 | N24: =ROUND((L24/$L$42)*100,1) -> 2.5 | R24: =L24+P24 -> 4392
A25: 5 | C25: TOTAL CUSTOMER CHARGE | L25: =SUM(L24) -> 4392 | N25: =ROUND((L25/$L$42)*100,1) -> 2.5 | R25: =SUM(R24) -> 4392
A27: 6 | C27: ENERGY CHARGE:
A28: 7 | C28: ALL KWH | H28: 4131069 | J28: =INPUT!D155 -> 0.015412 | L28: =ROUND((H28*J28),0) -> 63668 | N28: =ROUND((L28/$L$42)*100,1) -> 35.9 | R28: =L28+P28 -> 63668
A29: 8 | C29: ANCILLARY SERVICES | H29: =H28 -> 4131069 | J29: =INPUT!D159 -> 0 | L29: =ROUND((H29*J29),0) -> 0 | N29: =ROUND((L29/$L$42)*100,1) -> 0 | R29: =L29+P29 -> 0
A30: 9 | C30: COMMODITY CHARGES | H30: =H29 -> 4131069 | J30: =INPUT!D164 -> 0.02428 | L30: =ROUND((H30*J30),0) -> 100302 | N30: =ROUND((L30/$L$42)*100,1)+0.1 -> 56.7 | P30: 0 | R30: =L30+P30 -> 100302
A31: 10 | C31: TOTAL ENERGY | H31: =H28 -> 4131069 | L31: =SUM(L28:L30) -> 163970 | N31: =ROUND((L31/$L$42)*100,1) -> 92.6 | P31: =P30 -> 0 | R31: =SUM(R28:R30) -> 163970
A32: 11 | C32: TOTAL RATE DT RTP SECONDARY EXCLUDING RIDERS | F32: =F24 -> 24 | H32: =H31 -> 4131069 | L32: =L31+L25 -> 168362 | N32: =ROUND((L32/$L$42)*100,1) -> 95.1 | P32: =P31+P25 -> 0 | R32: =R31+R25 -> 168362
A34: 12 | C34: RIDERS:
A35: 13 | C35: =DSMR_Name -> DEMAND SIDE MANAGEMENT RIDER (DSMR) | J35: =PRO_DSM_DIST -> 0.002576 | L35: =ROUND(H32*PRO_DSM_DIST,0) -> 10642 | M35: =ROUND((K35/$L$42)*100,1) -> 0 | N35: =ROUND((L35/$L$42)*100,1) -> 6 | Q35: =K35+O35 -> 0 | R35: =L35+P35 -> 10642
A36: 14 | C36: =ESM_Name -> ENVIRONMENTAL SURCHARGE MECHANISM RIDER (ESM) | J36: =PRO_ESM -> 0 | L36: =ROUND(R32*J36,0) -> 0 | N36: =ROUND((L36/$L$42)*100,1) -> 0 | R36: 0
A37: 15 | C37: =DCI_Name -> DISTRIBUTION CAPITAL INVESTMENT RIDER (DCI) | H37: 0 | J37: =PRO_DCI_DTS -> 0 | L37: =ROUND(H37*J37,0) -> 0 | N37: =ROUND((L37/$L$42)*100,1) -> 0 | R37: 0
A38: 16 | C38: =FTR_Name -> FERC TRANSMISSION COST RECOVERY RECONCILIATION (FTR) | J38: =PRO_FTR_DTS -> 0 | L38: =ROUND(H32*J38,0) -> 0 | N38: =ROUND((L38/$L$42)*100,1) -> 0 | R38: =L38+P38 -> 0
A39: 17 | C39: =PSM_Name -> PROFIT SHARING MECHANISM (PSM) | J39: =PRO_PSM -> -0.000456 | L39: =ROUND(H32*PRO_PSM,0) -> -1884 | N39: =ROUND((L39/$L$42)*100,1) -> -1.1 | R39: -1884
A40: 18 | C40: TOTAL RIDERS | L40: =SUM(L35:L39) -> 8758 | N40: =ROUND((L40/$L$42)*100,1) -> 4.9 | P40: =SUM(P35:P39) -> 0 | R40: =SUM(R35:R39) -> 8758
A42: 19 | C42: TOTAL RATE DT RTP SECONDARY INCLUDING RIDERS | F42: =F32 -> 24 | H42: =H32 -> 4131069 | L42: =L40+L32 -> 177120 | N42: 100 | P42: =P40+P32 -> 0 | R42: =R40+R32 -> 177120
C44: (1) BILLS THAT TERMINATE IN RESPECTIVE RATE STEPS.
T48: =NAME -> DUKE ENERGY KENTUCKY, INC.
T49: =CASE_NO -> CASE NO. 2017-00321
T50: =TITLE -> ANNUALIZED BASE YEAR REVENUES AT PROPOSED VS. MOST CURRENT RATES
T51: =DATE -> FOR THE TWELVE MONTHS ENDED November 30, 2017
T52: =SERVICE -> (ELECTRIC SERVICE)
T53: =DATA_PERIOD -> DATA: __X__ BASE PERIOD ____FORECASTED PERIOD | AO53: SCHEDULE M-2.2
T54: =TYPE -> TYPE OF FILING: _X_ ORIGINAL ___UPDATED ___ REVISED | AO54: =R7 -> PAGE 10 OF 22
T55: WORK PAPER REFERENCE NO(S).: | AO55: WITNESS:
T56: =TIME -> 6 Months Actual and 6 Months Projected | AO56: =WIT -> B. L. SAILERS
T57: =INPUT!B5 -> 6 Months Actual Ending May 31, 2017
T58: CURRENT ANNUALIZED
AE60: CURRENT | AG60: % OF REV TO | AI60: REVENUE | AK60: % INCR IN | AO60: CURRENT | AQ60: TOTAL
AC61: MOST | AE61: REVENUE LESS | AG61: TOTAL LESS | AI61: INCR LESS | AK61: REV LESS | AO61: TOTAL | AQ61: REVENUE
T62: LINE | V62: RATE | W62: CLASS / | Y62: CUSTOMER | AC62: CURRENT | AE62: FUEL COST | AG62: FUEL COST | AI62: FUEL COST REV | AK62: FUEL COST REV | AM62: FUEL COST | AO62: REVENUE | AQ62: % INCREASE
T63: NO. | V63: CODE | W63: DESCRIPTION | Y63: BILLS(1) | AA63: SALES | AC63: RATES | AE63: REVENUE | AG63: REVENUE | AI63: (F - K) | AK63: (M / K) | AM63: REVENUE | AO63: (K + H) | AQ63: (M / K1)
V64: (A) | W64: (B) | Y64: (C) | AA64: (D) | AC64: (J) | AE64: (K) | AG64: (L) | AI64: (M) | AK64: (N) | AM64: (H) | AO64: (K1) | AQ64: (O)
AA66: (KWH) | AC66: ($/KWH) | AE66: ($) | AG66: (%) | AI66: ($) | AK66: (%) | AM66: ($) | AO66: ($) | AQ66: (%)
T67: 1 | V67: DT RTP | W67: TIME OF DAY SERVICE AT SECONDARY
T68: 2 | W68: DISTRIBUTION VOLTAGE
T70: 3 | V70: CUSTOMER CHARGE:
T71: 4 | V71: BILLS (Real-Time Pricing) | Y71: =F24 -> 24 | AC71: =INPUT!C153 -> 183 | AE71: =ROUND(Y71*AC71,0) -> 4392 | AG71: =ROUND((AE71/$AE$89)*100,1) -> 3.1 | AI71: =L24-AE71 -> 0 | AK71: =ROUND((AI71/AE71)*100,1) -> 0 | AO71: =AE71+AM71 -> 4392 | AQ71: =ROUND((AI71/AO71)*100,1) -> 0
T72: 5 | V72: TOTAL CUSTOMER CHARGE | AE72: =SUM(AE71) -> 4392 | AG72: =ROUND((AE72/$AE$89)*100,1) -> 3.1 | AI72: =SUM(AI71) -> 0 | AK72: =ROUND((AI72/AE72)*100,1) -> 0 | AO72: =SUM(AO71) -> 4392 | AQ72: =ROUND((AI72/AO72)*100,1) -> 0
T74: 6 | V74: ENERGY CHARGE:
T75: 7 | V75: ALL KWH | AA75: =H28 -> 4131069 | AC75: =INPUT!C155 -> 0.006053 | AE75: =ROUND((AA75*AC75),0) -> 25005 | AG75: =ROUND((AE75/$AE$89)*100,1) -> 17.7 | AI75: =L28-AE75 -> 38663 | AK75: =ROUND((AI75/AE75)*100,1) -> 154.6 | AO75: =AE75+AM75 -> 25005 | AQ75: =ROUND((AI75/AO75)*100,1) -> 154.6
T76: 8 | V76: ANCILLARY SERVICES | AA76: =H29 -> 4131069 | AC76: =INPUT!C159 -> 0.00076 | AE76: =ROUND((AA76*AC76),0) -> 3140 | AG76: =ROUND((AE76/$AE$89)*100,1) -> 2.2 | AI76: =L29-AE76 -> -3140 | AK76: =ROUND((AI76/AE76)*100,1) -> -100 | AO76: =AE76+AM76 -> 3140 | AQ76: =ROUND((AI76/AO76)*100,1) -> -100
T77: 9 | V77: COMMODITY CHARGES | AA77: =H30 -> 4131069 | AC77: =INPUT!C164 -> 0.02428 | AE77: =ROUND((AA77*AC77),0) -> 100302 | AG77: =ROUND((AE77/$AE$89)*100,1) -> 70.8 | AI77: =L30-AE77 -> 0 | AK77: =ROUND((AI77/AE77)*100,1) -> 0 | AM77: 0 | AO77: =AE77+AM77 -> 100302 | AQ77: =ROUND((AI77/AO77)*100,1) -> 0
T78: 10 | V78: TOTAL ENERGY | AA78: =H31 -> 4131069 | AE78: =SUM(AE75:AE77) -> 128447 | AG78: =ROUND((AE78/$AE$89)*100,1) -> 90.7 | AI78: =SUM(AI75:AI77) -> 35523 | AK78: =ROUND((AI78/AE78)*100,1) -> 27.7 | AM78: =AM77 -> 0 | AO78: =SUM(AO75:AO77) -> 128447 | AQ78: =ROUND((AI78/AO78)*100,1) -> 27.7
T79: 11 | V79: TOTAL RATE DT RTP SECONDARY EXCLUDING RIDERS | Y79: =Y71 -> 24 | AA79: =AA78 -> 4131069 | AE79: =AE78+AE72 -> 132839 | AG79: =ROUND((AE79/$AE$89)*100,1) -> 93.8 | AI79: =AI78+AI72 -> 35523 | AK79: =ROUND((AI79/AE79)*100,1) -> 26.7 | AM79: =AM78+AM72 -> 0 | AO79: =AO78+AO72 -> 132839 | AQ79: =ROUND((AI79/AO79)*100,1) -> 26.7
T81: =A34 -> 12 | V81: RIDERS:
T82: 13 | V82: =C35 -> DEMAND SIDE MANAGEMENT RIDER (DSMR) | AC82: =DSM_DIST -> 0.002576 | AE82: =ROUND(AA79*DSM_DIST,0) -> 10642 | AG82: =ROUND((AE82/$AE$89)*100,1) -> 7.5 | AI82: =L35-AE82 -> 0 | AK82: =ROUND((AI82/AE82)*100,1) -> 0 | AO82: =AE82+AM82 -> 10642 | AQ82: =ROUND((AI82/AO82)*100,1) -> 0
T83: 14 | V83: =C36 -> ENVIRONMENTAL SURCHARGE MECHANISM RIDER (ESM) | AC83: =CUR_ESM -> 0 | AE83: =ROUND(AO79*AC83,0) -> 0 | AG83: 0 | AI83: =L36-AE83 -> 0 | AK83: =IF(AE83=0,0,ROUND((AI83/AE83)*100,1)) -> 0 | AO83: =AE83+AM83 -> 0 | AQ83: =IF(AO83=0,0,ROUND((AI83/AO83)*100,1)) -> 0
T84: 15 | V84: =C37 -> DISTRIBUTION CAPITAL INVESTMENT RIDER (DCI) | AA84: =H37 -> 0 | AC84: =CUR_DCI_DTS -> 0 | AE84: =ROUND(AA84*AC84,0) -> 0 | AG84: 0 | AI84: =L37-AE84 -> 0 | AK84: =IF(AE84=0,0,ROUND((AI84/AE84)*100,1)) -> 0 | AO84: =AE84+AM84 -> 0 | AQ84: =IF(AO84=0,0,ROUND((AI84/AO84)*100,1)) -> 0
T85: 16 | V85: =C38 -> FERC TRANSMISSION COST RECOVERY RECONCILIATION (FTR) | AC85: =CUR_FTR_DTS -> 0 | AE85: =ROUND(AA79*AC85,0) -> 0 | AG85: 0 | AI85: =L38-AE85 -> 0 | AK85: =IF(AE85=0,0,ROUND((AI85/AE85)*100,1)) -> 0 | AO85: 0 | AQ85: =IF(AO85=0,0,ROUND((AI85/AO85)*100,1)) -> 0
T86: 17 | V86: =C39 -> PROFIT SHARING MECHANISM (PSM) | AC86: =RS_PSM -> -0.000456 | AE86: =ROUND(AA79*RS_PSM,0) -> -1884 | AG86: -1.3 | AI86: =L39-AE86 -> 0 | AK86: 0 | AO86: -1884 | AQ86: 0
T87: 18 | V87: TOTAL RIDERS | AE87: =SUM(AE82:AE86) -> 8758 | AG87: 6.2 | AI87: =SUM(AI82:AI86) -> 0 | AK87: 0 | AM87: =SUM(AM82:AM86) -> 0 | AO87: =SUM(AO82:AO86) -> 8758 | AQ87: 0
T89: =A42 -> 19 | V89: TOTAL RATE DT RTP SECONDARY INCLUDING RIDERS | Y89: =F42 -> 24 | AA89: =H42 -> 4131069 | AE89: =AE87+AE79 -> 141597 | AG89: 100 | AI89: =AI87+AI79 -> 35523 | AK89: =ROUND((AI89/AE89)*100,1) -> 25.1 | AM89: =AM87+AM79 -> 0 | AO89: =AO87+AO79 -> 141597 | AQ89: =ROUND((AI89/AO89)*100,1) -> 25.1
V91: (1) BILLS THAT TERMINATE IN RESPECTIVE RATE STEPS.

Sheet Rate DS RTPM
A1: =NAME -> DUKE ENERGY KENTUCKY, INC.
A2: =CASE_NO -> CASE NO. 2017-00321
A3: =TITLE -> ANNUALIZED BASE YEAR REVENUES AT PROPOSED VS. MOST CURRENT RATES
A4: =DATE -> FOR THE TWELVE MONTHS ENDED November 30, 2017
A5: =SERVICE -> (ELECTRIC SERVICE)
A6: =DATA_PERIOD -> DATA: __X__ BASE PERIOD ____FORECASTED PERIOD | R6: SCHEDULE M-2.3
A7: =TYPE -> TYPE OF FILING: _X_ ORIGINAL ___UPDATED ___ REVISED | R7: PAGE xx OF 22
A8: WORK PAPER REFERENCE NO(S).: | R8: WITNESS:
A9: =TIME -> 6 Months Actual and 6 Months Projected | R9: =WIT -> B. L. SAILERS
A10: =INPUT!B5 -> 6 Months Actual Ending May 31, 2017
A11: PROPOSED ANNUALIZED
L13: PROPOSED | N13: % OF REV TO | R13: PROPOSED
L14: REVENUE LESS | N14: TOTAL LESS | R14: TOTAL
A15: LINE | C15: RATE | D15: CLASS / | F15: CUSTOMER | J15: PROPOSED | L15: FUEL COST | N15: FUEL COST | P15: FUEL COST | R15: REVENUE
A16: NO. | C16: CODE | D16: DESCRIPTION | F16: BILLS(1) | H16: SALES | J16: RATES | L16: REVENUE | N16: REVENUE | P16: REVENUE | R16: (F + H)
C17: (A) | D17: (B) | F17: (C) | H17: (D) | J17: (E) | L17: (F) | N17: (G) | P17: (H) | R17: (I)
H19: (KWH) | J19: ($/KWH) | L19: ($) | N19: (%) | P19: ($) | R19: ($)
A20: 1 | C20: DS RTP | D20: SERVICE AT SECONDARY
A21: 2 | D21: DISTRIBUTION VOLTAGE
A23: 3 | C23: CUSTOMER CHARGE:
A24: 4 | C24: BILLS (Real-Time Pricing) | F24: 0 | J24: =INPUT!D135 -> 0 | L24: =ROUND(F24*J24,0) -> 0 | N24: 0 | R24: =L24+P24 -> 0
A25: 5 | C25: TOTAL CUSTOMER CHARGE | L25: =SUM(L24:L24) -> 0 | N25: 0 | R25: =SUM(R24:R24) -> 0
A27: 6 | C27: ENERGY CHARGE:
A28: 7 | C28: ALL KWH | H28: 0 | J28: =INPUT!D139 -> 0 | L28: =ROUND((H28*J28),0) -> 0 | N28: 0 | R28: =L28+P28 -> 0
A29: 8 | C29: ANCILLARY SERVICES | H29: =H28 -> 0 | J29: =INPUT!D143 -> 0 | L29: =ROUND((H29*J29),0) -> 0 | N29: 0 | R29: =L29+P29 -> 0
A30: 9 | C30: COMMODITY CHARGES | H30: =H29 -> 0 | J30: =INPUT!D147 -> 0 | L30: =ROUND((H30*J30),0) -> 0 | N30: 0 | P30: =ROUND(-H30*(CUR_FAC+CUR_BASE_FUEL),0) -> 0 | R30: =L30+P30 -> 0
A31: 10 | C31: TOTAL ENERGY | H31: =H28 -> 0 | L31: =SUM(L28:L30) -> 0 | N31: 0 | P31: =P30 -> 0 | R31: =SUM(R28:R30) -> 0
A32: 11 | C32: TOTAL RATE DS RTP EXCLUDING RIDERS | F32: =F24 -> 0 | H32: =H31 -> 0 | L32: =L31+L25 -> 0 | N32: 0 | P32: =P31+P25 -> 0 | R32: =R31+R25 -> 0
A34: 12 | C34: RIDERS:
A35: 13 | C35: DEMAND SIDE MANAGEMENT RIDER (DSMR) | J35: =PRO_DSM_DIST -> 0.002576 | L35: =ROUND(H32*PRO_DSM_DIST,0) -> 0 | N35: 0 | R35: =L35+P35 -> 0
A36: 14 | C36: PROFIT SHARING MECHANISM (PSM) | J36: =PRO_PSM -> -0.000456 | L36: =ROUND(H32*PRO_PSM,0) -> 0 | N36: 0 | R36: 0
A37: 15 | C37: TOTAL RIDERS | L37: =SUM(L35:L36) -> 0 | N37: 0 | P37: =SUM(P35:P36) -> 0 | R37: =SUM(R35:R36) -> 0
A39: 16 | C39: TOTAL RATE DS RTP INCLUDING RIDERS | F39: =F32 -> 0 | H39: =H32 -> 0 | L39: =L37+L32 -> 0 | N39: 100 | P39: =P37+P32 -> 0 | R39: =R37+R32 -> 0
C41: (1) BILLS THAT TERMINATE IN RESPECTIVE RATE STEPS.
T45: =NAME -> DUKE ENERGY KENTUCKY, INC.
T46: =CASE_NO -> CASE NO. 2017-00321
T47: =TITLE -> ANNUALIZED BASE YEAR REVENUES AT PROPOSED VS. MOST CURRENT RATES
T48: =DATE -> FOR THE TWELVE MONTHS ENDED November 30, 2017
T49: =SERVICE -> (ELECTRIC SERVICE)
T50: =DATA_PERIOD -> DATA: __X__ BASE PERIOD ____FORECASTED PERIOD | AO50: SCHEDULE M-2.2
T51: =TYPE -> TYPE OF FILING: _X_ ORIGINAL ___UPDATED ___ REVISED | AO51: =R7 -> PAGE xx OF 22
T52: WORK PAPER REFERENCE NO(S).: | AO52: WITNESS:
T53: =TIME -> 6 Months Actual and 6 Months Projected | AO53: =WIT -> B. L. SAILERS
T54: =INPUT!B5 -> 6 Months Actual Ending May 31, 2017
T55: CURRENT ANNUALIZED
AE57: CURRENT | AG57: % OF REV TO | AI57: REVENUE | AK57: % INCR IN | AO57: CURRENT | AQ57: TOTAL
AC58: MOST | AE58: REVENUE LESS | AG58: TOTAL LESS | AI58: INCR LESS | AK58: REV LESS | AO58: TOTAL | AQ58: REVENUE
T59: LINE | V59: RATE | W59: CLASS / | Y59: CUSTOMER | AC59: CURRENT | AE59: FUEL COST | AG59: FUEL COST | AI59: FUEL COST REV | AK59: FUEL COST REV | AM59: FUEL COST | AO59: REVENUE | AQ59: % INCREASE
T60: NO. | V60: CODE | W60: DESCRIPTION | Y60: BILLS(1) | AA60: SALES | AC60: RATES | AE60: REVENUE | AG60: REVENUE | AI60: (F - K) | AK60: (M / K) | AM60: REVENUE | AO60: (K + H) | AQ60: (M / K1)
V61: (A) | W61: (B) | Y61: (C) | AA61: (D) | AC61: (J) | AE61: (K) | AG61: (L) | AI61: (M) | AK61: (N) | AM61: (H) | AO61: (K1) | AQ61: (O)
AA63: (KWH) | AC63: ($/KWH) | AE63: ($) | AG63: (%) | AI63: ($) | AK63: (%) | AM63: ($) | AO63: ($) | AQ63: (%)
T64: 1 | V64: DS RTP | W64: SERVICE AT SECONDARY
T65: 2 | W65: DISTRIBUTION VOLTAGE
T67: 3 | V67: CUSTOMER CHARGE:
T68: 4 | V68: BILLS (Real-Time Pricing) | Y68: =F24 -> 0 | AC68: =INPUT!C135 -> 198 | AE68: =ROUND(Y68*AC68,0) -> 0 | AG68: =ROUND((AE68/AE$83)*100,1) ->  | AI68: =L24-AE68 -> 0 | AK68: =ROUND((AI68/AE68)*100,1) ->  | AO68: =AE68+AM68 -> 0 | AQ68: =IF(AO68=0,"0.0 ",ROUND((AI68/AO68)*100,1)) -> 0.0
T69: 5 | V69: TOTAL CUSTOMER CHARGE | AE69: =SUM(AE68:AE68) -> 0 | AG69: =ROUND((AE69/AE$83)*100,1) ->  | AI69: =SUM(AI68:AI68) -> 0 | AK69: =ROUND((AI69/AE69)*100,1) ->  | AO69: =SUM(AO68:AO68) -> 0 | AQ69: =IF(AO69=0,"0.0 ",ROUND((AI69/AO69)*100,1)) -> 0.0
T71: 6 | V71: ENERGY CHARGE:
T72: 7 | V72: ALL KWH | AA72: =H28 -> 0 | AC72: =INPUT!C139 -> 0.006053 | AE72: =ROUND((AA72*AC72),0) -> 0 | AG72: =ROUND((AE72/AE$83)*100,1) ->  | AI72: =L28-AE72 -> 0 | AK72: =ROUND((AI72/AE72)*100,1) ->  | AO72: =AE72+AM72 -> 0 | AQ72: =IF(AO72=0,"0.0 ",ROUND((AI72/AO72)*100,1)) -> 0.0
T73: 8 | V73: ANCILLARY SERVICES | AA73: =H29 -> 0 | AC73: =INPUT!C143 -> 0.00076 | AE73: =ROUND((AA73*AC73),0) -> 0 | AG73: =ROUND((AE73/AE$83)*100,1) ->  | AI73: =L29-AE73 -> 0 | AK73: =ROUND((AI73/AE73)*100,1) ->  | AO73: =AE73+AM73 -> 0 | AQ73: =IF(AO73=0,"0.0 ",ROUND((AI73/AO73)*100,1)) -> 0.0
T74: 9 | V74: COMMODITY CHARGES | AA74: =H30 -> 0 | AC74: =INPUT!C147 -> 0.05185858333 | AE74: =ROUND((AA74*AC74),0) -> 0 | AG74: =ROUND((AE74/AE$83)*100,1) ->  | AI74: =L30-AE74 -> 0 | AK74: =ROUND((AI74/AE74)*100,1) ->  | AM74: =ROUND(-AA74*(CUR_FAC+CUR_BASE_FUEL),0) -> 0 | AO74: =AE74+AM74 -> 0 | AQ74: =IF(AO74=0,"0.0 ",ROUND((AI74/AO74)*100,1)) -> 0.0
T75: 10 | V75: TOTAL ENERGY | AA75: =H31 -> 0 | AE75: =SUM(AE72:AE74) -> 0 | AG75: =ROUND((AE75/AE$83)*100,1) ->  | AI75: =SUM(AI72:AI74) -> 0 | AK75: =ROUND((AI75/AE75)*100,1) ->  | AM75: =AM74 -> 0 | AO75: =SUM(AO72:AO74) -> 0 | AQ75: =IF(AO75=0,"0.0 ",ROUND((AI75/AO75)*100,1)) -> 0.0
T76: 11 | V76: TOTAL RATE DS RTP EXCLUDING RIDERS | Y76: =Y68 -> 0 | AA76: =AA75 -> 0 | AE76: =AE75+AE69 -> 0 | AG76: =ROUND((AE76/AE$83)*100,1) ->  | AI76: =AI75+AI69 -> 0 | AK76: =ROUND((AI76/AE76)*100,1) ->  | AM76: =AM75+AM69 -> 0 | AO76: =AO75+AO69 -> 0 | AQ76: =IF(AO76=0,"0.0 ",ROUND((AI76/AO76)*100,1)) -> 0.0
T78: 12 | V78: RIDERS:
T79: 13 | V79: DEMAND SIDE MANAGEMENT RIDER (DSMR) | AC79: =DSM_DIST -> 0.002576 | AE79: =ROUND(AA76*DSM_DIST,0) -> 0 | AG79: =ROUND((AE79/AE$83)*100,1) ->  | AI79: =L35-AE79 -> 0 | AK79: =ROUND((AI79/AE79)*100,1) ->  | AO79: =AE79+AM79 -> 0 | AQ79: =IF(AO79=0,"0.0 ",ROUND((AI79/AO79)*100,1)) -> 0.0
T80: 14 | V80: PROFIT SHARING MECHANISM (PSM) | AC80: =RS_PSM -> -0.000456 | AE80: =ROUND(AA76*RS_PSM,0) -> 0 | AG80: =ROUND((AE80/AE$83)*100,1) ->  | AI80: =L36-AE80 -> 0 | AO80: 0 | AQ80: 0.0
T81: 15 | V81: TOTAL RIDERS | AE81: =SUM(AE79:AE80) -> 0 | AG81: =ROUND((AE81/AE$83)*100,1) ->  | AI81: =SUM(AI79:AI80) -> 0 | AM81: =SUM(AM79:AM80) -> 0 | AO81: =SUM(AO79:AO80) -> 0 | AQ81: 0.0
T83: 16 | V83: TOTAL RATE DS RTP INCLUDING RIDERS | Y83: =Y76 -> 0 | AA83: =AA76 -> 0 | AE83: =AE81+AE76 -> 0 | AG83: 100 | AI83: =AI81+AI76 -> 0 | AK83: =ROUND((AI83/AE83)*100,1) ->  | AM83: =AM81+AM76 -> 0 | AO83: =AO81+AO76 -> 0 | AQ83: =IF(AO83=0,"0.0 ",ROUND((AI83/AO83)*100,1)) -> 0.0
V85: (1) BILLS THAT TERMINATE IN RESPECTIVE RATE STEPS.

Sheet Rate DS RTP
A1: =NAME -> DUKE ENERGY KENTUCKY, INC.
A2: =CASE_NO -> CASE NO. 2017-00321
A3: =TITLE -> ANNUALIZED BASE YEAR REVENUES AT PROPOSED VS. MOST CURRENT RATES
A4: =DATE -> FOR THE TWELVE MONTHS ENDED November 30, 2017
A5: =SERVICE -> (ELECTRIC SERVICE)
A6: =DATA_PERIOD -> DATA: __X__ BASE PERIOD ____FORECASTED PERIOD | R6: SCHEDULE M-2.3
A7: =TYPE -> TYPE OF FILING: _X_ ORIGINAL ___UPDATED ___ REVISED | R7: PAGE 11 OF 22
A8: WORK PAPER REFERENCE NO(S).: | R8: WITNESS:
A9: =TIME -> 6 Months Actual and 6 Months Projected | R9: =WIT -> B. L. SAILERS
A10: =INPUT!B5 -> 6 Months Actual Ending May 31, 2017
A11: PROPOSED ANNUALIZED
L13: PROPOSED | N13: % OF REV TO | R13: PROPOSED
L14: REVENUE LESS | N14: TOTAL LESS | R14: TOTAL
A15: LINE | C15: RATE | D15: CLASS / | F15: CUSTOMER | J15: PROPOSED | L15: FUEL COST | N15: FUEL COST | P15: FUEL COST | R15: REVENUE
A16: NO. | C16: CODE | D16: DESCRIPTION | F16: BILLS(1) | H16: SALES | J16: RATES | L16: REVENUE | N16: REVENUE | P16: REVENUE | R16: (F + H)
C17: (A) | D17: (B) | F17: (C) | H17: (D) | J17: (E) | L17: (F) | N17: (G) | P17: (H) | R17: (I)
H19: (KWH) | J19: ($/KWH) | L19: ($) | N19: (%) | P19: ($) | R19: ($)
A20: 1 | C20: DS RTP | D20: SERVICE AT SECONDARY
A21: 2 | D21: DISTRIBUTION VOLTAGE
A23: 3 | C23: CUSTOMER CHARGE:
A24: 4 | C24: BILLS (Real-Time Pricing) | F24: 36 | J24: =INPUT!D153 -> 183 | L24: =ROUND(F24*J24,0) -> 6588 | N24: =ROUND((L24/L$42)*100,1) -> 23.1 | R24: =L24+P24 -> 6588
A25: 5 | C25: TOTAL CUSTOMER CHARGE | L25: =SUM(L24:L24) -> 6588 | N25: =ROUND((L25/L$42)*100,1) -> 23.1 | R25: =SUM(R24:R24) -> 6588
A27: 6 | C27: ENERGY CHARGE:
A28: 7 | C28: ALL KWH | H28: 299922 | J28: =INPUT!D155 -> 0.015412 | L28: =ROUND((H28*J28),0) -> 4622 | N28: =ROUND((L28/L$42)*100,1) -> 16.2 | R28: =L28+P28 -> 4622
A29: 8 | C29: ANCILLARY SERVICES | H29: =H28 -> 299922 | J29: =INPUT!D159 -> 0 | L29: =ROUND((H29*J29),0) -> 0 | N29: =ROUND((L29/L$42)*100,1) -> 0 | R29: =L29+P29 -> 0
A30: 9 | C30: COMMODITY CHARGES | H30: =H29 -> 299922 | J30: =INPUT!D163 -> 0.055529 | L30: =ROUND((H30*J30),0) -> 16654 | N30: =ROUND((L30/L$42)*100,1)+0.1 -> 58.5 | P30: 0 | R30: =L30+P30 -> 16654
A31: 10 | C31: TOTAL ENERGY | H31: =H28 -> 299922 | L31: =SUM(L28:L30) -> 21276 | N31: =ROUND((L31/L$42)*100,1) -> 74.7 | P31: =P30 -> 0 | R31: =SUM(R28:R30) -> 21276
A32: 11 | C32: TOTAL RATE DS RTP EXCLUDING RIDERS | F32: =F24 -> 36 | H32: =H31 -> 299922 | L32: =L31+L25 -> 27864 | N32: =ROUND((L32/L$42)*100,1) -> 97.8 | P32: =P31+P25 -> 0 | R32: =R31+R25 -> 27864
A34: 12 | C34: RIDERS:
A35: 13 | C35: =DSMR_Name -> DEMAND SIDE MANAGEMENT RIDER (DSMR) | J35: =PRO_DSM_DIST -> 0.002576 | L35: =ROUND($H$32*J35,0) -> 773 | N35: =ROUND((L35/L$42)*100,1) -> 2.7 | R35: =L35+P35 -> 773
A36: 14 | C36: =ESM_Name -> ENVIRONMENTAL SURCHARGE MECHANISM RIDER (ESM) | J36: =PRO_ESM -> 0 | L36: =ROUND(R32*J36,0) -> 0 | N36: 0 | R36: =L36+P36 -> 0
A37: 15 | C37: =DCI_Name -> DISTRIBUTION CAPITAL INVESTMENT RIDER (DCI) | J37: =PRO_DCI_DIST -> 0 | L37: =ROUND(H37*J37,0) -> 0 | N37: 0 | R37: =L37+P37 -> 0
A38: 16 | C38: =FTR_Name -> FERC TRANSMISSION COST RECOVERY RECONCILIATION (FTR) | J38: =PRO_FTR_DIST -> 0 | L38: =ROUND(H32*J38,0) -> 0 | N38: 0 | R38: 0
A39: 17 | C39: =PSM_Name -> PROFIT SHARING MECHANISM (PSM) | J39: =PRO_PSM -> -0.000456 | L39: =ROUND(H32*PRO_PSM,0) -> -137 | N39: -0.5 | R39: -137
A40: 18 | C40: TOTAL RIDERS | L40: =SUM(L35:L39) -> 636 | N40: 2.2 | P40: =SUM(P35:P39) -> 0 | R40: =SUM(R35:R39) -> 636
A42: 19 | C42: TOTAL RATE DS RTP INCLUDING RIDERS | F42: =F32 -> 36 | H42: =H32 -> 299922 | L42: =L40+L32 -> 28500 | N42: 100 | P42: =P40+P32 -> 0 | R42: =R40+R32 -> 28500
C44: (1) BILLS THAT TERMINATE IN RESPECTIVE RATE STEPS.
T48: =NAME -> DUKE ENERGY KENTUCKY, INC.
T49: =CASE_NO -> CASE NO. 2017-00321
T50: =TITLE -> ANNUALIZED BASE YEAR REVENUES AT PROPOSED VS. MOST CURRENT RATES
T51: =DATE -> FOR THE TWELVE MONTHS ENDED November 30, 2017
T52: =SERVICE -> (ELECTRIC SERVICE)
T53: =DATA_PERIOD -> DATA: __X__ BASE PERIOD ____FORECASTED PERIOD | AO53: SCHEDULE M-2.2
T54: =TYPE -> TYPE OF FILING: _X_ ORIGINAL ___UPDATED ___ REVISED | AO54: =R7 -> PAGE 11 OF 22
T55: WORK PAPER REFERENCE NO(S).: | AO55: WITNESS:
T56: =TIME -> 6 Months Actual and 6 Months Projected | AO56: =WIT -> B. L. SAILERS
T57: =INPUT!B5 -> 6 Months Actual Ending May 31, 2017
T58: CURRENT ANNUALIZED
AE60: CURRENT | AG60: % OF REV TO | AI60: REVENUE | AK60: % INCR IN | AO60: CURRENT | AQ60: TOTAL
AC61: MOST | AE61: REVENUE LESS | AG61: TOTAL LESS | AI61: INCR LESS | AK61: REV LESS | AO61: TOTAL | AQ61: REVENUE
T62: LINE | V62: RATE | W62: CLASS / | Y62: CUSTOMER | AC62: CURRENT | AE62: FUEL COST | AG62: FUEL COST | AI62: FUEL COST REV | AK62: FUEL COST REV | AM62: FUEL COST | AO62: REVENUE | AQ62: % INCREASE
T63: NO. | V63: CODE | W63: DESCRIPTION | Y63: BILLS(1) | AA63: SALES | AC63: RATES | AE63: REVENUE | AG63: REVENUE | AI63: (F - K) | AK63: (M / K) | AM63: REVENUE | AO63: (K + H) | AQ63: (M / K1)
V64: (A) | W64: (B) | Y64: (C) | AA64: (D) | AC64: (J) | AE64: (K) | AG64: (L) | AI64: (M) | AK64: (N) | AM64: (H) | AO64: (K1) | AQ64: (O)
AA66: (KWH) | AC66: ($/KWH) | AE66: ($) | AG66: (%) | AI66: ($) | AK66: (%) | AM66: ($) | AO66: ($) | AQ66: (%)
T67: 1 | V67: DS RTP | W67: SERVICE AT SECONDARY
T68: 2 | W68: DISTRIBUTION VOLTAGE
T70: 3 | V70: CUSTOMER CHARGE:
T71: 4 | V71: BILLS (Real-Time Pricing) | Y71: =F24 -> 36 | AC71: =INPUT!C153 -> 183 | AE71: =ROUND(Y71*AC71,0) -> 6588 | AG71: =ROUND((AE71/AE$89)*100,1) -> 25.4 | AI71: =L24-AE71 -> 0 | AK71: =ROUND((AI71/AE71)*100,1) -> 0 | AO71: =AE71+AM71 -> 6588 | AQ71: =IF(AO71=0,"0.0 ",ROUND((AI71/AO71)*100,1)) -> 0
T72: 5 | V72: TOTAL CUSTOMER CHARGE | AE72: =SUM(AE71:AE71) -> 6588 | AG72: =ROUND((AE72/AE$89)*100,1) -> 25.4 | AI72: =SUM(AI71:AI71) -> 0 | AK72: =ROUND((AI72/AE72)*100,1) -> 0 | AO72: =SUM(AO71:AO71) -> 6588 | AQ72: =IF(AO72=0,"0.0 ",ROUND((AI72/AO72)*100,1)) -> 0
T74: 6 | V74: ENERGY CHARGE:
T75: 7 | V75: ALL KWH | AA75: =H28 -> 299922 | AC75: =INPUT!C155 -> 0.006053 | AE75: =ROUND((AA75*AC75),0) -> 1815 | AG75: =ROUND((AE75/AE$89)*100,1) -> 7 | AI75: =L28-AE75 -> 2807 | AK75: =ROUND((AI75/AE75)*100,1) -> 154.7 | AO75: =AE75+AM75 -> 1815 | AQ75: =IF(AO75=0,"0.0 ",ROUND((AI75/AO75)*100,1)) -> 154.7
T76: 8 | V76: ANCILLARY SERVICES | AA76: =H29 -> 299922 | AC76: =INPUT!C159 -> 0.00076 | AE76: =ROUND((AA76*AC76),0) -> 228 | AG76: =ROUND((AE76/AE$89)*100,1) -> 0.9 | AI76: =L29-AE76 -> -228 | AK76: =ROUND((AI76/AE76)*100,1) -> -100 | AO76: =AE76+AM76 -> 228 | AQ76: =IF(AO76=0,"0.0 ",ROUND((AI76/AO76)*100,1)) -> -100
T77: 9 | V77: COMMODITY CHARGES | AA77: =H30 -> 299922 | AC77: =INPUT!C163 -> 0.055529 | AE77: =ROUND((AA77*AC77),0) -> 16654 | AG77: =ROUND((AE77/AE$89)*100,1) -> 64.2 | AI77: =L30-AE77 -> 0 | AK77: =ROUND((AI77/AE77)*100,1) -> 0 | AM77: 0 | AO77: =AE77+AM77 -> 16654 | AQ77: =IF(AO77=0,"0.0 ",ROUND((AI77/AO77)*100,1)) -> 0
T78: 10 | V78: TOTAL ENERGY | AA78: =H31 -> 299922 | AE78: =SUM(AE75:AE77) -> 18697 | AG78: =ROUND((AE78/AE$89)*100,1) -> 72.1 | AI78: =SUM(AI75:AI77) -> 2579 | AK78: =ROUND((AI78/AE78)*100,1) -> 13.8 | AM78: =AM77 -> 0 | AO78: =SUM(AO75:AO77) -> 18697 | AQ78: =IF(AO78=0,"0.0 ",ROUND((AI78/AO78)*100,1)) -> 13.8
T79: 11 | V79: TOTAL RATE DS RTP EXCLUDING RIDERS | Y79: =Y71 -> 36 | AA79: =AA78 -> 299922 | AE79: =AE78+AE72 -> 25285 | AG79: =ROUND((AE79/AE$89)*100,1) -> 97.5 | AI79: =AI78+AI72 -> 2579 | AK79: =ROUND((AI79/AE79)*100,1) -> 10.2 | AM79: =AM78+AM72 -> 0 | AO79: =AO78+AO72 -> 25285 | AQ79: =IF(AO79=0,"0.0 ",ROUND((AI79/AO79)*100,1)) -> 10.2
T81: =A34 -> 12 | V81: RIDERS:
T82: 13 | V82: =C35 -> DEMAND SIDE MANAGEMENT RIDER (DSMR) | AC82: =DSM_DIST -> 0.002576 | AE82: =ROUND($AA$79*AC82,0) -> 773 | AG82: =ROUND((AE82/AE$89)*100,1) -> 3 | AI82: =L35-AE82 -> 0 | AK82: =IF(AE82=0,0,ROUND((AI82/AE82)*100,1)) -> 0 | AO82: =AE82+AM82 -> 773 | AQ82: =IF(AO82=0,"0.0 ",ROUND((AI82/AO82)*100,1)) -> 0
T83: 14 | V83: =C36 -> ENVIRONMENTAL SURCHARGE MECHANISM RIDER (ESM) | AC83: =CUR_ESM -> 0 | AE83: =ROUND(AO79*AC83,0) -> 0 | AG83: 0 | AI83: =L36-AE83 -> 0 | AK83: =IF(AE83=0,0,ROUND((AI83/AE83)*100,1)) -> 0 | AO83: =AE83+AM83 -> 0 | AQ83: 0.0
T84: 15 | V84: =C37 -> DISTRIBUTION CAPITAL INVESTMENT RIDER (DCI) | AA84: =H37 -> 0 | AC84: =CUR_DCI_DIST -> 0 | AE84: =ROUND(AA84*AC84,0) -> 0 | AG84: 0 | AI84: =L37-AE84 -> 0 | AK84: =IF(AE84=0,0,ROUND((AI84/AE84)*100,1)) -> 0 | AO84: =AE84+AM84 -> 0 | AQ84: =IF(AO84=0,"0.0 ",ROUND((AI84/AO84)*100,1)) -> 0.0
T85: 16 | V85: =C38 -> FERC TRANSMISSION COST RECOVERY RECONCILIATION (FTR) | AC85: =CUR_FTR_DIST -> 0 | AE85: =ROUND(AA79*AC85,0) -> 0 | AG85: 0 | AI85: =L38-AE85 -> 0 | AK85: 0 | AO85: 0 | AQ85: 0.0
T86: 17 | V86: =C39 -> PROFIT SHARING MECHANISM (PSM) | AC86: =RS_PSM -> -0.000456 | AE86: =ROUND(AA79*RS_PSM,0) -> -137 | AG86: -0.5 | AI86: =L39-AE86 -> 0 | AK86: 0 | AO86: -137 | AQ86: 0
T87: 18 | V87: TOTAL RIDERS | AE87: =SUM(AE82:AE86) -> 636 | AG87: 2.5 | AI87: =SUM(AI82:AI86) -> 0 | AK87: =ROUND((AI87/AE87)*100,1) -> 0 | AM87: =SUM(AM82:AM86) -> 0 | AO87: =SUM(AO82:AO86) -> 636 | AQ87: 0
T89: =A42 -> 19 | V89: TOTAL RATE DS RTP INCLUDING RIDERS | Y89: =Y79 -> 36 | AA89: =AA79 -> 299922 | AE89: =AE87+AE79 -> 25921 | AG89: 100 | AI89: =AI87+AI79 -> 2579 | AK89: =ROUND((AI89/AE89)*100,1) -> 9.9 | AM89: =AM87+AM79 -> 0 | AO89: =AO87+AO79 -> 25921 | AQ89: =IF(AO89=0,"0.0 ",ROUND((AI89/AO89)*100,1)) -> 9.9
V91: (1) BILLS THAT TERMINATE IN RESPECTIVE RATE STEPS.

Sheet Rate TT RTPM
A1: =NAME -> DUKE ENERGY KENTUCKY, INC.
A2: =CASE_NO -> CASE NO. 2017-00321
A3: =TITLE -> ANNUALIZED BASE YEAR REVENUES AT PROPOSED VS. MOST CURRENT RATES
A4: =DATE -> FOR THE TWELVE MONTHS ENDED November 30, 2017
A5: =SERVICE -> (ELECTRIC SERVICE)
A6: =DATA_PERIOD -> DATA: __X__ BASE PERIOD ____FORECASTED PERIOD | R6: SCHEDULE M-2.3
A7: =TYPE -> TYPE OF FILING: _X_ ORIGINAL ___UPDATED ___ REVISED | R7: PAGE xx OF 22
A8: WORK PAPER REFERENCE NO(S).: | R8: WITNESS:
A9: =TIME -> 6 Months Actual and 6 Months Projected | R9: =WIT -> B. L. SAILERS
A10: =INPUT!B5 -> 6 Months Actual Ending May 31, 2017
A11: PROPOSED ANNUALIZED
L13: PROPOSED | N13: % OF REV TO | R13: PROPOSED
L14: REVENUE LESS | N14: TOTAL LESS | R14: TOTAL
A15: LINE | C15: RATE | D15: CLASS / | F15: CUSTOMER | J15: PROPOSED | L15: FUEL COST | N15: FUEL COST | P15: FUEL COST | R15: REVENUE
A16: NO. | C16: CODE | D16: DESCRIPTION | F16: BILLS(1) | H16: SALES | J16: RATES | L16: REVENUE | N16: REVENUE | P16: REVENUE | R16: (F + H)
C17: (A) | D17: (B) | F17: (C) | H17: (D) | J17: (E) | L17: (F) | N17: (G) | P17: (H) | R17: (I)
H19: (KWH) | J19: ($/KWH) | L19: ($) | N19: (%) | P19: ($) | R19: ($)
A20: 1 | C20: TT RTP | D20: TIME OF DAY SERVICE AT
A21: 2 | D21: TRANSMISSION VOLTAGE
A23: 3 | C23: CUSTOMER CHARGE:
A24: 4 | C24: BILLS (Real-Time Pricing) | F24: 0 | J24: =INPUT!D137 -> 0 | L24: =ROUND(F24*J24,0) -> 0 | N24: 0 | R24: =L24+P24 -> 0
A25: 5 | C25: TOTAL CUSTOMER CHARGE | L25: =SUM(L24) -> 0 | N25: 0 | R25: =SUM(R24) -> 0
A27: 6 | C27: ENERGY CHARGE:
A28: 7 | C28: ALL KWH | H28: 0 | J28: =INPUT!D141 -> 0 | L28: =ROUND((H28*J28),0) -> 0 | N28: 0 | R28: =L28+P28 -> 0
A29: 8 | C29: ANCILLARY SERVICES | H29: =H28 -> 0 | J29: =INPUT!D145 -> 0 | L29: =ROUND((H29*J29),0) -> 0 | N29: 0 | R29: =L29+P29 -> 0
A30: 9 | C30: COMMODITY CHARGES | H30: =H29 -> 0 | J30: =INPUT!D149 -> 0 | L30: =ROUND((H30*J30),0) -> 0 | N30: 0 | P30: =ROUND(-H30*(CUR_FAC+CUR_BASE_FUEL),0) -> 0 | R30: =L30+P30 -> 0
A31: 10 | C31: TOTAL ENERGY | H31: =H29 -> 0 | L31: =SUM(L28:L30) -> 0 | N31: 0 | P31: =P30 -> 0 | R31: =SUM(R28:R30) -> 0
A32: 11 | C32: TOTAL RATE TT RTP EXCLUDING RIDERS | F32: =F24 -> 0 | H32: =H31 -> 0 | L32: =L31+L25 -> 0 | N32: 0 | P32: =SUM(P31+P25) -> 0 | R32: =R31+R25 -> 0
A34: 12 | C34: RIDERS:
A35: 13 | C35: DEMAND SIDE MANAGEMENT RIDER (DSMR) | J35: =PRO_DSM_TRANS -> 0.000183 | L35: =ROUND(H32*PRO_DSM_TRANS,0) -> 0 | N35: 0 | R35: =L35+P35 -> 0
A36: 14 | C36: PROFIT SHARING MECHANISM (PSM) | J36: =PRO_PSM -> -0.000456 | L36: =ROUND(H32*PRO_PSM,0) -> 0 | N36: 0 | R36: 0
A37: 15 | C37: TOTAL RIDERS | L37: =SUM(L35:L36) -> 0 | N37: 0 | R37: =SUM(R35:R36) -> 0
A39: 16 | C39: TOTAL RATE TT RTP INCLUDING RIDERS | F39: =F32 -> 0 | H39: =H32 -> 0 | L39: =L37+L32 -> 0 | N39: 100 | P39: =P37+P32 -> 0 | R39: =R37+R32 -> 0
C41: (1) BILLS THAT TERMINATE IN RESPECTIVE RATE STEPS.
T47: =NAME -> DUKE ENERGY KENTUCKY, INC.
T48: =CASE_NO -> CASE NO. 2017-00321
T49: =TITLE -> ANNUALIZED BASE YEAR REVENUES AT PROPOSED VS. MOST CURRENT RATES
T50: =DATE -> FOR THE TWELVE MONTHS ENDED November 30, 2017
T51: =SERVICE -> (ELECTRIC SERVICE)
T52: =DATA_PERIOD -> DATA: __X__ BASE PERIOD ____FORECASTED PERIOD | AO52: SCHEDULE M-2.2
T53: =TYPE -> TYPE OF FILING: _X_ ORIGINAL ___UPDATED ___ REVISED | AO53: =R7 -> PAGE xx OF 22
T54: WORK PAPER REFERENCE NO(S).: | AO54: WITNESS:
T55: =TIME -> 6 Months Actual and 6 Months Projected | AO55: =WIT -> B. L. SAILERS
T56: =INPUT!B5 -> 6 Months Actual Ending May 31, 2017
T57: CURRENT ANNUALIZED
AE59: CURRENT | AG59: % OF REV TO | AI59: REVENUE | AK59: % INCR IN | AO59: CURRENT | AQ59: TOTAL
AC60: MOST | AE60: REVENUE LESS | AG60: TOTAL LESS | AI60: INCR LESS | AK60: REV LESS | AO60: TOTAL | AQ60: REVENUE
T61: LINE | V61: RATE | W61: CLASS / | Y61: CUSTOMER | AC61: CURRENT | AE61: FUEL COST | AG61: FUEL COST | AI61: FUEL COST REV | AK61: FUEL COST REV | AM61: FUEL COST | AO61: REVENUE | AQ61: % INCREASE
T62: NO. | V62: CODE | W62: DESCRIPTION | Y62: BILLS(1) | AA62: SALES | AC62: RATES | AE62: REVENUE | AG62: REVENUE | AI62: (F - K) | AK62: (M / K) | AM62: REVENUE | AO62: (K + H) | AQ62: (M / K1)
V63: (A) | W63: (B) | Y63: (C) | AA63: (D) | AC63: (J) | AE63: (K) | AG63: (L) | AI63: (M) | AK63: (N) | AM63: (H) | AO63: (K1) | AQ63: (O)
AA65: (KWH) | AC65: ($/KWH) | AE65: ($) | AG65: (%) | AI65: ($) | AK65: (%) | AM65: ($) | AO65: ($) | AQ65: (%)
T66: 1 | V66: TT RTP | W66: TIME OF DAY SERVICE AT
T67: 2 | W67: TRANSMISSION VOLTAGE
T69: 3 | V69: CUSTOMER CHARGE:
T70: 4 | V70: BILLS (Real-Time Pricing) | Y70: =F24 -> 0 | AC70: =INPUT!C137 -> 683 | AE70: =ROUND(Y70*AC70,0) -> 0 | AG70: =ROUND((AE70/AE$85)*100,1) ->  | AI70: =L24-AE70 -> 0 | AK70: =IF(AE70=0,"0.0 ",ROUND((AI70/AE70)*100,1)) -> 0.0 | AO70: =AE70+AM70 -> 0 | AQ70: =IF(AO70=0,"0.0 ",ROUND((AI70/AO70)*100,1)) -> 0.0
T71: 5 | V71: TOTAL CUSTOMER CHARGE | AE71: =SUM(AE70) -> 0 | AG71: =ROUND((AE71/AE$85)*100,1) ->  | AI71: =L25-AE71 -> 0 | AK71: =IF(AE71=0,"0.0 ",ROUND((AI71/AE71)*100,1)) -> 0.0 | AO71: =AE71+AM71 -> 0 | AQ71: =IF(AO71=0,"0.0 ",ROUND((AI71/AO71)*100,1)) -> 0.0
T73: 6 | V73: ENERGY CHARGE:
T74: 7 | V74: ALL KWH | AA74: =H28 -> 0 | AC74: =INPUT!C141 -> 0.002008 | AE74: =ROUND((AA74*AC74),0) -> 0 | AG74: =ROUND((AE74/AE$85)*100,1) ->  | AI74: =L28-AE74 -> 0 | AK74: =IF(AE74=0,"0.0 ",ROUND((AI74/AE74)*100,1)) -> 0.0 | AO74: =AE74+AM74 -> 0 | AQ74: =IF(AO74=0,"0.0 ",ROUND((AI74/AO74)*100,1)) -> 0.0
T75: 8 | V75: ANCILLARY SERVICES | AA75: =H29 -> 0 | AC75: =INPUT!C145 -> 0.000721 | AE75: =ROUND((AA75*AC75),0) -> 0 | AG75: =ROUND((AE75/AE$85)*100,1) ->  | AI75: =L29-AE75 -> 0 | AK75: =IF(AE75=0,"0.0 ",ROUND((AI75/AE75)*100,1)) -> 0.0 | AO75: =AE75+AM75 -> 0 | AQ75: =IF(AO75=0,"0.0 ",ROUND((AI75/AO75)*100,1)) -> 0.0
T76: 9 | V76: COMMODITY CHARGES | AA76: =H30 -> 0 | AC76: =INPUT!C149 -> 0.049195575 | AE76: =ROUND((AA76*AC76),0) -> 0 | AG76: =ROUND((AE76/AE$85)*100,1)-0.1 ->  | AI76: =L30-AE76 -> 0 | AK76: =IF(AE76=0,"0.0 ",ROUND((AI76/AE76)*100,1)) -> 0.0 | AM76: =ROUND(-AA76*(CUR_FAC+CUR_BASE_FUEL),0) -> 0 | AO76: =AE76+AM76 -> 0 | AQ76: =IF(AO76=0,"0.0 ",ROUND((AI76/AO76)*100,1)) -> 0.0
T77: 10 | V77: TOTAL ENERGY | AA77: =H31 -> 0 | AE77: =SUM(AE74:AE76) -> 0 | AG77: =ROUND((AE77/AE$85)*100,1) ->  | AI77: =SUM(AI74:AI76) -> 0 | AK77: =IF(AE77=0,"0.0 ",ROUND((AI77/AE77)*100,1)) -> 0.0 | AM77: =AM76 -> 0 | AO77: =SUM(AO74:AO76) -> 0 | AQ77: =IF(AO77=0,"0.0 ",ROUND((AI77/AO77)*100,1)) -> 0.0
T78: 11 | V78: TOTAL RATE TT RTP EXCLUDING RIDERS | Y78: =Y70 -> 0 | AA78: =AA77 -> 0 | AE78: =AE77+AE71 -> 0 | AG78: =ROUND((AE78/AE$85)*100,1) ->  | AI78: =AI77+AI71 -> 0 | AK78: =IF(AE78=0,"0.0 ",ROUND((AI78/AE78)*100,1)) -> 0.0 | AM78: =AM77+AM71 -> 0 | AO78: =AO77+AO71 -> 0 | AQ78: =IF(AO78=0,"0.0 ",ROUND((AI78/AO78)*100,1)) -> 0.0
T80: 12 | V80: RIDERS: | AI80: =L34-AE80 -> 0
T81: 13 | V81: DEMAND SIDE MANAGEMENT RIDER (DSMR) | AC81: =DSM_TRANS -> 0.000183 | AE81: =ROUND(AA78*DSM_TRANS,0) -> 0 | AG81: =ROUND((AE81/AE$85)*100,1) ->  | AI81: =L35-AE81 -> 0 | AK81: =IF(AE81=0,"0.0 ",ROUND((AI81/AE81)*100,1)) -> 0.0 | AO81: =AE81+AM81 -> 0 | AQ81: =IF(AO81=0,"0.0 ",ROUND((AI81/AO81)*100,1)) -> 0.0
T82: 14 | V82: PROFIT SHARING MECHANISM (PSM) | AC82: =RS_PSM -> -0.000456 | AE82: =ROUND(AA78*RS_PSM,0) -> 0 | AG82: =ROUND((AE82/AE$85)*100,1) ->  | AI82: =L36-AE82 -> 0 | AK82: 0.0 | AO82: 0 | AQ82: 0.0
T83: 15 | V83: TOTAL RIDERS | AE83: =SUM(AE81:AE82) -> 0 | AG83: =ROUND((AE83/AE$85)*100,1) ->  | AI83: =SUM(AI81:AI82) -> 0 | AK83: 0.0 | AM83: =SUM(AM81:AM82) -> 0 | AO83: =SUM(AO81:AO82) -> 0 | AQ83: 0.0
T85: 16 | V85: TOTAL RATE TT RTP INCLUDING RIDERS | Y85: =Y78 -> 0 | AA85: =AA78 -> 0 | AE85: =AE83+AE78 -> 0 | AG85: 100 | AI85: =AI83+AI78 -> 0 | AK85: =IF(AE85=0,"0.0 ",ROUND((AI85/AE85)*100,1)) -> 0.0 | AM85: =AM83+AM78 -> 0 | AO85: =AO83+AO78 -> 0 | AQ85: =IF(AO85=0,"0.0 ",ROUND((AI85/AO85)*100,1)) -> 0.0
V87: (1) BILLS THAT TERMINATE IN RESPECTIVE RATE STEPS.

Sheet Rate TT RTP
A1: =NAME -> DUKE ENERGY KENTUCKY, INC.
A2: =CASE_NO -> CASE NO. 2017-00321
A3: =TITLE -> ANNUALIZED BASE YEAR REVENUES AT PROPOSED VS. MOST CURRENT RATES
A4: =DATE -> FOR THE TWELVE MONTHS ENDED November 30, 2017
A5: =SERVICE -> (ELECTRIC SERVICE)
A6: =DATA_PERIOD -> DATA: __X__ BASE PERIOD ____FORECASTED PERIOD | R6: SCHEDULE M-2.3
A7: =TYPE -> TYPE OF FILING: _X_ ORIGINAL ___UPDATED ___ REVISED | R7: PAGE 12 OF 22
A8: WORK PAPER REFERENCE NO(S).: | R8: WITNESS:
A9: =TIME -> 6 Months Actual and 6 Months Projected | R9: =WIT -> B. L. SAILERS
A10: =INPUT!B5 -> 6 Months Actual Ending May 31, 2017
A11: PROPOSED ANNUALIZED
L13: PROPOSED | N13: % OF REV TO | R13: PROPOSED
L14: REVENUE LESS | N14: TOTAL LESS | R14: TOTAL
A15: LINE | C15: RATE | D15: CLASS / | F15: CUSTOMER | J15: PROPOSED | L15: FUEL COST | N15: FUEL COST | P15: FUEL COST | R15: REVENUE
A16: NO. | C16: CODE | D16: DESCRIPTION | F16: BILLS(1) | H16: SALES | J16: RATES | L16: REVENUE | N16: REVENUE | P16: REVENUE | R16: (F + H)
C17: (A) | D17: (B) | F17: (C) | H17: (D) | J17: (E) | L17: (F) | N17: (G) | P17: (H) | R17: (I)
H19: (KWH) | J19: ($/KWH) | L19: ($) | N19: (%) | P19: ($) | R19: ($)
A20: 1 | C20: TT RTP | D20: TIME OF DAY SERVICE AT
A21: 2 | D21: TRANSMISSION VOLTAGE
A23: 3 | C23: CUSTOMER CHARGE:
A24: 4 | C24: BILLS (Real-Time Pricing) | F24: 24 | J24: =INPUT!D153 -> 183 | L24: =ROUND(F24*J24,0) -> 4392 | N24: =ROUND((L24/$L$41)*100,1) -> 0.9 | R24: =L24+P24 -> 4392
A25: 5 | C25: TOTAL CUSTOMER CHARGE | L25: =SUM(L24) -> 4392 | N25: =ROUND((L25/$L$41)*100,1) -> 0.9 | R25: =SUM(R24) -> 4392
A27: 6 | C27: ENERGY CHARGE:
A28: 7 | C28: ALL KWH | H28: 12915280 | J28: =INPUT!D157 -> 0.006472 | L28: =ROUND((H28*J28),0) -> 83588 | N28: =ROUND((L28/$L$41)*100,1) -> 18.1 | R28: =L28+P28 -> 83588
A29: 8 | C29: ANCILLARY SERVICES | H29: =H28 -> 12915280 | J29: =INPUT!D161 -> 0 | L29: =ROUND((H29*J29),0) -> 0 | N29: =ROUND((L29/$L$41)*100,1) -> 0 | R29: =L29+P29 -> 0
A30: 9 | C30: COMMODITY CHARGES | H30: =H29 -> 12915280 | J30: =INPUT!D165 -> 0.029268 | L30: =ROUND((H30*J30),0) -> 378004 | N30: =ROUND((L30/$L$41)*100,1)+0.1 -> 81.8 | P30: 0 | R30: =L30+P30 -> 378004
A31: 10 | C31: TOTAL ENERGY | H31: =H29 -> 12915280 | L31: =SUM(L28:L30) -> 461592 | N31: =ROUND((L31/$L$41)*100,1)+0.1 -> 99.9 | P31: =P30 -> 0 | R31: =SUM(R28:R30) -> 461592
A32: 11 | C32: TOTAL RATE TT RTP EXCLUDING RIDERS | F32: =F24 -> 24 | H32: =H31 -> 12915280 | L32: =L31+L25 -> 465984 | N32: =ROUND((L32/$L$41)*100,1) -> 100.8 | P32: =SUM(P31+P25) -> 0 | R32: =R31+R25 -> 465984
A34: 12 | C34: RIDERS:
A35: 13 | C35: =DSMR_Name -> DEMAND SIDE MANAGEMENT RIDER (DSMR) | J35: =PRO_DSM_TRANS -> 0.000183 | L35: =ROUND($H$32*J35,0) -> 2363 | N35: =ROUND((L35/$L$41)*100,1) -> 0.5 | R35: =L35+P35 -> 2363
A36: 14 | C36: =ESM_Name -> ENVIRONMENTAL SURCHARGE MECHANISM RIDER (ESM) | J36: =PRO_ESM -> 0 | L36: =ROUND(R32*J36,0) -> 0 | N36: =ROUND((L36/$L$41)*100,1) -> 0 | R36: =L36+P36 -> 0
A37: 15 | C37: =FTR_Name -> FERC TRANSMISSION COST RECOVERY RECONCILIATION (FTR) | J37: =PRO_FTR_TT -> 0 | L37: =ROUND(H31*J37,0) -> 0 | N37: 0 | R37: 0
A38: 16 | C38: =PSM_Name -> PROFIT SHARING MECHANISM (PSM) | J38: =PRO_PSM -> -0.000456 | L38: =ROUND(H32*PRO_PSM,0) -> -5889 | N38: =ROUND((L38/$L$41)*100,1) -> -1.3 | R38: -5889
A39: 17 | C39: TOTAL RIDERS | L39: =SUM(L35:L38) -> -3526 | N39: =ROUND((L39/$L$41)*100,1) -> -0.8 | R39: =SUM(R35:R38) -> -3526
A41: 18 | C41: TOTAL RATE TT RTP INCLUDING RIDERS | F41: =F32 -> 24 | H41: =H32 -> 12915280 | L41: =L39+L32 -> 462458 | N41: 100 | P41: =P39+P32 -> 0 | R41: =R39+R32 -> 462458
C43: (1) BILLS THAT TERMINATE IN RESPECTIVE RATE STEPS.
T49: =NAME -> DUKE ENERGY KENTUCKY, INC.
T50: =CASE_NO -> CASE NO. 2017-00321
T51: =TITLE -> ANNUALIZED BASE YEAR REVENUES AT PROPOSED VS. MOST CURRENT RATES
T52: =DATE -> FOR THE TWELVE MONTHS ENDED November 30, 2017
T53: =SERVICE -> (ELECTRIC SERVICE)
T54: =DATA_PERIOD -> DATA: __X__ BASE PERIOD ____FORECASTED PERIOD | AO54: SCHEDULE M-2.2
T55: =TYPE -> TYPE OF FILING: _X_ ORIGINAL ___UPDATED ___ REVISED | AO55: =R7 -> PAGE 12 OF 22
T56: WORK PAPER REFERENCE NO(S).: | AO56: WITNESS:
T57: =TIME -> 6 Months Actual and 6 Months Projected | AO57: =WIT -> B. L. SAILERS
T58: =INPUT!B5 -> 6 Months Actual Ending May 31, 2017
T59: CURRENT ANNUALIZED
AE61: CURRENT | AG61: % OF REV TO | AI61: REVENUE | AK61: % INCR IN | AO61: CURRENT | AQ61: TOTAL
AC62: MOST | AE62: REVENUE LESS | AG62: TOTAL LESS | AI62: INCR LESS | AK62: REV LESS | AO62: TOTAL | AQ62: REVENUE
T63: LINE | V63: RATE | W63: CLASS / | Y63: CUSTOMER | AC63: CURRENT | AE63: FUEL COST | AG63: FUEL COST | AI63: FUEL COST REV | AK63: FUEL COST REV | AM63: FUEL COST | AO63: REVENUE | AQ63: % INCREASE
T64: NO. | V64: CODE | W64: DESCRIPTION | Y64: BILLS(1) | AA64: SALES | AC64: RATES | AE64: REVENUE | AG64: REVENUE | AI64: (F - K) | AK64: (M / K) | AM64: REVENUE | AO64: (K + H) | AQ64: (M / K1)
V65: (A) | W65: (B) | Y65: (C) | AA65: (D) | AC65: (J) | AE65: (K) | AG65: (L) | AI65: (M) | AK65: (N) | AM65: (H) | AO65: (K1) | AQ65: (O)
AA67: (KWH) | AC67: ($/KWH) | AE67: ($) | AG67: (%) | AI67: ($) | AK67: (%) | AM67: ($) | AO67: ($) | AQ67: (%)
T68: 1 | V68: TT RTP | W68: TIME OF DAY SERVICE AT
T69: 2 | W69: TRANSMISSION VOLTAGE
T71: 3 | V71: CUSTOMER CHARGE:
T72: 4 | V72: BILLS (Real-Time Pricing) | Y72: =F24 -> 24 | AC72: =INPUT!C153 -> 183 | AE72: =ROUND(Y72*AC72,0) -> 4392 | AG72: =ROUND((AE72/AE$89)*100,1) -> 1.1 | AI72: =L24-AE72 -> 0 | AK72: =IF(AE72=0,"0.0 ",ROUND((AI72/AE72)*100,1)) -> 0 | AO72: =AE72+AM72 -> 4392 | AQ72: =IF(AO72=0,"0.0 ",ROUND((AI72/AO72)*100,1)) -> 0
T73: 5 | V73: TOTAL CUSTOMER CHARGE | AE73: =SUM(AE72) -> 4392 | AG73: =ROUND((AE73/AE$89)*100,1) -> 1.1 | AI73: =L25-AE73 -> 0 | AK73: =IF(AE73=0,"0.0 ",ROUND((AI73/AE73)*100,1)) -> 0 | AO73: =AE73+AM73 -> 4392 | AQ73: =IF(AO73=0,"0.0 ",ROUND((AI73/AO73)*100,1)) -> 0
T75: 6 | V75: ENERGY CHARGE:
T76: 7 | V76: ALL KWH | AA76: =H28 -> 12915280 | AC76: =INPUT!C157 -> 0.002008 | AE76: =ROUND((AA76*AC76),0) -> 25934 | AG76: =ROUND((AE76/AE$89)*100,1) -> 6.3 | AI76: =L28-AE76 -> 57654 | AK76: =IF(AE76=0,"0.0 ",ROUND((AI76/AE76)*100,1)) -> 222.3 | AO76: =AE76+AM76 -> 25934 | AQ76: =IF(AO76=0,"0.0 ",ROUND((AI76/AO76)*100,1)) -> 222.3
T77: 8 | V77: ANCILLARY SERVICES | AA77: =H29 -> 12915280 | AC77: =INPUT!C161 -> 0.000721 | AE77: =ROUND((AA77*AC77),0) -> 9312 | AG77: =ROUND((AE77/AE$89)*100,1) -> 2.2 | AI77: =L29-AE77 -> -9312 | AK77: =IF(AE77=0,"0.0 ",ROUND((AI77/AE77)*100,1)) -> -100 | AO77: =AE77+AM77 -> 9312 | AQ77: =IF(AO77=0,"0.0 ",ROUND((AI77/AO77)*100,1)) -> -100
T78: 9 | V78: COMMODITY CHARGES | AA78: =H30 -> 12915280 | AC78: =INPUT!C165 -> 0.029268 | AE78: =ROUND((AA78*AC78),0) -> 378004 | AG78: =ROUND((AE78/AE$89)*100,1) -> 91.3 | AI78: =L30-AE78 -> 0 | AK78: =IF(AE78=0,"0.0 ",ROUND((AI78/AE78)*100,1)) -> 0 | AM78: 0 | AO78: =AE78+AM78 -> 378004 | AQ78: =IF(AO78=0,"0.0 ",ROUND((AI78/AO78)*100,1)) -> 0
T79: 10 | V79: TOTAL ENERGY | AA79: =H31 -> 12915280 | AE79: =SUM(AE76:AE78) -> 413250 | AG79: =ROUND((AE79/AE$89)*100,1) -> 99.8 | AI79: =SUM(AI76:AI78) -> 48342 | AK79: =IF(AE79=0,"0.0 ",ROUND((AI79/AE79)*100,1)) -> 11.7 | AM79: =AM78 -> 0 | AO79: =SUM(AO76:AO78) -> 413250 | AQ79: =IF(AO79=0,"0.0 ",ROUND((AI79/AO79)*100,1)) -> 11.7
T80: 11 | V80: TOTAL RATE TT RTP EXCLUDING RIDERS | Y80: =Y72 -> 24 | AA80: =AA79 -> 12915280 | AE80: =AE79+AE73 -> 417642 | AG80: =ROUND((AE80/AE$89)*100,1) -> 100.9 | AI80: =AI79+AI73 -> 48342 | AK80: =IF(AE80=0,"0.0 ",ROUND((AI80/AE80)*100,1)) -> 11.6 | AM80: =AM79+AM73 -> 0 | AO80: =AO79+AO73 -> 417642 | AQ80: =IF(AO80=0,"0.0 ",ROUND((AI80/AO80)*100,1)) -> 11.6
T82: =A34 -> 12 | V82: RIDERS:
T83: =A35 -> 13 | V83: =C35 -> DEMAND SIDE MANAGEMENT RIDER (DSMR) | AC83: =DSM_TRANS -> 0.000183 | AE83: =ROUND($AA$80*AC83,0) -> 2363 | AG83: =ROUND((AE83/AE$89)*100,1) -> 0.6 | AI83: =L35-AE83 -> 0 | AK83: =IF(AE83=0,"0.0 ",ROUND((AI83/AE83)*100,1)) -> 0 | AO83: =AE83+AM83 -> 2363 | AQ83: =IF(AO83=0,"0.0 ",ROUND((AI83/AO83)*100,1)) -> 0
T84: 14 | V84: =C36 -> ENVIRONMENTAL SURCHARGE MECHANISM RIDER (ESM) | AC84: =CUR_ESM -> 0 | AE84: =ROUND(AO80*AC84,0) -> 0 | AG84: =ROUND((AE84/AE$89)*100,1) -> 0 | AI84: =L36-AE84 -> 0 | AK84: =IF(AE84=0,"0.0 ",ROUND((AI84/AE84)*100,1)) -> 0.0 | AO84: =AE84+AM84 -> 0 | AQ84: =IF(AO84=0,"0.0 ",ROUND((AI84/AO84)*100,1)) -> 0.0
T85: 15 | V85: FERC TRANSMISSION COST RECOVERY RECONCILIATION (FTR) | AC85: =CUR_FTR_TT -> 0 | AE85: =ROUND(AA80*AC85,0) -> 0 | AG85: 0 | AI85: 0 | AK85: 0.0 | AO85: 0 | AQ85: 0.0
T86: 16 | V86: PROFIT SHARING MECHANISM (PSM) | AC86: =RS_PSM -> -0.000456 | AE86: =ROUND(AA80*RS_PSM,0) -> -5889 | AG86: =ROUND((AE86/AE$89)*100,1)-0.1 -> -1.5 | AI86: =L38-AE86 -> 0 | AK86: 0 | AO86: -5889 | AQ86: 0
T87: 17 | V87: TOTAL RIDERS | AE87: =SUM(AE83:AE86) -> -3526 | AG87: =ROUND((AE87/AE$89)*100,1) -> -0.9 | AI87: =SUM(AI83:AI86) -> 0 | AK87: 0 | AM87: =SUM(AM83:AM86) -> 0 | AO87: =SUM(AO83:AO86) -> -3526 | AQ87: 0
T89: =A41 -> 18 | V89: TOTAL RATE TT RTP INCLUDING RIDERS | Y89: =Y80 -> 24 | AA89: =AA80 -> 12915280 | AE89: =AE87+AE80 -> 414116 | AG89: 100 | AI89: =AI87+AI80 -> 48342 | AK89: =IF(AE89=0,"0.0 ",ROUND((AI89/AE89)*100,1)) -> 11.7 | AM89: =AM87+AM80 -> 0 | AO89: =AO87+AO80 -> 414116 | AQ89: =IF(AO89=0,"0.0 ",ROUND((AI89/AO89)*100,1)) -> 11.7
V91: (1) BILLS THAT TERMINATE IN RESPECTIVE RATE STEPS.

Sheet Rate SL
A1: =NAME -> DUKE ENERGY KENTUCKY, INC. | AA1: Increase in Street Lighting rate SL per COSS: | AG1: 0.1188482389
A2: =CASE_NO -> CASE NO. 2017-00321
A3: =TITLE -> ANNUALIZED BASE YEAR REVENUES AT PROPOSED VS. MOST CURRENT RATES
A4: =DATE -> FOR THE TWELVE MONTHS ENDED November 30, 2017 | AA4: Pole Rate Increases | AI4: code
A5: =SERVICE -> (ELECTRIC SERVICE) | AA5: w17 | AC5: 4.4 | AE5: =ROUND(AC5*$AG$1,2) -> 0.52 | AG5: =AC5+AE5 -> 4.92 | AI5: 3
A6: =DATA_PERIOD -> DATA: __X__ BASE PERIOD ____FORECASTED PERIOD | R6: SCHEDULE M-2.3 | AA6: w30 | AC6: 4.34 | AE6: 0.52 | AG6: 4.86 | AI6: 4
A7: =TYPE -> TYPE OF FILING: _X_ ORIGINAL ___UPDATED ___ REVISED | R7: PAGE 13 OF 22 | AA7: w35 | AC7: 4.4 | AE7: 0.52 | AG7: 4.92 | AI7: 5
A8: WORK PAPER REFERENCE NO(S).: | R8: WITNESS: | AA8: w40 | AC8: 5.27 | AE8: 0.63 | AG8: 5.9 | AI8: 6
A9: =TIME -> 6 Months Actual and 6 Months Projected | R9: =WIT -> B. L. SAILERS | AA9: a12 | AC9: 11.97 | AE9: 1.42 | AG9: 13.39 | AI9: 7
A10: PROPOSED ANNUALIZED | AA10: a28 | AC10: 6.94 | AE10: 0.82 | AG10: 7.76 | AI10: 8
AA11: a28h | AC11: 7.01 | AE11: 0.83 | AG11: 7.84 | AI11: 8A
L12: PROPOSED | N12: % OF REV TO | R12: PROPOSED | AA12: a30 | AC12: 13.86 | AE12: 1.65 | AG12: 15.51 | AI12: 9
L13: REVENUE LESS | N13: TOTAL LESS | R13: TOTAL | AA13: f17 | AC13: 4.4 | AE13: 0.52 | AG13: 4.92 | AI13: 10
A14: LINE | C14: RATE | D14: CLASS / | F14: CUSTOMER | J14: PROPOSED | L14: FUEL COST | N14: FUEL COST | P14: FUEL COST | R14: REVENUE | AA14: f12 | AC14: 12.87 | AE14: 1.53 | AG14: 14.4 | AI14: 11
A15: NO. | C15: CODE | D15: DESCRIPTION | F15: BILLS(1) | H15: SALES | J15: RATES(1A) | L15: REVENUE | N15: REVENUE | P15: REVENUE (2) | R15: (F + H) | AA15: f30 | AC15: 8.38 | AE15: 1 | AG15: 9.38 | AI15: 12
C16: (A) | D16: (B) | F16: (C) | H16: (D) | J16: (E) | L16: (F) | N16: (G) | P16: (H) | R16: (I) | AA16: f35 | AC16: 8.6 | AE16: 1.02 | AG16: 9.62 | AI16: 13
H17: (KWH) | J17: ($/UNIT) | L17: ($) | N17: (%) | P17: ($) | R17: ($) | AA17: s27 | AC17: 11.31 | AE17: 1.34 | AG17: 12.65 | AI17: 16
A18: 1 | C18: SL | D18: STREET LIGHTING -- CO OWNED & MAINTAINED | AA18: s27h | AC18: 17.05 | AE18: 2.03 | AG18: 19.08 | AI18: 17
A19: 2 | C19: OVERHEAD DISTRIBUTION:
A20: 3 | C20: MERCURY VAPOR : | AC20: Annual kWh / Light
A21: 4 | C21: 7,000 LUMEN | F21: 67685 | H21: =ROUND(F21*AC21/12,0) -> 4529255 | J21: =ROUND(AC243+(AC243*$AG$1),2) -> 7.96 | L21: =ROUND((F21*J21),0) -> 538773 | N21: =ROUND((L21/L$211)*100,1) -> 36 | P21: =ROUND($P$211/$H$211*H21,0) -> 4656 | R21: =L21+P21 -> 543429 | AC21: 803
A22: 5 | C22: 7,000 LUMEN (OPEN) | F22: 61 | H22: =ROUND(F22*AC22/12,0) -> 4336 | J22: =ROUND(AC244+(AC244*$AG$1),2) -> 6.65 | L22: =ROUND((F22*J22),0) -> 406 | N22: =ROUND((L22/L$211)*100,1) -> 0 | P22: 4 | R22: =L22+P22 -> 410 | AC22: 853
A23: 6 | C23: 7,000 LUMEN (4) | F23: 36 | H23: 2409 | J23: =$J$21+$AG$6 -> 12.82 | L23: 462 | N23: 0 | P23: 2 | R23: =L23+P23 -> 464 | AC23: 803
A24: 7 | C24: 7,000 LUMEN (5) | F24: 560 | H24: 37473 | J24: =$J$21+$AG$7 -> 12.88 | L24: 7213 | N24: 0.5 | P24: 39 | R24: 7252 | AC24: 803
A25: 8 | C25: 7,000 LUMEN (6) | F25: 119 | H25: 7963 | J25: =$J$21+$AG$8 -> 13.86 | L25: 1649 | N25: 0.1 | P25: 8 | R25: =L25+P25 -> 1657 | AC25: 803
A26: 9 | C26: 7,000 LUMEN (8A) | F26: 132 | H26: 8833 | J26: =$J$21+$AG$11 -> 15.8 | L26: 2086 | N26: 0.1 | P26: 9 | R26: =L26+P26 -> 2095 | AC26: 803
A27: 10 | C27: 10,000 LUMEN | F27: =2187+12 -> 2199 | H27: 209638 | J27: =ROUND(AC249+(AC249*$AG$1),2) -> 9.19 | L27: 20209 | N27: 1.4 | P27: 216 | R27: =L27+P27 -> 20425 | AC27: 1144
A28: 11 | C28: 10,000 LUMEN (5) | F28: 7 | H28: 667 | J28: =$J$27+$AG$7 -> 14.11 | L28: 99 | N28: 0 | P28: =ROUND($P$211/$H$211*H28,0)+1 -> 2 | R28: 101 | AC28: 1144
A29: 12 | C29: 21,000 LUMEN | F29: 9600 | H29: 1431200 | J29: =ROUND(AC251+(AC251*$AG$1),2) -> 12.3 | L29: 118080 | N29: 7.9 | P29: =ROUND($P$211/$H$211*H29,0) -> 1471 | R29: =L29+P29 -> 119551 | AC29: 1789
A30: 13 | C30: 21,000 LUMEN (5) | F30: 132 | H30: 19679 | J30: =$J$29+$AG$7 -> 17.22 | L30: 2273 | N30: 0.2 | P30: =ROUND($P$211/$H$211*H30,0) -> 20 | R30: 2293 | AC30: 1789
A31: 14 | C31: 21,000 LUMEN (6) | F31: 132 | H31: 19679 | J31: =$J$29+$AG$8 -> 18.2 | L31: 2402 | N31: 0.2 | P31: =ROUND($P$211/$H$211*H31,0) -> 20 | R31: 2422 | AC31: 1789
A32: 15 | C32: METAL HALIDE:
A33: 16 | C33: 14,000 LUMEN | F33: 336 | H33: =ROUND(F33*AC33/12,0) -> 22484 | J33: =ROUND(AC255+(AC255*$AG$1),2) -> 7.96 | L33: 2675 | N33: =ROUND((L33/L$211)*100,1) -> 0.2 | P33: =ROUND($P$211/$H$211*H33,0) -> 23 | R33: =L33+P33 -> 2698 | AC33: 803
A34: 17 | C34: 14,000 LUMEN (5) | F34: 48 | H34: 3212 | J34: =$J$33+$AG$7 -> 12.88 | L34: 618 | N34: 0 | P34: 3 | R34: =L34+P34 -> 621 | AC34: 803
A35: 18 | C35: 14,000 LUMEN (6) | F35: 91 | H35: 6089 | J35: =$J$33+$AG$8 -> 13.86 | L35: 1261 | N35: 0.1 | P35: 6 | R35: =L35+P35 -> 1267 | AC35: 803
A36: 19 | C36: 14,000 LUMEN (10) | F36: 12 | H36: 803 | J36: =$J$33+$AG$13 -> 12.88 | L36: 155 | N36: 0 | P36: 1 | R36: 156 | AC36: 803
A37: 20 | C37: 20,500 LUMEN | F37: 168 | H37: 16016 | J37: =ROUND(AC259+(AC259*$AG$1),2) -> 9.19 | L37: 1544 | N37: 0.1 | P37: 16 | R37: =L37+P37 -> 1560 | AC37: 1144
A38: 21 | C38: 20,500 LUMEN (6) | F38: 24 | H38: 2288 | J38: =$J$37+$AG$8 -> 15.09 | L38: 362 | N38: 0 | P38: 2 | R38: =L38+P38 -> 364 | AC38: 1144
A39: 22 | C39: 36,000 LUMEN | F39: 0 | H39: 0 | J39: =ROUND(AC261+(AC261*$AG$1),2) -> 12.3 | L39: 0 | N39: 0 | P39: 0 | R39: =L39+P39 -> 0 | AC39: 1789
A40: 23 | C40: SODIUM VAPOR:
A41: 24 | C41: 9,500 LUMEN | F41: 19202 | H41: =ROUND(F41*AC41/12,0) -> 779281 | J41: =ROUND(AC263+(AC263*$AG$1),2) -> 8.81 | L41: 169170 | N41: =ROUND((L41/L$211)*100,1) -> 11.3 | P41: =ROUND($P$211/$H$211*H41,0) -> 801 | R41: =L41+P41 -> 169971 | AC41: 487
A42: 25 | C42: 9,500 LUMEN (OPEN) | F42: 120 | H42: 4870 | J42: =ROUND(AC264+(AC264*$AG$1),2) -> 6.61 | L42: 793 | N42: 0.1 | P42: 5 | R42: =L42+P42 -> 798 | AC42: 487
A43: 26 | C43: 9,500 LUMEN (4) | F43: =24+24 -> 48 | H43: 1948 | J43: =$J$41+$AG$6 -> 13.67 | L43: 656 | N43: 0 | P43: 2 | R43: 658 | AC43: 487
A44: 27 | C44: 9,500 LUMEN (5) | F44: 685 | H44: 27800 | J44: =$J$41+$AG$7 -> 13.73 | L44: 9405 | N44: 0.6 | P44: 29 | R44: =L44+P44 -> 9434 | AC44: 487
A45: 28 | C45: 9,500 LUMEN (6) | F45: =564+72+49 -> 685 | H45: 27800 | J45: =$J$41+$AG$8 -> 14.71 | L45: 10076 | N45: 0.7 | P45: 29 | R45: =L45+P45 -> 10105 | AC45: 487
A46: 29 | C46: 16,000 LUMEN | F46: 372 | H46: 22041 | J46: =ROUND(AC268+(AC268*$AG$1),2) -> 9.6 | L46: 3571 | N46: 0.2 | P46: 23 | R46: 3594 | AC46: 711
A47: 30 | C47: 16,000 LUMEN (5) | F47: 12 | H47: 711 | J47: =$J$46+$AG$7 -> 14.52 | L47: 174 | N47: 0 | P47: 1 | R47: =L47+P47 -> 175 | AC47: 711
A48: 31 | C48: 16,000 LUMEN (6) | F48: 108 | H48: 6399 | J48: =$J$46+$AG$8 -> 15.5 | L48: 1674 | N48: 0.1 | P48: 7 | R48: =L48+P48 -> 1681 | AC48: 711
A49: 32 | C49: 22,000 LUMEN | F49: 5435 | H49: 429365 | J49: =ROUND(AC271+(AC271*$AG$1),2) -> 12.45 | L49: 67666 | N49: 4.5 | P49: 441 | R49: 68107 | AC49: 948
A50: 33 | C50: 22,000 LUMEN (4) | F50: 36 | H50: 2844 | J50: =$J$49+$AG$6 -> 17.31 | L50: 623 | N50: 0 | P50: 3 | R50: 626 | AC50: 948
A51: 34 | C51: 22,000 LUMEN (5) | F51: 219 | H51: 17301 | J51: =$J$49+$AG$7 -> 17.37 | L51: 3804 | N51: 0.3 | P51: 18 | R51: =L51+P51 -> 3822 | AC51: 948
A52: 35 | C52: 22,000 LUMEN (6) | F52: 72 | H52: 5688 | J52: =$J$49+$AG$8 -> 18.35 | L52: 1321 | N52: 0.1 | P52: 6 | R52: 1327 | AC52: 948
A53: 36 | C53: 22,000 LUMEN (8) | F53: 12 | H53: 948 | J53: =$J$49+$AG$10 -> 20.21 | L53: 243 | N53: 0 | P53: 1 | R53: 244 | AC53: 948
A54: 37 | C54: 27,500 LUMEN | F54: 96 | H54: 7584 | J54: =ROUND(AC276+(AC276*$AG$1),2) -> 12.45 | L54: 1195 | N54: 0.1 | P54: 8 | R54: 1203 | AC54: 948
A55: 38 | C55: 27,500 LUMEN (6) | F55: 12 | H55: 948 | J55: =$J$54+$AG$8 -> 18.35 | L55: 220 | N55: 0 | P55: 1 | R55: 221 | AC55: 948
A56: 39 | C56: 50,000 LUMEN | F56: =10356+13 -> 10369 | H56: 1692739 | J56: =ROUND(AC278+(AC278*$AG$1),2) -> 16.73 | L56: 173473 | N56: 11.6 | P56: 1740 | R56: 175213 | AC56: 1959
A57: 40 | C57: 50,000 LUMEN (5) | F57: 312 | H57: 50934 | J57: =$J$56+$AG$7 -> 21.65 | L57: 6755 | N57: 0.5 | P57: 52 | R57: 6807 | AC57: 1959
A58: 41 | C58: 50,000 LUMEN (6) | F58: 619 | H58: 101052 | J58: =$J$56+$AG$8 -> 22.63 | L58: 14008 | N58: 0.9 | P58: 104 | R58: 14112 | AC58: 1959
A60: (1) THESE FIGURES REPRESENT NUMBER OF UNITS BILLED. | J60: (5) WITH 35' WOOD POLE. | P60: (9) WITH 30' ALUM POLE.
A61: ="(1A) REFLECTS FUEL COST RECOVERY INCLUDED IN BASE RATES OF "&TEXT(CUR_BASE_FUEL,"$0.000000;($0.000000)")&" PER KWH." -> (1A) REFLECTS FUEL COST RECOVERY INCLUDED IN BASE RATES OF $0.023837 PER KWH. | J61: (6) WITH 40' WOOD POLE. | P61: (10) WITH 17' FIBERGLASS POLE.
A62: ="(2) REFLECTS FUEL COMPONENT OF "&TEXT(CUR_FAC,"$0.000000;($0.000000)")&" PER KWH." -> (2) REFLECTS FUEL COMPONENT OF $0.001028 PER KWH. | J62: (7) WITH 12' ALUM POLE. | P62: (11) WITH 12' FIBERGLASS POLE.
A63: (3) WITH 17' WOOD LAMINATED POLE. | J63: (8) WITH 28' ALUM POLE. | P63: (12) WITH 30' FIBERGLASS POLE.
A64: (4) WITH 30' WOOD POLE. | J64: (8A) WITH 28' ALUM POLE HEAVY GAUGE. | P64: (13) WITH 35' FIBERGLASS POLE.
A67: =NAME -> DUKE ENERGY KENTUCKY, INC.
A68: =CASE_NO -> CASE NO. 2017-00321
A69: =TITLE -> ANNUALIZED BASE YEAR REVENUES AT PROPOSED VS. MOST CURRENT RATES
A70: =DATE -> FOR THE TWELVE MONTHS ENDED November 30, 2017
A71: =SERVICE -> (ELECTRIC SERVICE)
A72: =DATA_PERIOD -> DATA: __X__ BASE PERIOD ____FORECASTED PERIOD | R72: SCHEDULE M-2.3
A73: =TYPE -> TYPE OF FILING: _X_ ORIGINAL ___UPDATED ___ REVISED | R73: PAGE 14 OF 22
A74: WORK PAPER REFERENCE NO(S).: | R74: WITNESS:
A75: =TIME -> 6 Months Actual and 6 Months Projected | R75: =WIT -> B. L. SAILERS
A76: PROPOSED ANNUALIZED
L78: PROPOSED | N78: % OF REV TO | R78: PROPOSED
L79: REVENUE LESS | N79: TOTAL LESS | R79: TOTAL
A80: LINE | C80: RATE | D80: CLASS / | F80: CUSTOMER | J80: PROPOSED | L80: FUEL COST | N80: FUEL COST | P80: FUEL COST | R80: REVENUE
A81: NO. | C81: CODE | D81: DESCRIPTION | F81: BILLS(1) | H81: SALES | J81: RATES(1A) | L81: REVENUE | N81: REVENUE | P81: REVENUE (2) | R81: (F + H)
C82: (A) | D82: (B) | F82: (C) | H82: (D) | J82: (E) | L82: (F) | N82: (G) | P82: (H) | R82: (I)
H83: (KWH) | J83: ($/UNIT) | L83: ($) | N83: (%) | P83: ($) | R83: ($)
A84: 42 | C84: SL | D84: STREET LIGHTING -- CO OWNED & MAINTAINED (CONT'D.)
A85: 43 | C85: OVERHEAD DISTRIBUTION (CONT'D.):
A86: 44 | C86: DECORATIVE SODIUM VAPOR:
A87: 45 | C87: 9,500 LUMEN RECTILINEAR | F87: 0 | H87: =ROUND(F87*AC87/12,0) -> 0 | J87: =ROUND(AC309+(AC309*$AG$1),2) -> 10.94 | L87: =ROUND((F87*J87),0) -> 0 | N87: =ROUND((L87/L$211)*100,1) -> 0 | P87: =ROUND($P$211/$H$211*H87,0) -> 0 | R87: =L87+P87 -> 0 | AC87: 487
A88: 46 | C88: 22,000 LUMEN RECTILINEAR | F88: 12 | H88: 1023 | J88: =ROUND(AC310+(AC310*$AG$1),2) -> 13.53 | L88: 162 | N88: 0 | P88: 1 | R88: =L88+P88 -> 163 | AC88: 1023
A89: 47 | C89: 50,000 LUMEN RECTILINEAR | F89: 132 | H89: 21549 | J89: =ROUND(AC311+(AC311*$AG$1),2) -> 17.9 | L89: 2363 | N89: 0.2 | P89: 22 | R89: 2385 | AC89: 1959
A90: 48 | C90: 50,000 LUMEN RECTILINEAR (5) | F90: 180 | H90: 29385 | J90: =$J$89+$AG$7 -> 22.82 | L90: 4108 | N90: 0.3 | P90: 30 | R90: 4138 | AC90: 1959
A91: 49 | C91: 50,000 LUMEN RECTILINEAR (6) | F91: 0 | H91: 0 | J91: =$J$89+$AG$8 -> 23.8 | L91: 0 | N91: 0 | P91: 0 | R91: 0 | AC91: 1959
A92: 50 | C92: 50,000 LUMEN SETBACK | F92: 216 | H92: 35262 | J92: =ROUND(AC314+(AC314*$AG$1),2) -> 26.62 | L92: 5750 | N92: 0.4 | P92: 36 | R92: 5786 | AC92: 1959
A93: 51 | C93: 50,000 LUMEN SETBACK (6) | F93: 36 | H93: 5877 | J93: =$J$92+$AG$8 -> 32.52 | L93: 1171 | N93: 0.1 | P93: 6 | R93: 1177 | AC93: 1959
A94: 52 | C94: TOTAL OVERHEAD | F94: =SUM(F21:F93) -> 120332 | H94: =SUM(H21:H93) -> 9595373 | L94: =SUM(L21:L93) -> 1178648 | N94: 78.8 | P94: =ROUND(H94*CUR_FAC,0) -> 9864 | R94: =SUM(R21:R93) -> 1188512
A96: 53 | C96: UNDERGROUND DISTRIBUTION:
A97: 54 | C97: MERCURY VAPOR:
A98: 55 | C98: 7,000 LUMEN | F98: 60 | H98: =ROUND(F98*AC98/12,0) -> 4370 | J98: =ROUND(AC320+(AC320*$AG$1),2) -> 8.1 | L98: =ROUND((F98*J98),0) -> 486 | N98: =ROUND((L98/L$211)*100,1) -> 0 | P98: =ROUND($P$211/$H$211*H98,0) -> 4 | R98: =L98+P98 -> 490 | AC98: 874
A99: 56 | C99: 7,000 LUMEN (OPEN) | F99: 0 | H99: 0 | J99: =ROUND(AC321+(AC321*$AG$1),2) -> 6.65 | L99: 0 | N99: =ROUND((L99/L$211)*100,1) -> 0 | P99: =ROUND($P$211/$H$211*H99,0) -> 0 | R99: =L99+P99 -> 0 | AC99: 853
A100: 57 | C100: 7,000 LUMEN (4) | F100: 600 | H100: 43700 | J100: =$J$98+$AG$6 -> 12.96 | L100: 7776 | N100: 0.5 | P100: =ROUND($P$211/$H$211*H100,0) -> 45 | R100: 7821 | AC100: 874
A101: 58 | C101: 7,000 LUMEN (5) | F101: 12 | H101: 874 | J101: =$J$98+$AG$7 -> 13.02 | L101: 156 | N101: 0 | P101: 1 | R101: 157 | AC101: 874
A102: 59 | C102: 7,000 LUMEN (8) | F102: 360 | H102: 26220 | J102: =$J$98+$AG$10 -> 15.86 | L102: 5710 | N102: 0.4 | P102: 27 | R102: 5737 | AC102: 874
A103: 60 | C103: 10,000 LUMEN | F103: 0 | H103: 0 | J103: =ROUND(AC325+(AC325*$AG$1),2) -> 9.35 | L103: 0 | N103: 0 | P103: 0 | R103: 0 | AC103: 1215
A104: 61 | C104: 10,000 LUMEN (4) | F104: 84 | H104: 8505 | J104: =$J$103+$AG$6 -> 14.21 | L104: 1194 | N104: 0.1 | P104: 9 | R104: 1203 | AC104: 1215
A105: 62 | C105: 10,000 LUMEN (8) | F105: 156 | H105: 15795 | J105: =$J$103+$AG$10 -> 17.11 | L105: 2669 | N105: 0.2 | P105: 16 | R105: 2685 | AC105: 1215
A106: 63 | C106: 21,000 LUMEN | F106: 96 | H106: 15312 | J106: =ROUND(AC328+(AC328*$AG$1),2) -> 12.59 | L106: 1209 | N106: 0.1 | P106: 16 | R106: 1225 | AC106: 1914
A107: 64 | C107: 21,000 LUMEN (8) | F107: 132 | H107: 21054 | J107: =$J$106+$AG$10 -> 20.35 | L107: 2686 | N107: 0.2 | P107: =ROUND($P$211/$H$211*H107,0) -> 22 | R107: 2708 | AC107: 1914
A108: 65 | C108: METAL HALIDE:
A109: 66 | C109: 14,000 LUMEN | F109: 0 | H109: =ROUND(F109*AC109/12,0) -> 0 | J109: =ROUND(AC331+(AC331*$AG$1),2) -> 8.1 | L109: 0 | N109: =ROUND((L109/L$211)*100,1) -> 0 | P109: =ROUND($P$211/$H$211*H109,0) -> 0 | R109: =L109+P109 -> 0 | AC109: 874
A110: 67 | C110: 20,500 LUMEN | F110: 0 | H110: 0 | J110: =ROUND(AC332+(AC332*$AG$1),2) -> 9.35 | L110: 0 | N110: =ROUND((L110/L$211)*100,1) -> 0 | P110: =ROUND($P$211/$H$211*H110,0) -> 0 | R110: =L110+P110 -> 0 | AC110: 1215
A111: 68 | C111: 36,000 LUMEN | F111: 0 | H111: 0 | J111: =ROUND(AC333+(AC333*$AG$1),2) -> 12.59 | L111: 0 | N111: =ROUND((L111/L$211)*100,1) -> 0 | P111: =ROUND($P$211/$H$211*H111,0) -> 0 | R111: =L111+P111 -> 0 | AC111: 1914
A112: 69 | C112: SODIUM VAPOR: | L112: 0
A113: 70 | C113: 9,500 LUMEN | F113: 0 | H113: =ROUND(F113*AC113/12,0) -> 0 | J113: =ROUND(AC335+(AC335*$AG$1),2) -> 8.81 | L113: 0 | N113: =ROUND((L113/L$211)*100,1) -> 0 | P113: =ROUND($P$211/$H$211*H113,0) -> 0 | R113: =L113+P113 -> 0 | AC113: 487
A114: 71 | C114: 9,500 LUMEN (6) | F114: 24 | H114: 974 | J114: =$J$113+$AG$8 -> 14.71 | L114: 353 | N114: 0 | P114: 1 | R114: 354 | AC114: 487
A115: 72 | C115: 9,500 LUMEN (8) | F115: 588 | H115: 23863 | J115: =$J$113+$AG$10 -> 16.57 | L115: 9743 | N115: 0.7 | P115: 25 | R115: =L115+P115 -> 9768 | AC115: 487
A116: 73 | C116: 9,500 LUMEN (10) | F116: 24 | H116: 974 | J116: =$J$113+$AG$13 -> 13.73 | L116: 330 | N116: 0 | P116: 1 | R116: =L116+P116 -> 331 | AC116: 487
A117: 74 | C117: 9,500 LUMEN (13) | F117: 12 | H117: 487 | J117: =$J$113+$AG$16 -> 18.43 | L117: 221 | N117: 0 | P117: 1 | R117: 222 | AC117: 487
A118: 75 | C118: 9,500 LUMEN (OPEN) | F118: 0 | H118: 0 | J118: =ROUND(AC340+(AC340*$AG$1),2) -> 6.7 | L118: 0 | N118: 0 | P118: 0 | R118: 0 | AC118: 487
A119: 76 | C119: 16,000 LUMEN | F119: 0 | H119: 0 | J119: =ROUND(AC341+(AC341*$AG$1),2) -> 9.57 | L119: 0 | N119: 0 | P119: 0 | R119: 0 | AC119: 711
A120: 77 | C120: 16,000 LUMEN (6) | F120: 25 | H120: 1481 | J120: =$J$119+$AG$8 -> 15.47 | L120: 387 | N120: 0 | P120: =ROUND($P$211/$H$211*H120,0) -> 2 | R120: =L120+P120 -> 389 | AC120: 711
A121: 78 | C121: 22,000 LUMEN | F121: 228 | H121: 18012 | J121: =ROUND(AC343+(AC343*$AG$1),2) -> 12.45 | L121: 2839 | N121: 0.2 | P121: =ROUND($P$211/$H$211*H121,0) -> 19 | R121: 2858 | AC121: 948
A122: 79 | C122: 22,000 LUMEN (5) | F122: 60 | H122: 4740 | J122: =$J$121+$AG$7 -> 17.37 | L122: 1042 | N122: 0.1 | P122: 5 | R122: 1047 | AC122: 948
A123: 80 | C123: 22,000 LUMEN (8) | F123: 528 | H123: 41712 | J123: =$J$121+$AG$10 -> 20.21 | L123: 10671 | N123: 0.7 | P123: 43 | R123: =L123+P123 -> 10714 | AC123: 948
A124: 81 | C124: 22,000 LUMEN (8A) | F124: 48 | H124: 3792 | J124: =$J$121+$AG$11 -> 20.29 | L124: 974 | N124: 0.1 | P124: 4 | R124: =L124+P124 -> 978 | AC124: 948
A125: 82 | C125: 27,500 LUMEN | F125: 0 | H125: 0 | J125: =ROUND(AC347+(AC347*$AG$1),2) -> 12.45 | L125: 0 | N125: 0 | P125: 0 | R125: =L125+P125 -> 0 | AC125: 948
A126: 83 | C126: 27,500 LUMEN (9) | F126: 252 | H126: 19908 | J126: =$J$125+$AG$12 -> 27.96 | L126: 7046 | N126: 0.5 | P126: 20 | R126: 7066 | AC126: 948
A127: 84 | C127: 50,000 LUMEN | F127: 336 | H127: 54852 | J127: =ROUND(AC349+(AC349*$AG$1),2) -> 16.73 | L127: 5621 | N127: 0.4 | P127: 56 | R127: 5677 | AC127: 1959
A128: 85 | C128: 50,000 LUMEN (8) | F128: 72 | H128: 11754 | J128: =$J$127+$AG$10 -> 24.49 | L128: 1763 | N128: 0.1 | P128: 12 | R128: =L128+P128 -> 1775 | AC128: 1959
A129: 86 | C129: 50,000 LUMEN (9) | F129: 132 | H129: 21549 | J129: =$J$127+$AG$12 -> 32.24 | L129: 4256 | N129: 0.3 | P129: 22 | R129: =L129+P129 -> 4278 | AC129: 1959
A130: 87 | C130: DECORATIVE MERCURY VAPOR:
A131: 88 | C131: 7,000 LUMEN TOWN & COUNTRY | F131: 0 | H131: =ROUND(F131*AC131/12,0) -> 0 | J131: =ROUND(AC353+(AC353*$AG$1),2) -> 8.37 | L131: 0 | N131: =ROUND((L131/L$211)*100,1) -> 0 | P131: =ROUND($P$211/$H$211*H131,0) -> 0 | R131: =L131+P131 -> 0 | AC131: 853
A132: 89 | C132: 7,000 LUMEN TOWN & COUNTRY (3) | F132: 216 | H132: 15354 | J132: =$J$131+$AG$5 -> 13.29 | L132: 2871 | N132: 0.2 | P132: 16 | R132: =L132+P132 -> 2887 | AC132: 853
A133: 90 | C133: 7,000 LUMEN TOWN & COUNTRY (10) | F133: 5888 | H133: 418539 | J133: =$J$131+$AG$13 -> 13.29 | L133: 78252 | N133: =ROUND((L133/L$211)*100,1)-0.1 -> 5.1 | P133: 430 | R133: 78682 | AC133: 853
A134: 91 | C134: 7,000 LUMEN HOLOPHANE | F134: 24 | H134: 1748 | J134: =ROUND(AC356+(AC356*$AG$1),2) -> 10.52 | L134: 252 | N134: 0 | P134: 2 | R134: 254 | AC134: 874
A135: 92 | C135: 7,000 LUMEN HOLOPHANE (10) | F135: 1909 | H135: 139039 | J135: =$J$134+$AG$13 -> 15.44 | L135: 29475 | N135: 2 | P135: 143 | R135: 29618 | AC135: 874
A136: 93 | C136: 7,000 LUMEN GAS REPLICA (7) | F136: 96 | H136: 6992 | J136: =ROUND(AC358+(AC358*$AG$1),2) -> 37.43 | L136: 3593 | N136: 0.2 | P136: 7 | R136: 3600 | AC136: 874
A137: 94 | C137: 7,000 LUMEN GRANVILLE | F137: 0 | H137: 0 | J137: =ROUND(AC359+(AC359*$AG$1),2) -> 8.46 | L137: 0 | N137: 0 | P137: =ROUND($P$211/$H$211*H137,0) -> 0 | R137: =L137+P137 -> 0 | AC137: 853
A138: 95 | C138: 7,000 LUMEN GRANVILLE (7) | F138: 0 | H138: 0 | J138: =$J$137+$AG$9 -> 21.85 | L138: 0 | N138: 0 | P138: =ROUND($P$211/$H$211*H138,0) -> 0 | R138: =L138+P138 -> 0 | AC138: 853
A139: 96 | C139: 7,000 LUMEN ASPEN | F139: 24 | H139: 1748 | J139: =ROUND(AC361+(AC361*$AG$1),2) -> 15.23 | L139: 366 | N139: 0 | P139: =ROUND($P$211/$H$211*H139,0) -> 2 | R139: 368 | AC139: 874
A141: (1) THESE FIGURES REPRESENT NUMBER OF UNITS BILLED. | J141: (5) WITH 35' WOOD POLE. | P141: (9) WITH 30' ALUM POLE.
A142: ="(1A) REFLECTS FUEL COST RECOVERY INCLUDED IN BASE RATES OF "&TEXT(CUR_BASE_FUEL,"$0.000000;($0.000000)")&" PER KWH." -> (1A) REFLECTS FUEL COST RECOVERY INCLUDED IN BASE RATES OF $0.023837 PER KWH. | J142: (6) WITH 40' WOOD POLE. | P142: (10) WITH 17' FIBERGLASS POLE.
A143: ="(2) REFLECTS FUEL COMPONENT OF "&TEXT(CUR_FAC,"$0.000000;($0.000000)")&" PER KWH." -> (2) REFLECTS FUEL COMPONENT OF $0.001028 PER KWH. | J143: (7) WITH 12' ALUM POLE. | P143: (11) WITH 12' FIBERGLASS POLE.
A144: (3) WITH 17' WOOD LAMINATED POLE. | J144: (8) WITH 28' ALUM POLE. | P144: (12) WITH 30' FIBERGLASS POLE.
A145: (4) WITH 30' WOOD POLE. | J145: (8A) WITH 28' ALUM POLE HEAVY GAUGE. | P145: (13) WITH 35' FIBERGLASS POLE.
A148: =NAME -> DUKE ENERGY KENTUCKY, INC.
A149: =CASE_NO -> CASE NO. 2017-00321
A150: =TITLE -> ANNUALIZED BASE YEAR REVENUES AT PROPOSED VS. MOST CURRENT RATES
A151: =DATE -> FOR THE TWELVE MONTHS ENDED November 30, 2017
A152: =SERVICE -> (ELECTRIC SERVICE)
A153: =DATA_PERIOD -> DATA: __X__ BASE PERIOD ____FORECASTED PERIOD | R153: SCHEDULE M-2.3
A154: =TYPE -> TYPE OF FILING: _X_ ORIGINAL ___UPDATED ___ REVISED | R154: PAGE 15 OF 22
A155: WORK PAPER REFERENCE NO(S).: | R155: WITNESS:
A156: =TIME -> 6 Months Actual and 6 Months Projected | R156: =WIT -> B. L. SAILERS
A157: PROPOSED ANNUALIZED
L159: PROPOSED | N159: % OF REV TO | R159: PROPOSED
L160: REVENUE LESS | N160: TOTAL LESS | R160: TOTAL
A161: LINE | C161: RATE | D161: CLASS / | F161: CUSTOMER | J161: PROPOSED | L161: FUEL COST | N161: FUEL COST | P161: FUEL COST | R161: REVENUE
A162: NO. | C162: CODE | D162: DESCRIPTION | F162: BILLS(1) | H162: SALES | J162: RATES(1A) | L162: REVENUE | N162: REVENUE | P162: REVENUE (2) | R162: (F + H)
C163: (A) | D163: (B) | F163: (C) | H163: (D) | J163: (E) | L163: (F) | N163: (G) | P163: (H) | R163: (I)
H164: (KWH) | J164: ($/UNIT) | L164: ($) | N164: (%) | P164: ($) | R164: ($)
A165: 97 | C165: SL | D165: STREET LIGHTING -- CO OWNED & MAINTAINED (CONT'D.)
A166: 98 | C166: UNDERGROUND DISTRIBUTION (CONT'D.):
A167: 99 | C167: DECORATIVE METAL HALIDE:
A168: 100 | C168: 14,000 LUMEN TRADITIONAIRE | F168: 0 | H168: =ROUND(F168*AC168/12,0) -> 0 | J168: =ROUND(AC390+(AC390*$AG$1),2) -> 8.37 | L168: =ROUND((F168*J168),0) -> 0 | N168: =ROUND((L168/L$211)*100,1) -> 0 | P168: =ROUND($P$211/$H$211*H168,0) -> 0 | R168: =L168+P168 -> 0 | AC168: 853
A169: 101 | C169: 14,000 LUMEN TRADITIONAIRE (7) | F169: 60 | H169: 4265 | J169: =$J$168+$AG$9 -> 21.76 | L169: 1306 | N169: 0.1 | P169: 4 | R169: 1310 | AC169: 853
A170: 102 | C170: 14,000 LUMEN TRADITIONAIRE (10) | F170: 468 | H170: 33267 | J170: =$J$168+$AG$13 -> 13.29 | L170: 6220 | N170: 0.4 | P170: 34 | R170: 6254 | AC170: 853
A171: 103 | C171: 14,000 LUMEN GRANVILLE | F171: 0 | H171: 0 | J171: =ROUND(AC393+(AC393*$AG$1),2) -> 15.23 | L171: 0 | N171: 0 | P171: 0 | R171: 0 | AC171: 874
A172: 104 | C172: 14,000 LUMEN GRANVILLE (11) | F172: 0 | H172: 0 | J172: =$J$171+$AG$14 -> 29.63 | L172: 0 | N172: 0 | P172: 0 | R172: 0 | AC172: 874
A173: 105 | C173: 14,000 LUMEN GAS REPLICA | F173: 0 | H173: 0 | J173: =ROUND(AC395+(AC395*$AG$1),2) -> 24.13 | L173: 0 | N173: 0 | P173: 0 | R173: 0 | AC173: 874
A174: 106 | C174: 14,500 LUMEN GAS REPLICA | F174: 0 | H174: 0 | J174: =ROUND(AC396+(AC396*$AG$1),2) -> 24.13 | L174: 0 | N174: 0 | P174: 0 | R174: 0 | AC174: 874
A175: 107 | C175: 14,500 LUMEN GAS REPLICA (7) | F175: 240 | H175: 17480 | J175: =$J$174+$AG$9 -> 37.52 | L175: 9005 | N175: 0.6 | P175: 18 | R175: 9023 | AC175: 874
A176: 108 | C176: 14,500 LUMEN GAS REPLICA (10) | F176: 60 | H176: 4370 | J176: =$J$174+$AG$13 -> 29.05 | L176: 1743 | N176: 0.1 | P176: 4 | R176: 1747 | AC176: 874
A178: 109 | C178: DECORATIVE SODIUM VAPOR:
A179: 110 | C179: 9,500 LUMEN TOWN & COUNTRY | F179: 98 | H179: =ROUND(F179*AC179/12,0) -> 3977 | J179: =ROUND(AC401+(AC401*$AG$1),2) -> 12.23 | L179: =ROUND((F179*J179),0) -> 1199 | N179: =ROUND((L179/L$211)*100,1) -> 0.1 | P179: =ROUND($P$211/$H$211*H179,0) -> 4 | R179: =L179+P179 -> 1203 | AC179: 487
A180: 111 | C180: 9,500 LUMEN TOWN & COUNTRY (10) | F180: 1896 | H180: 76946 | J180: =$J$179+$AG$13 -> 17.15 | L180: 32516 | N180: 2.2 | P180: =ROUND($P$211/$H$211*H180,0) -> 79 | R180: =L180+P180 -> 32595 | AC180: 487
A181: 112 | C181: 9,500 LUMEN HOLOPHANE | F181: 576 | H181: 25536 | J181: =ROUND(AC403+(AC403*$AG$1),2) -> 13.25 | L181: 7632 | N181: 0.5 | P181: =ROUND($P$211/$H$211*H181,0) -> 26 | R181: =L181+P181 -> 7658 | AC181: 532
A182: 113 | C182: 9,500 LUMEN HOLOPHANE (10) | F182: 312 | H182: 13832 | J182: =$J$181+$AG$13 -> 18.17 | L182: 5669 | N182: 0.4 | P182: =ROUND($P$211/$H$211*H182,0) -> 14 | R182: 5683 | AC182: 532
A183: 114 | C183: 9,500 LUMEN GAS REPLICA (7) | F183: 132 | H183: 5852 | J183: =ROUND(AC405+(AC405*$AG$1),2) -> 38.3 | L183: 5056 | N183: 0.3 | P183: =ROUND($P$211/$H$211*H183,0) -> 6 | R183: =L183+P183 -> 5062 | AC183: 532
A184: 115 | C184: 9,500 LUMEN GAS REPLICA (10) | F184: 12 | H184: 532 | J184: =ROUND(AC406+(AC406*$AG$1),2) -> 29.83 | L184: 358 | N184: 0 | P184: =ROUND($P$211/$H$211*H184,0) -> 1 | R184: =L184+P184 -> 359 | AC184: 532
A185: 116 | C185: 9,500 LUMEN GAS REPLICA (11) | F185: 312 | H185: 13832 | J185: 39.31 | L185: 12265 | N185: 0.8 | P185: 14 | R185: 12279 | AC185: 532
A186: 117 | C186: 9,500 LUMEN ASPEN (7) | F186: 888 | H186: 39368 | J186: 15.43 | L186: 13702 | N186: 0.9 | P186: 40 | R186: 13742 | AC186: 532
A187: 118 | C187: 9,500 LUMEN TRADITIONAIRE | F187: 0 | H187: 0 | J187: 12.23 | L187: 0 | N187: 0 | P187: 0 | R187: 0 | AC187: 487
A188: 119 | C188: 9,500 LUMEN TRADITIONAIRE (10) | F188: 696 | H188: 28246 | J188: =$J$187+$AG$13 -> 17.15 | L188: 11936 | N188: 0.8 | P188: 29 | R188: 11965 | AC188: 487
A189: 120 | C189: 9,500 LUMEN GRANVILLE | F189: 0 | H189: 0 | J189: 15.43 | L189: 0 | N189: 0 | P189: 0 | R189: 0 | AC189: 532
A190: 121 | C190: 9,500 LUMEN GRANVILLE (7) | F190: 0 | H190: 0 | J190: =$J$189+$AG$9 -> 28.82 | L190: 0 | N190: 0 | P190: 0 | R190: 0 | AC190: 532
A191: 122 | C191: 9,500 LUMEN GRANVILLE (10) | F191: 0 | H191: 0 | J191: =$J$189+$AG$13 -> 20.35 | L191: 0 | N191: 0 | P191: 0 | R191: =L191+P191 -> 0 | AC191: 532
A192: 123 | C192: 9,500 LUMEN GRANVILLE (11) | F192: 0 | H192: 0 | J192: =$J$189+$AG$14 -> 29.83 | L192: 0 | N192: 0 | P192: 0 | R192: 0 | AC192: 532
A193: 124 | C193: 22,000 LUMEN RECTILINEAR | F193: 0 | H193: 0 | J193: =ROUND(AC415+(AC415*$AG$1),2) -> 13.59 | L193: 0 | N193: 0 | P193: 0 | R193: =L193+P193 -> 0 | AC193: 1023
A194: 125 | C194: 22,000 LUMEN RECTILINEAR (12) | F194: 169 | H194: 14407 | J194: =$J$193+$AG$15 -> 22.97 | L194: 3882 | N194: 0.3 | P194: 15 | R194: 3897 | AC194: 1023
A195: 126 | C195: 50,000 LUMEN RECTILINEAR | F195: 0 | H195: 0 | J195: =ROUND(AC417+(AC417*$AG$1),2) -> 17.97 | L195: 0 | N195: 0 | P195: 0 | R195: =L195+P195 -> 0 | AC195: 1959
A196: 127 | C196: 50,000 LUMEN RECTILINEAR (12) | F196: 36 | H196: 5877 | J196: =$J$195+$AG$15 -> 27.35 | L196: 985 | N196: 0.1 | P196: 6 | R196: =L196+P196 -> 991 | AC196: 1959
A197: 128 | C197: 50,000 LUMEN RECTILINEAR (13) | F197: 204 | H197: 33303 | J197: =$J$195+$AG$16 -> 27.59 | L197: 5628 | N197: 0.4 | P197: 34 | R197: =L197+P197 -> 5662 | AC197: 1959
A198: 129 | C198: 50,000 LUMEN SETBACK | F198: 0 | H198: 0 | J198: =ROUND(AC420+(AC420*$AG$1),2) -> 26.62 | L198: 0 | N198: 0 | P198: 0 | R198: =L198+P198 -> 0 | AC198: 1959
A199: 130 | C199: TOTAL UNDERGROUND | F199: =SUM(F98:F198) -> 18145 | H199: =SUM(H98:H198) -> 1244438 | L199: =SUM(L98:L198) -> 301043 | N199: =ROUND((L199/L$211)*100,1) -> 20.1 | P199: =ROUND(H199*CUR_FAC,0) -> 1279 | R199: =SUM(R98:R198) -> 302322
A200: 131 | C200: RIDERS NOT INCLUDED IN RATES ABOVE ($ PER KWH):
A201: 132 | C201: =ESM_Name -> ENVIRONMENTAL SURCHARGE MECHANISM RIDER (ESM) | J201: =PRO_ESM -> 0 | L201: =ROUND(($R$199+$R$94)*J201,0) -> 0 | N201: =ROUND((L201/L$211)*100,1) -> 0 | R201: =L201+P201 -> 0
A202: 133 | C202: =DCI_Name -> DISTRIBUTION CAPITAL INVESTMENT RIDER (DCI) | J202: =PRO_DCI_SL -> 0 | L202: =ROUND(($H$199+$H$94)*J202,0) -> 0 | N202: 0 | R202: 0
A203: 134 | C203: =FTR_Name -> FERC TRANSMISSION COST RECOVERY RECONCILIATION (FTR) | J203: =PRO_FTR_SL -> 0 | L203: =ROUND(($H$199+$H$94)*J203,0) -> 0 | N203: 0 | R203: 0
A204: 135 | C204: =PSM_Name -> PROFIT SHARING MECHANISM (PSM) | J204: =PRO_PSM -> -0.000456 | L204: =ROUND(($H$199+$H$94)*J204,0) -> -4943 | N204: =ROUND((L204/L$211)*100,1) -> -0.3 | R204: =L204+P204 -> -4943
A205: 136 | C205: TOTAL RIDERS NOT INCLUDED IN RATES ABOVE | L205: =SUM(L201:L204) -> -4943 | N205: =ROUND((L205/L$211)*100,1) -> -0.3 | R205: =SUM(R201:R204) -> -4943
A207: 137 | C207: ADD'L FACILITIES CHARGE:
A208: 138 | C208: OVERHEAD | F208: 5647 | J208: =ROUND(AC430+(AC430*$AG$1),2) -> 0.58 | L208: =ROUND((F208*J208),0) -> 3275 | N208: =ROUND((L208/L$211)*100,1) -> 0.2 | R208: =L208+P208 -> 3275
A209: 139 | C209: UNDERGROUND | F209: 20991 | J209: =ROUND(AC431+(AC431*$AG$1),2) -> 0.84 | L209: 17632 | N209: =ROUND((L209/L$211)*100,1) -> 1.2 | R209: =L209+P209 -> 17632
A210: 140 | C210: TOTAL ADD'L FACILITIES CHG | F210: =SUM(F208:F209) -> 26638 | L210: =SUM(L208:L209) -> 20907 | N210: =ROUND((L210/L$211)*100,1) -> 1.4 | P210: 0 | R210: =SUM(R208:R209) -> 20907
A211: 141 | C211: TOTAL RATE SL INCLUDING RIDERS | F211: =F94+F199 -> 138477 | H211: =H94+H199 -> 10839811 | L211: =L94+L199+L205+L210 -> 1495655 | N211: 100 | P211: =ROUND(H211*CUR_FAC,0) -> 11143 | R211: =R94+R199+R205+R210 -> 1506798
... 209 more rows

Sheet Rate TL
A1: =NAME -> DUKE ENERGY KENTUCKY, INC.
A2: =CASE_NO -> CASE NO. 2017-00321
A3: =TITLE -> ANNUALIZED BASE YEAR REVENUES AT PROPOSED VS. MOST CURRENT RATES
A4: =DATE -> FOR THE TWELVE MONTHS ENDED November 30, 2017
A5: =SERVICE -> (ELECTRIC SERVICE)
A6: =DATA_PERIOD -> DATA: __X__ BASE PERIOD ____FORECASTED PERIOD | R6: SCHEDULE M-2.3
A7: =TYPE -> TYPE OF FILING: _X_ ORIGINAL ___UPDATED ___ REVISED | R7: PAGE 16 OF 22
A8: WORK PAPER REFERENCE NO(S).: | R8: WITNESS:
A9: =TIME -> 6 Months Actual and 6 Months Projected | R9: =WIT -> B. L. SAILERS
A10: PROPOSED ANNUALIZED
L12: PROPOSED | N12: % OF REV TO | R12: PROPOSED
L13: REVENUE LESS | N13: TOTAL LESS | R13: TOTAL
A14: LINE | C14: RATE | D14: CLASS / | F14: CUSTOMER | J14: PROPOSED | L14: FUEL COST | N14: FUEL COST | P14: FUEL COST | R14: REVENUE
A15: NO. | C15: CODE | D15: DESCRIPTION | F15: BILLS(1) | H15: SALES | J15: RATES | L15: REVENUE | N15: REVENUE | P15: REVENUE (2) | R15: (F + H)
C16: (A) | D16: (B) | F16: (C) | H16: (D) | J16: (E) | L16: (F) | N16: (G) | P16: (H) | R16: (I)
H17: (KWH) | J17: ($/KWH) | L17: ($) | N17: (%) | P17: ($) | R17: ($)
A18: 1 | C18: TL | D18: TRAFFIC LIGHTING
A19: 2 | D19: SERVICE
A21: 3 | C21: (A) WHERE COMPANY
A22: 4 | C22: SUPPLIES ENERGY ONLY (3):
A24: 5 | C24: ALL CONSUMPTION | F24: 76019 | H24: 680382 | J24: =ROUND(AC77+(AC77*LT_COS_RATE),6) -> 0.04259 | L24: =ROUND((H24*J24),0) -> 28977 | N24: =ROUND((L24/L$49)*100,1) -> 36.9 | P24: =ROUND($P$49/$H$49*H24,0) -> 700 | R24: =L24+P24 -> 29677
A26: 6 | C26: (B) WHERE COMPANY
A27: 7 | C27: SUPPLIES ENERGY FROM A
A28: 8 | C28: SEPARATELY METERED SOURCE
A29: 9 | C29: AND PROVIDES LIMITED
A30: 10 | C30: MAINTENANCE:
A32: 11 | C32: ALL CONSUMPTION | F32: 0 | H32: 0 | J32: =ROUND(AC85+(AC85*LT_COS_RATE),6) -> 0.023583 | L32: 0 | N32: =ROUND((L32/L$49)*100,1) -> 0 | P32: =ROUND($P$49/$H$49*H32,0) -> 0 | R32: =L32+P32 -> 0
A34: 12 | C34: (C) WHERE COMPANY
A35: 13 | C35: SUPPLIES ENERGY AND
A36: 14 | C36: PROVIDES LIMITED
A37: 15 | C37: MAINTENANCE (3):
A39: 16 | C39: ALL CONSUMPTION | F39: 18876 | H39: 758083 | J39: =ROUND(AC92+(AC92*LT_COS_RATE),6) -> 0.066174 | L39: =ROUND((H39*J39),0) -> 50165 | N39: =ROUND((L39/L$49)*100,1) -> 63.9 | P39: =ROUND($P$49/$H$49*H39,0) -> 779 | R39: =L39+P39 -> 50944
A40: 17 | C40: TOTAL RATE TL EXCLUDING RIDERS | F40: =F39+F32+F24 -> 94895 | H40: =H39+H32+H24 -> 1438465 | L40: =L39+L32+L24 -> 79142 | N40: =ROUND((L40/L$49)*100,1) -> 100.8 | P40: =P39+P32+P24 -> 1479 | R40: =R39+R32+R24 -> 80621
A42: 18 | C42: RIDERS NOT INCLUDED IN RATES ABOVE:
A43: 19 | C43: =ESM_Name -> ENVIRONMENTAL SURCHARGE MECHANISM RIDER (ESM) | J43: =PRO_ESM -> 0 | L43: =ROUND($R$40*J43,0) -> 0 | N43: =ROUND((L43/L$49)*100,1) -> 0 | R43: =L43+P43 -> 0
A44: 20 | C44: =DCI_Name -> DISTRIBUTION CAPITAL INVESTMENT RIDER (DCI) | J44: =PRO_DCI_SL -> 0 | L44: =ROUND($H$40*J44,0) -> 0 | N44: 0 | R44: 0
A45: 21 | C45: =FTR_Name -> FERC TRANSMISSION COST RECOVERY RECONCILIATION (FTR) | J45: =PRO_FTR_SL -> 0 | L45: =ROUND($H$40*J45,0) -> 0 | N45: 0 | R45: 0
A46: 22 | C46: =PSM_Name -> PROFIT SHARING MECHANISM (PSM) | J46: =PRO_PSM -> -0.000456 | L46: =ROUND($H$40*J46,0) -> -656 | N46: =ROUND((L46/L$49)*100,1) -> -0.8 | R46: =L46+P46 -> -656
A47: 23 | C47: TOTAL RIDERS NOT INCLUDED IN RATES ABOVE | L47: =SUM(L43:L46) -> -656 | N47: =ROUND((L47/L$49)*100,1) -> -0.8 | R47: =SUM(R43:R46) -> -656
A49: 24 | C49: TOTAL RATE TL INCLUDING RIDERS | F49: =F40 -> 94895 | H49: =H40 -> 1438465 | L49: =L47+L40 -> 78486 | N49: 100 | P49: =ROUND(H49*CUR_FAC,0) -> 1479 | R49: =R47+R40 -> 79965
C51: (1) THESE FIGURES REPRESENT NUMBER OF UNITS BILLED.
C52: ="(2) REFLECTS FUEL COMPONENT OF "&TEXT(PRO_FAC,"$0.000000;($0.000000)")&" PER KWH." -> (2) REFLECTS FUEL COMPONENT OF $0.001028 PER KWH.
C53: ="(3) REFLECTS FUEL COST RECOVERY INCLUDED IN BASE RATES OF "&TEXT(PRO_BASE_FUEL,"$0.000000;($0.000000)")&" PER KWH." -> (3) REFLECTS FUEL COST RECOVERY INCLUDED IN BASE RATES OF $0.023837 PER KWH.
T54: =NAME -> DUKE ENERGY KENTUCKY, INC.
T55: =CASE_NO -> CASE NO. 2017-00321
T56: =TITLE -> ANNUALIZED BASE YEAR REVENUES AT PROPOSED VS. MOST CURRENT RATES
T57: =DATE -> FOR THE TWELVE MONTHS ENDED November 30, 2017
T58: =SERVICE -> (ELECTRIC SERVICE)
T59: =DATA_PERIOD -> DATA: __X__ BASE PERIOD ____FORECASTED PERIOD | AO59: SCHEDULE M-2.2
T60: =TYPE -> TYPE OF FILING: _X_ ORIGINAL ___UPDATED ___ REVISED | AO60: =R7 -> PAGE 16 OF 22
T61: WORK PAPER REFERENCE NO(S).: | AO61: WITNESS:
T62: =TIME -> 6 Months Actual and 6 Months Projected | AO62: =WIT -> B. L. SAILERS
T63: CURRENT ANNUALIZED
AE65: CURRENT | AG65: % OF REV TO | AI65: REVENUE | AK65: % INCR IN | AO65: CURRENT | AQ65: TOTAL
AC66: MOST | AE66: REVENUE LESS | AG66: TOTAL LESS | AI66: INCR LESS | AK66: REV LESS | AO66: TOTAL | AQ66: REVENUE
T67: LINE | V67: RATE | W67: CLASS / | Y67: CUSTOMER | AC67: CURRENT | AE67: FUEL COST | AG67: FUEL COST | AI67: FUEL COST REV | AK67: FUEL COST REV | AM67: FUEL COST | AO67: REVENUE | AQ67: % INCREASE
T68: NO. | V68: CODE | W68: DESCRIPTION | Y68: BILLS(1) | AA68: SALES | AC68: RATES | AE68: REVENUE | AG68: REVENUE | AI68: (F - K) | AK68: (M / K) | AM68: REVENUE (2) | AO68: (K + H) | AQ68: (M / K1)
V69: (A) | W69: (B) | Y69: (C) | AA69: (D) | AC69: (J) | AE69: (K) | AG69: (L) | AI69: (M) | AK69: (N) | AM69: (H) | AO69: (K1) | AQ69: (O)
AA70: (KWH) | AC70: ($/KWH) | AE70: ($) | AG70: (%) | AI70: ($) | AK70: (%) | AM70: ($) | AO70: ($) | AQ70: (%)
T71: 1 | V71: TL | W71: TRAFFIC LIGHTING
T72: 2 | W72: SERVICE
T74: 3 | V74: (A) WHERE COMPANY
T75: 4 | V75: SUPPLIES ENERGY ONLY (3):
T77: 5 | V77: ALL CONSUMPTION | Y77: =F24 -> 76019 | AA77: =H24 -> 680382 | AC77: 0.038066 | AE77: =ROUND((AA77*AC77),0) -> 25899 | AG77: =ROUND((AE77/AE$102)*100,1) -> 37 | AI77: =L24-AE77 -> 3078 | AK77: =ROUND((AI77/AE77)*100,1) -> 11.9 | AM77: =ROUND($AM$102/$AA$102*AA77,0) -> 700 | AO77: =AE77+AM77 -> 26599 | AQ77: =ROUND((AI77/AO77)*100,1) -> 11.6
T79: 6 | V79: (B) WHERE COMPANY
T80: 7 | V80: SUPPLIES ENERGY FROM A
T81: 8 | V81: SEPARATELY METERED SOURCE
T82: 9 | V82: AND PROVIDES LIMITED
T83: 10 | V83: MAINTENANCE:
T85: 11 | V85: ALL CONSUMPTION | Y85: =F32 -> 0 | AA85: =H32 -> 0 | AC85: 0.021078 | AE85: 0 | AG85: =ROUND((AE85/AE$102)*100,1) -> 0 | AI85: =L32-AE85 -> 0 | AK85: 0 | AM85: =ROUND($AM$102/$AA$102*AA85,0) -> 0 | AO85: =AE85+AM85 -> 0 | AQ85: 0
T87: 12 | V87: (B) WHERE COMPANY
T88: 13 | V88: SUPPLIES ENERGY AND
T89: 14 | V89: PROVIDES LIMITED
T90: 15 | V90: MAINTENANCE (3):
T92: 16 | V92: ALL CONSUMPTION | Y92: =F39 -> 18876 | AA92: =H39 -> 758083 | AC92: 0.059145 | AE92: =ROUND((AA92*AC92),0) -> 44837 | AG92: =ROUND((AE92/AE$102)*100,1)-0.1 -> 63.9 | AI92: =L39-AE92 -> 5328 | AK92: =ROUND((AI92/AE92)*100,1) -> 11.9 | AM92: =ROUND($AM$102/$AA$102*AA92,0) -> 779 | AO92: =AE92+AM92 -> 45616 | AQ92: =ROUND((AI92/AO92)*100,1) -> 11.7
T93: 17 | V93: TOTAL RATE TL EXCLUDING RIDERS | Y93: =Y92+Y85+Y77 -> 94895 | AA93: =AA92+AA85+AA77 -> 1438465 | AE93: =AE92+AE85+AE77 -> 70736 | AG93: =ROUND((AE93/AE$102)*100,1) -> 100.9 | AI93: =AI92+AI85+AI77 -> 8406 | AK93: =ROUND((AI93/AE93)*100,1) -> 11.9 | AM93: =AM92+AM85+AM77 -> 1479 | AO93: =AO92+AO85+AO77 -> 72215 | AQ93: =ROUND((AI93/AO93)*100,1) -> 11.6
T95: =A42 -> 18 | V95: RIDERS NOT INCLUDED IN RATES ABOVE:
T96: =A43 -> 19 | V96: =C43 -> ENVIRONMENTAL SURCHARGE MECHANISM RIDER (ESM) | AC96: =CUR_ESM -> 0 | AE96: =ROUND($AO$93*AC96,0) -> 0 | AG96: =ROUND((AE96/AE$102)*100,1) -> 0 | AI96: =L43-AE96 -> 0 | AK96: =IF(AE96=0,0,ROUND((AI96/AE96)*100,1)) -> 0 | AO96: =AE96+AM96 -> 0 | AQ96: =IF(AO96=0,0,ROUND((AI96/AO96)*100,1)) -> 0
T97: 20 | V97: DISTRIBUTION CAPITAL INVESTMENT RIDER (DCI) | AC97: =CUR_DCI_SL -> 0 | AE97: =ROUND($AA$93*AC97,0) -> 0 | AG97: 0 | AI97: 0 | AK97: =IF(AE97=0,0,ROUND((AI97/AE97)*100,1)) -> 0 | AO97: 0 | AQ97: =IF(AO97=0,0,ROUND((AI97/AO97)*100,1)) -> 0
T98: 21 | V98: FERC TRANSMISSION COST RECOVERY RECONCILIATION (FTR) | AC98: =CUR_FTR_SL -> 0 | AE98: =ROUND($AA$93*AC98,0) -> 0 | AG98: 0 | AI98: 0 | AK98: 0 | AO98: 0 | AQ98: 0
T99: 22 | V99: =C46 -> PROFIT SHARING MECHANISM (PSM) | AC99: =RS_PSM -> -0.000456 | AE99: =ROUND($AA$93*AC99,0) -> -656 | AG99: =ROUND((AE99/AE$102)*100,1) -> -0.9 | AI99: =L46-AE99 -> 0 | AK99: =ROUND((AI99/AE99)*100,1) -> 0 | AO99: =AE99+AM99 -> -656 | AQ99: =ROUND((AI99/AO99)*100,1) -> 0
T100: 23 | V100: TOTAL RIDERS NOT INCLUDED IN RATES ABOVE | AE100: =SUM(AE96:AE99) -> -656 | AG100: =ROUND((AE100/AE$102)*100,1) -> -0.9 | AI100: =SUM(AI96:AI99) -> 0 | AK100: =ROUND((AI100/AE100)*100,1) -> 0 | AO100: =SUM(AO96:AO99) -> -656 | AQ100: =ROUND((AI100/AO100)*100,1) -> 0
T102: =A49 -> 24 | V102: TOTAL RATE TL INCLUDING RIDERS | Y102: =Y93 -> 94895 | AA102: =AA93 -> 1438465 | AE102: =AE100+AE93 -> 70080 | AG102: 100 | AI102: =AI100+AI93 -> 8406 | AK102: =ROUND((AI102/AE102)*100,1) -> 12 | AM102: =ROUND(AA102*CUR_FAC,0) -> 1479 | AO102: =AO100+AO93 -> 71559 | AQ102: =ROUND((AI102/AO102)*100,1) -> 11.7
V104: (1) THESE FIGURES REPRESENT NUMBER OF UNITS BILLED.
V105: ="(2) REFLECTS FUEL COMPONENT OF "&TEXT(CUR_FAC,"$0.000000;($0.000000)")&" PER KWH." -> (2) REFLECTS FUEL COMPONENT OF $0.001028 PER KWH.
V106: ="(3) REFLECTS FUEL COST RECOVERY INCLUDED IN BASE RATES OF "&TEXT(CUR_BASE_FUEL,"$0.000000;($0.000000)")&" PER KWH." -> (3) REFLECTS FUEL COST RECOVERY INCLUDED IN BASE RATES OF $0.023837 PER KWH.

Sheet Rate UOLS
A1: =NAME -> DUKE ENERGY KENTUCKY, INC.
A2: =CASE_NO -> CASE NO. 2017-00321
A3: =TITLE -> ANNUALIZED BASE YEAR REVENUES AT PROPOSED VS. MOST CURRENT RATES
A4: =DATE -> FOR THE TWELVE MONTHS ENDED November 30, 2017
A5: =SERVICE -> (ELECTRIC SERVICE)
A6: =DATA_PERIOD -> DATA: __X__ BASE PERIOD ____FORECASTED PERIOD | R6: SCHEDULE M-2.3
A7: =TYPE -> TYPE OF FILING: _X_ ORIGINAL ___UPDATED ___ REVISED | R7: PAGE 17 OF 22
A8: WORK PAPER REFERENCE NO(S).: | R8: WITNESS:
A9: =TIME -> 6 Months Actual and 6 Months Projected | R9: =WIT -> B. L. SAILERS
A10: PROPOSED ANNUALIZED
L12: PROPOSED | N12: % OF REV TO | R12: PROPOSED
L13: REVENUE LESS | N13: TOTAL LESS | R13: TOTAL
A14: LINE | C14: RATE | D14: CLASS / | F14: CUSTOMER | J14: PROPOSED | L14: FUEL COST | N14: FUEL COST | P14: FUEL COST | R14: REVENUE
A15: NO. | C15: CODE | D15: DESCRIPTION | F15: BILLS(1) | H15: SALES | J15: RATES(3) | L15: REVENUE | N15: REVENUE | P15: REVENUE (2) | R15: (F + H)
C16: (A) | D16: (B) | F16: (C) | H16: (D) | J16: (E) | L16: (F) | N16: (G) | P16: (H) | R16: (I)
H17: (KWH) | J17: ($/KWH) | L17: ($) | N17: (%) | P17: ($) | R17: ($)
A19: 1 | C19: UOLS | D19: UNMETERED OUTDOOR LIGHTING SERV
A21: 2 | C21: BASE RATE | F21: 83973 | H21: 5308606 | J21: =ROUND(AC58+(AC58*LT_COS_RATE),6) -> 0.041936 | L21: =ROUND((H21*J21),0) -> 222622 | N21: =ROUND((L21/L$30)*100,1) -> 101.1 | P21: =P30 -> 5457 | R21: =P21+L21 -> 228079
A23: 3 | C23: RIDERS NOT INCLUDED IN RATES ABOVE:
A24: 4 | C24: =ESM_Name -> ENVIRONMENTAL SURCHARGE MECHANISM RIDER (ESM) | J24: =PRO_ESM -> 0 | L24: =ROUND($R$21*J24,0) -> 0 | N24: =ROUND((L24/L$30)*100,1) -> 0 | R24: =P24+L24 -> 0
A25: 5 | C25: =DCI_Name -> DISTRIBUTION CAPITAL INVESTMENT RIDER (DCI) | J25: =PRO_DCI_SL -> 0 | L25: =ROUND($H$21*J25,0) -> 0 | N25: 0 | R25: 0
A26: 6 | C26: =FTR_Name -> FERC TRANSMISSION COST RECOVERY RECONCILIATION (FTR) | J26: =PRO_FTR_SL -> 0 | L26: =ROUND($H$21*J26,0) -> 0 | N26: 0 | R26: 0
A27: 7 | C27: =PSM_Name -> PROFIT SHARING MECHANISM (PSM) | J27: =PRO_PSM -> -0.000456 | L27: =ROUND($H$21*J27,0) -> -2421 | N27: =ROUND((L27/L$30)*100,1) -> -1.1 | R27: =P27+L27 -> -2421
A28: 8 | C28: TOTAL RIDERS NOT INCLUDED IN RATES ABOVE | L28: =SUM(L24:L27) -> -2421 | N28: =ROUND((L28/L$30)*100,1) -> -1.1 | R28: =SUM(R24:R27) -> -2421
A30: 9 | C30: TOTAL RATE UOLS INCLUDING RIDERS | F30: =F21 -> 83973 | H30: =H21 -> 5308606 | L30: =L21+L28 -> 220201 | N30: =SUM(N21,N28) -> 100 | P30: =ROUND(H30*CUR_FAC,0) -> 5457 | R30: =R21+R28 -> 225658
C32: (1) THESE FIGURES REPRESENT NUMBER OF UNITS BILLED.
C33: ="(2) REFLECTS FUEL COMPONENT OF "&TEXT(PRO_FAC,"$0.000000;($0.000000)")&" PER KWH." -> (2) REFLECTS FUEL COMPONENT OF $0.001028 PER KWH.
C34: ="(3) REFLECTS FUEL COST RECOVERY INCLUDED IN BASE RATES OF "&TEXT(PRO_BASE_FUEL,"$0.000000;($0.000000)")&" PER KWH." -> (3) REFLECTS FUEL COST RECOVERY INCLUDED IN BASE RATES OF $0.023837 PER KWH.
T38: =NAME -> DUKE ENERGY KENTUCKY, INC.
T39: =CASE_NO -> CASE NO. 2017-00321
T40: =TITLE -> ANNUALIZED BASE YEAR REVENUES AT PROPOSED VS. MOST CURRENT RATES
T41: =DATE -> FOR THE TWELVE MONTHS ENDED November 30, 2017
T42: =SERVICE -> (ELECTRIC SERVICE)
T43: =DATA_PERIOD -> DATA: __X__ BASE PERIOD ____FORECASTED PERIOD | AO43: SCHEDULE M-2.2
T44: =TYPE -> TYPE OF FILING: _X_ ORIGINAL ___UPDATED ___ REVISED | AO44: =R7 -> PAGE 17 OF 22
T45: WORK PAPER REFERENCE NO(S).: | AO45: WITNESS:
T46: =TIME -> 6 Months Actual and 6 Months Projected | AO46: =WIT -> B. L. SAILERS
T47: CURRENT ANNUALIZED
AE49: CURRENT | AG49: % OF REV TO | AI49: REVENUE | AK49: % INCR IN | AO49: CURRENT | AQ49: TOTAL
AC50: MOST | AE50: REVENUE LESS | AG50: TOTAL LESS | AI50: INCR LESS | AK50: REV LESS | AO50: TOTAL | AQ50: REVENUE | AU50: Lighting rate on
T51: LINE | V51: RATE | W51: CLASS / | Y51: CUSTOMER | AC51: CURRENT | AE51: FUEL COST | AG51: FUEL COST | AI51: FUEL COST REV | AK51: FUEL COST REV | AM51: FUEL COST | AO51: REVENUE | AQ51: % INCREASE | AU51: Tariff Sheet
T52: NO. | V52: CODE | W52: DESCRIPTION | Y52: BILLS(1) | AA52: SALES | AC52: RATES(3) | AE52: REVENUE | AG52: REVENUE | AI52: (F - K) | AK52: (M / K) | AM52: REVENUE (2) | AO52: (K + H) | AQ52: (M / K1) | AU52: less Base Fuel | AX52: current | AY52: proposed
V53: (A) | W53: (B) | Y53: (C) | AA53: (D) | AC53: (J) | AE53: (K) | AG53: (L) | AI53: (M) | AK53: (N) | AM53: (H) | AO53: (K1) | AQ53: (O) | AW53: annual kwh | AX53: base fuel | AY53: base fuel
AA54: (KWH) | AC54: ($/KWH) | AE54: ($) | AG54: (%) | AI54: ($) | AK54: (%) | AM54: ($) | AO54: ($) | AQ54: (%)
AX55: =CUR_BASE_FUEL -> 0.023837 | AY55: =PRO_BASE_FUEL -> 0.023837
T56: 1 | V56: UOLS | W56: UNMETERED OUTDOOR LIGHTING SERV
T58: 2 | V58: BASE RATE | Y58: =F21 -> 83973 | AA58: =H21 -> 5308606 | AC58: 0.037481 | AE58: =ROUND((AA58*AC58),0) -> 198972 | AG58: =ROUND((AE58/AE$67)*100,1) -> 101.2 | AI58: =L21-AE58 -> 23650 | AK58: =ROUND((AI58/AE58)*100,1) -> 11.9 | AM58: =ROUND($AM$67/$AA$67*AA58,0) -> 5457 | AO58: =AE58+AM58 -> 204429 | AQ58: =ROUND((AI58/AO58)*100,1) -> 11.6 | AU58: =AC58-CUR_BASE_FUEL -> 0.013644
T60: =A23 -> 3 | V60: RIDERS NOT INCLUDED IN RATES ABOVE:
T61: =A24 -> 4 | V61: =C24 -> ENVIRONMENTAL SURCHARGE MECHANISM RIDER (ESM) | AC61: =CUR_ESM -> 0 | AE61: =ROUND($AO$58*AC61,0) -> 0 | AG61: =ROUND((AE61/AE$67)*100,1) -> 0 | AI61: =L24-AE61 -> 0 | AK61: =IF(AE61=0,0,ROUND((AI61/AE61)*100,1)) -> 0 | AO61: =AE61+AM61 -> 0 | AQ61: =IF(AO61=0,0,ROUND((AI61/AO61)*100,1)) -> 0
T62: 5 | V62: DISTRIBUTION CAPITAL INVESTMENT RIDER (DCI) | AC62: =CUR_DCI_SL -> 0 | AE62: =ROUND($AA$58*AC62,0) -> 0 | AG62: =ROUND((AE62/AE$67)*100,1) -> 0 | AI62: 0 | AK62: =IF(AE62=0,0,ROUND((AI62/AE62)*100,1)) -> 0 | AO62: 0 | AQ62: =IF(AO62=0,0,ROUND((AI62/AO62)*100,1)) -> 0
T63: 6 | V63: FERC TRANSMISSION COST RECOVERY RECONCILIATION (FTR) | AC63: =CUR_FTR_SL -> 0 | AE63: =ROUND($AA$58*AC63,0) -> 0 | AG63: =ROUND((AE63/AE$67)*100,1) -> 0 | AI63: 0 | AK63: 0 | AO63: 0 | AQ63: 0
T64: 7 | V64: =C27 -> PROFIT SHARING MECHANISM (PSM) | AC64: =RS_PSM -> -0.000456 | AE64: =ROUND($AA$58*AC64,0) -> -2421 | AG64: =ROUND((AE64/AE$67)*100,1) -> -1.2 | AI64: =L27-AE64 -> 0 | AK64: =ROUND((AI64/AE64)*100,1) -> 0 | AO64: =AE64+AM64 -> -2421 | AQ64: =ROUND((AI64/AO64)*100,1) -> 0
T65: 8 | V65: TOTAL RIDERS NOT INCLUDED IN RATES ABOVE | AE65: =SUM(AE61:AE64) -> -2421 | AG65: =ROUND((AE65/AE$67)*100,1) -> -1.2 | AI65: =SUM(AI61:AI64) -> 0 | AK65: 0 | AO65: =SUM(AO61:AO64) -> -2421 | AQ65: 0
T67: =A30 -> 9 | V67: TOTAL RATE UOLS INCLUDING RIDERS | Y67: =Y58 -> 83973 | AA67: =AA58 -> 5308606 | AE67: =AE65+AE58 -> 196551 | AG67: 100 | AI67: =AI58+AI65 -> 23650 | AK67: =ROUND((AI67/AE67)*100,1) -> 12 | AM67: =ROUND(AA67*CUR_FAC,0) -> 5457 | AO67: =AO65+AO58 -> 202008 | AQ67: =ROUND((AI67/AO67)*100,1) -> 11.7
V69: (1) THESE FIGURES REPRESENT NUMBER OF UNITS BILLED.
V70: ="(2) REFLECTS FUEL COMPONENT OF "&TEXT(CUR_FAC,"$0.000000;($0.000000)")&" PER KWH." -> (2) REFLECTS FUEL COMPONENT OF $0.001028 PER KWH.
V71: ="(3) REFLECTS FUEL COST RECOVERY INCLUDED IN BASE RATES OF "&TEXT(CUR_BASE_FUEL,"$0.000000;($0.000000)")&" PER KWH." -> (3) REFLECTS FUEL COST RECOVERY INCLUDED IN BASE RATES OF $0.023837 PER KWH.

Sheet Rate OL
A1: =NAME -> DUKE ENERGY KENTUCKY, INC.
A2: =CASE_NO -> CASE NO. 2017-00321
A3: =TITLE -> ANNUALIZED BASE YEAR REVENUES AT PROPOSED VS. MOST CURRENT RATES
A4: =DATE -> FOR THE TWELVE MONTHS ENDED November 30, 2017
A5: =SERVICE -> (ELECTRIC SERVICE)
A6: =DATA_PERIOD -> DATA: __X__ BASE PERIOD ____FORECASTED PERIOD | R6: SCHEDULE M-2.3
A7: =TYPE -> TYPE OF FILING: _X_ ORIGINAL ___UPDATED ___ REVISED | R7: PAGE 18 OF 22
A8: WORK PAPER REFERENCE NO(S).: | R8: WITNESS:
A9: =TIME -> 6 Months Actual and 6 Months Projected | R9: =WIT -> B. L. SAILERS
A10: PROPOSED ANNUALIZED
L12: PROPOSED | N12: % OF REV TO | R12: PROPOSED
L13: REVENUE LESS | N13: TOTAL LESS | R13: TOTAL
A14: LINE | C14: RATE | D14: CLASS / | F14: CUSTOMER | J14: PROPOSED | L14: FUEL COST | N14: FUEL COST | P14: FUEL COST | R14: REVENUE
A15: NO. | C15: CODE | D15: DESCRIPTION | F15: BILLS(1) | H15: SALES | J15: RATES(3) | L15: REVENUE | N15: REVENUE | P15: REVENUE (2) | R15: (F + H)
C16: (A) | D16: (B) | F16: (C) | H16: (D) | J16: (E) | L16: (F) | N16: (G) | P16: (H) | R16: (I)
H17: (KWH) | J17: ($/UNIT) | L17: ($) | N17: (%) | P17: ($) | R17: ($)
A18: 1 | C18: OL
A19: 2 | C19: (A) PRIVATE OUTDOOR LIGHTING UNITS:
A20: 3 | C20: MERCURY VAPOR: | AC20: Annual kwh
A21: 4 | C21: 7,000 LUMEN (OPEN) | F21: 248 | H21: =ROUND(F21*AC21/12,0) -> 17629 | J21: =ROUND(AC107+AC107*LT_COS_RATE,2) -> 9.77 | L21: =ROUND((F21*J21),0) -> 2423 | N21: =ROUND((L21/L$79)*100,1) -> 13 | P21: =ROUND($P$57/$H$57*H21,0)-1 -> 17 | R21: =L21+P21 -> 2440 | AC21: 853
A22: 5 | C22: 7,000 LUMEN | F22: =1+24 -> 25 | H22: =ROUND(F22*AC22/12,0) -> 1821 | J22: =ROUND(AC108+AC108*LT_COS_RATE,2) -> 12.5 | L22: =ROUND((F22*J22),0) -> 313 | N22: =ROUND((L22/L$79)*100,1) -> 1.7 | P22: =ROUND($P$57/$H$57*H22,0) -> 2 | R22: =L22+P22 -> 315 | AC22: 874
A23: 6 | C23: 10,000 LUMEN | F23: 70 | H23: 7088 | J23: =ROUND(AC109+AC109*LT_COS_RATE,2) -> 14.59 | L23: =ROUND((F23*J23),0) -> 1021 | N23: =ROUND((L23/L$79)*100,1) -> 5.5 | P23: =ROUND($P$57/$H$57*H23,0) -> 7 | R23: =L23+P23 -> 1028 | AC23: 1215
A24: 7 | C24: 21,000 LUMEN | F24: =1+69 -> 70 | H24: 11165 | J24: =ROUND(AC110+AC110*LT_COS_RATE,2) -> 18.74 | L24: =ROUND((F24*J24),0) -> 1312 | N24: =ROUND((L24/L$79)*100,1) -> 7 | P24: =ROUND($P$57/$H$57*H24,0) -> 12 | R24: =L24+P24 -> 1324 | AC24: 1914
A26: 8 | C26: METAL HALIDE
A27: 9 | C27: 14,000 LUMEN | F27: 3 | H27: =ROUND(F27*AC27/12,0) -> 219 | J27: =ROUND(AC113+AC113*LT_COS_RATE,2) -> 12.5 | L27: =ROUND((F27*J27),0) -> 38 | N27: =ROUND((L27/L$79)*100,1) -> 0.2 | P27: =ROUND($P$57/$H$57*H27,0) -> 0 | R27: =L27+P27 -> 38 | AC27: 874
A28: 10 | C28: 20,500 LUMEN | F28: 5 | H28: 506 | J28: =ROUND(AC114+AC114*LT_COS_RATE,2) -> 14.61 | L28: =ROUND((F28*J28),0) -> 73 | N28: =ROUND((L28/L$79)*100,1) -> 0.4 | P28: =ROUND($P$57/$H$57*H28,0) -> 1 | R28: =L28+P28 -> 74 | AC28: 1215
A29: 11 | C29: 36,000 LUMEN | F29: 4 | H29: 638 | J29: =ROUND(AC115+AC115*LT_COS_RATE,2) -> 18.74 | L29: =ROUND((F29*J29),0) -> 75 | N29: =ROUND((L29/L$79)*100,1) -> 0.4 | P29: =ROUND($P$57/$H$57*H29,0) -> 1 | R29: =L29+P29 -> 76 | AC29: 1914
A31: 12 | C31: SODIUM VAPOR (OH)
A32: 13 | C32: 9,500 LUMEN (OPEN) | F32: 266 | H32: =ROUND(F32*AC32/12,0) -> 10795 | J32: =ROUND(AC118+AC118*LT_COS_RATE,2) -> 8.59 | L32: =ROUND((F32*J32),0) -> 2285 | N32: =ROUND((L32/L$79)*100,1) -> 12.2 | P32: =ROUND($P$57/$H$57*H32,0) -> 11 | R32: =L32+P32 -> 2296 | AC32: 487
A33: 14 | C33: 9,500 LUMEN | F33: =34+30 -> 64 | H33: 2597 | J33: 11.18 | L33: 716 | N33: 3.8 | P33: =ROUND($P$57/$H$57*H33,0) -> 3 | R33: 719 | AC33: 487
A34: 15 | C34: 16,000 LUMEN | F34: 7 | H34: 415 | J34: 12.61 | L34: 88 | N34: 0.5 | P34: 0 | R34: 88 | AC34: 711
A35: 16 | C35: 22,000 LUMEN | F35: 57 | H35: 4503 | J35: 13.95 | L35: 795 | N35: 4.3 | P35: 5 | R35: 800 | AC35: 948
A36: 17 | C36: 27,500 LUMEN | F36: 2 | H36: 158 | J36: 13.95 | L36: 28 | N36: 0.1 | P36: 0 | R36: 28 | AC36: 948
A37: 18 | C37: 50,000 LUMEN | F37: =8+58 -> 66 | H37: 10775 | J37: 16.26 | L37: 1073 | N37: 5.7 | P37: =ROUND($P$57/$H$57*H37,0) -> 11 | R37: 1084 | AC37: 1959
A39: 19 | C39: DECORATIVE MV 7,000 LUMEN:
A40: 20 | C40: TOWN & COUNTRY | F40: =23+13 -> 36 | H40: =ROUND(F40*AC40/12,0) -> 2559 | J40: =ROUND(AC126+AC126*LT_COS_RATE,2) -> 14.97 | L40: =ROUND((F40*J40),0) -> 539 | N40: =ROUND((L40/L$79)*100,1) -> 2.9 | P40: =ROUND($P$57/$H$57*H40,0) -> 3 | R40: =L40+P40 -> 542 | AC40: 853
A41: 21 | C41: HOLOPHANE | F41: 3 | H41: 219 | J41: =ROUND(AC127+AC127*LT_COS_RATE,2) -> 19.29 | L41: =ROUND((F41*J41),0) -> 58 | N41: =ROUND((L41/L$79)*100,1) -> 0.3 | P41: =ROUND($P$57/$H$57*H41,0) -> 0 | R41: =L41+P41 -> 58 | AC41: 874
A42: 22 | C42: GAS REPLICA | F42: 0 | H42: 0 | J42: =ROUND(AC128+AC128*LT_COS_RATE,2) -> 46.61 | L42: =ROUND((F42*J42),0) -> 0 | N42: =ROUND((L42/L$79)*100,1) -> 0 | P42: =ROUND($P$57/$H$57*H42,0) -> 0 | R42: =L42+P42 -> 0 | AC42: 874
A43: 23 | C43: ASPEN | F43: 0 | H43: 0 | J43: =ROUND(AC129+AC129*LT_COS_RATE,2) -> 28.83 | L43: =ROUND((F43*J43),0) -> 0 | N43: =ROUND((L43/L$79)*100,1) -> 0 | P43: =ROUND($P$57/$H$57*H43,0) -> 0 | R43: =L43+P43 -> 0 | AC43: 874
A45: 24 | C45: DECORATIVE SV 9,500 LUMEN:
A46: 25 | C46: TOWN & COUNTRY | F46: 18 | H46: =ROUND(F46*AC46/12,0) -> 731 | J46: =ROUND(AC132+AC132*LT_COS_RATE,2) -> 23.61 | L46: =ROUND((F46*J46),0) -> 425 | N46: =ROUND((L46/L$79)*100,1) -> 2.3 | P46: =ROUND($P$57/$H$57*H46,0) -> 1 | R46: =L46+P46 -> 426 | AC46: 487
A47: 26 | C47: HOLOPHANE | F47: 0 | H47: 0 | J47: 25.58 | L47: 0 | N47: 0 | P47: =ROUND($P$57/$H$57*H47,0) -> 0 | R47: 0 | AC47: 532
A48: 27 | C48: RECTILINEAR | F48: 0 | H48: 0 | J48: 21.02 | L48: 0 | N48: 0 | P48: =ROUND($P$57/$H$57*H48,0) -> 0 | R48: 0 | AC48: 487
A49: 28 | C49: GAS REPLICA | F49: 0 | H49: 0 | J49: 49.16 | L49: 0 | N49: 0 | P49: =ROUND($P$57/$H$57*H49,0) -> 0 | R49: 0 | AC49: 532
A50: 29 | C50: ASPEN | F50: 0 | H50: 0 | J50: 29.79 | L50: 0 | N50: 0 | P50: =ROUND($P$57/$H$57*H50,0) -> 0 | R50: 0 | AC50: 532
A51: 30 | C51: TRADITIONAIRE | F51: 0 | H51: 0 | J51: 23.61 | L51: =ROUND((F51*J51),0) -> 0 | N51: 0 | P51: =ROUND($P$57/$H$57*H51,0) -> 0 | R51: =L51+P51 -> 0 | AC51: 487
A52: 31 | C52: GRANVILLE ACORN | F52: 0 | H52: 0 | J52: 29.79 | L52: 0 | N52: 0 | P52: 0 | R52: 0 | AC52: 532
A53: 32 | C53: DECORATIVE SV :
A54: 33 | C54: 22,000 LUMEN (RECTILINEAR) | F54: 0 | H54: =ROUND(F54*AC54/12,0) -> 0 | J54: =ROUND(AC140+AC140*LT_COS_RATE,2) -> 25.03 | L54: 0 | N54: =ROUND((L54/L$79)*100,1) -> 0 | P54: =ROUND($P$57/$H$57*H54,0) -> 0 | R54: 0 | AC54: 1023
A55: 34 | C55: 50,000 LUMEN (RECTILINEAR) | F55: 0 | H55: 0 | J55: =ROUND(AC141+AC141*LT_COS_RATE,2) -> 31.75 | L55: =ROUND((F55*J55),0) -> 0 | N55: =ROUND((L55/L$79)*100,1) -> 0 | P55: =ROUND($P$57/$H$57*H55,0) -> 0 | R55: =L55+P55 -> 0 | AC55: 1959
A56: 35 | C56: 50,000 LUMEN (SETBACK) | F56: 4 | H56: 653 | J56: =ROUND(AC142+AC142*LT_COS_RATE,2) -> 49.4 | L56: =ROUND((F56*J56),0) -> 198 | N56: =ROUND((L56/L$79)*100,1) -> 1.1 | P56: =ROUND($P$57/$H$57*H56,0) -> 1 | R56: =L56+P56 -> 199 | AC56: 1959
A57: 36 | C57: TOTAL POL UNITS | F57: =SUM(F21:F56) -> 948 | H57: =SUM(H21:H56) -> 72471 | L57: =SUM(L21:L56) -> 11460 | N57: =ROUND((L57/L$79)*100,1) -> 61.4 | P57: =ROUND($P$79/$H$79*H57,0) -> 75 | R57: =SUM(R21:R56) -> 11535
A59: 37 | C59: (B) FLOODLIGHTING UNITS:
A60: 38 | C60: MERCURY VAPOR:
A61: 39 | C61: 21,000 LUMEN | F61: 21 | H61: =ROUND(F61*AC61/12,0) -> 3350 | J61: =ROUND(AC147+AC147*LT_COS_RATE,2) -> 18.75 | L61: =ROUND((F61*J61),0) -> 394 | N61: =ROUND((L61/L$79)*100,1) -> 2.1 | P61: =ROUND($P$69/$H$69*H61,0) -> 3 | R61: =L61+P61 -> 397 | AC61: 1914
A62: 40 | C62: METAL HALIDE:
A63: 41 | C63: 20,500 LUMEN | F63: 4 | H63: =ROUND(F63*AC63/12,0) -> 405 | J63: =ROUND(AC149+AC149*LT_COS_RATE,2) -> 14.59 | L63: =ROUND((F63*J63),0) -> 58 | N63: =ROUND((L63/L$79)*100,1) -> 0.3 | P63: =ROUND($P$69/$H$69*H63,0) -> 0 | R63: =L63+P63 -> 58 | AC63: 1215
A64: 42 | C64: 36,000 LUMEN | F64: 26 | H64: 4147 | J64: =ROUND(AC150+AC150*LT_COS_RATE,2) -> 18.75 | L64: =ROUND((F64*J64),0) -> 488 | N64: =ROUND((L64/L$79)*100,1) -> 2.6 | P64: =ROUND($P$69/$H$69*H64,0) -> 4 | R64: =L64+P64 -> 492 | AC64: 1914
A65: 43 | C65: SODIUM VAPOR:
A66: 44 | C66: 22,000 LUMEN | F66: 63 | H66: =ROUND(F66*AC66/12,0) -> 5371 | J66: =ROUND(AC152+AC152*LT_COS_RATE,2) -> 13.85 | L66: =ROUND((F66*J66),0) -> 873 | N66: =ROUND((L66/L$79)*100,1) -> 4.7 | P66: =ROUND($P$69/$H$69*H66,0) -> 5 | R66: =L66+P66 -> 878 | AC66: 1023
A67: 45 | C67: 30,000 LUMEN | F67: 11 | H67: 938 | J67: =ROUND(AC153+AC153*LT_COS_RATE,2) -> 13.85 | L67: =ROUND((F67*J67),0) -> 152 | N67: =ROUND((L67/L$79)*100,1) -> 0.8 | P67: =ROUND($P$69/$H$69*H67,0) -> 1 | R67: =L67+P67 -> 153 | AC67: 1023
A68: 46 | C68: 50,000 LUMEN | F68: 309 | H68: 51423 | J68: =ROUND(AC154+AC154*LT_COS_RATE,2) -> 17.17 | L68: =ROUND((F68*J68),0) -> 5306 | N68: =ROUND((L68/L$79)*100,1) -> 28.4 | P68: =ROUND($P$69/$H$69*H68,0)+2 -> 54 | R68: =L68+P68 -> 5360 | AC68: 1997
A69: 47 | C69: TOTAL FL UNITS | F69: =SUM(F61:F68) -> 434 | H69: =SUM(H61:H68) -> 65634 | L69: =SUM(L61:L68) -> 7271 | N69: =ROUND((L69/L$79)*100,1) -> 38.9 | P69: =ROUND($P$79/$H$79*H69,0) -> 67 | R69: =SUM(R61:R68) -> 7338
A70: 48 | C70: TOTAL RATE OL EXCLUDING RIDERS | F70: =F69+F57 -> 1382 | H70: =H69+H57 -> 138105 | L70: =L69+L57 -> 18731 | N70: =ROUND((L70/L$79)*100,1) -> 100.3 | P70: =P69+P57 -> 142 | R70: =R69+R57 -> 18873
A72: 49 | C72: RIDERS NOT INCLUDED IN RATES ABOVE ($/KWH):
A73: 50 | C73: =ESM_Name -> ENVIRONMENTAL SURCHARGE MECHANISM RIDER (ESM) | J73: =PRO_ESM -> 0 | L73: =ROUND($H$70*J73,0) -> 0 | N73: =ROUND((L73/L$79)*100,1) -> 0 | R73: =L73+P73 -> 0
A74: 51 | C74: =DCI_Name -> DISTRIBUTION CAPITAL INVESTMENT RIDER (DCI) | J74: =PRO_DCI_SL -> 0 | L74: 0 | N74: 0 | R74: 0
A75: 52 | C75: =FTR_Name -> FERC TRANSMISSION COST RECOVERY RECONCILIATION (FTR) | J75: =PRO_FTR_SL -> 0 | L75: 0 | N75: 0 | R75: 0
A76: 53 | C76: =PSM_Name -> PROFIT SHARING MECHANISM (PSM) | J76: =PRO_PSM -> -0.000456 | L76: =ROUND($H$70*J76,0) -> -63 | N76: =ROUND((L76/L$79)*100,1) -> -0.3 | R76: =L76+P76 -> -63
A77: 54 | C77: TOTAL RIDERS NOT INCLUDED IN RATES ABOVE | L77: =SUM(L73:L76) -> -63 | N77: =ROUND((L77/L$79)*100,1) -> -0.3 | R77: =SUM(R73:R76) -> -63
A79: 55 | C79: TOTAL RATE OL INCLUDING RIDERS | F79: =F70 -> 1382 | H79: =H70 -> 138105 | L79: =L77+L70 -> 18668 | N79: 100 | P79: =ROUND(H79*CUR_FAC,0) -> 142 | R79: =R77+R70 -> 18810
C81: (1) THESE FIGURES REPRESENT NUMBER OF UNITS BILLED.
C82: ="(2) REFLECTS FUEL COMPONENT OF "&TEXT(PRO_FAC,"$0.000000;($0.000000)")&" PER KWH." -> (2) REFLECTS FUEL COMPONENT OF $0.001028 PER KWH.
C83: ="(3) REFLECTS FUEL COST RECOVERY INCLUDED IN BASE RATES OF "&TEXT(PRO_BASE_FUEL,"$0.000000;($0.000000)")&" PER KWH." -> (3) REFLECTS FUEL COST RECOVERY INCLUDED IN BASE RATES OF $0.023837 PER KWH.
T87: =NAME -> DUKE ENERGY KENTUCKY, INC.
T88: =CASE_NO -> CASE NO. 2017-00321
T89: =TITLE -> ANNUALIZED BASE YEAR REVENUES AT PROPOSED VS. MOST CURRENT RATES
T90: =DATE -> FOR THE TWELVE MONTHS ENDED November 30, 2017
T91: =SERVICE -> (ELECTRIC SERVICE)
T92: =DATA_PERIOD -> DATA: __X__ BASE PERIOD ____FORECASTED PERIOD | AO92: SCHEDULE M-2.2
T93: =TYPE -> TYPE OF FILING: _X_ ORIGINAL ___UPDATED ___ REVISED | AO93: =R7 -> PAGE 18 OF 22
T94: WORK PAPER REFERENCE NO(S).: | AO94: WITNESS:
T95: =TIME -> 6 Months Actual and 6 Months Projected | AO95: =WIT -> B. L. SAILERS
T96: CURRENT ANNUALIZED
AE98: CURRENT | AG98: % OF REV TO | AI98: REVENUE | AK98: % INCR IN | AO98: CURRENT | AQ98: TOTAL
R99: 4 | AC99: MOST | AE99: REVENUE LESS | AG99: TOTAL LESS | AI99: INCR LESS | AK99: REV LESS | AO99: TOTAL | AQ99: REVENUE | AU99: tariff sheet
T100: LINE | V100: RATE | W100: CLASS / | Y100: CUSTOMER | AC100: CURRENT | AE100: FUEL COST | AG100: FUEL COST | AI100: FUEL COST REV | AK100: FUEL COST REV | AM100: FUEL COST | AO100: REVENUE | AQ100: % INCREASE | AU100: rates less
T101: NO. | V101: CODE | W101: DESCRIPTION | Y101: BILLS(1) | AA101: SALES | AC101: RATES(3) | AE101: REVENUE | AG101: REVENUE | AI101: (F - K) | AK101: (M / K) | AM101: REVENUE (2) | AO101: (K + H) | AQ101: (M / K1) | AU101: base fuel | AX101: current | AY101: proposed
V102: (A) | W102: (B) | Y102: (C) | AA102: (D) | AC102: (J) | AE102: (K) | AG102: (L) | AI102: (M) | AK102: (N) | AM102: (H) | AO102: (K1) | AQ102: (O) | AW102: annual kwh | AX102: base fuel | AY102: base fuel
AA103: (KWH) | AC103: ($/UNIT) | AE103: ($) | AG103: (%) | AI103: ($) | AK103: (%) | AM103: ($) | AO103: ($) | AQ103: (%)
T104: 1 | V104: OL | W104: OUTDOOR LIGHTING SERV
T105: 2 | V105: (A) PRIVATE OUTDOOR LIGHTING UNITS:
T106: 3 | V106: MERCURY VAPOR:
T107: 4 | V107: 7,000 LUMEN (OPEN) | Y107: =F21 -> 248 | AA107: =H21 -> 17629 | AC107: 8.73 | AE107: =ROUND((Y107*AC107),0) -> 2165 | AG107: =ROUND((AE107/AE$165)*100,1) -> 13 | AI107: =L21-AE107 -> 258 | AK107: =ROUND((AI107/AE107)*100,1) -> 11.9 | AM107: =ROUND($AM$165/$AA$165*AA107,0) -> 18 | AO107: =AE107+AM107 -> 2183 | AQ107: =ROUND((AI107/AO107)*100,1) -> 11.8 | AU107: =AC107-AX107 -> 7.04 | AW107: 853 | AX107: =ROUND((AW107/12)*CUR_BASE_FUEL,2) -> 1.69 | AY107: =ROUND((AW107/12)*PRO_BASE_FUEL,2) -> 1.69
T108: 5 | V108: 7,000 LUMEN | Y108: =F22 -> 25 | AA108: =H22 -> 1821 | AC108: 11.17 | AE108: =ROUND((Y108*AC108),0) -> 279 | AG108: =ROUND((AE108/AE$165)*100,1) -> 1.7 | AI108: =L22-AE108 -> 34 | AK108: =ROUND((AI108/AE108)*100,1) -> 12.2 | AM108: =ROUND($AM$165/$AA$165*AA108,0) -> 2 | AO108: =AE108+AM108 -> 281 | AQ108: =ROUND((AI108/AO108)*100,1) -> 12.1 | AU108: =AC108-AX108 -> 9.43 | AW108: 874 | AX108: =ROUND((AW108/12)*CUR_BASE_FUEL,2) -> 1.74 | AY108: =ROUND((AW108/12)*PRO_BASE_FUEL,2) -> 1.74
T109: 6 | V109: 10,000 LUMEN | Y109: =F23 -> 70 | AA109: =H23 -> 7088 | AC109: 13.04 | AE109: =ROUND((Y109*AC109),0) -> 913 | AG109: =ROUND((AE109/AE$165)*100,1) -> 5.5 | AI109: =L23-AE109 -> 108 | AK109: =ROUND((AI109/AE109)*100,1) -> 11.8 | AM109: =ROUND($AM$165/$AA$165*AA109,0) -> 7 | AO109: =AE109+AM109 -> 920 | AQ109: =ROUND((AI109/AO109)*100,1) -> 11.7 | AU109: =AC109-AX109 -> 10.63 | AW109: 1215 | AX109: =ROUND((AW109/12)*CUR_BASE_FUEL,2) -> 2.41 | AY109: =ROUND((AW109/12)*PRO_BASE_FUEL,2) -> 2.41
T110: 7 | V110: 21,000 LUMEN | Y110: =F24 -> 70 | AA110: =H24 -> 11165 | AC110: 16.75 | AE110: =ROUND((Y110*AC110),0) -> 1173 | AG110: =ROUND((AE110/AE$165)*100,1) -> 7 | AI110: =L24-AE110 -> 139 | AK110: =ROUND((AI110/AE110)*100,1) -> 11.8 | AM110: =ROUND($AM$165/$AA$165*AA110,0) -> 11 | AO110: =AE110+AM110 -> 1184 | AQ110: =ROUND((AI110/AO110)*100,1) -> 11.7 | AU110: =AC110-AX110 -> 12.95 | AW110: 1914 | AX110: =ROUND((AW110/12)*CUR_BASE_FUEL,2) -> 3.8 | AY110: =ROUND((AW110/12)*PRO_BASE_FUEL,2) -> 3.8
T112: 8 | V112: METAL HALIDE
T113: 9 | V113: 14,000 LUMEN | Y113: =F27 -> 3 | AA113: =H27 -> 219 | AC113: 11.17 | AE113: =ROUND((Y113*AC113),0) -> 34 | AG113: =ROUND((AE113/AE$165)*100,1) -> 0.2 | AI113: =L27-AE113 -> 4 | AK113: =ROUND((AI113/AE113)*100,1) -> 11.8 | AM113: =ROUND($AM$165/$AA$165*AA113,0) -> 0 | AO113: =AE113+AM113 -> 34 | AQ113: =ROUND((AI113/AO113)*100,1) -> 11.8 | AU113: =AC113-AX113 -> 9.43 | AW113: 874 | AX113: =ROUND((AW113/12)*CUR_BASE_FUEL,2) -> 1.74 | AY113: =ROUND((AW113/12)*PRO_BASE_FUEL,2) -> 1.74
T114: 10 | V114: 20,500 LUMEN | Y114: =F28 -> 5 | AA114: =H28 -> 506 | AC114: 13.06 | AE114: =ROUND((Y114*AC114),0) -> 65 | AG114: =ROUND((AE114/AE$165)*100,1) -> 0.4 | AI114: =L28-AE114 -> 8 | AK114: =ROUND((AI114/AE114)*100,1) -> 12.3 | AM114: =ROUND($AM$165/$AA$165*AA114,0) -> 1 | AO114: =AE114+AM114 -> 66 | AQ114: =ROUND((AI114/AO114)*100,1) -> 12.1 | AU114: =AC114-AX114 -> 10.65 | AW114: 1215 | AX114: =ROUND((AW114/12)*CUR_BASE_FUEL,2) -> 2.41 | AY114: =ROUND((AW114/12)*PRO_BASE_FUEL,2) -> 2.41
T115: 11 | V115: 36,000 LUMEN | Y115: =F29 -> 4 | AA115: =H29 -> 638 | AC115: 16.75 | AE115: =ROUND((Y115*AC115),0) -> 67 | AG115: =ROUND((AE115/AE$165)*100,1) -> 0.4 | AI115: =L29-AE115 -> 8 | AK115: =ROUND((AI115/AE115)*100,1) -> 11.9 | AM115: =ROUND($AM$165/$AA$165*AA115,0) -> 1 | AO115: =AE115+AM115 -> 68 | AQ115: =ROUND((AI115/AO115)*100,1) -> 11.8 | AU115: =AC115-AX115 -> 12.95 | AW115: 1914 | AX115: =ROUND((AW115/12)*CUR_BASE_FUEL,2) -> 3.8 | AY115: =ROUND((AW115/12)*PRO_BASE_FUEL,2) -> 3.8
T117: 12 | V117: SODIUM VAPOR (OH)
T118: 13 | V118: 9,500 LUMEN (OPEN) | Y118: =F32 -> 266 | AA118: =H32 -> 10795 | AC118: 7.68 | AE118: =ROUND((Y118*AC118),0) -> 2043 | AG118: =ROUND((AE118/AE$165)*100,1) -> 12.2 | AI118: =L32-AE118 -> 242 | AK118: =ROUND((AI118/AE118)*100,1) -> 11.8 | AM118: =ROUND($AM$165/$AA$165*AA118,0) -> 11 | AO118: =AE118+AM118 -> 2054 | AQ118: =ROUND((AI118/AO118)*100,1) -> 11.8 | AU118: =AC118-AX118 -> 6.71 | AW118: 487 | AX118: =ROUND((AW118/12)*CUR_BASE_FUEL,2) -> 0.97 | AY118: =ROUND((AW118/12)*PRO_BASE_FUEL,2) -> 0.97
T119: 14 | V119: 9,500 LUMEN | Y119: 64 | AA119: 2597 | AC119: 9.99 | AE119: 639 | AG119: =ROUND((AE119/AE$165)*100,1) -> 3.8 | AI119: 77 | AK119: 12.1 | AM119: =ROUND($AM$165/$AA$165*AA119,0) -> 3 | AO119: 642 | AQ119: 12 | AU119: 9.02 | AW119: 487 | AX119: 0.97 | AY119: 0.97
T120: 15 | V120: 16,000 LUMEN | Y120: 7 | AA120: 415 | AC120: 11.27 | AE120: 79 | AG120: 0.5 | AI120: 9 | AK120: 11.4 | AM120: 0 | AO120: 79 | AQ120: 11.4 | AU120: 9.86 | AW120: 711 | AX120: 1.41 | AY120: 1.41
T121: 16 | V121: 22,000 LUMEN | Y121: 57 | AA121: 4503 | AC121: 12.47 | AE121: 711 | AG121: 4.3 | AI121: 84 | AK121: 11.8 | AM121: 5 | AO121: 716 | AQ121: 11.7 | AU121: 10.59 | AW121: 948 | AX121: 1.88 | AY121: 1.88
T122: 17 | V122: 27,500 LUMEN | Y122: 2 | AA122: 158 | AC122: 12.47 | AE122: 25 | AG122: 0.1 | AI122: 3 | AK122: 12 | AM122: 0 | AO122: 25 | AQ122: 12 | AU122: 10.59 | AW122: 948 | AX122: 1.88 | AY122: 1.88
T123: 18 | V123: 50,000 LUMEN | Y123: 66 | AA123: 10775 | AC123: 14.53 | AE123: 959 | AG123: 5.7 | AI123: 114 | AK123: 11.9 | AM123: =ROUND($AM$165/$AA$165*AA123,0) -> 11 | AO123: 970 | AQ123: 11.8 | AU123: 10.64 | AW123: 1959 | AX123: 3.89 | AY123: 3.89
T125: 19 | V125: DECORATIVE MV 7,000 LUMEN:
T126: 20 | V126: TOWN & COUNTRY | Y126: =F40 -> 36 | AA126: =H40 -> 2559 | AC126: 13.38 | AE126: =ROUND((Y126*AC126),0) -> 482 | AG126: =ROUND((AE126/AE$165)*100,1) -> 2.9 | AI126: =L40-AE126 -> 57 | AK126: =ROUND((AI126/AE126)*100,1) -> 11.8 | AM126: =ROUND($AM$165/$AA$165*AA126,0) -> 3 | AO126: =AE126+AM126 -> 485 | AQ126: =ROUND((AI126/AO126)*100,1) -> 11.8 | AU126: =AC126-AX126 -> 11.69 | AW126: 853 | AX126: =ROUND((AW126/12)*CUR_BASE_FUEL,2) -> 1.69 | AY126: =ROUND((AW126/12)*PRO_BASE_FUEL,2) -> 1.69
T127: 21 | V127: HOLOPHANE | Y127: =F41 -> 3 | AA127: =H41 -> 219 | AC127: 17.24 | AE127: =ROUND((Y127*AC127),0) -> 52 | AG127: =ROUND((AE127/AE$165)*100,1) -> 0.3 | AI127: =L41-AE127 -> 6 | AK127: =ROUND((AI127/AE127)*100,1) -> 11.5 | AM127: =ROUND($AM$165/$AA$165*AA127,0) -> 0 | AO127: =AE127+AM127 -> 52 | AQ127: =ROUND((AI127/AO127)*100,1) -> 11.5 | AU127: =AC127-AX127 -> 15.5 | AW127: 874 | AX127: =ROUND((AW127/12)*CUR_BASE_FUEL,2) -> 1.74 | AY127: =ROUND((AW127/12)*PRO_BASE_FUEL,2) -> 1.74
T128: 22 | V128: GAS REPLICA | Y128: =F42 -> 0 | AA128: =H42 -> 0 | AC128: 41.66 | AE128: =ROUND((Y128*AC128),0) -> 0 | AG128: =ROUND((AE128/AE$165)*100,1) -> 0 | AI128: =L42-AE128 -> 0 | AK128: =IF(AE128=0,"0.0 ",ROUND((AI128/AE128)*100,1)) -> 0.0 | AM128: =ROUND($AM$165/$AA$165*AA128,0) -> 0 | AO128: =AE128+AM128 -> 0 | AQ128: =IF(AO128=0,"0.0 ",ROUND((AI128/AO128)*100,1)) -> 0.0 | AU128: =AC128-AX128 -> 39.92 | AW128: 874 | AX128: =ROUND((AW128/12)*CUR_BASE_FUEL,2) -> 1.74 | AY128: =ROUND((AW128/12)*PRO_BASE_FUEL,2) -> 1.74
T129: 23 | V129: ASPEN | Y129: =F43 -> 0 | AA129: =H43 -> 0 | AC129: 25.77 | AE129: =ROUND((Y129*AC129),0) -> 0 | AG129: =ROUND((AE129/AE$165)*100,1) -> 0 | AI129: =L43-AE129 -> 0 | AK129: =IF(AE129=0,"0.0 ",ROUND((AI129/AE129)*100,1)) -> 0.0 | AM129: =ROUND($AM$165/$AA$165*AA129,0) -> 0 | AO129: =AE129+AM129 -> 0 | AQ129: =IF(AO129=0,"0.0 ",ROUND((AI129/AO129)*100,1)) -> 0.0 | AU129: =AC129-AX129 -> 24.03 | AW129: 874 | AX129: =ROUND((AW129/12)*CUR_BASE_FUEL,2) -> 1.74 | AY129: =ROUND((AW129/12)*PRO_BASE_FUEL,2) -> 1.74
T131: 24 | V131: DECORATIVE SV 9,500 LUMEN:
T132: 25 | V132: TOWN & COUNTRY | Y132: =F46 -> 18 | AA132: =H46 -> 731 | AC132: 21.1 | AE132: =ROUND((Y132*AC132),0) -> 380 | AG132: =ROUND((AE132/AE$165)*100,1) -> 2.3 | AI132: =L46-AE132 -> 45 | AK132: =ROUND((AI132/AE132)*100,1) -> 11.8 | AM132: =ROUND($AM$165/$AA$165*AA132,0) -> 1 | AO132: =AE132+AM132 -> 381 | AQ132: =ROUND((AI132/AO132)*100,1) -> 11.8 | AU132: =AC132-AX132 -> 20.13 | AW132: 487 | AX132: =ROUND((AW132/12)*CUR_BASE_FUEL,2) -> 0.97 | AY132: =ROUND((AW132/12)*PRO_BASE_FUEL,2) -> 0.97
T133: 26 | V133: HOLOPHANE | Y133: 0 | AA133: 0 | AC133: 22.86 | AE133: 0 | AG133: 0 | AI133: 0 | AK133: =IF(AE133=0,"0.0 ",ROUND((AI133/AE133)*100,1)) -> 0.0 | AM133: 0 | AO133: 0 | AQ133: =IF(AO133=0,"0.0 ",ROUND((AI133/AO133)*100,1)) -> 0.0 | AU133: 21.8 | AW133: 532 | AX133: 1.06 | AY133: 1.06
T134: 27 | V134: RECTILINEAR | Y134: 0 | AA134: 0 | AC134: 18.79 | AE134: 0 | AG134: 0 | AI134: 0 | AK134: =IF(AE134=0,"0.0 ",ROUND((AI134/AE134)*100,1)) -> 0.0 | AM134: 0 | AO134: 0 | AQ134: =IF(AO134=0,"0.0 ",ROUND((AI134/AO134)*100,1)) -> 0.0 | AU134: 17.82 | AW134: 487 | AX134: 0.97 | AY134: 0.97
T135: 28 | V135: GAS REPLICA | Y135: 0 | AA135: 0 | AC135: 43.94 | AE135: 0 | AG135: 0 | AI135: 0 | AK135: =IF(AE135=0,"0.0 ",ROUND((AI135/AE135)*100,1)) -> 0.0 | AM135: 0 | AO135: 0 | AQ135: =IF(AO135=0,"0.0 ",ROUND((AI135/AO135)*100,1)) -> 0.0 | AU135: 42.88 | AW135: 532 | AX135: 1.06 | AY135: 1.06
T136: 29 | V136: ASPEN | Y136: 0 | AA136: 0 | AC136: 26.63 | AE136: 0 | AG136: 0 | AI136: 0 | AK136: =IF(AE136=0,"0.0 ",ROUND((AI136/AE136)*100,1)) -> 0.0 | AM136: 0 | AO136: 0 | AQ136: =IF(AO136=0,"0.0 ",ROUND((AI136/AO136)*100,1)) -> 0.0 | AU136: 25.57 | AW136: 532 | AX136: 1.06 | AY136: 1.06
T137: 30 | V137: TRADITIONAIRE | Y137: 0 | AA137: 0 | AC137: 21.1 | AE137: =ROUND((Y137*AC137),0) -> 0 | AG137: 0 | AI137: 0 | AK137: 0.0 | AM137: =ROUND($AM$165/$AA$165*AA137,0) -> 0 | AO137: =AE137+AM137 -> 0 | AQ137: 0.0 | AU137: =AC137-AX137 -> 20.13 | AW137: 487 | AX137: =ROUND((AW137/12)*CUR_BASE_FUEL,2) -> 0.97 | AY137: =ROUND((AW137/12)*PRO_BASE_FUEL,2) -> 0.97
T138: 31 | V138: GRANVILLE ACORN | Y138: 0 | AA138: 0 | AC138: 26.63 | AE138: =ROUND((Y138*AC138),0) -> 0 | AG138: 0 | AI138: 0 | AK138: 0.0 | AM138: =ROUND($AM$165/$AA$165*AA138,0) -> 0 | AO138: =AE138+AM138 -> 0 | AQ138: 0.0 | AU138: =AC138-AX138 -> 25.57 | AW138: 532 | AX138: =ROUND((AW138/12)*CUR_BASE_FUEL,2) -> 1.06 | AY138: =ROUND((AW138/12)*PRO_BASE_FUEL,2) -> 1.06
T139: 32 | V139: DECORATIVE SV :
T140: 33 | V140: 22,000 LUMEN (RECTILINEAR) | Y140: =F54 -> 0 | AA140: =H54 -> 0 | AC140: 22.37 | AE140: 0 | AG140: =ROUND((AE140/AE$165)*100,1) -> 0 | AI140: =L54-AE140 -> 0 | AK140: =IF(AE140=0,"0.0 ",ROUND((AI140/AE140)*100,1)) -> 0.0 | AM140: 0 | AO140: 0 | AQ140: =IF(AO140=0,"0.0 ",ROUND((AI140/AO140)*100,1)) -> 0.0 | AU140: 20.34 | AW140: 1023 | AX140: 2.03 | AY140: 2.03
T141: 34 | V141: 50,000 LUMEN (RECTILINEAR) | Y141: =F55 -> 0 | AA141: =H55 -> 0 | AC141: 28.38 | AE141: 0 | AG141: =ROUND((AE141/AE$165)*100,1) -> 0 | AI141: =L55-AE141 -> 0 | AK141: 0.0 | AM141: 0 | AO141: 0 | AQ141: 0.0 | AU141: 24.49 | AW141: 1959 | AX141: 3.89 | AY141: 3.89
T142: 35 | V142: 50,000 LUMEN (SETBACK) | Y142: =F56 -> 4 | AA142: =H56 -> 653 | AC142: 44.15 | AE142: 177 | AG142: =ROUND((AE142/AE$165)*100,1) -> 1.1 | AI142: =L56-AE142 -> 21 | AK142: 11.9 | AM142: 1 | AO142: 178 | AQ142: 11.8 | AU142: 40.26 | AW142: 1959 | AX142: 3.89 | AY142: 3.89
T143: 36 | V143: TOTAL POL UNITS | Y143: =SUM(Y107:Y142) -> 948 | AA143: =SUM(AA107:AA142) -> 72471 | AE143: =SUM(AE107:AE142) -> 10243 | AG143: =ROUND((AE143/AE$165)*100,1) -> 61.4 | AI143: =SUM(AI107:AI142) -> 1217 | AK143: 11.9 | AM143: =ROUND($AM$165/$AA$165*AA143,0) -> 75 | AO143: =SUM(AO107:AO142) -> 10318 | AQ143: 11.8
T145: 37 | V145: (B) FLOODLIGHTING UNITS:
